{"text_format":"1","workbook":"xlsx","n_sheets":7,"sheets":["Budget Summary","Pivot","Budget Details","PivotData","Sorted_Data","KeystoneSalaries","CountryCodes"],"not_rendered":{"charts":0,"images":0,"macros":1,"external_links":0,"defined_names":3,"comments":0,"pivot_tables":1},"unopened":[],"bounds":{"document_bytes":16777216,"sheet_cells":100000,"rows_first":2000,"rows_last":500,"rows_between":2000,"halvings":0,"cell_chars":16384,"cell_head_chars":4096},"cells_cut":0,"cells_raw":0,"read":"whole","date_system":"1900"}

{"sheet":"Budget Summary","index":0,"n_rows":28,"n_cols":37,"rows_kept":28,"cut":false,"hidden":false,"merged":[[26,1,26,3],[27,1,27,3],[28,1,28,3],[32,1,32,2],[5,0,5,1],[13,1,14,2],[12,6,12,7],[11,6,11,7],[7,6,7,7],[6,6,6,7],[8,6,8,7],[9,6,9,7],[26,5,26,6],[27,5,27,6],[0,0,0,8],[10,6,10,7],[5,6,5,7],[1,5,1,7],[16,1,16,3],[17,1,17,3],[18,1,18,3],[19,1,19,3],[20,1,20,3],[22,1,22,3],[23,1,23,3],[24,1,24,3],[4,0,4,1],[6,0,6,1]]}
[{"$f":"C5 & \" - Project\"","v":" - Project"},null,null,null,null,null,null,null,null,null,null,null,null,null,null,null,null,null,null,null,null,null,null,null,null,null,null,null,null,null,null,null,null,null,null,null,"partner 2"]
[null,null,null,null,null,"Version 3.1",null,null,null,null,null,null,null,null,null,null,null,null,null,null,null,null,null,null,null,null,null,null,null,null,null,null,null,null,null,null,false]
[null,null,null,null,null,null,null,null,null,null,null,null,null,null,null,null,null,null,null,null,null,null,null,null,null,null,null,null,null,null,null,null,null,null,null,null,false]
[]
["Project Name:"]
["Primary Funding Partner:",null,null,null,null,"Category 3","Start Date",null,"mm/dd/yyyy"]
["Partners:",null,null,null,null,null,"End Date",null,"mm/dd/yyyy"]
[null,null,null,null,null,null,"Country"]
[]
[null,null,null,null,null,null,"Inflation Rate"]
[null,null,null,null,null,null,"Exchange Rate"]
[null,null,null,null,null,null,"No. of Languages"]
[null,null,null,null,null,null,"Sensitivity"]
[null,"Displayed in USD"]
[]
[]
[null,"Budget Approval Stats"]
[null,"Cash Costs (Category 1 & 2)"]
[null,"In-Kind Costs (Category 1 & 2)"]
[null,"Managing Organization's Supporting Costs (Category 3)"]
[null,"Grand Total - Cash & In-Kind"]
[]
[null,"Total Cash Costs"]
[null,"Other Partner Cash Contributions"]
[null,{"$f":"\"Total Cash Costs - \" & C6","v":"Total Cash Costs - "}]
[]
[null,"Annual Cost per Language - Cash & In-Kind",null,null,null,"Bible Translation %"]
[null,{"$f":"\"Annual Cost per Language - \" & C6","v":"Annual Cost per Language - "},null,null,null,{"$f":"C6& \" BT %\"","v":" BT %"}]

{"sheet":"Pivot","index":1,"n_rows":6,"n_cols":1,"rows_kept":6,"cut":false,"hidden":true,"merged":[]}
[]
[]
[]
[]
["Sum of FY18"]
[8004.2431786666657]

{"sheet":"Budget Details","index":2,"n_rows":107,"n_cols":27,"rows_kept":107,"cut":false,"hidden":false,"merged":[[26,3,26,4],[104,3,104,4],[0,2,2,10],[25,3,25,4],[104,9,104,12],[5,0,5,3],[5,4,5,9],[28,10,28,14],[5,10,5,14],[31,13,31,14],[31,9,31,12],[29,9,29,12],[30,3,30,4],[30,9,30,12],[104,13,104,14],[28,0,28,4],[29,3,29,4],[29,13,29,14],[30,13,30,14],[33,3,33,4],[35,3,35,4],[106,0,106,3],[103,3,103,4],[103,9,103,12],[103,13,103,14],[31,3,31,4]]}
[null,null,{"$f":"'Budget Summary'!C5&\" Budget Details\"&IF(RIGHT(E6,5)<>\"Local\",\" - \" & RIGHT(E6,3), \" - Local Currency\")","v":" Budget Details - USD"},null,null,null,null,null,null,null,null,null,null,null,null,null,null,null,null,null,null,null,null,null,null,24,36]
[null,null,null,null,null,null,null,null,null,null,null,null,null,null,null,null,null,null,null,null,null,null,null,null,null,32]
[null,null,null,null,null,null,null,null,null,null,null,null,null,null,null,null,null,null,null,null,null,null,null,null,null,3]
[]
[]
["Budget Information",null,null,null,"Budget in USD",null,null,null,null,null,"Details"]
["Partner\nAccount\nNo.","Partner Account Name",{"$f":"'Budget Summary'!C6&\" Account Name\"","v":" Account Name"},"Description","(Optional) \nEnter Yearly \nCost","FY17\n12 mo.","FY18\n12 mo.","FY19\n12 mo.","Line\nItem\nTotals",null,"Cost Type","Budget Category","Activity Type","Service Provider","Funding Organization"]
[null,null,null,null,null,null,null,null,{"$f":"SUM($F$8:$H$8)","v":0}]
[null,null,null,null,null,null,null,null,{"$f":"SUM($F$9:$H$9)","v":0}]
[null,null,null,null,null,0,null,null,{"$f":"SUM($F$10:$H$10)","v":0}]
[null,null,null,null,null,0,null,null,{"$f":"SUM($F$11:$H$11)","v":0}]
[null,null,null,null,null,0,null,null,{"$f":"SUM($F$12:$H$12)","v":0}]
[null,null,null,null,null,0,null,null,{"$f":"SUM($F$13:$H$13)","v":0}]
[null,null,null,null,null,null,null,null,{"$f":"SUM($F$14:$H$14)","v":0}]
[null,null,null,null,null,null,null,null,{"$f":"SUM($F$15:$H$15)","v":0}]
[null,null,null,null,null,null,null,null,{"$f":"SUM($F$16:$H$16)","v":0}]
[null,null,null,null,null,null,null,null,{"$f":"SUM($F$17:$H$17)","v":0}]
[null,null,null,null,null,null,null,null,{"$f":"SUM($F$18:$H$18)","v":0}]
[null,null,null,null,null,null,null,null,{"$f":"SUM($F$19:$H$19)","v":0}]
[null,null,null,null,null,null,null,null,{"$f":"SUM($F$20:$H$20)","v":0}]
[null,null,null,null,null,null,null,null,{"$f":"SUM($F$21:$H$21)","v":0}]
[null,null,null,null,null,null,null,null,{"$f":"SUM($F$22:$H$22)","v":0}]
[null,null,null,null,null,null,null,null,{"$f":"SUM($F$23:$H$23)","v":0}]
[null,null,null,null,null,null,null,null,{"$f":"SUM($F$24:$H$24)","v":0}]
[]
[null,null,null,"Filter Sub-Total",null,{"$f":"SUBTOTAL(9,F8:F24)","v":0},{"$f":"SUBTOTAL(9,G8:G24)","v":0},{"$f":"SUBTOTAL(9,H8:H24)","v":0},{"$f":"SUBTOTAL(9,I7:I24)","v":0}]
[null,null,null,"Total Expenses by Year",null,{"$f":"SUM(F8:F24)","v":0},{"$f":"SUM(G8:G24)","v":0},{"$f":"SUM(H8:H24)","v":0},{"$f":"SUM(I7:I24)","v":0}]
[]
["Other Partner Contributions",null,null,null,null,null,null,null,null,null,"Details"]
["Partner\nAccount\nNo.","Partner Account Name",{"$f":"'Budget Summary'!C6&\" Account Name\"","v":" Account Name"},"Description of Contribution",null,"FY17","FY18","FY19","Total","Donating Organization's Name",null,null,null,"Funds Recipient"]
[null,null,null,null,null,null,null,null,{"$f":"SUM($F$31:$H$31)","v":0}]
[null,null,null,null,null,null,null,null,{"$f":"SUM($F$32:$H$32)","v":0}]
[]
[null,null,null,"Total Partner Contributions by Year",null,{"$f":"SUM(F31:F32)","v":0},{"$f":"SUM(G31:G32)","v":0},{"$f":"SUM(H31:H32)","v":0},{"$f":"SUM(I31:I32)","v":0}]
[]
[null,null,null,"Total Cost by Year",null,{"$f":"(F27-F34)","v":0},{"$f":"(G27-G34)","v":0},{"$f":"(H27-H34)","v":0},{"$f":"+I27-I34","v":0}]
[]
[]
[]
[]
[]
[]
[]
[]
[]
[]
[]
[]
[]
[]
[]
[]
[]
[]
[]
[]
[]
[]
[]
[]
[]
[]
[]
[]
[]
[]
[]
[]
[]
[]
[]
[]
[]
[]
[]
[]
[]
[]
[]
[]
[]
[]
[]
[]
[]
[]
[]
[]
[]
[]
[]
[]
[]
[]
[]
[]
[]
[]
[null,null,null,null,null,0,null,null,{"$f":"SUM(F99:F99)","v":0}]
[null,null,null,null,null,0,null,null,{"$f":"SUM(F100:F100)","v":0}]
[]
[]
[null,null,null,null,null,0,null,null,{"$f":"SUM(F103:F103)","v":0}]
[null,null,null,null,null,0,null,null,{"$f":"SUM(F104:F104)","v":0}]
[null,null,null,null,null,0,null,null,{"$f":"SUM(F105:F105)","v":0}]
[]
["102 Budget w SIL accounts; 103 is budget w/o SIL; 107 OPC w SIL; 108 is OPC w/o SIL"]

{"sheet":"PivotData","index":3,"n_rows":8,"n_cols":12,"rows_kept":8,"cut":false,"hidden":true,"merged":[]}
["Partner Account No.","Partner Account Name","Seed Company Account No.","Seed Company Account Name","Description","FY18","Cost Type","Budget Category","Activity Type","Service Provider","Funding Organization","Category"]
[null,null,{"$f":"IF(ISERROR(VLOOKUP(D2,Sorted_Data!I:J,2,FALSE)),0,VLOOKUP(D2,Sorted_Data!I:J,2,FALSE))","v":49999},"Other Partner Contributions",null,-100,"Cash",null,null,null,"org 1"]
[null,null,{"$f":"IF(ISERROR(VLOOKUP(D3,Sorted_Data!I:J,2,FALSE)),0,VLOOKUP(D3,Sorted_Data!I:J,2,FALSE))","v":49999},"Other Partner Contributions",null,-200,"Cash",null,null,null,"org 2"]
[null,null,{"$f":"IF(ISERROR(VLOOKUP(D4,Sorted_Data!I:J,2,FALSE)),0,VLOOKUP(D4,Sorted_Data!I:J,2,FALSE))","v":60091},"Salary/Stipend - Local Consultant"," Sr.Translation Consultant - 16 Weeks in FY18 at 341 USD per week. Half of consultant time is allocated for workshop preparation.",500,"In-Kind","Field Budget","Bible Translation","partner 2","Seed Company","Category 1"]
[null,null,{"$f":"IF(ISERROR(VLOOKUP(D5,Sorted_Data!I:J,2,FALSE)),0,VLOOKUP(D5,Sorted_Data!I:J,2,FALSE))","v":60092},"Salary/Stipend - Non Translator"," - 42 Weeks in FY18 at 167 USD per week.",7020.2495999999983,"Cash","Field Budget","Bible Translation","partner 2","Seed Company","Category 1"]
[null,null,{"$f":"IF(ISERROR(VLOOKUP(D6,Sorted_Data!I:J,2,FALSE)),0,VLOOKUP(D6,Sorted_Data!I:J,2,FALSE))","v":69910},"Financial Services",null,120.36266666666667,"Cash","Field Budget","Bible Translation","partner 2","Seed Company","Category 2"]
[null,null,{"$f":"IF(ISERROR(VLOOKUP(D7,Sorted_Data!I:J,2,FALSE)),0,VLOOKUP(D7,Sorted_Data!I:J,2,FALSE))","v":69910},"Financial Services",null,120.36266666666667,"Cash","Direct Charge to Funder","Bible Translation","partner 2","Seed Company","Category 2"]
[null,"Project Administration Fee",{"$f":"IF(ISERROR(VLOOKUP(D8,Sorted_Data!I:J,2,FALSE)),0,VLOOKUP(D8,Sorted_Data!I:J,2,FALSE))","v":69999},"Project Administration Fee",null,543.26824533333331,"Cash","Field Budget","Bible Translation","partner 1","Seed Company","Category 3"]

{"sheet":"Sorted_Data","index":4,"n_rows":6921,"n_cols":10,"rows_kept":6921,"cut":false,"hidden":true,"merged":[]}
["SC_Single_List","SIL_Single_List","SC_Lookup_SC","SC_Lookup_SIL","SIL_Lookup_SIL","SIL_Lookup_SC","SIL_Account_Name","SIL_Account_Num","SC_Account_Name","SC_Account_Num"]
["Bank Charges","Bank Fees","Salary/Stipend - Translator","Casual Labor","Bank Fees","Bank Charges","Sales - Taxable",40100,"Salary/Stipend - Translator",60090]
["Business Meals & Entertainment","Books & Publications","Salary/Stipend - Translator","Employee Salaries","Books & Publications","Reference Books & Materials","Sales - Taxable",40101,"Salary/Stipend - Local Consultant",60091]
["Computer Purchase","Broadcast Fees","Salary/Stipend - Translator","Labor Expense","Broadcast Fees","Non-Print Media","Sales - Taxable",40102,"Salary/Stipend - Non Translator",60092]
["Computer Software","Casual Labor","Salary/Stipend - Translator","Optional Employee Benefits","Casual Labor","Salary/Stipend - Translator","Sales - Taxable",40103,"Utilities",60500]
["Equipment Maintenance Expense","Communications","Salary/Stipend - Translator","Payroll Taxes - Employer's Portion","Casual Labor","Salary/Stipend - Non Translator","Sales - Taxable",40104,"Telephone-Internet Connectivity",60540]
["Equipment Purchase Expense","Computer and Data Processing Expense","Salary/Stipend - Translator","Required Employee Benefits ","Communications","Telephone-Internet Connectivity","Sales - Taxable",40105,"Trial Publications",60541]
["Financial Services","Donated Services","Salary/Stipend - Local Consultant","LP Consultant Services","Computer and Data Processing Expense","Computer Software","Sales - Taxable",40106,"Legal Fees",60840]
["Fuel Expense - Vehicle","Dues & Subscriptions","Salary/Stipend - Non Translator","Casual Labor","Computer and Data Processing Expense","Computer Purchase","Sales - Taxable",40107,"Bank Charges",65040]
["HR Services","Electricity","Salary/Stipend - Non Translator","Employee Salaries","Contributions From Global Partner Link - Temporarily Restricted","Other Partner Contributions","Sales - Taxable",40108,"Computer Software",65055]
["Insurance Expense","Employee Salaries","Salary/Stipend - Non Translator","Labor Expense","Contributions From JAARS - Temporarily Restricted","Other Partner Contributions","Sales - Taxable",40109,"Equipment Maintenance Expense",65120]
["IT Services","Equipment Expense","Salary/Stipend - Non Translator","Optional Employee Benefits","Contributions From SIL - Temporarily Restricted","Other Partner Contributions","Sales - Taxable",40110,"Equipment Purchase Expense",65130]
["Legal Fees","Equipment Leases","Salary/Stipend - Non Translator","Other Professional Services","Contributions From The Seed Company - Temporarily Restricted","Transfer Received from TSC","Sales - Taxable",40111,"Computer Purchase",65131]
["Maint & Repair Expense","Finance & Project Funding Services","Salary/Stipend - Non Translator","Payroll Taxes - Employer's Portion","Contributions From WOs - Temporarily Restricted","Other Partner Contributions","Sales - Taxable",40112,"Fuel Expense - Vehicle",65171]
["Meeting/Seminar Expense","Fuel","Salary/Stipend - Non Translator","Required Employee Benefits ","Contributions From Wycliffe Assoc US - Temporarily Restricted","Other Partner Contributions","Sales - Taxable",40113,"Insurance Expense",65190]
["Non-Print Media","Gas","Utilities","Electricity","Contributions From Wycliffe Australia - Temporarily Restricted","Other Partner Contributions","Sales - Taxable",40114,"Maint & Repair Expense",65240]
["Office Expense","Grant/Contr To Ext Orgs -Non US","Utilities","Gas","Contributions From Wycliffe Germany - Temporarily Restricted","Other Partner Contributions","Sales - Taxable",40115,"Meeting/Seminar Expense",65270]
["Postage & Freight Expense","Grant/Contr To Ext Orgs-U.S. ","Utilities","Utilities - SIL","Contributions From Wycliffe Netherlands - Temporarily Restricted","Other Partner Contributions","Sales - Taxable",40116,"Reference Books & Materials",65290]
["Printing","Grant/Contr To SIL Entities","Utilities","Water","Contributions From Wycliffe Sweden - Temporarily Restricted","Other Partner Contributions","Sales - Taxable",40117,"Office Expense",65300]
["Program Mgt Support","Grant/Contr To WMOs -US","Telephone-Internet Connectivity","Communications","Contributions From Wycliffe Switzerland - Temporarily Restricted","Other Partner Contributions","Sales - Taxable",40118,"Postage & Freight Expense",65330]
["Project Administration Fee","Grant/Contr To WMOs-Non US","Trial Publications","Printing And Media Production","Contributions-Temporarily Restricted","Other Partner Contributions","Sales - Taxable",40119,"Business Meals & Entertainment",65340]
["Reference Books & Materials","HR Services - SIL","Legal Fees","Legal","Donated Services","Other Partner Contributions","Sales - Nontaxable",40120,"Non-Print Media",65345]
["Rent Expense","Insurance","Bank Charges","Bank Fees","Dues & Subscriptions","Reference Books & Materials","Sales - Nontaxable",40121,"Printing",65350]
["Room/Board - Consultant","Interest","Bank Charges","Interest","Electricity","Utilities","Sales - Nontaxable",40122,"Rent Expense",65410]
["Room/Board - Non Translator","IT Services - SIL","Computer Software","Computer and Data Processing Expense","Employee Salaries","Salary/Stipend - Translator","Sales - Nontaxable",40123,"Taxes, Licenses, Fees",65460]
["Room/Board - Translator","Labor Expense","Computer Software","Software Development","Employee Salaries","Salary/Stipend - Non Translator","Sales - Nontaxable",40124,"Training/Professional Development",65470]
["Salary/Stipend - Local Consultant","Lang Prog Mgmt","Equipment Maintenance Expense","Maintenance And Overhaul/Replacement Reserves","Equipment Expense","Equipment Purchase Expense","Sales - Nontaxable",40125,"Room/Board - Consultant",65480]
["Salary/Stipend - Non Translator","Lang Prog Services & Planning","Equipment Purchase Expense","Equipment Expense","Equipment Expense","Computer Purchase","Sales - Nontaxable",40126,"Room/Board - Translator",65481]
["Salary/Stipend - Translator","Legal","Equipment Purchase Expense","Equipment Leases","Equipment Leases","Equipment Purchase Expense","Sales - Nontaxable",40127,"Room/Board - Non Translator",65482]
["Taxes, Licenses, Fees","LP Consultant Services","Computer Purchase","Computer and Data Processing Expense","Finance & Project Funding Services","Financial Services","Sales - Nontaxable",40128,"Travel - Consultant",65490]
["Telephone-Internet Connectivity","Maintenance And Overhaul/Replacement Reserves","Computer Purchase","Equipment Expense","Fuel","Fuel Expense - Vehicle","Sales - Nontaxable",40129,"Travel - Translator",65491]
["Training/Professional Development","Meetings/Conferences","Fuel Expense - Vehicle","Fuel","Gas","Utilities","Sales - Nontaxable",40130,"Travel - Non Translator",65492]
["Travel - Non Translator","Miscellaneous","Insurance Expense","Insurance","Grant/Contr To Ext Orgs -Non US","Project Administration Fee","Sales - Nontaxable",40131,"Vehicle Expense",65500]
["Travel - Translator","Optional Employee Benefits","Maint & Repair Expense","Maintenance And Overhaul/Replacement Reserves","Grant/Contr To Ext Orgs-U.S. ","Project Administration Fee","Sales - Nontaxable",40132,"Financial Services",69910]
["Travel - Consultant","Other Professional Services","Meeting/Seminar Expense","Meetings/Conferences","Grant/Contr To SIL Entities","Project Administration Fee","Sales - Nontaxable",40133,"IT Services",69920]
["Trial Publications","Payroll Taxes - Employer's Portion","Reference Books & Materials","Books & Publications","Grant/Contr To WMOs -US","Project Administration Fee","Sales - Nontaxable",40134,"HR Services",69930]
["Utilities","Postage","Reference Books & Materials","Dues & Subscriptions","Grant/Contr To WMOs-Non US","Project Administration Fee","Sales - Nontaxable",40135,"Program Mgt Support",69940]
["Vehicle Expense","Printing And Media Production","Office Expense","Supplies","HR Services - SIL","HR Services","Sales - Nontaxable",40136,"Project Administration Fee",69999]
["Other Partner Contributions","Public Relations","Office Expense","Miscellaneous","Insurance","Insurance Expense","Sales - Nontaxable",40137,"Transfer Received from TSC",48300]
[null,"Rent & Security Expense","Postage & Freight Expense","Postage","Interest","Bank Charges","Sales - Nontaxable",40138,"Other Partner Contributions",49999]
[null,"Required Employee Benefits ","Postage & Freight Expense","Shipping","IT Services - SIL","IT Services","Sales - Nontaxable",40139]
[null,"Shipping","Business Meals & Entertainment","Public Relations","Labor Expense","Salary/Stipend - Translator","Sales - Nontaxable",40140]
[null,"Software Development","Non-Print Media","Broadcast Fees","Labor Expense","Salary/Stipend - Non Translator","Sales - Nontaxable",40141]
[null,"Staff Development","Non-Print Media","Printing And Media Production","Lang Prog Mgmt","Program Mgt Support","Sales - Nontaxable",40142]
[null,"Supplies","Printing","Printing And Media Production","Lang Prog Services & Planning","Program Mgt Support","Sales - Nontaxable",40143]
[null,"Taxes, Licenses and Fees","Rent Expense","Rent & Security Expense","Legal","Legal Fees","Sales - Nontaxable",40144]
[null,"Training Related Travel","Rent Expense","Training Workshops","LP Consultant Services","Salary/Stipend - Local Consultant","Sales - Nontaxable",40145]
[null,"Training Workshops","Taxes, Licenses, Fees","Taxes, Licenses and Fees","Maintenance And Overhaul/Replacement Reserves","Equipment Maintenance Expense","Sales - Nontaxable",40146]
[null,"Travel","Training/Professional Development","Staff Development","Maintenance And Overhaul/Replacement Reserves","Maint & Repair Expense","Sales - Nontaxable",40147]
[null,"Utilities - SIL","Training/Professional Development","Training Workshops","Meetings/Conferences","Meeting/Seminar Expense","Sales - Nontaxable",40148]
[null,"Water","Room/Board - Consultant","Training Related Travel","Miscellaneous","Office Expense","Sales - Nontaxable",40149]
[null,null,"Room/Board - Consultant","Training Workshops","Optional Employee Benefits","Salary/Stipend - Translator","Freight & Handling Fees",40150]
[null,null,"Room/Board - Consultant","Travel","Optional Employee Benefits","Salary/Stipend - Non Translator","Freight & Handling Fees",40151]
[null,null,"Room/Board - Translator","Training Related Travel","Other Contributions From Wycliffe Canada - Temporarily Restricted","Other Partner Contributions","Freight & Handling Fees",40152]
[null,null,"Room/Board - Translator","Training Workshops","Other Contributions From Wycliffe UK - Temporarily Restricted","Other Partner Contributions","Freight & Handling Fees",40153]
[null,null,"Room/Board - Translator","Travel","Other Contributions From Wycliffe US - Temporarily Restricted","Other Partner Contributions","Freight & Handling Fees",40154]
[null,null,"Room/Board - Non Translator","Training Related Travel","Other Professional Services","Salary/Stipend - Non Translator","Freight & Handling Fees",40155]
[null,null,"Room/Board - Non Translator","Training Workshops","Payroll Taxes - Employer's Portion","Salary/Stipend - Translator","Freight & Handling Fees",40156]
[null,null,"Room/Board - Non Translator","Travel","Payroll Taxes - Employer's Portion","Salary/Stipend - Non Translator","Freight & Handling Fees",40157]
[null,null,"Travel - Consultant","Training Related Travel","Postage","Postage & Freight Expense","Freight & Handling Fees",40158]
[null,null,"Travel - Consultant","Travel","Printing And Media Production","Trial Publications","Freight & Handling Fees",40159]
[null,null,"Travel - Translator","Training Related Travel","Printing And Media Production","Non-Print Media","Freight & Handling Fees",40160]
[null,null,"Travel - Translator","Travel","Printing And Media Production","Printing","Freight & Handling Fees",40161]
[null,null,"Travel - Non Translator","Training Related Travel","Public Relations","Business Meals & Entertainment","Freight & Handling Fees",40162]
[null,null,"Travel - Non Translator","Travel","Rent & Security Expense","Rent Expense","Freight & Handling Fees",40163]
[null,null,"Vehicle Expense","Training Related Travel","Required Employee Benefits ","Salary/Stipend - Translator","Freight & Handling Fees",40164]
[null,null,"Vehicle Expense","Travel","Required Employee Benefits ","Salary/Stipend - Non Translator","Freight & Handling Fees",40165]
[null,null,"Financial Services","Finance & Project Funding Services","Shipping","Postage & Freight Expense","Freight & Handling Fees",40166]
[null,null,"IT Services","IT Services - SIL","Software Development","Computer Software","Freight & Handling Fees",40167]
[null,null,"HR Services","HR Services - SIL","Sponsorship Contributions From Wycliffe Canada - Temporarily Restricted","Other Partner Contributions","Freight & Handling Fees",40168]
[null,null,"Program Mgt Support","Lang Prog Mgmt","Sponsorship Contributions From Wycliffe Uk - Temporarily Restricted","Other Partner Contributions","Freight & Handling Fees",40169]
[null,null,"Program Mgt Support","Lang Prog Services & Planning","Sponsorship Contributions From Wycliffe US - Temporarily Restricted","Transfer Received from TSC","Freight & Handling Fees",40170]
[null,null,"Project Administration Fee","Grant/Contr To Ext Orgs -Non US","Staff Development","Training/Professional Development","Freight & Handling Fees",40171]
[null,null,"Project Administration Fee","Grant/Contr To Ext Orgs-U.S. ","Supplies","Office Expense","Freight & Handling Fees",40172]
[null,null,"Project Administration Fee","Grant/Contr To SIL Entities","Taxes, Licenses and Fees","Taxes, Licenses, Fees","Freight & Handling Fees",40173]
[null,null,"Project Administration Fee","Grant/Contr To WMOs -US","Training Related Travel","Room/Board - Consultant","Freight & Handling Fees",40174]
[null,null,"Project Administration Fee","Grant/Contr To WMOs-Non US","Training Related Travel","Room/Board - Translator","Freight & Handling Fees",40175]
[null,null,"Transfer Received from TSC","Contributions From The Seed Company - Temporarily Restricted","Training Related Travel","Room/Board - Non Translator","Freight & Handling Fees",40176]
[null,null,"Transfer Received from TSC","Sponsorship Contributions From Wycliffe US - Temporarily Restricted","Training Related Travel","Travel - Consultant","Freight & Handling Fees",40177]
[null,null,"Other Partner Contributions","Contributions From Global Partner Link - Temporarily Restricted","Training Related Travel","Travel - Translator","Freight & Handling Fees",40178]
[null,null,"Other Partner Contributions","Contributions From JAARS - Temporarily Restricted","Training Related Travel","Travel - Non Translator","Freight & Handling Fees",40179]
[null,null,"Other Partner Contributions","Contributions From SIL - Temporarily Restricted","Training Related Travel","Vehicle Expense","Freight & Handling Fees",40180]
[null,null,"Other Partner Contributions","Contributions From WOs - Temporarily Restricted","Training Workshops","Rent Expense","Freight & Handling Fees",40181]
[null,null,"Other Partner Contributions","Contributions From Wycliffe Assoc US - Temporarily Restricted","Training Workshops","Training/Professional Development","Freight & Handling Fees",40182]
[null,null,"Other Partner Contributions","Contributions From Wycliffe Australia - Temporarily Restricted","Training Workshops","Room/Board - Consultant","Freight & Handling Fees",40183]
[null,null,"Other Partner Contributions","Contributions From Wycliffe Germany - Temporarily Restricted","Training Workshops","Room/Board - Translator","Freight & Handling Fees",40184]
[null,null,"Other Partner Contributions","Contributions From Wycliffe Netherlands - Temporarily Restricted","Training Workshops","Room/Board - Non Translator","Freight & Handling Fees",40185]
[null,null,"Other Partner Contributions","Contributions From Wycliffe Sweden - Temporarily Restricted","Travel","Room/Board - Consultant","Freight & Handling Fees",40186]
[null,null,"Other Partner Contributions","Contributions From Wycliffe Switzerland - Temporarily Restricted","Travel","Room/Board - Translator","Freight & Handling Fees",40187]
[null,null,"Other Partner Contributions","Contributions-Temporarily Restricted","Travel","Room/Board - Non Translator","Freight & Handling Fees",40188]
[null,null,"Other Partner Contributions","Donated Services","Travel","Travel - Consultant","Freight & Handling Fees",40189]
[null,null,"Other Partner Contributions","Other Contributions From Wycliffe Canada - Temporarily Restricted","Travel","Travel - Translator","Freight & Handling Fees",40190]
[null,null,"Other Partner Contributions","Other Contributions From Wycliffe UK - Temporarily Restricted","Travel","Travel - Non Translator","Freight & Handling Fees",40191]
[null,null,"Other Partner Contributions","Other Contributions From Wycliffe US - Temporarily Restricted","Travel","Vehicle Expense","Freight & Handling Fees",40192]
[null,null,"Other Partner Contributions","Sponsorship Contributions From Wycliffe Canada - Temporarily Restricted","Tuition/Fees (Received as Income)","Other Partner Contributions","Freight & Handling Fees",40193]
[null,null,"Other Partner Contributions","Sponsorship Contributions From Wycliffe Uk - Temporarily Restricted","Utilities - SIL","Utilities","Freight & Handling Fees",40194]
[null,null,"Other Partner Contributions","Tuition/Fees (Received as Income)","Water","Utilities","Freight & Handling Fees",40195]
[null,null,null,null,null,null,"Freight & Handling Fees",40196]
[null,null,null,null,null,null,"Freight & Handling Fees",40197]
[null,null,null,null,null,null,"Freight & Handling Fees",40198]
[null,null,null,null,null,null,"Freight & Handling Fees",40199]
[null,null,null,null,null,null,"Service Income",40200]
[null,null,null,null,null,null,"Service Income",40201]
[null,null,null,null,null,null,"Service Income",40202]
[null,null,null,null,null,null,"Service Income",40203]
[null,null,null,null,null,null,"Service Income",40204]
[null,null,null,null,null,null,"Service Income",40205]
[null,null,null,null,null,null,"Service Income",40206]
[null,null,null,null,null,null,"Service Income",40207]
[null,null,null,null,null,null,"Service Income",40208]
[null,null,null,null,null,null,"Service Income",40209]
[null,null,null,null,null,null,"Service Income",40210]
[null,null,null,null,null,null,"Service Income",40211]
[null,null,null,null,null,null,"Service Income",40212]
[null,null,null,null,null,null,"Service Income",40213]
[null,null,null,null,null,null,"Service Income",40214]
[null,null,null,null,null,null,"Service Income",40215]
[null,null,null,null,null,null,"Service Income",40216]
[null,null,null,null,null,null,"Service Income",40217]
[null,null,null,null,null,null,"Service Income",40218]
[null,null,null,null,null,null,"Service Income",40219]
[null,null,null,null,null,null,"Service Income",40220]
[null,null,null,null,null,null,"Service Income",40221]
[null,null,null,null,null,null,"Service Income",40222]
[null,null,null,null,null,null,"Service Income",40223]
[null,null,null,null,null,null,"Service Income",40224]
[null,null,null,null,null,null,"Service Income",40225]
[null,null,null,null,null,null,"Service Income",40226]
[null,null,null,null,null,null,"Service Income",40227]
[null,null,null,null,null,null,"Service Income",40228]
[null,null,null,null,null,null,"Service Income",40229]
[null,null,null,null,null,null,"Service Income",40230]
[null,null,null,null,null,null,"Service Income",40231]
[null,null,null,null,null,null,"Service Income",40232]
[null,null,null,null,null,null,"Service Income",40233]
[null,null,null,null,null,null,"Service Income",40234]
[null,null,null,null,null,null,"Service Income",40235]
[null,null,null,null,null,null,"Service Income",40236]
[null,null,null,null,null,null,"Service Income",40237]
[null,null,null,null,null,null,"Service Income",40238]
[null,null,null,null,null,null,"Service Income",40239]
[null,null,null,null,null,null,"Service Income",40240]
[null,null,null,null,null,null,"Service Income",40241]
[null,null,null,null,null,null,"Service Income",40242]
[null,null,null,null,null,null,"Service Income",40243]
[null,null,null,null,null,null,"Service Income",40244]
[null,null,null,null,null,null,"Service Income",40245]
[null,null,null,null,null,null,"Service Income",40246]
[null,null,null,null,null,null,"Service Income",40247]
[null,null,null,null,null,null,"Service Income",40248]
[null,null,null,null,null,null,"Service Income",40249]
[null,null,null,null,null,null,"Service Income",40250]
[null,null,null,null,null,null,"Service Income",40251]
[null,null,null,null,null,null,"Service Income",40252]
[null,null,null,null,null,null,"Service Income",40253]
[null,null,null,null,null,null,"Service Income",40254]
[null,null,null,null,null,null,"Service Income",40255]
[null,null,null,null,null,null,"Service Income",40256]
[null,null,null,null,null,null,"Service Income",40257]
[null,null,null,null,null,null,"Service Income",40258]
[null,null,null,null,null,null,"Service Income",40259]
[null,null,null,null,null,null,"Language Program Service Income",40260]
[null,null,null,null,null,null,"Language Program Service Income",40261]
[null,null,null,null,null,null,"Language Program Service Income",40262]
[null,null,null,null,null,null,"Language Program Service Income",40263]
[null,null,null,null,null,null,"Language Program Service Income",40264]
[null,null,null,null,null,null,"Language Program Service Income",40265]
[null,null,null,null,null,null,"Language Program Service Income",40266]
[null,null,null,null,null,null,"Language Program Service Income",40267]
[null,null,null,null,null,null,"Language Program Service Income",40268]
[null,null,null,null,null,null,"Language Program Service Income",40269]
[null,null,null,null,null,null,"Language Program Service Income",40270]
[null,null,null,null,null,null,"Language Program Service Income",40271]
[null,null,null,null,null,null,"Language Program Service Income",40272]
[null,null,null,null,null,null,"Language Program Service Income",40273]
[null,null,null,null,null,null,"Language Program Service Income",40274]
[null,null,null,null,null,null,"Language Program Service Income",40275]
[null,null,null,null,null,null,"Language Program Service Income",40276]
[null,null,null,null,null,null,"Language Program Service Income",40277]
[null,null,null,null,null,null,"Language Program Service Income",40278]
[null,null,null,null,null,null,"Language Program Service Income",40279]
[null,null,null,null,null,null,"Language Program Service Income",40280]
[null,null,null,null,null,null,"Language Program Service Income",40281]
[null,null,null,null,null,null,"Language Program Service Income",40282]
[null,null,null,null,null,null,"Language Program Service Income",40283]
[null,null,null,null,null,null,"Language Program Service Income",40284]
[null,null,null,null,null,null,"Language Program Service Income",40285]
[null,null,null,null,null,null,"Language Program Service Income",40286]
[null,null,null,null,null,null,"Language Program Service Income",40287]
[null,null,null,null,null,null,"Language Program Service Income",40288]
[null,null,null,null,null,null,"Language Program Service Income",40289]
[null,null,null,null,null,null,"Language Program Service Income",40290]
[null,null,null,null,null,null,"Language Program Service Income",40291]
[null,null,null,null,null,null,"Language Program Service Income",40292]
[null,null,null,null,null,null,"Language Program Service Income",40293]
[null,null,null,null,null,null,"Language Program Service Income",40294]
[null,null,null,null,null,null,"Language Program Service Income",40295]
[null,null,null,null,null,null,"Language Program Service Income",40296]
[null,null,null,null,null,null,"Language Program Service Income",40297]
[null,null,null,null,null,null,"Language Program Service Income",40298]
[null,null,null,null,null,null,"Language Program Service Income",40299]
[null,null,null,null,null,null,"Rental Income (External)",40500]
[null,null,null,null,null,null,"Rental Income (External)",40501]
[null,null,null,null,null,null,"Rental Income (External)",40502]
[null,null,null,null,null,null,"Rental Income (External)",40503]
[null,null,null,null,null,null,"Rental Income (External)",40504]
[null,null,null,null,null,null,"Rental Income (External)",40505]
[null,null,null,null,null,null,"Rental Income (External)",40506]
[null,null,null,null,null,null,"Rental Income (External)",40507]
[null,null,null,null,null,null,"Rental Income (External)",40508]
[null,null,null,null,null,null,"Rental Income (External)",40509]
[null,null,null,null,null,null,"Rental Income (External)",40510]
[null,null,null,null,null,null,"Rental Income (External)",40511]
[null,null,null,null,null,null,"Rental Income (External)",40512]
[null,null,null,null,null,null,"Rental Income (External)",40513]
[null,null,null,null,null,null,"Rental Income (External)",40514]
[null,null,null,null,null,null,"Rental Income (External)",40515]
[null,null,null,null,null,null,"Rental Income (External)",40516]
[null,null,null,null,null,null,"Rental Income (External)",40517]
[null,null,null,null,null,null,"Rental Income (External)",40518]
[null,null,null,null,null,null,"Rental Income (External)",40519]
[null,null,null,null,null,null,"Rental Income (External)",40520]
[null,null,null,null,null,null,"Rental Income (External)",40521]
[null,null,null,null,null,null,"Rental Income (External)",40522]
[null,null,null,null,null,null,"Rental Income (External)",40523]
[null,null,null,null,null,null,"Rental Income (External)",40524]
[null,null,null,null,null,null,"Rental Income (External)",40525]
[null,null,null,null,null,null,"Rental Income (External)",40526]
[null,null,null,null,null,null,"Rental Income (External)",40527]
[null,null,null,null,null,null,"Rental Income (External)",40528]
[null,null,null,null,null,null,"Rental Income (External)",40529]
[null,null,null,null,null,null,"Rental Income (External)",40530]
[null,null,null,null,null,null,"Rental Income (External)",40531]
[null,null,null,null,null,null,"Rental Income (External)",40532]
[null,null,null,null,null,null,"Rental Income (External)",40533]
[null,null,null,null,null,null,"Rental Income (External)",40534]
[null,null,null,null,null,null,"Rental Income (External)",40535]
[null,null,null,null,null,null,"Rental Income (External)",40536]
[null,null,null,null,null,null,"Rental Income (External)",40537]
[null,null,null,null,null,null,"Rental Income (External)",40538]
[null,null,null,null,null,null,"Rental Income (External)",40539]
[null,null,null,null,null,null,"Rental Income (External)",40540]
[null,null,null,null,null,null,"Rental Income (External)",40541]
[null,null,null,null,null,null,"Rental Income (External)",40542]
[null,null,null,null,null,null,"Rental Income (External)",40543]
[null,null,null,null,null,null,"Rental Income (External)",40544]
[null,null,null,null,null,null,"Rental Income (External)",40545]
[null,null,null,null,null,null,"Rental Income (External)",40546]
[null,null,null,null,null,null,"Rental Income (External)",40547]
[null,null,null,null,null,null,"Rental Income (External)",40548]
[null,null,null,null,null,null,"Rental Income (External)",40549]
[null,null,null,null,null,null,"Rental Income (External)",40550]
[null,null,null,null,null,null,"Rental Income (External)",40551]
[null,null,null,null,null,null,"Rental Income (External)",40552]
[null,null,null,null,null,null,"Rental Income (External)",40553]
[null,null,null,null,null,null,"Rental Income (External)",40554]
[null,null,null,null,null,null,"Rental Income (External)",40555]
[null,null,null,null,null,null,"Rental Income (External)",40556]
[null,null,null,null,null,null,"Rental Income (External)",40557]
[null,null,null,null,null,null,"Rental Income (External)",40558]
[null,null,null,null,null,null,"Rental Income (External)",40559]
[null,null,null,null,null,null,"Rental Income (External)",40560]
[null,null,null,null,null,null,"Rental Income (External)",40561]
[null,null,null,null,null,null,"Rental Income (External)",40562]
[null,null,null,null,null,null,"Rental Income (External)",40563]
[null,null,null,null,null,null,"Rental Income (External)",40564]
[null,null,null,null,null,null,"Rental Income (External)",40565]
[null,null,null,null,null,null,"Rental Income (External)",40566]
[null,null,null,null,null,null,"Rental Income (External)",40567]
[null,null,null,null,null,null,"Rental Income (External)",40568]
[null,null,null,null,null,null,"Rental Income (External)",40569]
[null,null,null,null,null,null,"Rental Income (External)",40570]
[null,null,null,null,null,null,"Rental Income (External)",40571]
[null,null,null,null,null,null,"Rental Income (External)",40572]
[null,null,null,null,null,null,"Rental Income (External)",40573]
[null,null,null,null,null,null,"Rental Income (External)",40574]
[null,null,null,null,null,null,"Rental Income (External)",40575]
[null,null,null,null,null,null,"Rental Income (External)",40576]
[null,null,null,null,null,null,"Rental Income (External)",40577]
[null,null,null,null,null,null,"Rental Income (External)",40578]
[null,null,null,null,null,null,"Rental Income (External)",40579]
[null,null,null,null,null,null,"Rental Income (External)",40580]
[null,null,null,null,null,null,"Rental Income (External)",40581]
[null,null,null,null,null,null,"Rental Income (External)",40582]
[null,null,null,null,null,null,"Rental Income (External)",40583]
[null,null,null,null,null,null,"Rental Income (External)",40584]
[null,null,null,null,null,null,"Rental Income (External)",40585]
[null,null,null,null,null,null,"Rental Income (External)",40586]
[null,null,null,null,null,null,"Rental Income (External)",40587]
[null,null,null,null,null,null,"Rental Income (External)",40588]
[null,null,null,null,null,null,"Rental Income (External)",40589]
[null,null,null,null,null,null,"Rental Income (External)",40590]
[null,null,null,null,null,null,"Rental Income (External)",40591]
[null,null,null,null,null,null,"Rental Income (External)",40592]
[null,null,null,null,null,null,"Rental Income (External)",40593]
[null,null,null,null,null,null,"Rental Income (External)",40594]
[null,null,null,null,null,null,"Rental Income (External)",40595]
[null,null,null,null,null,null,"Rental Income (External)",40596]
[null,null,null,null,null,null,"Rental Income (External)",40597]
[null,null,null,null,null,null,"Rental Income (External)",40598]
[null,null,null,null,null,null,"Rental Income (External)",40599]
[null,null,null,null,null,null,"Tuition/Fees (Received as Income)",40600]
[null,null,null,null,null,null,"Tuition/Fees (Received as Income)",40601]
[null,null,null,null,null,null,"Tuition/Fees (Received as Income)",40602]
[null,null,null,null,null,null,"Tuition/Fees (Received as Income)",40603]
[null,null,null,null,null,null,"Tuition/Fees (Received as Income)",40604]
[null,null,null,null,null,null,"Tuition/Fees (Received as Income)",40605]
[null,null,null,null,null,null,"Tuition/Fees (Received as Income)",40606]
[null,null,null,null,null,null,"Tuition/Fees (Received as Income)",40607]
[null,null,null,null,null,null,"Tuition/Fees (Received as Income)",40608]
[null,null,null,null,null,null,"Tuition/Fees (Received as Income)",40609]
[null,null,null,null,null,null,"Tuition/Fees (Received as Income)",40610]
[null,null,null,null,null,null,"Tuition/Fees (Received as Income)",40611]
[null,null,null,null,null,null,"Tuition/Fees (Received as Income)",40612]
[null,null,null,null,null,null,"Tuition/Fees (Received as Income)",40613]
[null,null,null,null,null,null,"Tuition/Fees (Received as Income)",40614]
[null,null,null,null,null,null,"Tuition/Fees (Received as Income)",40615]
[null,null,null,null,null,null,"Tuition/Fees (Received as Income)",40616]
[null,null,null,null,null,null,"Tuition/Fees (Received as Income)",40617]
[null,null,null,null,null,null,"Tuition/Fees (Received as Income)",40618]
[null,null,null,null,null,null,"Tuition/Fees (Received as Income)",40619]
[null,null,null,null,null,null,"Tuition/Fees (Received as Income)",40620]
[null,null,null,null,null,null,"Tuition/Fees (Received as Income)",40621]
[null,null,null,null,null,null,"Tuition/Fees (Received as Income)",40622]
[null,null,null,null,null,null,"Tuition/Fees (Received as Income)",40623]
[null,null,null,null,null,null,"Tuition/Fees (Received as Income)",40624]
[null,null,null,null,null,null,"Tuition/Fees (Received as Income)",40625]
[null,null,null,null,null,null,"Tuition/Fees (Received as Income)",40626]
[null,null,null,null,null,null,"Tuition/Fees (Received as Income)",40627]
[null,null,null,null,null,null,"Tuition/Fees (Received as Income)",40628]
[null,null,null,null,null,null,"Tuition/Fees (Received as Income)",40629]
[null,null,null,null,null,null,"Tuition/Fees (Received as Income)",40630]
[null,null,null,null,null,null,"Tuition/Fees (Received as Income)",40631]
[null,null,null,null,null,null,"Tuition/Fees (Received as Income)",40632]
[null,null,null,null,null,null,"Tuition/Fees (Received as Income)",40633]
[null,null,null,null,null,null,"Tuition/Fees (Received as Income)",40634]
[null,null,null,null,null,null,"Tuition/Fees (Received as Income)",40635]
[null,null,null,null,null,null,"Tuition/Fees (Received as Income)",40636]
[null,null,null,null,null,null,"Tuition/Fees (Received as Income)",40637]
[null,null,null,null,null,null,"Tuition/Fees (Received as Income)",40638]
[null,null,null,null,null,null,"Tuition/Fees (Received as Income)",40639]
[null,null,null,null,null,null,"Tuition/Fees (Received as Income)",40640]
[null,null,null,null,null,null,"Tuition/Fees (Received as Income)",40641]
[null,null,null,null,null,null,"Tuition/Fees (Received as Income)",40642]
[null,null,null,null,null,null,"Tuition/Fees (Received as Income)",40643]
[null,null,null,null,null,null,"Tuition/Fees (Received as Income)",40644]
[null,null,null,null,null,null,"Tuition/Fees (Received as Income)",40645]
[null,null,null,null,null,null,"Tuition/Fees (Received as Income)",40646]
[null,null,null,null,null,null,"Tuition/Fees (Received as Income)",40647]
[null,null,null,null,null,null,"Tuition/Fees (Received as Income)",40648]
[null,null,null,null,null,null,"Tuition/Fees (Received as Income)",40649]
[null,null,null,null,null,null,"Tuition/Fees (Received as Income)",40650]
[null,null,null,null,null,null,"Tuition/Fees (Received as Income)",40651]
[null,null,null,null,null,null,"Tuition/Fees (Received as Income)",40652]
[null,null,null,null,null,null,"Tuition/Fees (Received as Income)",40653]
[null,null,null,null,null,null,"Tuition/Fees (Received as Income)",40654]
[null,null,null,null,null,null,"Tuition/Fees (Received as Income)",40655]
[null,null,null,null,null,null,"Tuition/Fees (Received as Income)",40656]
[null,null,null,null,null,null,"Tuition/Fees (Received as Income)",40657]
[null,null,null,null,null,null,"Tuition/Fees (Received as Income)",40658]
[null,null,null,null,null,null,"Tuition/Fees (Received as Income)",40659]
[null,null,null,null,null,null,"Tuition/Fees (Received as Income)",40660]
[null,null,null,null,null,null,"Tuition/Fees (Received as Income)",40661]
[null,null,null,null,null,null,"Tuition/Fees (Received as Income)",40662]
[null,null,null,null,null,null,"Tuition/Fees (Received as Income)",40663]
[null,null,null,null,null,null,"Tuition/Fees (Received as Income)",40664]
[null,null,null,null,null,null,"Tuition/Fees (Received as Income)",40665]
[null,null,null,null,null,null,"Tuition/Fees (Received as Income)",40666]
[null,null,null,null,null,null,"Tuition/Fees (Received as Income)",40667]
[null,null,null,null,null,null,"Tuition/Fees (Received as Income)",40668]
[null,null,null,null,null,null,"Tuition/Fees (Received as Income)",40669]
[null,null,null,null,null,null,"Tuition/Fees (Received as Income)",40670]
[null,null,null,null,null,null,"Tuition/Fees (Received as Income)",40671]
[null,null,null,null,null,null,"Tuition/Fees (Received as Income)",40672]
[null,null,null,null,null,null,"Tuition/Fees (Received as Income)",40673]
[null,null,null,null,null,null,"Tuition/Fees (Received as Income)",40674]
[null,null,null,null,null,null,"Tuition/Fees (Received as Income)",40675]
[null,null,null,null,null,null,"Tuition/Fees (Received as Income)",40676]
[null,null,null,null,null,null,"Tuition/Fees (Received as Income)",40677]
[null,null,null,null,null,null,"Tuition/Fees (Received as Income)",40678]
[null,null,null,null,null,null,"Tuition/Fees (Received as Income)",40679]
[null,null,null,null,null,null,"Tuition/Fees (Received as Income)",40680]
[null,null,null,null,null,null,"Tuition/Fees (Received as Income)",40681]
[null,null,null,null,null,null,"Tuition/Fees (Received as Income)",40682]
[null,null,null,null,null,null,"Tuition/Fees (Received as Income)",40683]
[null,null,null,null,null,null,"Tuition/Fees (Received as Income)",40684]
[null,null,null,null,null,null,"Tuition/Fees (Received as Income)",40685]
[null,null,null,null,null,null,"Tuition/Fees (Received as Income)",40686]
[null,null,null,null,null,null,"Tuition/Fees (Received as Income)",40687]
[null,null,null,null,null,null,"Tuition/Fees (Received as Income)",40688]
[null,null,null,null,null,null,"Tuition/Fees (Received as Income)",40689]
[null,null,null,null,null,null,"Tuition/Fees (Received as Income)",40690]
[null,null,null,null,null,null,"Tuition/Fees (Received as Income)",40691]
[null,null,null,null,null,null,"Tuition/Fees (Received as Income)",40692]
[null,null,null,null,null,null,"Tuition/Fees (Received as Income)",40693]
[null,null,null,null,null,null,"Tuition/Fees (Received as Income)",40694]
[null,null,null,null,null,null,"Tuition/Fees (Received as Income)",40695]
[null,null,null,null,null,null,"Tuition/Fees (Received as Income)",40696]
[null,null,null,null,null,null,"Tuition/Fees (Received as Income)",40697]
[null,null,null,null,null,null,"Tuition/Fees (Received as Income)",40698]
[null,null,null,null,null,null,"Tuition/Fees (Received as Income)",40699]
[null,null,null,null,null,null,"Tuition/Fees (Received as Income)",40700]
[null,null,null,null,null,null,"Tuition/Fees (Received as Income)",40701]
[null,null,null,null,null,null,"Tuition/Fees (Received as Income)",40702]
[null,null,null,null,null,null,"Tuition/Fees (Received as Income)",40703]
[null,null,null,null,null,null,"Tuition/Fees (Received as Income)",40704]
[null,null,null,null,null,null,"Tuition/Fees (Received as Income)",40705]
[null,null,null,null,null,null,"Tuition/Fees (Received as Income)",40706]
[null,null,null,null,null,null,"Tuition/Fees (Received as Income)",40707]
[null,null,null,null,null,null,"Tuition/Fees (Received as Income)",40708]
[null,null,null,null,null,null,"Tuition/Fees (Received as Income)",40709]
[null,null,null,null,null,null,"Tuition/Fees (Received as Income)",40710]
[null,null,null,null,null,null,"Tuition/Fees (Received as Income)",40711]
[null,null,null,null,null,null,"Tuition/Fees (Received as Income)",40712]
[null,null,null,null,null,null,"Tuition/Fees (Received as Income)",40713]
[null,null,null,null,null,null,"Tuition/Fees (Received as Income)",40714]
[null,null,null,null,null,null,"Tuition/Fees (Received as Income)",40715]
[null,null,null,null,null,null,"Tuition/Fees (Received as Income)",40716]
[null,null,null,null,null,null,"Tuition/Fees (Received as Income)",40717]
[null,null,null,null,null,null,"Tuition/Fees (Received as Income)",40718]
[null,null,null,null,null,null,"Tuition/Fees (Received as Income)",40719]
[null,null,null,null,null,null,"Tuition/Fees (Received as Income)",40720]
[null,null,null,null,null,null,"Tuition/Fees (Received as Income)",40721]
[null,null,null,null,null,null,"Tuition/Fees (Received as Income)",40722]
[null,null,null,null,null,null,"Tuition/Fees (Received as Income)",40723]
[null,null,null,null,null,null,"Tuition/Fees (Received as Income)",40724]
[null,null,null,null,null,null,"Tuition/Fees (Received as Income)",40725]
[null,null,null,null,null,null,"Tuition/Fees (Received as Income)",40726]
[null,null,null,null,null,null,"Tuition/Fees (Received as Income)",40727]
[null,null,null,null,null,null,"Tuition/Fees (Received as Income)",40728]
[null,null,null,null,null,null,"Tuition/Fees (Received as Income)",40729]
[null,null,null,null,null,null,"Tuition/Fees (Received as Income)",40730]
[null,null,null,null,null,null,"Tuition/Fees (Received as Income)",40731]
[null,null,null,null,null,null,"Tuition/Fees (Received as Income)",40732]
[null,null,null,null,null,null,"Tuition/Fees (Received as Income)",40733]
[null,null,null,null,null,null,"Tuition/Fees (Received as Income)",40734]
[null,null,null,null,null,null,"Tuition/Fees (Received as Income)",40735]
[null,null,null,null,null,null,"Tuition/Fees (Received as Income)",40736]
[null,null,null,null,null,null,"Tuition/Fees (Received as Income)",40737]
[null,null,null,null,null,null,"Tuition/Fees (Received as Income)",40738]
[null,null,null,null,null,null,"Tuition/Fees (Received as Income)",40739]
[null,null,null,null,null,null,"Tuition/Fees (Received as Income)",40740]
[null,null,null,null,null,null,"Tuition/Fees (Received as Income)",40741]
[null,null,null,null,null,null,"Tuition/Fees (Received as Income)",40742]
[null,null,null,null,null,null,"Tuition/Fees (Received as Income)",40743]
[null,null,null,null,null,null,"Tuition/Fees (Received as Income)",40744]
[null,null,null,null,null,null,"Tuition/Fees (Received as Income)",40745]
[null,null,null,null,null,null,"Tuition/Fees (Received as Income)",40746]
[null,null,null,null,null,null,"Tuition/Fees (Received as Income)",40747]
[null,null,null,null,null,null,"Tuition/Fees (Received as Income)",40748]
[null,null,null,null,null,null,"Tuition/Fees (Received as Income)",40749]
[null,null,null,null,null,null,"Tuition/Fees (Received as Income)",40750]
[null,null,null,null,null,null,"Tuition/Fees (Received as Income)",40751]
[null,null,null,null,null,null,"Tuition/Fees (Received as Income)",40752]
[null,null,null,null,null,null,"Tuition/Fees (Received as Income)",40753]
[null,null,null,null,null,null,"Tuition/Fees (Received as Income)",40754]
[null,null,null,null,null,null,"Tuition/Fees (Received as Income)",40755]
[null,null,null,null,null,null,"Tuition/Fees (Received as Income)",40756]
[null,null,null,null,null,null,"Tuition/Fees (Received as Income)",40757]
[null,null,null,null,null,null,"Tuition/Fees (Received as Income)",40758]
[null,null,null,null,null,null,"Tuition/Fees (Received as Income)",40759]
[null,null,null,null,null,null,"Tuition/Fees (Received as Income)",40760]
[null,null,null,null,null,null,"Tuition/Fees (Received as Income)",40761]
[null,null,null,null,null,null,"Tuition/Fees (Received as Income)",40762]
[null,null,null,null,null,null,"Tuition/Fees (Received as Income)",40763]
[null,null,null,null,null,null,"Tuition/Fees (Received as Income)",40764]
[null,null,null,null,null,null,"Tuition/Fees (Received as Income)",40765]
[null,null,null,null,null,null,"Tuition/Fees (Received as Income)",40766]
[null,null,null,null,null,null,"Tuition/Fees (Received as Income)",40767]
[null,null,null,null,null,null,"Tuition/Fees (Received as Income)",40768]
[null,null,null,null,null,null,"Tuition/Fees (Received as Income)",40769]
[null,null,null,null,null,null,"Tuition/Fees (Received as Income)",40770]
[null,null,null,null,null,null,"Tuition/Fees (Received as Income)",40771]
[null,null,null,null,null,null,"Tuition/Fees (Received as Income)",40772]
[null,null,null,null,null,null,"Tuition/Fees (Received as Income)",40773]
[null,null,null,null,null,null,"Tuition/Fees (Received as Income)",40774]
[null,null,null,null,null,null,"Tuition/Fees (Received as Income)",40775]
[null,null,null,null,null,null,"Tuition/Fees (Received as Income)",40776]
[null,null,null,null,null,null,"Tuition/Fees (Received as Income)",40777]
[null,null,null,null,null,null,"Tuition/Fees (Received as Income)",40778]
[null,null,null,null,null,null,"Tuition/Fees (Received as Income)",40779]
[null,null,null,null,null,null,"Tuition/Fees (Received as Income)",40780]
[null,null,null,null,null,null,"Tuition/Fees (Received as Income)",40781]
[null,null,null,null,null,null,"Tuition/Fees (Received as Income)",40782]
[null,null,null,null,null,null,"Tuition/Fees (Received as Income)",40783]
[null,null,null,null,null,null,"Tuition/Fees (Received as Income)",40784]
[null,null,null,null,null,null,"Tuition/Fees (Received as Income)",40785]
[null,null,null,null,null,null,"Tuition/Fees (Received as Income)",40786]
[null,null,null,null,null,null,"Tuition/Fees (Received as Income)",40787]
[null,null,null,null,null,null,"Tuition/Fees (Received as Income)",40788]
[null,null,null,null,null,null,"Tuition/Fees (Received as Income)",40789]
[null,null,null,null,null,null,"Tuition/Fees (Received as Income)",40790]
[null,null,null,null,null,null,"Tuition/Fees (Received as Income)",40791]
[null,null,null,null,null,null,"Tuition/Fees (Received as Income)",40792]
[null,null,null,null,null,null,"Tuition/Fees (Received as Income)",40793]
[null,null,null,null,null,null,"Tuition/Fees (Received as Income)",40794]
[null,null,null,null,null,null,"Tuition/Fees (Received as Income)",40795]
[null,null,null,null,null,null,"Tuition/Fees (Received as Income)",40796]
[null,null,null,null,null,null,"Tuition/Fees (Received as Income)",40797]
[null,null,null,null,null,null,"Tuition/Fees (Received as Income)",40798]
[null,null,null,null,null,null,"Tuition/Fees (Received as Income)",40799]
[null,null,null,null,null,null,"Tuition/Fees (Received as Income)",40800]
[null,null,null,null,null,null,"Tuition/Fees (Received as Income)",40801]
[null,null,null,null,null,null,"Tuition/Fees (Received as Income)",40802]
[null,null,null,null,null,null,"Tuition/Fees (Received as Income)",40803]
[null,null,null,null,null,null,"Tuition/Fees (Received as Income)",40804]
[null,null,null,null,null,null,"Tuition/Fees (Received as Income)",40805]
[null,null,null,null,null,null,"Tuition/Fees (Received as Income)",40806]
[null,null,null,null,null,null,"Tuition/Fees (Received as Income)",40807]
[null,null,null,null,null,null,"Tuition/Fees (Received as Income)",40808]
[null,null,null,null,null,null,"Tuition/Fees (Received as Income)",40809]
[null,null,null,null,null,null,"Tuition/Fees (Received as Income)",40810]
[null,null,null,null,null,null,"Tuition/Fees (Received as Income)",40811]
[null,null,null,null,null,null,"Tuition/Fees (Received as Income)",40812]
[null,null,null,null,null,null,"Tuition/Fees (Received as Income)",40813]
[null,null,null,null,null,null,"Tuition/Fees (Received as Income)",40814]
[null,null,null,null,null,null,"Tuition/Fees (Received as Income)",40815]
[null,null,null,null,null,null,"Tuition/Fees (Received as Income)",40816]
[null,null,null,null,null,null,"Tuition/Fees (Received as Income)",40817]
[null,null,null,null,null,null,"Tuition/Fees (Received as Income)",40818]
[null,null,null,null,null,null,"Tuition/Fees (Received as Income)",40819]
[null,null,null,null,null,null,"Tuition/Fees (Received as Income)",40820]
[null,null,null,null,null,null,"Tuition/Fees (Received as Income)",40821]
[null,null,null,null,null,null,"Tuition/Fees (Received as Income)",40822]
[null,null,null,null,null,null,"Tuition/Fees (Received as Income)",40823]
[null,null,null,null,null,null,"Tuition/Fees (Received as Income)",40824]
[null,null,null,null,null,null,"Tuition/Fees (Received as Income)",40825]
[null,null,null,null,null,null,"Tuition/Fees (Received as Income)",40826]
[null,null,null,null,null,null,"Tuition/Fees (Received as Income)",40827]
[null,null,null,null,null,null,"Tuition/Fees (Received as Income)",40828]
[null,null,null,null,null,null,"Tuition/Fees (Received as Income)",40829]
[null,null,null,null,null,null,"Tuition/Fees (Received as Income)",40830]
[null,null,null,null,null,null,"Tuition/Fees (Received as Income)",40831]
[null,null,null,null,null,null,"Tuition/Fees (Received as Income)",40832]
[null,null,null,null,null,null,"Tuition/Fees (Received as Income)",40833]
[null,null,null,null,null,null,"Tuition/Fees (Received as Income)",40834]
[null,null,null,null,null,null,"Tuition/Fees (Received as Income)",40835]
[null,null,null,null,null,null,"Tuition/Fees (Received as Income)",40836]
[null,null,null,null,null,null,"Tuition/Fees (Received as Income)",40837]
[null,null,null,null,null,null,"Tuition/Fees (Received as Income)",40838]
[null,null,null,null,null,null,"Tuition/Fees (Received as Income)",40839]
[null,null,null,null,null,null,"Tuition/Fees (Received as Income)",40840]
[null,null,null,null,null,null,"Tuition/Fees (Received as Income)",40841]
[null,null,null,null,null,null,"Tuition/Fees (Received as Income)",40842]
[null,null,null,null,null,null,"Tuition/Fees (Received as Income)",40843]
[null,null,null,null,null,null,"Tuition/Fees (Received as Income)",40844]
[null,null,null,null,null,null,"Tuition/Fees (Received as Income)",40845]
[null,null,null,null,null,null,"Tuition/Fees (Received as Income)",40846]
[null,null,null,null,null,null,"Tuition/Fees (Received as Income)",40847]
[null,null,null,null,null,null,"Tuition/Fees (Received as Income)",40848]
[null,null,null,null,null,null,"Tuition/Fees (Received as Income)",40849]
[null,null,null,null,null,null,"Tuition/Fees (Received as Income)",40850]
[null,null,null,null,null,null,"Tuition/Fees (Received as Income)",40851]
[null,null,null,null,null,null,"Tuition/Fees (Received as Income)",40852]
[null,null,null,null,null,null,"Tuition/Fees (Received as Income)",40853]
[null,null,null,null,null,null,"Tuition/Fees (Received as Income)",40854]
[null,null,null,null,null,null,"Tuition/Fees (Received as Income)",40855]
[null,null,null,null,null,null,"Tuition/Fees (Received as Income)",40856]
[null,null,null,null,null,null,"Tuition/Fees (Received as Income)",40857]
[null,null,null,null,null,null,"Tuition/Fees (Received as Income)",40858]
[null,null,null,null,null,null,"Tuition/Fees (Received as Income)",40859]
[null,null,null,null,null,null,"Tuition/Fees (Received as Income)",40860]
[null,null,null,null,null,null,"Tuition/Fees (Received as Income)",40861]
[null,null,null,null,null,null,"Tuition/Fees (Received as Income)",40862]
[null,null,null,null,null,null,"Tuition/Fees (Received as Income)",40863]
[null,null,null,null,null,null,"Tuition/Fees (Received as Income)",40864]
[null,null,null,null,null,null,"Tuition/Fees (Received as Income)",40865]
[null,null,null,null,null,null,"Tuition/Fees (Received as Income)",40866]
[null,null,null,null,null,null,"Tuition/Fees (Received as Income)",40867]
[null,null,null,null,null,null,"Tuition/Fees (Received as Income)",40868]
[null,null,null,null,null,null,"Tuition/Fees (Received as Income)",40869]
[null,null,null,null,null,null,"Tuition/Fees (Received as Income)",40870]
[null,null,null,null,null,null,"Tuition/Fees (Received as Income)",40871]
[null,null,null,null,null,null,"Tuition/Fees (Received as Income)",40872]
[null,null,null,null,null,null,"Tuition/Fees (Received as Income)",40873]
[null,null,null,null,null,null,"Tuition/Fees (Received as Income)",40874]
[null,null,null,null,null,null,"Tuition/Fees (Received as Income)",40875]
[null,null,null,null,null,null,"Tuition/Fees (Received as Income)",40876]
[null,null,null,null,null,null,"Tuition/Fees (Received as Income)",40877]
[null,null,null,null,null,null,"Tuition/Fees (Received as Income)",40878]
[null,null,null,null,null,null,"Tuition/Fees (Received as Income)",40879]
[null,null,null,null,null,null,"Tuition/Fees (Received as Income)",40880]
[null,null,null,null,null,null,"Tuition/Fees (Received as Income)",40881]
[null,null,null,null,null,null,"Tuition/Fees (Received as Income)",40882]
[null,null,null,null,null,null,"Tuition/Fees (Received as Income)",40883]
[null,null,null,null,null,null,"Tuition/Fees (Received as Income)",40884]
[null,null,null,null,null,null,"Tuition/Fees (Received as Income)",40885]
[null,null,null,null,null,null,"Tuition/Fees (Received as Income)",40886]
[null,null,null,null,null,null,"Tuition/Fees (Received as Income)",40887]
[null,null,null,null,null,null,"Tuition/Fees (Received as Income)",40888]
[null,null,null,null,null,null,"Tuition/Fees (Received as Income)",40889]
[null,null,null,null,null,null,"Tuition/Fees (Received as Income)",40890]
[null,null,null,null,null,null,"Tuition/Fees (Received as Income)",40891]
[null,null,null,null,null,null,"Tuition/Fees (Received as Income)",40892]
[null,null,null,null,null,null,"Tuition/Fees (Received as Income)",40893]
[null,null,null,null,null,null,"Tuition/Fees (Received as Income)",40894]
[null,null,null,null,null,null,"Tuition/Fees (Received as Income)",40895]
[null,null,null,null,null,null,"Tuition/Fees (Received as Income)",40896]
[null,null,null,null,null,null,"Tuition/Fees (Received as Income)",40897]
[null,null,null,null,null,null,"Tuition/Fees (Received as Income)",40898]
[null,null,null,null,null,null,"Tuition/Fees (Received as Income)",40899]
[null,null,null,null,null,null,"Other Revenue",40900]
[null,null,null,null,null,null,"Other Revenue",40901]
[null,null,null,null,null,null,"Other Revenue",40902]
[null,null,null,null,null,null,"Other Revenue",40903]
[null,null,null,null,null,null,"Other Revenue",40904]
[null,null,null,null,null,null,"Other Revenue",40905]
[null,null,null,null,null,null,"Other Revenue",40906]
[null,null,null,null,null,null,"Other Revenue",40907]
[null,null,null,null,null,null,"Other Revenue",40908]
[null,null,null,null,null,null,"Other Revenue",40909]
[null,null,null,null,null,null,"Donated Services",42140]
[null,null,null,null,null,null,"Donated Services",42141]
[null,null,null,null,null,null,"Donated Services",42142]
[null,null,null,null,null,null,"Donated Services",42143]
[null,null,null,null,null,null,"Donated Services",42144]
[null,null,null,null,null,null,"Donated Services",42145]
[null,null,null,null,null,null,"Donated Services",42146]
[null,null,null,null,null,null,"Donated Services",42147]
[null,null,null,null,null,null,"Donated Services",42148]
[null,null,null,null,null,null,"Donated Services",42149]
[null,null,null,null,null,null,"Donated Services",42150]
[null,null,null,null,null,null,"Donated Services",42151]
[null,null,null,null,null,null,"Donated Services",42152]
[null,null,null,null,null,null,"Donated Services",42153]
[null,null,null,null,null,null,"Donated Services",42154]
[null,null,null,null,null,null,"Donated Services",42155]
[null,null,null,null,null,null,"Donated Services",42156]
[null,null,null,null,null,null,"Donated Services",42157]
[null,null,null,null,null,null,"Donated Services",42158]
[null,null,null,null,null,null,"Donated Services",42159]
[null,null,null,null,null,null,"Contributions-Temporarily Restricted",42400]
[null,null,null,null,null,null,"Contributions-Temporarily Restricted",42401]
[null,null,null,null,null,null,"Contributions-Temporarily Restricted",42402]
[null,null,null,null,null,null,"Contributions-Temporarily Restricted",42403]
[null,null,null,null,null,null,"Contributions-Temporarily Restricted",42404]
[null,null,null,null,null,null,"Contributions-Temporarily Restricted",42405]
[null,null,null,null,null,null,"Contributions-Temporarily Restricted",42406]
[null,null,null,null,null,null,"Contributions-Temporarily Restricted",42407]
[null,null,null,null,null,null,"Contributions-Temporarily Restricted",42408]
[null,null,null,null,null,null,"Contributions-Temporarily Restricted",42409]
[null,null,null,null,null,null,"Contributions-Temporarily Restricted",42410]
[null,null,null,null,null,null,"Contributions-Temporarily Restricted",42411]
[null,null,null,null,null,null,"Contributions-Temporarily Restricted",42412]
[null,null,null,null,null,null,"Contributions-Temporarily Restricted",42413]
[null,null,null,null,null,null,"Contributions-Temporarily Restricted",42414]
[null,null,null,null,null,null,"Contributions-Temporarily Restricted",42415]
[null,null,null,null,null,null,"Contributions-Temporarily Restricted",42416]
[null,null,null,null,null,null,"Contributions-Temporarily Restricted",42417]
[null,null,null,null,null,null,"Contributions-Temporarily Restricted",42418]
[null,null,null,null,null,null,"Contributions-Temporarily Restricted",42419]
[null,null,null,null,null,null,"Contributions From SIL - Temporarily Restricted",43400]
[null,null,null,null,null,null,"Contributions From SIL - Temporarily Restricted",43401]
[null,null,null,null,null,null,"Contributions From SIL - Temporarily Restricted",43402]
[null,null,null,null,null,null,"Contributions From SIL - Temporarily Restricted",43403]
[null,null,null,null,null,null,"Contributions From SIL - Temporarily Restricted",43404]
[null,null,null,null,null,null,"Contributions From SIL - Temporarily Restricted",43405]
[null,null,null,null,null,null,"Contributions From SIL - Temporarily Restricted",43406]
[null,null,null,null,null,null,"Contributions From SIL - Temporarily Restricted",43407]
[null,null,null,null,null,null,"Contributions From SIL - Temporarily Restricted",43408]
[null,null,null,null,null,null,"Contributions From SIL - Temporarily Restricted",43409]
[null,null,null,null,null,null,"Contributions From SIL - Temporarily Restricted",43410]
[null,null,null,null,null,null,"Contributions From SIL - Temporarily Restricted",43411]
[null,null,null,null,null,null,"Contributions From SIL - Temporarily Restricted",43412]
[null,null,null,null,null,null,"Contributions From SIL - Temporarily Restricted",43413]
[null,null,null,null,null,null,"Contributions From SIL - Temporarily Restricted",43414]
[null,null,null,null,null,null,"Contributions From SIL - Temporarily Restricted",43415]
[null,null,null,null,null,null,"Contributions From SIL - Temporarily Restricted",43416]
[null,null,null,null,null,null,"Contributions From SIL - Temporarily Restricted",43417]
[null,null,null,null,null,null,"Contributions From SIL - Temporarily Restricted",43418]
[null,null,null,null,null,null,"Contributions From SIL - Temporarily Restricted",43419]
[null,null,null,null,null,null,"Contributions From SIL - Temporarily Restricted",43420]
[null,null,null,null,null,null,"Contributions From SIL - Temporarily Restricted",43421]
[null,null,null,null,null,null,"Contributions From SIL - Temporarily Restricted",43422]
[null,null,null,null,null,null,"Contributions From SIL - Temporarily Restricted",43423]
[null,null,null,null,null,null,"Contributions From SIL - Temporarily Restricted",43424]
[null,null,null,null,null,null,"Contributions From SIL - Temporarily Restricted",43425]
[null,null,null,null,null,null,"Contributions From SIL - Temporarily Restricted",43426]
[null,null,null,null,null,null,"Contributions From SIL - Temporarily Restricted",43427]
[null,null,null,null,null,null,"Contributions From SIL - Temporarily Restricted",43428]
[null,null,null,null,null,null,"Contributions From SIL - Temporarily Restricted",43429]
[null,null,null,null,null,null,"Contributions From SIL - Temporarily Restricted",43430]
[null,null,null,null,null,null,"Contributions From SIL - Temporarily Restricted",43431]
[null,null,null,null,null,null,"Contributions From SIL - Temporarily Restricted",43432]
[null,null,null,null,null,null,"Contributions From SIL - Temporarily Restricted",43433]
[null,null,null,null,null,null,"Contributions From SIL - Temporarily Restricted",43434]
[null,null,null,null,null,null,"Contributions From SIL - Temporarily Restricted",43435]
[null,null,null,null,null,null,"Contributions From SIL - Temporarily Restricted",43436]
[null,null,null,null,null,null,"Contributions From SIL - Temporarily Restricted",43437]
[null,null,null,null,null,null,"Contributions From SIL - Temporarily Restricted",43438]
[null,null,null,null,null,null,"Contributions From SIL - Temporarily Restricted",43439]
[null,null,null,null,null,null,"Contributions From JAARS - Temporarily Restricted",43440]
[null,null,null,null,null,null,"Contributions From JAARS - Temporarily Restricted",43441]
[null,null,null,null,null,null,"Contributions From JAARS - Temporarily Restricted",43442]
[null,null,null,null,null,null,"Contributions From JAARS - Temporarily Restricted",43443]
[null,null,null,null,null,null,"Contributions From JAARS - Temporarily Restricted",43444]
[null,null,null,null,null,null,"Contributions From JAARS - Temporarily Restricted",43445]
[null,null,null,null,null,null,"Contributions From JAARS - Temporarily Restricted",43446]
[null,null,null,null,null,null,"Contributions From JAARS - Temporarily Restricted",43447]
[null,null,null,null,null,null,"Contributions From JAARS - Temporarily Restricted",43448]
[null,null,null,null,null,null,"Contributions From JAARS - Temporarily Restricted",43449]
[null,null,null,null,null,null,"Contributions From JAARS - Temporarily Restricted",43450]
[null,null,null,null,null,null,"Contributions From JAARS - Temporarily Restricted",43451]
[null,null,null,null,null,null,"Contributions From JAARS - Temporarily Restricted",43452]
[null,null,null,null,null,null,"Contributions From JAARS - Temporarily Restricted",43453]
[null,null,null,null,null,null,"Contributions From JAARS - Temporarily Restricted",43454]
[null,null,null,null,null,null,"Contributions From JAARS - Temporarily Restricted",43455]
[null,null,null,null,null,null,"Contributions From JAARS - Temporarily Restricted",43456]
[null,null,null,null,null,null,"Contributions From JAARS - Temporarily Restricted",43457]
[null,null,null,null,null,null,"Contributions From JAARS - Temporarily Restricted",43458]
[null,null,null,null,null,null,"Contributions From JAARS - Temporarily Restricted",43459]
[null,null,null,null,null,null,"Contributions From JAARS - Temporarily Restricted",43460]
[null,null,null,null,null,null,"Contributions From JAARS - Temporarily Restricted",43461]
[null,null,null,null,null,null,"Contributions From JAARS - Temporarily Restricted",43462]
[null,null,null,null,null,null,"Contributions From JAARS - Temporarily Restricted",43463]
[null,null,null,null,null,null,"Contributions From JAARS - Temporarily Restricted",43464]
[null,null,null,null,null,null,"Contributions From JAARS - Temporarily Restricted",43465]
[null,null,null,null,null,null,"Contributions From JAARS - Temporarily Restricted",43466]
[null,null,null,null,null,null,"Contributions From JAARS - Temporarily Restricted",43467]
[null,null,null,null,null,null,"Contributions From JAARS - Temporarily Restricted",43468]
[null,null,null,null,null,null,"Contributions From JAARS - Temporarily Restricted",43469]
[null,null,null,null,null,null,"Contributions From JAARS - Temporarily Restricted",43470]
[null,null,null,null,null,null,"Contributions From JAARS - Temporarily Restricted",43471]
[null,null,null,null,null,null,"Contributions From JAARS - Temporarily Restricted",43472]
[null,null,null,null,null,null,"Contributions From JAARS - Temporarily Restricted",43473]
[null,null,null,null,null,null,"Contributions From JAARS - Temporarily Restricted",43474]
[null,null,null,null,null,null,"Contributions From JAARS - Temporarily Restricted",43475]
[null,null,null,null,null,null,"Contributions From JAARS - Temporarily Restricted",43476]
[null,null,null,null,null,null,"Contributions From JAARS - Temporarily Restricted",43477]
[null,null,null,null,null,null,"Contributions From JAARS - Temporarily Restricted",43478]
[null,null,null,null,null,null,"Contributions From JAARS - Temporarily Restricted",43479]
[null,null,null,null,null,null,"Contributions From JAARS - Temporarily Restricted",43480]
[null,null,null,null,null,null,"Contributions From JAARS - Temporarily Restricted",43481]
[null,null,null,null,null,null,"Contributions From JAARS - Temporarily Restricted",43482]
[null,null,null,null,null,null,"Contributions From JAARS - Temporarily Restricted",43483]
[null,null,null,null,null,null,"Contributions From JAARS - Temporarily Restricted",43484]
[null,null,null,null,null,null,"Contributions From JAARS - Temporarily Restricted",43485]
[null,null,null,null,null,null,"Contributions From JAARS - Temporarily Restricted",43486]
[null,null,null,null,null,null,"Contributions From JAARS - Temporarily Restricted",43487]
[null,null,null,null,null,null,"Contributions From JAARS - Temporarily Restricted",43488]
[null,null,null,null,null,null,"Contributions From JAARS - Temporarily Restricted",43489]
[null,null,null,null,null,null,"Contributions From JAARS - Temporarily Restricted",43490]
[null,null,null,null,null,null,"Contributions From JAARS - Temporarily Restricted",43491]
[null,null,null,null,null,null,"Contributions From JAARS - Temporarily Restricted",43492]
[null,null,null,null,null,null,"Contributions From JAARS - Temporarily Restricted",43493]
[null,null,null,null,null,null,"Contributions From JAARS - Temporarily Restricted",43494]
[null,null,null,null,null,null,"Contributions From JAARS - Temporarily Restricted",43495]
[null,null,null,null,null,null,"Contributions From JAARS - Temporarily Restricted",43496]
[null,null,null,null,null,null,"Contributions From JAARS - Temporarily Restricted",43497]
[null,null,null,null,null,null,"Contributions From JAARS - Temporarily Restricted",43498]
[null,null,null,null,null,null,"Contributions From JAARS - Temporarily Restricted",43499]
[null,null,null,null,null,null,"Contributions From WOs - Temporarily Restricted",44400]
[null,null,null,null,null,null,"Contributions From WOs - Temporarily Restricted",44401]
[null,null,null,null,null,null,"Contributions From WOs - Temporarily Restricted",44402]
[null,null,null,null,null,null,"Contributions From WOs - Temporarily Restricted",44403]
[null,null,null,null,null,null,"Contributions From WOs - Temporarily Restricted",44404]
[null,null,null,null,null,null,"Contributions From WOs - Temporarily Restricted",44405]
[null,null,null,null,null,null,"Contributions From WOs - Temporarily Restricted",44406]
[null,null,null,null,null,null,"Contributions From WOs - Temporarily Restricted",44407]
[null,null,null,null,null,null,"Contributions From WOs - Temporarily Restricted",44408]
[null,null,null,null,null,null,"Contributions From WOs - Temporarily Restricted",44409]
[null,null,null,null,null,null,"Sponsorship Contributions From Wycliffe US - Temporarily Restricted",44410]
[null,null,null,null,null,null,"Sponsorship Contributions From Wycliffe US - Temporarily Restricted",44411]
[null,null,null,null,null,null,"Sponsorship Contributions From Wycliffe US - Temporarily Restricted",44412]
[null,null,null,null,null,null,"Sponsorship Contributions From Wycliffe US - Temporarily Restricted",44413]
[null,null,null,null,null,null,"Sponsorship Contributions From Wycliffe US - Temporarily Restricted",44414]
[null,null,null,null,null,null,"Sponsorship Contributions From Wycliffe US - Temporarily Restricted",44415]
[null,null,null,null,null,null,"Sponsorship Contributions From Wycliffe US - Temporarily Restricted",44416]
[null,null,null,null,null,null,"Sponsorship Contributions From Wycliffe US - Temporarily Restricted",44417]
[null,null,null,null,null,null,"Sponsorship Contributions From Wycliffe US - Temporarily Restricted",44418]
[null,null,null,null,null,null,"Other Contributions From Wycliffe US - Temporarily Restricted",44419]
[null,null,null,null,null,null,"Sponsorship Contributions From Wycliffe Canada - Temporarily Restricted",44420]
[null,null,null,null,null,null,"Sponsorship Contributions From Wycliffe Canada - Temporarily Restricted",44421]
[null,null,null,null,null,null,"Sponsorship Contributions From Wycliffe Canada - Temporarily Restricted",44422]
[null,null,null,null,null,null,"Sponsorship Contributions From Wycliffe Canada - Temporarily Restricted",44423]
[null,null,null,null,null,null,"Other Contributions From Wycliffe Canada - Temporarily Restricted",44424]
[null,null,null,null,null,null,"Contributions From Wycliffe Switzerland - Temporarily Restricted",44425]
[null,null,null,null,null,null,"Contributions From Wycliffe Switzerland - Temporarily Restricted",44426]
[null,null,null,null,null,null,"Contributions From Wycliffe Switzerland - Temporarily Restricted",44427]
[null,null,null,null,null,null,"Contributions From Wycliffe Switzerland - Temporarily Restricted",44428]
[null,null,null,null,null,null,"Contributions From Wycliffe Switzerland - Temporarily Restricted",44429]
[null,null,null,null,null,null,"Contributions From Wycliffe Australia - Temporarily Restricted",44430]
[null,null,null,null,null,null,"Contributions From Wycliffe Australia - Temporarily Restricted",44431]
[null,null,null,null,null,null,"Contributions From Wycliffe Australia - Temporarily Restricted",44432]
[null,null,null,null,null,null,"Contributions From Wycliffe Australia - Temporarily Restricted",44433]
[null,null,null,null,null,null,"Contributions From Wycliffe Australia - Temporarily Restricted",44434]
[null,null,null,null,null,null,"Contributions From Wycliffe Germany - Temporarily Restricted",44435]
[null,null,null,null,null,null,"Contributions From Wycliffe Germany - Temporarily Restricted",44436]
[null,null,null,null,null,null,"Contributions From Wycliffe Germany - Temporarily Restricted",44437]
[null,null,null,null,null,null,"Contributions From Wycliffe Germany - Temporarily Restricted",44438]
[null,null,null,null,null,null,"Contributions From Wycliffe Germany - Temporarily Restricted",44439]
[null,null,null,null,null,null,"Contributions From Wycliffe Netherlands - Temporarily Restricted",44440]
[null,null,null,null,null,null,"Contributions From Wycliffe Netherlands - Temporarily Restricted",44441]
[null,null,null,null,null,null,"Contributions From Wycliffe Netherlands - Temporarily Restricted",44442]
[null,null,null,null,null,null,"Contributions From Wycliffe Netherlands - Temporarily Restricted",44443]
[null,null,null,null,null,null,"Contributions From Wycliffe Netherlands - Temporarily Restricted",44444]
[null,null,null,null,null,null,"Contributions From Wycliffe Sweden - Temporarily Restricted",44445]
[null,null,null,null,null,null,"Contributions From Wycliffe Sweden - Temporarily Restricted",44446]
[null,null,null,null,null,null,"Contributions From Wycliffe Sweden - Temporarily Restricted",44447]
[null,null,null,null,null,null,"Contributions From Wycliffe Sweden - Temporarily Restricted",44448]
[null,null,null,null,null,null,"Contributions From Wycliffe Sweden - Temporarily Restricted",44449]
[null,null,null,null,null,null,"Sponsorship Contributions From Wycliffe Uk - Temporarily Restricted",44450]
[null,null,null,null,null,null,"Sponsorship Contributions From Wycliffe Uk - Temporarily Restricted",44451]
[null,null,null,null,null,null,"Sponsorship Contributions From Wycliffe Uk - Temporarily Restricted",44452]
[null,null,null,null,null,null,"Sponsorship Contributions From Wycliffe Uk - Temporarily Restricted",44453]
[null,null,null,null,null,null,"Other Contributions From Wycliffe UK - Temporarily Restricted",44454]
[null,null,null,null,null,null,"Contributions From Global Partner Link - Temporarily Restricted",44455]
[null,null,null,null,null,null,"Contributions From Global Partner Link - Temporarily Restricted",44456]
[null,null,null,null,null,null,"Contributions From Global Partner Link - Temporarily Restricted",44457]
[null,null,null,null,null,null,"Contributions From Global Partner Link - Temporarily Restricted",44458]
[null,null,null,null,null,null,"Contributions From Global Partner Link - Temporarily Restricted",44459]
[null,null,null,null,null,null,"Contributions From Global Partner Link - Temporarily Restricted",44460]
[null,null,null,null,null,null,"Contributions From Global Partner Link - Temporarily Restricted",44461]
[null,null,null,null,null,null,"Contributions From Global Partner Link - Temporarily Restricted",44462]
[null,null,null,null,null,null,"Contributions From Global Partner Link - Temporarily Restricted",44463]
[null,null,null,null,null,null,"Contributions From Global Partner Link - Temporarily Restricted",44464]
[null,null,null,null,null,null,"Contributions From Global Partner Link - Temporarily Restricted",44465]
[null,null,null,null,null,null,"Contributions From Global Partner Link - Temporarily Restricted",44466]
[null,null,null,null,null,null,"Contributions From Global Partner Link - Temporarily Restricted",44467]
[null,null,null,null,null,null,"Contributions From Global Partner Link - Temporarily Restricted",44468]
[null,null,null,null,null,null,"Contributions From Global Partner Link - Temporarily Restricted",44469]
[null,null,null,null,null,null,"Contributions From Global Partner Link - Temporarily Restricted",44470]
[null,null,null,null,null,null,"Contributions From Global Partner Link - Temporarily Restricted",44471]
[null,null,null,null,null,null,"Contributions From Global Partner Link - Temporarily Restricted",44472]
[null,null,null,null,null,null,"Contributions From Global Partner Link - Temporarily Restricted",44473]
[null,null,null,null,null,null,"Contributions From Global Partner Link - Temporarily Restricted",44474]
[null,null,null,null,null,null,"Contributions From Global Partner Link - Temporarily Restricted",44475]
[null,null,null,null,null,null,"Contributions From Global Partner Link - Temporarily Restricted",44476]
[null,null,null,null,null,null,"Contributions From Global Partner Link - Temporarily Restricted",44477]
[null,null,null,null,null,null,"Contributions From Global Partner Link - Temporarily Restricted",44478]
[null,null,null,null,null,null,"Contributions From Global Partner Link - Temporarily Restricted",44479]
[null,null,null,null,null,null,"Contributions From Global Partner Link - Temporarily Restricted",44480]
[null,null,null,null,null,null,"Contributions From Global Partner Link - Temporarily Restricted",44481]
[null,null,null,null,null,null,"Contributions From Global Partner Link - Temporarily Restricted",44482]
[null,null,null,null,null,null,"Contributions From Global Partner Link - Temporarily Restricted",44483]
[null,null,null,null,null,null,"Contributions From Global Partner Link - Temporarily Restricted",44484]
[null,null,null,null,null,null,"Contributions From Global Partner Link - Temporarily Restricted",44485]
[null,null,null,null,null,null,"Contributions From Global Partner Link - Temporarily Restricted",44486]
[null,null,null,null,null,null,"Contributions From Global Partner Link - Temporarily Restricted",44487]
[null,null,null,null,null,null,"Contributions From Global Partner Link - Temporarily Restricted",44488]
[null,null,null,null,null,null,"Contributions From Global Partner Link - Temporarily Restricted",44489]
[null,null,null,null,null,null,"Contributions From Wycliffe Assoc US - Temporarily Restricted",44490]
[null,null,null,null,null,null,"Contributions From Wycliffe Assoc US - Temporarily Restricted",44491]
[null,null,null,null,null,null,"Contributions From Wycliffe Assoc US - Temporarily Restricted",44492]
[null,null,null,null,null,null,"Contributions From Wycliffe Assoc US - Temporarily Restricted",44493]
[null,null,null,null,null,null,"Contributions From Wycliffe Assoc US - Temporarily Restricted",44494]
[null,null,null,null,null,null,"Contributions From The Seed Company - Temporarily Restricted",44495]
[null,null,null,null,null,null,"Contributions From The Seed Company - Temporarily Restricted",44496]
[null,null,null,null,null,null,"Contributions From The Seed Company - Temporarily Restricted",44497]
[null,null,null,null,null,null,"Contributions From The Seed Company - Temporarily Restricted",44498]
[null,null,null,null,null,null,"Contributions From The Seed Company - Temporarily Restricted",44499]
[null,null,null,null,null,null,"Labor Expense",61000]
[null,null,null,null,null,null,"Labor Expense",61000]
[null,null,null,null,null,null,"Labor Expense",61000]
[null,null,null,null,null,null,"Labor Expense",61001]
[null,null,null,null,null,null,"Labor Expense",61001]
[null,null,null,null,null,null,"Labor Expense",61001]
[null,null,null,null,null,null,"Labor Expense",61002]
[null,null,null,null,null,null,"Labor Expense",61002]
[null,null,null,null,null,null,"Labor Expense",61002]
[null,null,null,null,null,null,"Labor Expense",61003]
[null,null,null,null,null,null,"Labor Expense",61003]
[null,null,null,null,null,null,"Labor Expense",61003]
[null,null,null,null,null,null,"Labor Expense",61004]
[null,null,null,null,null,null,"Labor Expense",61004]
[null,null,null,null,null,null,"Labor Expense",61004]
[null,null,null,null,null,null,"Labor Expense",61005]
[null,null,null,null,null,null,"Labor Expense",61005]
[null,null,null,null,null,null,"Labor Expense",61005]
[null,null,null,null,null,null,"Labor Expense",61006]
[null,null,null,null,null,null,"Labor Expense",61006]
[null,null,null,null,null,null,"Labor Expense",61006]
[null,null,null,null,null,null,"Labor Expense",61007]
[null,null,null,null,null,null,"Labor Expense",61007]
[null,null,null,null,null,null,"Labor Expense",61007]
[null,null,null,null,null,null,"Labor Expense",61008]
[null,null,null,null,null,null,"Labor Expense",61008]
[null,null,null,null,null,null,"Labor Expense",61008]
[null,null,null,null,null,null,"Labor Expense",61009]
[null,null,null,null,null,null,"Labor Expense",61009]
[null,null,null,null,null,null,"Labor Expense",61009]
[null,null,null,null,null,null,"Labor Expense",61010]
[null,null,null,null,null,null,"Labor Expense",61010]
[null,null,null,null,null,null,"Labor Expense",61010]
[null,null,null,null,null,null,"Labor Expense",61011]
[null,null,null,null,null,null,"Labor Expense",61011]
[null,null,null,null,null,null,"Labor Expense",61011]
[null,null,null,null,null,null,"Labor Expense",61012]
[null,null,null,null,null,null,"Labor Expense",61012]
[null,null,null,null,null,null,"Labor Expense",61012]
[null,null,null,null,null,null,"Labor Expense",61013]
[null,null,null,null,null,null,"Labor Expense",61013]
[null,null,null,null,null,null,"Labor Expense",61013]
[null,null,null,null,null,null,"Labor Expense",61014]
[null,null,null,null,null,null,"Labor Expense",61014]
[null,null,null,null,null,null,"Labor Expense",61014]
[null,null,null,null,null,null,"Labor Expense",61015]
[null,null,null,null,null,null,"Labor Expense",61015]
[null,null,null,null,null,null,"Labor Expense",61015]
[null,null,null,null,null,null,"Labor Expense",61016]
[null,null,null,null,null,null,"Labor Expense",61016]
[null,null,null,null,null,null,"Labor Expense",61016]
[null,null,null,null,null,null,"Labor Expense",61017]
[null,null,null,null,null,null,"Labor Expense",61017]
[null,null,null,null,null,null,"Labor Expense",61017]
[null,null,null,null,null,null,"Labor Expense",61018]
[null,null,null,null,null,null,"Labor Expense",61018]
[null,null,null,null,null,null,"Labor Expense",61018]
[null,null,null,null,null,null,"Labor Expense",61019]
[null,null,null,null,null,null,"Labor Expense",61019]
[null,null,null,null,null,null,"Labor Expense",61019]
[null,null,null,null,null,null,"Labor Expense",61020]
[null,null,null,null,null,null,"Labor Expense",61020]
[null,null,null,null,null,null,"Labor Expense",61020]
[null,null,null,null,null,null,"Labor Expense",61021]
[null,null,null,null,null,null,"Labor Expense",61021]
[null,null,null,null,null,null,"Labor Expense",61021]
[null,null,null,null,null,null,"Labor Expense",61022]
[null,null,null,null,null,null,"Labor Expense",61022]
[null,null,null,null,null,null,"Labor Expense",61022]
[null,null,null,null,null,null,"Labor Expense",61023]
[null,null,null,null,null,null,"Labor Expense",61023]
[null,null,null,null,null,null,"Labor Expense",61023]
[null,null,null,null,null,null,"Labor Expense",61024]
[null,null,null,null,null,null,"Labor Expense",61024]
[null,null,null,null,null,null,"Labor Expense",61024]
[null,null,null,null,null,null,"Labor Expense",61025]
[null,null,null,null,null,null,"Labor Expense",61025]
[null,null,null,null,null,null,"Labor Expense",61025]
[null,null,null,null,null,null,"Labor Expense",61026]
[null,null,null,null,null,null,"Labor Expense",61026]
[null,null,null,null,null,null,"Labor Expense",61026]
[null,null,null,null,null,null,"Labor Expense",61027]
[null,null,null,null,null,null,"Labor Expense",61027]
[null,null,null,null,null,null,"Labor Expense",61027]
[null,null,null,null,null,null,"Labor Expense",61028]
[null,null,null,null,null,null,"Labor Expense",61028]
[null,null,null,null,null,null,"Labor Expense",61028]
[null,null,null,null,null,null,"Labor Expense",61029]
[null,null,null,null,null,null,"Labor Expense",61029]
[null,null,null,null,null,null,"Labor Expense",61029]
[null,null,null,null,null,null,"Labor Expense",61030]
[null,null,null,null,null,null,"Labor Expense",61030]
[null,null,null,null,null,null,"Labor Expense",61030]
[null,null,null,null,null,null,"Labor Expense",61031]
[null,null,null,null,null,null,"Labor Expense",61031]
[null,null,null,null,null,null,"Labor Expense",61031]
[null,null,null,null,null,null,"Labor Expense",61032]
[null,null,null,null,null,null,"Labor Expense",61032]
[null,null,null,null,null,null,"Labor Expense",61032]
[null,null,null,null,null,null,"Labor Expense",61033]
[null,null,null,null,null,null,"Labor Expense",61033]
[null,null,null,null,null,null,"Labor Expense",61033]
[null,null,null,null,null,null,"Labor Expense",61034]
[null,null,null,null,null,null,"Labor Expense",61034]
[null,null,null,null,null,null,"Labor Expense",61034]
[null,null,null,null,null,null,"Labor Expense",61035]
[null,null,null,null,null,null,"Labor Expense",61035]
[null,null,null,null,null,null,"Labor Expense",61035]
[null,null,null,null,null,null,"Labor Expense",61036]
[null,null,null,null,null,null,"Labor Expense",61036]
[null,null,null,null,null,null,"Labor Expense",61036]
[null,null,null,null,null,null,"Labor Expense",61037]
[null,null,null,null,null,null,"Labor Expense",61037]
[null,null,null,null,null,null,"Labor Expense",61037]
[null,null,null,null,null,null,"Labor Expense",61038]
[null,null,null,null,null,null,"Labor Expense",61038]
[null,null,null,null,null,null,"Labor Expense",61038]
[null,null,null,null,null,null,"Labor Expense",61039]
[null,null,null,null,null,null,"Labor Expense",61039]
[null,null,null,null,null,null,"Labor Expense",61039]
[null,null,null,null,null,null,"Labor Expense",61040]
[null,null,null,null,null,null,"Labor Expense",61040]
[null,null,null,null,null,null,"Labor Expense",61040]
[null,null,null,null,null,null,"Labor Expense",61041]
[null,null,null,null,null,null,"Labor Expense",61041]
[null,null,null,null,null,null,"Labor Expense",61041]
[null,null,null,null,null,null,"Labor Expense",61042]
[null,null,null,null,null,null,"Labor Expense",61042]
[null,null,null,null,null,null,"Labor Expense",61042]
[null,null,null,null,null,null,"Labor Expense",61043]
[null,null,null,null,null,null,"Labor Expense",61043]
[null,null,null,null,null,null,"Labor Expense",61043]
[null,null,null,null,null,null,"Labor Expense",61044]
[null,null,null,null,null,null,"Labor Expense",61044]
[null,null,null,null,null,null,"Labor Expense",61044]
[null,null,null,null,null,null,"Labor Expense",61045]
[null,null,null,null,null,null,"Labor Expense",61045]
[null,null,null,null,null,null,"Labor Expense",61045]
[null,null,null,null,null,null,"Labor Expense",61046]
[null,null,null,null,null,null,"Labor Expense",61046]
[null,null,null,null,null,null,"Labor Expense",61046]
[null,null,null,null,null,null,"Labor Expense",61047]
[null,null,null,null,null,null,"Labor Expense",61047]
[null,null,null,null,null,null,"Labor Expense",61047]
[null,null,null,null,null,null,"Labor Expense",61048]
[null,null,null,null,null,null,"Labor Expense",61048]
[null,null,null,null,null,null,"Labor Expense",61048]
[null,null,null,null,null,null,"Labor Expense",61049]
[null,null,null,null,null,null,"Labor Expense",61049]
[null,null,null,null,null,null,"Labor Expense",61049]
[null,null,null,null,null,null,"Labor Expense",61050]
[null,null,null,null,null,null,"Labor Expense",61050]
[null,null,null,null,null,null,"Labor Expense",61050]
[null,null,null,null,null,null,"Labor Expense",61051]
[null,null,null,null,null,null,"Labor Expense",61051]
[null,null,null,null,null,null,"Labor Expense",61051]
[null,null,null,null,null,null,"Labor Expense",61052]
[null,null,null,null,null,null,"Labor Expense",61052]
[null,null,null,null,null,null,"Labor Expense",61052]
[null,null,null,null,null,null,"Labor Expense",61053]
[null,null,null,null,null,null,"Labor Expense",61053]
[null,null,null,null,null,null,"Labor Expense",61053]
[null,null,null,null,null,null,"Labor Expense",61054]
[null,null,null,null,null,null,"Labor Expense",61054]
[null,null,null,null,null,null,"Labor Expense",61054]
[null,null,null,null,null,null,"Labor Expense",61055]
[null,null,null,null,null,null,"Labor Expense",61055]
[null,null,null,null,null,null,"Labor Expense",61055]
[null,null,null,null,null,null,"Labor Expense",61056]
[null,null,null,null,null,null,"Labor Expense",61056]
[null,null,null,null,null,null,"Labor Expense",61056]
[null,null,null,null,null,null,"Labor Expense",61057]
[null,null,null,null,null,null,"Labor Expense",61057]
[null,null,null,null,null,null,"Labor Expense",61057]
[null,null,null,null,null,null,"Labor Expense",61058]
[null,null,null,null,null,null,"Labor Expense",61058]
[null,null,null,null,null,null,"Labor Expense",61058]
[null,null,null,null,null,null,"Labor Expense",61059]
[null,null,null,null,null,null,"Labor Expense",61059]
[null,null,null,null,null,null,"Labor Expense",61059]
[null,null,null,null,null,null,"Labor Expense",61060]
[null,null,null,null,null,null,"Labor Expense",61060]
[null,null,null,null,null,null,"Labor Expense",61060]
[null,null,null,null,null,null,"Labor Expense",61061]
[null,null,null,null,null,null,"Labor Expense",61061]
[null,null,null,null,null,null,"Labor Expense",61061]
[null,null,null,null,null,null,"Labor Expense",61062]
[null,null,null,null,null,null,"Labor Expense",61062]
[null,null,null,null,null,null,"Labor Expense",61062]
[null,null,null,null,null,null,"Labor Expense",61063]
[null,null,null,null,null,null,"Labor Expense",61063]
[null,null,null,null,null,null,"Labor Expense",61063]
[null,null,null,null,null,null,"Labor Expense",61064]
[null,null,null,null,null,null,"Labor Expense",61064]
[null,null,null,null,null,null,"Labor Expense",61064]
[null,null,null,null,null,null,"Labor Expense",61065]
[null,null,null,null,null,null,"Labor Expense",61065]
[null,null,null,null,null,null,"Labor Expense",61065]
[null,null,null,null,null,null,"Labor Expense",61066]
[null,null,null,null,null,null,"Labor Expense",61066]
[null,null,null,null,null,null,"Labor Expense",61066]
[null,null,null,null,null,null,"Labor Expense",61067]
[null,null,null,null,null,null,"Labor Expense",61067]
[null,null,null,null,null,null,"Labor Expense",61067]
[null,null,null,null,null,null,"Labor Expense",61068]
[null,null,null,null,null,null,"Labor Expense",61068]
[null,null,null,null,null,null,"Labor Expense",61068]
[null,null,null,null,null,null,"Labor Expense",61069]
[null,null,null,null,null,null,"Labor Expense",61069]
[null,null,null,null,null,null,"Labor Expense",61069]
[null,null,null,null,null,null,"Labor Expense",61070]
[null,null,null,null,null,null,"Labor Expense",61070]
[null,null,null,null,null,null,"Labor Expense",61070]
[null,null,null,null,null,null,"Labor Expense",61071]
[null,null,null,null,null,null,"Labor Expense",61071]
[null,null,null,null,null,null,"Labor Expense",61071]
[null,null,null,null,null,null,"Labor Expense",61072]
[null,null,null,null,null,null,"Labor Expense",61072]
[null,null,null,null,null,null,"Labor Expense",61072]
[null,null,null,null,null,null,"Labor Expense",61073]
[null,null,null,null,null,null,"Labor Expense",61073]
[null,null,null,null,null,null,"Labor Expense",61073]
[null,null,null,null,null,null,"Labor Expense",61074]
[null,null,null,null,null,null,"Labor Expense",61074]
[null,null,null,null,null,null,"Labor Expense",61074]
[null,null,null,null,null,null,"Labor Expense",61075]
[null,null,null,null,null,null,"Labor Expense",61075]
[null,null,null,null,null,null,"Labor Expense",61075]
[null,null,null,null,null,null,"Labor Expense",61076]
[null,null,null,null,null,null,"Labor Expense",61076]
[null,null,null,null,null,null,"Labor Expense",61076]
[null,null,null,null,null,null,"Labor Expense",61077]
[null,null,null,null,null,null,"Labor Expense",61077]
[null,null,null,null,null,null,"Labor Expense",61077]
[null,null,null,null,null,null,"Labor Expense",61078]
[null,null,null,null,null,null,"Labor Expense",61078]
[null,null,null,null,null,null,"Labor Expense",61078]
[null,null,null,null,null,null,"Labor Expense",61079]
[null,null,null,null,null,null,"Labor Expense",61079]
[null,null,null,null,null,null,"Labor Expense",61079]
[null,null,null,null,null,null,"Labor Expense",61080]
[null,null,null,null,null,null,"Labor Expense",61080]
[null,null,null,null,null,null,"Labor Expense",61080]
[null,null,null,null,null,null,"Labor Expense",61081]
[null,null,null,null,null,null,"Labor Expense",61081]
[null,null,null,null,null,null,"Labor Expense",61081]
[null,null,null,null,null,null,"Labor Expense",61082]
[null,null,null,null,null,null,"Labor Expense",61082]
[null,null,null,null,null,null,"Labor Expense",61082]
[null,null,null,null,null,null,"Labor Expense",61083]
[null,null,null,null,null,null,"Labor Expense",61083]
[null,null,null,null,null,null,"Labor Expense",61083]
[null,null,null,null,null,null,"Labor Expense",61084]
[null,null,null,null,null,null,"Labor Expense",61084]
[null,null,null,null,null,null,"Labor Expense",61084]
[null,null,null,null,null,null,"Labor Expense",61085]
[null,null,null,null,null,null,"Labor Expense",61085]
[null,null,null,null,null,null,"Labor Expense",61085]
[null,null,null,null,null,null,"Labor Expense",61086]
[null,null,null,null,null,null,"Labor Expense",61086]
[null,null,null,null,null,null,"Labor Expense",61086]
[null,null,null,null,null,null,"Labor Expense",61087]
[null,null,null,null,null,null,"Labor Expense",61087]
[null,null,null,null,null,null,"Labor Expense",61087]
[null,null,null,null,null,null,"Labor Expense",61088]
[null,null,null,null,null,null,"Labor Expense",61088]
[null,null,null,null,null,null,"Labor Expense",61088]
[null,null,null,null,null,null,"Labor Expense",61089]
[null,null,null,null,null,null,"Labor Expense",61089]
[null,null,null,null,null,null,"Labor Expense",61089]
[null,null,null,null,null,null,"Labor Expense",61090]
[null,null,null,null,null,null,"Labor Expense",61090]
[null,null,null,null,null,null,"Labor Expense",61090]
[null,null,null,null,null,null,"Labor Expense",61091]
[null,null,null,null,null,null,"Labor Expense",61091]
[null,null,null,null,null,null,"Labor Expense",61091]
[null,null,null,null,null,null,"Labor Expense",61092]
[null,null,null,null,null,null,"Labor Expense",61092]
[null,null,null,null,null,null,"Labor Expense",61092]
[null,null,null,null,null,null,"Labor Expense",61093]
[null,null,null,null,null,null,"Labor Expense",61093]
[null,null,null,null,null,null,"Labor Expense",61093]
[null,null,null,null,null,null,"Labor Expense",61094]
[null,null,null,null,null,null,"Labor Expense",61094]
[null,null,null,null,null,null,"Labor Expense",61094]
[null,null,null,null,null,null,"Labor Expense",61095]
[null,null,null,null,null,null,"Labor Expense",61095]
[null,null,null,null,null,null,"Labor Expense",61095]
[null,null,null,null,null,null,"Labor Expense",61096]
[null,null,null,null,null,null,"Labor Expense",61096]
[null,null,null,null,null,null,"Labor Expense",61096]
[null,null,null,null,null,null,"Labor Expense",61097]
[null,null,null,null,null,null,"Labor Expense",61097]
[null,null,null,null,null,null,"Labor Expense",61097]
[null,null,null,null,null,null,"Labor Expense",61098]
[null,null,null,null,null,null,"Labor Expense",61098]
[null,null,null,null,null,null,"Labor Expense",61098]
[null,null,null,null,null,null,"Labor Expense",61099]
[null,null,null,null,null,null,"Labor Expense",61099]
[null,null,null,null,null,null,"Labor Expense",61099]
[null,null,null,null,null,null,"Member Labor Cost",61100]
[null,null,null,null,null,null,"Member Labor Cost",61100]
[null,null,null,null,null,null,"Member Labor Cost",61100]
[null,null,null,null,null,null,"Member Labor Cost",61101]
[null,null,null,null,null,null,"Member Labor Cost",61101]
[null,null,null,null,null,null,"Member Labor Cost",61101]
[null,null,null,null,null,null,"Member Labor Cost",61102]
[null,null,null,null,null,null,"Member Labor Cost",61102]
[null,null,null,null,null,null,"Member Labor Cost",61102]
[null,null,null,null,null,null,"Member Labor Cost",61103]
[null,null,null,null,null,null,"Member Labor Cost",61103]
[null,null,null,null,null,null,"Member Labor Cost",61103]
[null,null,null,null,null,null,"Member Labor Cost",61104]
[null,null,null,null,null,null,"Member Labor Cost",61104]
[null,null,null,null,null,null,"Member Labor Cost",61104]
[null,null,null,null,null,null,"Member Labor Cost",61105]
[null,null,null,null,null,null,"Member Labor Cost",61105]
[null,null,null,null,null,null,"Member Labor Cost",61105]
[null,null,null,null,null,null,"Member Labor Cost",61106]
[null,null,null,null,null,null,"Member Labor Cost",61106]
[null,null,null,null,null,null,"Member Labor Cost",61106]
[null,null,null,null,null,null,"Member Labor Cost",61107]
[null,null,null,null,null,null,"Member Labor Cost",61107]
[null,null,null,null,null,null,"Member Labor Cost",61107]
[null,null,null,null,null,null,"Member Labor Cost",61108]
[null,null,null,null,null,null,"Member Labor Cost",61108]
[null,null,null,null,null,null,"Member Labor Cost",61108]
[null,null,null,null,null,null,"Member Labor Cost",61109]
[null,null,null,null,null,null,"Member Labor Cost",61109]
[null,null,null,null,null,null,"Member Labor Cost",61109]
[null,null,null,null,null,null,"Member Labor Cost",61110]
[null,null,null,null,null,null,"Member Labor Cost",61110]
[null,null,null,null,null,null,"Member Labor Cost",61110]
[null,null,null,null,null,null,"Member Labor Cost",61111]
[null,null,null,null,null,null,"Member Labor Cost",61111]
[null,null,null,null,null,null,"Member Labor Cost",61111]
[null,null,null,null,null,null,"Member Labor Cost",61112]
[null,null,null,null,null,null,"Member Labor Cost",61112]
[null,null,null,null,null,null,"Member Labor Cost",61112]
[null,null,null,null,null,null,"Member Labor Cost",61113]
[null,null,null,null,null,null,"Member Labor Cost",61113]
[null,null,null,null,null,null,"Member Labor Cost",61113]
[null,null,null,null,null,null,"Member Labor Cost",61114]
[null,null,null,null,null,null,"Member Labor Cost",61114]
[null,null,null,null,null,null,"Member Labor Cost",61114]
[null,null,null,null,null,null,"Member Labor Cost",61115]
[null,null,null,null,null,null,"Member Labor Cost",61115]
[null,null,null,null,null,null,"Member Labor Cost",61115]
[null,null,null,null,null,null,"Member Labor Cost",61116]
[null,null,null,null,null,null,"Member Labor Cost",61116]
[null,null,null,null,null,null,"Member Labor Cost",61116]
[null,null,null,null,null,null,"Member Labor Cost",61117]
[null,null,null,null,null,null,"Member Labor Cost",61117]
[null,null,null,null,null,null,"Member Labor Cost",61117]
[null,null,null,null,null,null,"Member Labor Cost",61118]
[null,null,null,null,null,null,"Member Labor Cost",61118]
[null,null,null,null,null,null,"Member Labor Cost",61118]
[null,null,null,null,null,null,"Member Labor Cost",61119]
[null,null,null,null,null,null,"Member Labor Cost",61119]
[null,null,null,null,null,null,"Member Labor Cost",61119]
[null,null,null,null,null,null,"Member Labor Cost",61120]
[null,null,null,null,null,null,"Member Labor Cost",61120]
[null,null,null,null,null,null,"Member Labor Cost",61120]
[null,null,null,null,null,null,"Member Labor Cost",61121]
[null,null,null,null,null,null,"Member Labor Cost",61121]
[null,null,null,null,null,null,"Member Labor Cost",61121]
[null,null,null,null,null,null,"Member Labor Cost",61122]
[null,null,null,null,null,null,"Member Labor Cost",61122]
[null,null,null,null,null,null,"Member Labor Cost",61122]
[null,null,null,null,null,null,"Member Labor Cost",61123]
[null,null,null,null,null,null,"Member Labor Cost",61123]
[null,null,null,null,null,null,"Member Labor Cost",61123]
[null,null,null,null,null,null,"Member Labor Cost",61124]
[null,null,null,null,null,null,"Member Labor Cost",61124]
[null,null,null,null,null,null,"Member Labor Cost",61124]
[null,null,null,null,null,null,"Member Labor Cost",61125]
[null,null,null,null,null,null,"Member Labor Cost",61125]
[null,null,null,null,null,null,"Member Labor Cost",61125]
[null,null,null,null,null,null,"Member Labor Cost",61126]
[null,null,null,null,null,null,"Member Labor Cost",61126]
[null,null,null,null,null,null,"Member Labor Cost",61126]
[null,null,null,null,null,null,"Member Labor Cost",61127]
[null,null,null,null,null,null,"Member Labor Cost",61127]
[null,null,null,null,null,null,"Member Labor Cost",61127]
[null,null,null,null,null,null,"Member Labor Cost",61128]
[null,null,null,null,null,null,"Member Labor Cost",61128]
[null,null,null,null,null,null,"Member Labor Cost",61128]
[null,null,null,null,null,null,"Member Labor Cost",61129]
[null,null,null,null,null,null,"Member Labor Cost",61129]
[null,null,null,null,null,null,"Member Labor Cost",61129]
[null,null,null,null,null,null,"Member Labor Cost",61130]
[null,null,null,null,null,null,"Member Labor Cost",61130]
[null,null,null,null,null,null,"Member Labor Cost",61130]
[null,null,null,null,null,null,"Member Labor Cost",61131]
[null,null,null,null,null,null,"Member Labor Cost",61131]
[null,null,null,null,null,null,"Member Labor Cost",61131]
[null,null,null,null,null,null,"Member Labor Cost",61132]
[null,null,null,null,null,null,"Member Labor Cost",61132]
[null,null,null,null,null,null,"Member Labor Cost",61132]
[null,null,null,null,null,null,"Member Labor Cost",61133]
[null,null,null,null,null,null,"Member Labor Cost",61133]
[null,null,null,null,null,null,"Member Labor Cost",61133]
[null,null,null,null,null,null,"Member Labor Cost",61134]
[null,null,null,null,null,null,"Member Labor Cost",61134]
[null,null,null,null,null,null,"Member Labor Cost",61134]
[null,null,null,null,null,null,"Member Labor Cost",61135]
[null,null,null,null,null,null,"Member Labor Cost",61135]
[null,null,null,null,null,null,"Member Labor Cost",61135]
[null,null,null,null,null,null,"Member Labor Cost",61136]
[null,null,null,null,null,null,"Member Labor Cost",61136]
[null,null,null,null,null,null,"Member Labor Cost",61136]
[null,null,null,null,null,null,"Member Labor Cost",61137]
[null,null,null,null,null,null,"Member Labor Cost",61137]
[null,null,null,null,null,null,"Member Labor Cost",61137]
[null,null,null,null,null,null,"Member Labor Cost",61138]
[null,null,null,null,null,null,"Member Labor Cost",61138]
[null,null,null,null,null,null,"Member Labor Cost",61138]
[null,null,null,null,null,null,"Member Labor Cost",61139]
[null,null,null,null,null,null,"Member Labor Cost",61139]
[null,null,null,null,null,null,"Member Labor Cost",61139]
[null,null,null,null,null,null,"Member Labor Cost",61140]
[null,null,null,null,null,null,"Member Labor Cost",61140]
[null,null,null,null,null,null,"Member Labor Cost",61140]
[null,null,null,null,null,null,"Member Labor Cost",61141]
[null,null,null,null,null,null,"Member Labor Cost",61141]
[null,null,null,null,null,null,"Member Labor Cost",61141]
[null,null,null,null,null,null,"Member Labor Cost",61142]
[null,null,null,null,null,null,"Member Labor Cost",61142]
[null,null,null,null,null,null,"Member Labor Cost",61142]
[null,null,null,null,null,null,"Member Labor Cost",61143]
[null,null,null,null,null,null,"Member Labor Cost",61143]
[null,null,null,null,null,null,"Member Labor Cost",61143]
[null,null,null,null,null,null,"Member Labor Cost",61144]
[null,null,null,null,null,null,"Member Labor Cost",61144]
[null,null,null,null,null,null,"Member Labor Cost",61144]
[null,null,null,null,null,null,"Member Labor Cost",61145]
[null,null,null,null,null,null,"Member Labor Cost",61145]
[null,null,null,null,null,null,"Member Labor Cost",61145]
[null,null,null,null,null,null,"Member Labor Cost",61146]
[null,null,null,null,null,null,"Member Labor Cost",61146]
[null,null,null,null,null,null,"Member Labor Cost",61146]
[null,null,null,null,null,null,"Member Labor Cost",61147]
[null,null,null,null,null,null,"Member Labor Cost",61147]
[null,null,null,null,null,null,"Member Labor Cost",61147]
[null,null,null,null,null,null,"Member Labor Cost",61148]
[null,null,null,null,null,null,"Member Labor Cost",61148]
[null,null,null,null,null,null,"Member Labor Cost",61148]
[null,null,null,null,null,null,"Member Labor Cost",61149]
[null,null,null,null,null,null,"Member Labor Cost",61149]
[null,null,null,null,null,null,"Member Labor Cost",61149]
[null,null,null,null,null,null,"Member Labor Cost",61150]
[null,null,null,null,null,null,"Member Labor Cost",61150]
[null,null,null,null,null,null,"Member Labor Cost",61150]
[null,null,null,null,null,null,"Member Labor Cost",61151]
[null,null,null,null,null,null,"Member Labor Cost",61151]
[null,null,null,null,null,null,"Member Labor Cost",61151]
[null,null,null,null,null,null,"Member Labor Cost",61152]
[null,null,null,null,null,null,"Member Labor Cost",61152]
[null,null,null,null,null,null,"Member Labor Cost",61152]
[null,null,null,null,null,null,"Member Labor Cost",61153]
[null,null,null,null,null,null,"Member Labor Cost",61153]
[null,null,null,null,null,null,"Member Labor Cost",61153]
[null,null,null,null,null,null,"Member Labor Cost",61154]
[null,null,null,null,null,null,"Member Labor Cost",61154]
[null,null,null,null,null,null,"Member Labor Cost",61154]
[null,null,null,null,null,null,"Member Labor Cost",61155]
[null,null,null,null,null,null,"Member Labor Cost",61155]
[null,null,null,null,null,null,"Member Labor Cost",61155]
[null,null,null,null,null,null,"Member Labor Cost",61156]
[null,null,null,null,null,null,"Member Labor Cost",61156]
[null,null,null,null,null,null,"Member Labor Cost",61156]
[null,null,null,null,null,null,"Member Labor Cost",61157]
[null,null,null,null,null,null,"Member Labor Cost",61157]
[null,null,null,null,null,null,"Member Labor Cost",61157]
[null,null,null,null,null,null,"Member Labor Cost",61158]
[null,null,null,null,null,null,"Member Labor Cost",61158]
[null,null,null,null,null,null,"Member Labor Cost",61158]
[null,null,null,null,null,null,"Member Labor Cost",61159]
[null,null,null,null,null,null,"Member Labor Cost",61159]
[null,null,null,null,null,null,"Member Labor Cost",61159]
[null,null,null,null,null,null,"Member Labor Cost",61160]
[null,null,null,null,null,null,"Member Labor Cost",61160]
[null,null,null,null,null,null,"Member Labor Cost",61160]
[null,null,null,null,null,null,"Member Labor Cost",61161]
[null,null,null,null,null,null,"Member Labor Cost",61161]
[null,null,null,null,null,null,"Member Labor Cost",61161]
[null,null,null,null,null,null,"Member Labor Cost",61162]
[null,null,null,null,null,null,"Member Labor Cost",61162]
[null,null,null,null,null,null,"Member Labor Cost",61162]
[null,null,null,null,null,null,"Member Labor Cost",61163]
[null,null,null,null,null,null,"Member Labor Cost",61163]
[null,null,null,null,null,null,"Member Labor Cost",61163]
[null,null,null,null,null,null,"Member Labor Cost",61164]
[null,null,null,null,null,null,"Member Labor Cost",61164]
[null,null,null,null,null,null,"Member Labor Cost",61164]
[null,null,null,null,null,null,"Member Labor Cost",61165]
[null,null,null,null,null,null,"Member Labor Cost",61165]
[null,null,null,null,null,null,"Member Labor Cost",61165]
[null,null,null,null,null,null,"Member Labor Cost",61166]
[null,null,null,null,null,null,"Member Labor Cost",61166]
[null,null,null,null,null,null,"Member Labor Cost",61166]
[null,null,null,null,null,null,"Member Labor Cost",61167]
[null,null,null,null,null,null,"Member Labor Cost",61167]
[null,null,null,null,null,null,"Member Labor Cost",61167]
[null,null,null,null,null,null,"Member Labor Cost",61168]
[null,null,null,null,null,null,"Member Labor Cost",61168]
[null,null,null,null,null,null,"Member Labor Cost",61168]
[null,null,null,null,null,null,"Member Labor Cost",61169]
[null,null,null,null,null,null,"Member Labor Cost",61169]
[null,null,null,null,null,null,"Member Labor Cost",61169]
[null,null,null,null,null,null,"Member Labor Cost",61170]
[null,null,null,null,null,null,"Member Labor Cost",61170]
[null,null,null,null,null,null,"Member Labor Cost",61170]
[null,null,null,null,null,null,"Member Labor Cost",61171]
[null,null,null,null,null,null,"Member Labor Cost",61171]
[null,null,null,null,null,null,"Member Labor Cost",61171]
[null,null,null,null,null,null,"Member Labor Cost",61172]
[null,null,null,null,null,null,"Member Labor Cost",61172]
[null,null,null,null,null,null,"Member Labor Cost",61172]
[null,null,null,null,null,null,"Member Labor Cost",61173]
[null,null,null,null,null,null,"Member Labor Cost",61173]
[null,null,null,null,null,null,"Member Labor Cost",61173]
[null,null,null,null,null,null,"Member Labor Cost",61174]
[null,null,null,null,null,null,"Member Labor Cost",61174]
[null,null,null,null,null,null,"Member Labor Cost",61174]
[null,null,null,null,null,null,"Member Labor Cost",61175]
[null,null,null,null,null,null,"Member Labor Cost",61175]
[null,null,null,null,null,null,"Member Labor Cost",61175]
[null,null,null,null,null,null,"Member Labor Cost",61176]
[null,null,null,null,null,null,"Member Labor Cost",61176]
[null,null,null,null,null,null,"Member Labor Cost",61176]
[null,null,null,null,null,null,"Member Labor Cost",61177]
[null,null,null,null,null,null,"Member Labor Cost",61177]
[null,null,null,null,null,null,"Member Labor Cost",61177]
[null,null,null,null,null,null,"Member Labor Cost",61178]
[null,null,null,null,null,null,"Member Labor Cost",61178]
[null,null,null,null,null,null,"Member Labor Cost",61178]
[null,null,null,null,null,null,"Member Labor Cost",61179]
[null,null,null,null,null,null,"Member Labor Cost",61179]
[null,null,null,null,null,null,"Member Labor Cost",61179]
[null,null,null,null,null,null,"Member Labor Cost",61180]
[null,null,null,null,null,null,"Member Labor Cost",61180]
[null,null,null,null,null,null,"Member Labor Cost",61180]
[null,null,null,null,null,null,"Member Labor Cost",61181]
[null,null,null,null,null,null,"Member Labor Cost",61181]
[null,null,null,null,null,null,"Member Labor Cost",61181]
[null,null,null,null,null,null,"Member Labor Cost",61182]
[null,null,null,null,null,null,"Member Labor Cost",61182]
[null,null,null,null,null,null,"Member Labor Cost",61182]
[null,null,null,null,null,null,"Member Labor Cost",61183]
[null,null,null,null,null,null,"Member Labor Cost",61183]
[null,null,null,null,null,null,"Member Labor Cost",61183]
[null,null,null,null,null,null,"Member Labor Cost",61184]
[null,null,null,null,null,null,"Member Labor Cost",61184]
[null,null,null,null,null,null,"Member Labor Cost",61184]
[null,null,null,null,null,null,"Member Labor Cost",61185]
[null,null,null,null,null,null,"Member Labor Cost",61185]
[null,null,null,null,null,null,"Member Labor Cost",61185]
[null,null,null,null,null,null,"Member Labor Cost",61186]
[null,null,null,null,null,null,"Member Labor Cost",61186]
[null,null,null,null,null,null,"Member Labor Cost",61186]
[null,null,null,null,null,null,"Member Labor Cost",61187]
[null,null,null,null,null,null,"Member Labor Cost",61187]
[null,null,null,null,null,null,"Member Labor Cost",61187]
[null,null,null,null,null,null,"Member Labor Cost",61188]
[null,null,null,null,null,null,"Member Labor Cost",61188]
[null,null,null,null,null,null,"Member Labor Cost",61188]
[null,null,null,null,null,null,"Member Labor Cost",61189]
[null,null,null,null,null,null,"Member Labor Cost",61189]
[null,null,null,null,null,null,"Member Labor Cost",61189]
[null,null,null,null,null,null,"Member Labor Cost",61190]
[null,null,null,null,null,null,"Member Labor Cost",61190]
[null,null,null,null,null,null,"Member Labor Cost",61190]
[null,null,null,null,null,null,"Member Labor Cost",61191]
[null,null,null,null,null,null,"Member Labor Cost",61191]
[null,null,null,null,null,null,"Member Labor Cost",61191]
[null,null,null,null,null,null,"Member Labor Cost",61192]
[null,null,null,null,null,null,"Member Labor Cost",61192]
[null,null,null,null,null,null,"Member Labor Cost",61192]
[null,null,null,null,null,null,"Member Labor Cost",61193]
[null,null,null,null,null,null,"Member Labor Cost",61193]
[null,null,null,null,null,null,"Member Labor Cost",61193]
[null,null,null,null,null,null,"Member Labor Cost",61194]
[null,null,null,null,null,null,"Member Labor Cost",61194]
[null,null,null,null,null,null,"Member Labor Cost",61194]
[null,null,null,null,null,null,"Member Labor Cost",61195]
[null,null,null,null,null,null,"Member Labor Cost",61195]
[null,null,null,null,null,null,"Member Labor Cost",61195]
[null,null,null,null,null,null,"Member Labor Cost",61196]
[null,null,null,null,null,null,"Member Labor Cost",61196]
[null,null,null,null,null,null,"Member Labor Cost",61196]
[null,null,null,null,null,null,"Member Labor Cost",61197]
[null,null,null,null,null,null,"Member Labor Cost",61197]
[null,null,null,null,null,null,"Member Labor Cost",61197]
[null,null,null,null,null,null,"Member Labor Cost",61198]
[null,null,null,null,null,null,"Member Labor Cost",61198]
[null,null,null,null,null,null,"Member Labor Cost",61198]
[null,null,null,null,null,null,"Member Labor Cost",61199]
[null,null,null,null,null,null,"Member Labor Cost",61199]
[null,null,null,null,null,null,"Member Labor Cost",61199]
[null,null,null,null,null,null,"Employee Salaries",61200]
[null,null,null,null,null,null,"Employee Salaries",61200]
[null,null,null,null,null,null,"Employee Salaries",61200]
[null,null,null,null,null,null,"Employee Salaries",61201]
[null,null,null,null,null,null,"Employee Salaries",61201]
[null,null,null,null,null,null,"Employee Salaries",61201]
[null,null,null,null,null,null,"Employee Salaries",61202]
[null,null,null,null,null,null,"Employee Salaries",61202]
[null,null,null,null,null,null,"Employee Salaries",61202]
[null,null,null,null,null,null,"Employee Salaries",61203]
[null,null,null,null,null,null,"Employee Salaries",61203]
[null,null,null,null,null,null,"Employee Salaries",61203]
[null,null,null,null,null,null,"Employee Salaries",61204]
[null,null,null,null,null,null,"Employee Salaries",61204]
[null,null,null,null,null,null,"Employee Salaries",61204]
[null,null,null,null,null,null,"Employee Salaries",61205]
[null,null,null,null,null,null,"Employee Salaries",61205]
[null,null,null,null,null,null,"Employee Salaries",61205]
[null,null,null,null,null,null,"Employee Salaries",61206]
[null,null,null,null,null,null,"Employee Salaries",61206]
[null,null,null,null,null,null,"Employee Salaries",61206]
[null,null,null,null,null,null,"Employee Salaries",61207]
[null,null,null,null,null,null,"Employee Salaries",61207]
[null,null,null,null,null,null,"Employee Salaries",61207]
[null,null,null,null,null,null,"Employee Salaries",61208]
[null,null,null,null,null,null,"Employee Salaries",61208]
[null,null,null,null,null,null,"Employee Salaries",61208]
[null,null,null,null,null,null,"Employee Salaries",61209]
[null,null,null,null,null,null,"Employee Salaries",61209]
[null,null,null,null,null,null,"Employee Salaries",61209]
[null,null,null,null,null,null,"Employee Salaries",61210]
[null,null,null,null,null,null,"Employee Salaries",61210]
[null,null,null,null,null,null,"Employee Salaries",61210]
[null,null,null,null,null,null,"Employee Salaries",61211]
[null,null,null,null,null,null,"Employee Salaries",61211]
[null,null,null,null,null,null,"Employee Salaries",61211]
[null,null,null,null,null,null,"Employee Salaries",61212]
[null,null,null,null,null,null,"Employee Salaries",61212]
[null,null,null,null,null,null,"Employee Salaries",61212]
[null,null,null,null,null,null,"Employee Salaries",61213]
[null,null,null,null,null,null,"Employee Salaries",61213]
[null,null,null,null,null,null,"Employee Salaries",61213]
[null,null,null,null,null,null,"Employee Salaries",61214]
[null,null,null,null,null,null,"Employee Salaries",61214]
[null,null,null,null,null,null,"Employee Salaries",61214]
[null,null,null,null,null,null,"Employee Salaries",61215]
[null,null,null,null,null,null,"Employee Salaries",61215]
[null,null,null,null,null,null,"Employee Salaries",61215]
[null,null,null,null,null,null,"Employee Salaries",61216]
[null,null,null,null,null,null,"Employee Salaries",61216]
[null,null,null,null,null,null,"Employee Salaries",61216]
[null,null,null,null,null,null,"Employee Salaries",61217]
[null,null,null,null,null,null,"Employee Salaries",61217]
[null,null,null,null,null,null,"Employee Salaries",61217]
[null,null,null,null,null,null,"Employee Salaries",61218]
[null,null,null,null,null,null,"Employee Salaries",61218]
[null,null,null,null,null,null,"Employee Salaries",61218]
[null,null,null,null,null,null,"Employee Salaries",61219]
[null,null,null,null,null,null,"Employee Salaries",61219]
[null,null,null,null,null,null,"Employee Salaries",61219]
[null,null,null,null,null,null,"Employee Salaries",61220]
[null,null,null,null,null,null,"Employee Salaries",61220]
[null,null,null,null,null,null,"Employee Salaries",61220]
[null,null,null,null,null,null,"Employee Salaries",61221]
[null,null,null,null,null,null,"Employee Salaries",61221]
[null,null,null,null,null,null,"Employee Salaries",61221]
[null,null,null,null,null,null,"Employee Salaries",61222]
[null,null,null,null,null,null,"Employee Salaries",61222]
[null,null,null,null,null,null,"Employee Salaries",61222]
[null,null,null,null,null,null,"Employee Salaries",61223]
[null,null,null,null,null,null,"Employee Salaries",61223]
[null,null,null,null,null,null,"Employee Salaries",61223]
[null,null,null,null,null,null,"Employee Salaries",61224]
[null,null,null,null,null,null,"Employee Salaries",61224]
[null,null,null,null,null,null,"Employee Salaries",61224]
[null,null,null,null,null,null,"Employee Salaries",61225]
[null,null,null,null,null,null,"Employee Salaries",61225]
[null,null,null,null,null,null,"Employee Salaries",61225]
[null,null,null,null,null,null,"Employee Salaries",61226]
[null,null,null,null,null,null,"Employee Salaries",61226]
[null,null,null,null,null,null,"Employee Salaries",61226]
[null,null,null,null,null,null,"Employee Salaries",61227]
[null,null,null,null,null,null,"Employee Salaries",61227]
[null,null,null,null,null,null,"Employee Salaries",61227]
[null,null,null,null,null,null,"Employee Salaries",61228]
[null,null,null,null,null,null,"Employee Salaries",61228]
[null,null,null,null,null,null,"Employee Salaries",61228]
[null,null,null,null,null,null,"Employee Salaries",61229]
[null,null,null,null,null,null,"Employee Salaries",61229]
[null,null,null,null,null,null,"Employee Salaries",61229]
[null,null,null,null,null,null,"Employee Salaries",61230]
[null,null,null,null,null,null,"Employee Salaries",61230]
[null,null,null,null,null,null,"Employee Salaries",61230]
[null,null,null,null,null,null,"Employee Salaries",61231]
[null,null,null,null,null,null,"Employee Salaries",61231]
[null,null,null,null,null,null,"Employee Salaries",61231]
[null,null,null,null,null,null,"Employee Salaries",61232]
[null,null,null,null,null,null,"Employee Salaries",61232]
[null,null,null,null,null,null,"Employee Salaries",61232]
[null,null,null,null,null,null,"Employee Salaries",61233]
[null,null,null,null,null,null,"Employee Salaries",61233]
[null,null,null,null,null,null,"Employee Salaries",61233]
[null,null,null,null,null,null,"Employee Salaries",61234]
[null,null,null,null,null,null,"Employee Salaries",61234]
[null,null,null,null,null,null,"Employee Salaries",61234]
[null,null,null,null,null,null,"Employee Salaries",61235]
[null,null,null,null,null,null,"Employee Salaries",61235]
[null,null,null,null,null,null,"Employee Salaries",61235]
[null,null,null,null,null,null,"Employee Salaries",61236]
[null,null,null,null,null,null,"Employee Salaries",61236]
[null,null,null,null,null,null,"Employee Salaries",61236]
[null,null,null,null,null,null,"Employee Salaries",61237]
[null,null,null,null,null,null,"Employee Salaries",61237]
[null,null,null,null,null,null,"Employee Salaries",61237]
[null,null,null,null,null,null,"Employee Salaries",61238]
[null,null,null,null,null,null,"Employee Salaries",61238]
[null,null,null,null,null,null,"Employee Salaries",61238]
[null,null,null,null,null,null,"Employee Salaries",61239]
[null,null,null,null,null,null,"Employee Salaries",61239]
[null,null,null,null,null,null,"Employee Salaries",61239]
[null,null,null,null,null,null,"Employee Salaries",61240]
[null,null,null,null,null,null,"Employee Salaries",61240]
[null,null,null,null,null,null,"Employee Salaries",61240]
[null,null,null,null,null,null,"Employee Salaries",61241]
[null,null,null,null,null,null,"Employee Salaries",61241]
[null,null,null,null,null,null,"Employee Salaries",61241]
[null,null,null,null,null,null,"Employee Salaries",61242]
[null,null,null,null,null,null,"Employee Salaries",61242]
[null,null,null,null,null,null,"Employee Salaries",61242]
[null,null,null,null,null,null,"Employee Salaries",61243]
[null,null,null,null,null,null,"Employee Salaries",61243]
[null,null,null,null,null,null,"Employee Salaries",61243]
[null,null,null,null,null,null,"Employee Salaries",61244]
[null,null,null,null,null,null,"Employee Salaries",61244]
[null,null,null,null,null,null,"Employee Salaries",61244]
[null,null,null,null,null,null,"Employee Salaries",61245]
[null,null,null,null,null,null,"Employee Salaries",61245]
[null,null,null,null,null,null,"Employee Salaries",61245]
[null,null,null,null,null,null,"Employee Salaries",61246]
[null,null,null,null,null,null,"Employee Salaries",61246]
[null,null,null,null,null,null,"Employee Salaries",61246]
[null,null,null,null,null,null,"Employee Salaries",61247]
[null,null,null,null,null,null,"Employee Salaries",61247]
[null,null,null,null,null,null,"Employee Salaries",61247]
[null,null,null,null,null,null,"Employee Salaries",61248]
[null,null,null,null,null,null,"Employee Salaries",61248]
[null,null,null,null,null,null,"Employee Salaries",61248]
[null,null,null,null,null,null,"Employee Salaries",61249]
[null,null,null,null,null,null,"Employee Salaries",61249]
[null,null,null,null,null,null,"Employee Salaries",61249]
[null,null,null,null,null,null,"Employee Salaries",61250]
[null,null,null,null,null,null,"Employee Salaries",61250]
[null,null,null,null,null,null,"Employee Salaries",61250]
[null,null,null,null,null,null,"Employee Salaries",61251]
[null,null,null,null,null,null,"Employee Salaries",61251]
[null,null,null,null,null,null,"Employee Salaries",61251]
[null,null,null,null,null,null,"Employee Salaries",61252]
[null,null,null,null,null,null,"Employee Salaries",61252]
[null,null,null,null,null,null,"Employee Salaries",61252]
[null,null,null,null,null,null,"Employee Salaries",61253]
[null,null,null,null,null,null,"Employee Salaries",61253]
[null,null,null,null,null,null,"Employee Salaries",61253]
[null,null,null,null,null,null,"Employee Salaries",61254]
[null,null,null,null,null,null,"Employee Salaries",61254]
[null,null,null,null,null,null,"Employee Salaries",61254]
[null,null,null,null,null,null,"Employee Salaries",61255]
[null,null,null,null,null,null,"Employee Salaries",61255]
[null,null,null,null,null,null,"Employee Salaries",61255]
[null,null,null,null,null,null,"Employee Salaries",61256]
[null,null,null,null,null,null,"Employee Salaries",61256]
[null,null,null,null,null,null,"Employee Salaries",61256]
[null,null,null,null,null,null,"Employee Salaries",61257]
[null,null,null,null,null,null,"Employee Salaries",61257]
[null,null,null,null,null,null,"Employee Salaries",61257]
[null,null,null,null,null,null,"Employee Salaries",61258]
[null,null,null,null,null,null,"Employee Salaries",61258]
[null,null,null,null,null,null,"Employee Salaries",61258]
[null,null,null,null,null,null,"Employee Salaries",61259]
[null,null,null,null,null,null,"Employee Salaries",61259]
[null,null,null,null,null,null,"Employee Salaries",61259]
[null,null,null,null,null,null,"Employee Salaries",61260]
[null,null,null,null,null,null,"Employee Salaries",61260]
[null,null,null,null,null,null,"Employee Salaries",61260]
[null,null,null,null,null,null,"Employee Salaries",61261]
[null,null,null,null,null,null,"Employee Salaries",61261]
[null,null,null,null,null,null,"Employee Salaries",61261]
[null,null,null,null,null,null,"Employee Salaries",61262]
[null,null,null,null,null,null,"Employee Salaries",61262]
[null,null,null,null,null,null,"Employee Salaries",61262]
[null,null,null,null,null,null,"Employee Salaries",61263]
[null,null,null,null,null,null,"Employee Salaries",61263]
[null,null,null,null,null,null,"Employee Salaries",61263]
[null,null,null,null,null,null,"Employee Salaries",61264]
[null,null,null,null,null,null,"Employee Salaries",61264]
[null,null,null,null,null,null,"Employee Salaries",61264]
[null,null,null,null,null,null,"Employee Salaries",61265]
[null,null,null,null,null,null,"Employee Salaries",61265]
[null,null,null,null,null,null,"Employee Salaries",61265]
[null,null,null,null,null,null,"Employee Salaries",61266]
[null,null,null,null,null,null,"Employee Salaries",61266]
[null,null,null,null,null,null,"Employee Salaries",61266]
[null,null,null,null,null,null,"Employee Salaries",61267]
[null,null,null,null,null,null,"Employee Salaries",61267]
[null,null,null,null,null,null,"Employee Salaries",61267]
[null,null,null,null,null,null,"Employee Salaries",61268]
[null,null,null,null,null,null,"Employee Salaries",61268]
[null,null,null,null,null,null,"Employee Salaries",61268]
[null,null,null,null,null,null,"Employee Salaries",61269]
[null,null,null,null,null,null,"Employee Salaries",61269]
[null,null,null,null,null,null,"Employee Salaries",61269]
[null,null,null,null,null,null,"Employee Salaries",61270]
[null,null,null,null,null,null,"Employee Salaries",61270]
[null,null,null,null,null,null,"Employee Salaries",61270]
[null,null,null,null,null,null,"Employee Salaries",61271]
[null,null,null,null,null,null,"Employee Salaries",61271]
[null,null,null,null,null,null,"Employee Salaries",61271]
[null,null,null,null,null,null,"Employee Salaries",61272]
[null,null,null,null,null,null,"Employee Salaries",61272]
[null,null,null,null,null,null,"Employee Salaries",61272]
[null,null,null,null,null,null,"Employee Salaries",61273]
[null,null,null,null,null,null,"Employee Salaries",61273]
[null,null,null,null,null,null,"Employee Salaries",61273]
[null,null,null,null,null,null,"Employee Salaries",61274]
[null,null,null,null,null,null,"Employee Salaries",61274]
[null,null,null,null,null,null,"Employee Salaries",61274]
[null,null,null,null,null,null,"Employee Salaries",61275]
[null,null,null,null,null,null,"Employee Salaries",61275]
[null,null,null,null,null,null,"Employee Salaries",61275]
[null,null,null,null,null,null,"Employee Salaries",61276]
[null,null,null,null,null,null,"Employee Salaries",61276]
[null,null,null,null,null,null,"Employee Salaries",61276]
[null,null,null,null,null,null,"Employee Salaries",61277]
[null,null,null,null,null,null,"Employee Salaries",61277]
[null,null,null,null,null,null,"Employee Salaries",61277]
[null,null,null,null,null,null,"Employee Salaries",61278]
[null,null,null,null,null,null,"Employee Salaries",61278]
[null,null,null,null,null,null,"Employee Salaries",61278]
[null,null,null,null,null,null,"Employee Salaries",61279]
[null,null,null,null,null,null,"Employee Salaries",61279]
[null,null,null,null,null,null,"Employee Salaries",61279]
[null,null,null,null,null,null,"Employee Salaries",61280]
[null,null,null,null,null,null,"Employee Salaries",61280]
[null,null,null,null,null,null,"Employee Salaries",61280]
[null,null,null,null,null,null,"Employee Salaries",61281]
[null,null,null,null,null,null,"Employee Salaries",61281]
[null,null,null,null,null,null,"Employee Salaries",61281]
[null,null,null,null,null,null,"Employee Salaries",61282]
[null,null,null,null,null,null,"Employee Salaries",61282]
[null,null,null,null,null,null,"Employee Salaries",61282]
[null,null,null,null,null,null,"Employee Salaries",61283]
[null,null,null,null,null,null,"Employee Salaries",61283]
[null,null,null,null,null,null,"Employee Salaries",61283]
[null,null,null,null,null,null,"Employee Salaries",61284]
[null,null,null,null,null,null,"Employee Salaries",61284]
[null,null,null,null,null,null,"Employee Salaries",61284]
[null,null,null,null,null,null,"Employee Salaries",61285]
[null,null,null,null,null,null,"Employee Salaries",61285]
[null,null,null,null,null,null,"Employee Salaries",61285]
[null,null,null,null,null,null,"Employee Salaries",61286]
[null,null,null,null,null,null,"Employee Salaries",61286]
[null,null,null,null,null,null,"Employee Salaries",61286]
[null,null,null,null,null,null,"Employee Salaries",61287]
[null,null,null,null,null,null,"Employee Salaries",61287]
[null,null,null,null,null,null,"Employee Salaries",61287]
[null,null,null,null,null,null,"Employee Salaries",61288]
[null,null,null,null,null,null,"Employee Salaries",61288]
[null,null,null,null,null,null,"Employee Salaries",61288]
[null,null,null,null,null,null,"Employee Salaries",61289]
[null,null,null,null,null,null,"Employee Salaries",61289]
[null,null,null,null,null,null,"Employee Salaries",61289]
[null,null,null,null,null,null,"Employee Salaries",61290]
[null,null,null,null,null,null,"Employee Salaries",61290]
[null,null,null,null,null,null,"Employee Salaries",61290]
[null,null,null,null,null,null,"Employee Salaries",61291]
[null,null,null,null,null,null,"Employee Salaries",61291]
[null,null,null,null,null,null,"Employee Salaries",61291]
[null,null,null,null,null,null,"Employee Salaries",61292]
[null,null,null,null,null,null,"Employee Salaries",61292]
[null,null,null,null,null,null,"Employee Salaries",61292]
[null,null,null,null,null,null,"Employee Salaries",61293]
[null,null,null,null,null,null,"Employee Salaries",61293]
[null,null,null,null,null,null,"Employee Salaries",61293]
[null,null,null,null,null,null,"Employee Salaries",61294]
[null,null,null,null,null,null,"Employee Salaries",61294]
[null,null,null,null,null,null,"Employee Salaries",61294]
[null,null,null,null,null,null,"Employee Salaries",61295]
[null,null,null,null,null,null,"Employee Salaries",61295]
[null,null,null,null,null,null,"Employee Salaries",61295]
[null,null,null,null,null,null,"Employee Salaries",61296]
[null,null,null,null,null,null,"Employee Salaries",61296]
[null,null,null,null,null,null,"Employee Salaries",61296]
[null,null,null,null,null,null,"Employee Salaries",61297]
[null,null,null,null,null,null,"Employee Salaries",61297]
[null,null,null,null,null,null,"Employee Salaries",61297]
[null,null,null,null,null,null,"Employee Salaries",61298]
[null,null,null,null,null,null,"Employee Salaries",61298]
[null,null,null,null,null,null,"Employee Salaries",61298]
[null,null,null,null,null,null,"Employee Salaries",61299]
[null,null,null,null,null,null,"Employee Salaries",61299]
[null,null,null,null,null,null,"Employee Salaries",61299]
[null,null,null,null,null,null,"Employee Salaries",61300]
[null,null,null,null,null,null,"Employee Salaries",61300]
[null,null,null,null,null,null,"Employee Salaries",61300]
[null,null,null,null,null,null,"Employee Salaries",61301]
[null,null,null,null,null,null,"Employee Salaries",61301]
[null,null,null,null,null,null,"Employee Salaries",61301]
[null,null,null,null,null,null,"Employee Salaries",61302]
[null,null,null,null,null,null,"Employee Salaries",61302]
[null,null,null,null,null,null,"Employee Salaries",61302]
[null,null,null,null,null,null,"Employee Salaries",61303]
[null,null,null,null,null,null,"Employee Salaries",61303]
[null,null,null,null,null,null,"Employee Salaries",61303]
[null,null,null,null,null,null,"Employee Salaries",61304]
[null,null,null,null,null,null,"Employee Salaries",61304]
[null,null,null,null,null,null,"Employee Salaries",61304]
[null,null,null,null,null,null,"Employee Salaries",61305]
[null,null,null,null,null,null,"Employee Salaries",61305]
[null,null,null,null,null,null,"Employee Salaries",61305]
[null,null,null,null,null,null,"Employee Salaries",61306]
[null,null,null,null,null,null,"Employee Salaries",61306]
[null,null,null,null,null,null,"Employee Salaries",61306]
[null,null,null,null,null,null,"Employee Salaries",61307]
[null,null,null,null,null,null,"Employee Salaries",61307]
[null,null,null,null,null,null,"Employee Salaries",61307]
[null,null,null,null,null,null,"Employee Salaries",61308]
[null,null,null,null,null,null,"Employee Salaries",61308]
[null,null,null,null,null,null,"Employee Salaries",61308]
[null,null,null,null,null,null,"Employee Salaries",61309]
[null,null,null,null,null,null,"Employee Salaries",61309]
[null,null,null,null,null,null,"Employee Salaries",61309]
[null,null,null,null,null,null,"Employee Salaries",61310]
[null,null,null,null,null,null,"Employee Salaries",61310]
[null,null,null,null,null,null,"Employee Salaries",61310]
[null,null,null,null,null,null,"Employee Salaries",61311]
[null,null,null,null,null,null,"Employee Salaries",61311]
[null,null,null,null,null,null,"Employee Salaries",61311]
[null,null,null,null,null,null,"Employee Salaries",61312]
[null,null,null,null,null,null,"Employee Salaries",61312]
[null,null,null,null,null,null,"Employee Salaries",61312]
[null,null,null,null,null,null,"Employee Salaries",61313]
[null,null,null,null,null,null,"Employee Salaries",61313]
[null,null,null,null,null,null,"Employee Salaries",61313]
[null,null,null,null,null,null,"Employee Salaries",61314]
[null,null,null,null,null,null,"Employee Salaries",61314]
[null,null,null,null,null,null,"Employee Salaries",61314]
[null,null,null,null,null,null,"Employee Salaries",61315]
[null,null,null,null,null,null,"Employee Salaries",61315]
[null,null,null,null,null,null,"Employee Salaries",61315]
[null,null,null,null,null,null,"Employee Salaries",61316]
[null,null,null,null,null,null,"Employee Salaries",61316]
[null,null,null,null,null,null,"Employee Salaries",61316]
[null,null,null,null,null,null,"Employee Salaries",61317]
[null,null,null,null,null,null,"Employee Salaries",61317]
[null,null,null,null,null,null,"Employee Salaries",61317]
[null,null,null,null,null,null,"Employee Salaries",61318]
[null,null,null,null,null,null,"Employee Salaries",61318]
[null,null,null,null,null,null,"Employee Salaries",61318]
[null,null,null,null,null,null,"Employee Salaries",61319]
[null,null,null,null,null,null,"Employee Salaries",61319]
[null,null,null,null,null,null,"Employee Salaries",61319]
[null,null,null,null,null,null,"Employee Salaries",61320]
[null,null,null,null,null,null,"Employee Salaries",61320]
[null,null,null,null,null,null,"Employee Salaries",61320]
[null,null,null,null,null,null,"Employee Salaries",61321]
[null,null,null,null,null,null,"Employee Salaries",61321]
[null,null,null,null,null,null,"Employee Salaries",61321]
[null,null,null,null,null,null,"Employee Salaries",61322]
[null,null,null,null,null,null,"Employee Salaries",61322]
[null,null,null,null,null,null,"Employee Salaries",61322]
[null,null,null,null,null,null,"Employee Salaries",61323]
[null,null,null,null,null,null,"Employee Salaries",61323]
[null,null,null,null,null,null,"Employee Salaries",61323]
[null,null,null,null,null,null,"Employee Salaries",61324]
[null,null,null,null,null,null,"Employee Salaries",61324]
[null,null,null,null,null,null,"Employee Salaries",61324]
[null,null,null,null,null,null,"Employee Salaries",61325]
[null,null,null,null,null,null,"Employee Salaries",61325]
[null,null,null,null,null,null,"Employee Salaries",61325]
[null,null,null,null,null,null,"Employee Salaries",61326]
[null,null,null,null,null,null,"Employee Salaries",61326]
[null,null,null,null,null,null,"Employee Salaries",61326]
[null,null,null,null,null,null,"Employee Salaries",61327]
[null,null,null,null,null,null,"Employee Salaries",61327]
[null,null,null,null,null,null,"Employee Salaries",61327]
[null,null,null,null,null,null,"Employee Salaries",61328]
[null,null,null,null,null,null,"Employee Salaries",61328]
[null,null,null,null,null,null,"Employee Salaries",61328]
[null,null,null,null,null,null,"Employee Salaries",61329]
[null,null,null,null,null,null,"Employee Salaries",61329]
[null,null,null,null,null,null,"Employee Salaries",61329]
[null,null,null,null,null,null,"Employee Salaries",61330]
[null,null,null,null,null,null,"Employee Salaries",61330]
[null,null,null,null,null,null,"Employee Salaries",61330]
[null,null,null,null,null,null,"Employee Salaries",61331]
[null,null,null,null,null,null,"Employee Salaries",61331]
[null,null,null,null,null,null,"Employee Salaries",61331]
[null,null,null,null,null,null,"Employee Salaries",61332]
[null,null,null,null,null,null,"Employee Salaries",61332]
[null,null,null,null,null,null,"Employee Salaries",61332]
[null,null,null,null,null,null,"Employee Salaries",61333]
[null,null,null,null,null,null,"Employee Salaries",61333]
[null,null,null,null,null,null,"Employee Salaries",61333]
[null,null,null,null,null,null,"Employee Salaries",61334]
[null,null,null,null,null,null,"Employee Salaries",61334]
[null,null,null,null,null,null,"Employee Salaries",61334]
[null,null,null,null,null,null,"Employee Salaries",61335]
[null,null,null,null,null,null,"Employee Salaries",61335]
[null,null,null,null,null,null,"Employee Salaries",61335]
[null,null,null,null,null,null,"Employee Salaries",61336]
[null,null,null,null,null,null,"Employee Salaries",61336]
[null,null,null,null,null,null,"Employee Salaries",61336]
[null,null,null,null,null,null,"Employee Salaries",61337]
[null,null,null,null,null,null,"Employee Salaries",61337]
[null,null,null,null,null,null,"Employee Salaries",61337]
[null,null,null,null,null,null,"Employee Salaries",61338]
[null,null,null,null,null,null,"Employee Salaries",61338]
[null,null,null,null,null,null,"Employee Salaries",61338]
[null,null,null,null,null,null,"Employee Salaries",61339]
[null,null,null,null,null,null,"Employee Salaries",61339]
[null,null,null,null,null,null,"Employee Salaries",61339]
[null,null,null,null,null,null,"Employee Salaries",61340]
[null,null,null,null,null,null,"Employee Salaries",61340]
[null,null,null,null,null,null,"Employee Salaries",61340]
[null,null,null,null,null,null,"Employee Salaries",61341]
[null,null,null,null,null,null,"Employee Salaries",61341]
[null,null,null,null,null,null,"Employee Salaries",61341]
[null,null,null,null,null,null,"Employee Salaries",61342]
[null,null,null,null,null,null,"Employee Salaries",61342]
[null,null,null,null,null,null,"Employee Salaries",61342]
[null,null,null,null,null,null,"Employee Salaries",61343]
[null,null,null,null,null,null,"Employee Salaries",61343]
[null,null,null,null,null,null,"Employee Salaries",61343]
[null,null,null,null,null,null,"Employee Salaries",61344]
[null,null,null,null,null,null,"Employee Salaries",61344]
[null,null,null,null,null,null,"Employee Salaries",61344]
[null,null,null,null,null,null,"Employee Salaries",61345]
[null,null,null,null,null,null,"Employee Salaries",61345]
[null,null,null,null,null,null,"Employee Salaries",61345]
[null,null,null,null,null,null,"Employee Salaries",61346]
[null,null,null,null,null,null,"Employee Salaries",61346]
[null,null,null,null,null,null,"Employee Salaries",61346]
[null,null,null,null,null,null,"Employee Salaries",61347]
[null,null,null,null,null,null,"Employee Salaries",61347]
[null,null,null,null,null,null,"Employee Salaries",61347]
[null,null,null,null,null,null,"Employee Salaries",61348]
[null,null,null,null,null,null,"Employee Salaries",61348]
[null,null,null,null,null,null,"Employee Salaries",61348]
[null,null,null,null,null,null,"Employee Salaries",61349]
[null,null,null,null,null,null,"Employee Salaries",61349]
[null,null,null,null,null,null,"Employee Salaries",61349]
[null,null,null,null,null,null,"Employee Salaries",61350]
[null,null,null,null,null,null,"Employee Salaries",61350]
[null,null,null,null,null,null,"Employee Salaries",61350]
[null,null,null,null,null,null,"Employee Salaries",61351]
[null,null,null,null,null,null,"Employee Salaries",61351]
[null,null,null,null,null,null,"Employee Salaries",61351]
[null,null,null,null,null,null,"Employee Salaries",61352]
[null,null,null,null,null,null,"Employee Salaries",61352]
[null,null,null,null,null,null,"Employee Salaries",61352]
[null,null,null,null,null,null,"Employee Salaries",61353]
[null,null,null,null,null,null,"Employee Salaries",61353]
[null,null,null,null,null,null,"Employee Salaries",61353]
[null,null,null,null,null,null,"Employee Salaries",61354]
[null,null,null,null,null,null,"Employee Salaries",61354]
[null,null,null,null,null,null,"Employee Salaries",61354]
[null,null,null,null,null,null,"Employee Salaries",61355]
[null,null,null,null,null,null,"Employee Salaries",61355]
[null,null,null,null,null,null,"Employee Salaries",61355]
[null,null,null,null,null,null,"Employee Salaries",61356]
[null,null,null,null,null,null,"Employee Salaries",61356]
[null,null,null,null,null,null,"Employee Salaries",61356]
[null,null,null,null,null,null,"Employee Salaries",61357]
[null,null,null,null,null,null,"Employee Salaries",61357]
[null,null,null,null,null,null,"Employee Salaries",61357]
[null,null,null,null,null,null,"Employee Salaries",61358]
[null,null,null,null,null,null,"Employee Salaries",61358]
[null,null,null,null,null,null,"Employee Salaries",61358]
[null,null,null,null,null,null,"Employee Salaries",61359]
[null,null,null,null,null,null,"Employee Salaries",61359]
[null,null,null,null,null,null,"Employee Salaries",61359]
[null,null,null,null,null,null,"Employee Salaries",61360]
[null,null,null,null,null,null,"Employee Salaries",61360]
[null,null,null,null,null,null,"Employee Salaries",61360]
[null,null,null,null,null,null,"Employee Salaries",61361]
[null,null,null,null,null,null,"Employee Salaries",61361]
[null,null,null,null,null,null,"Employee Salaries",61361]
[null,null,null,null,null,null,"Employee Salaries",61362]
[null,null,null,null,null,null,"Employee Salaries",61362]
[null,null,null,null,null,null,"Employee Salaries",61362]
[null,null,null,null,null,null,"Employee Salaries",61363]
[null,null,null,null,null,null,"Employee Salaries",61363]
[null,null,null,null,null,null,"Employee Salaries",61363]
[null,null,null,null,null,null,"Employee Salaries",61364]
[null,null,null,null,null,null,"Employee Salaries",61364]
[null,null,null,null,null,null,"Employee Salaries",61364]
[null,null,null,null,null,null,"Employee Salaries",61365]
[null,null,null,null,null,null,"Employee Salaries",61365]
[null,null,null,null,null,null,"Employee Salaries",61365]
[null,null,null,null,null,null,"Employee Salaries",61366]
[null,null,null,null,null,null,"Employee Salaries",61366]
[null,null,null,null,null,null,"Employee Salaries",61366]
[null,null,null,null,null,null,"Employee Salaries",61367]
[null,null,null,null,null,null,"Employee Salaries",61367]
[null,null,null,null,null,null,"Employee Salaries",61367]
[null,null,null,null,null,null,"Employee Salaries",61368]
[null,null,null,null,null,null,"Employee Salaries",61368]
[null,null,null,null,null,null,"Employee Salaries",61368]
[null,null,null,null,null,null,"Employee Salaries",61369]
[null,null,null,null,null,null,"Employee Salaries",61369]
[null,null,null,null,null,null,"Employee Salaries",61369]
[null,null,null,null,null,null,"Employee Salaries",61370]
[null,null,null,null,null,null,"Employee Salaries",61370]
[null,null,null,null,null,null,"Employee Salaries",61370]
[null,null,null,null,null,null,"Employee Salaries",61371]
[null,null,null,null,null,null,"Employee Salaries",61371]
[null,null,null,null,null,null,"Employee Salaries",61371]
[null,null,null,null,null,null,"Employee Salaries",61372]
[null,null,null,null,null,null,"Employee Salaries",61372]
[null,null,null,null,null,null,"Employee Salaries",61372]
[null,null,null,null,null,null,"Employee Salaries",61373]
[null,null,null,null,null,null,"Employee Salaries",61373]
[null,null,null,null,null,null,"Employee Salaries",61373]
[null,null,null,null,null,null,"Employee Salaries",61374]
[null,null,null,null,null,null,"Employee Salaries",61374]
[null,null,null,null,null,null,"Employee Salaries",61374]
[null,null,null,null,null,null,"Employee Salaries",61375]
[null,null,null,null,null,null,"Employee Salaries",61375]
[null,null,null,null,null,null,"Employee Salaries",61375]
[null,null,null,null,null,null,"Employee Salaries",61376]
[null,null,null,null,null,null,"Employee Salaries",61376]
[null,null,null,null,null,null,"Employee Salaries",61376]
[null,null,null,null,null,null,"Employee Salaries",61377]
[null,null,null,null,null,null,"Employee Salaries",61377]
[null,null,null,null,null,null,"Employee Salaries",61377]
[null,null,null,null,null,null,"Employee Salaries",61378]
[null,null,null,null,null,null,"Employee Salaries",61378]
[null,null,null,null,null,null,"Employee Salaries",61378]
[null,null,null,null,null,null,"Employee Salaries",61379]
[null,null,null,null,null,null,"Employee Salaries",61379]
[null,null,null,null,null,null,"Employee Salaries",61379]
[null,null,null,null,null,null,"Employee Salaries",61380]
[null,null,null,null,null,null,"Employee Salaries",61380]
[null,null,null,null,null,null,"Employee Salaries",61380]
[null,null,null,null,null,null,"Employee Salaries",61381]
[null,null,null,null,null,null,"Employee Salaries",61381]
[null,null,null,null,null,null,"Employee Salaries",61381]
[null,null,null,null,null,null,"Employee Salaries",61382]
[null,null,null,null,null,null,"Employee Salaries",61382]
[null,null,null,null,null,null,"Employee Salaries",61382]
[null,null,null,null,null,null,"Employee Salaries",61383]
[null,null,null,null,null,null,"Employee Salaries",61383]
[null,null,null,null,null,null,"Employee Salaries",61383]
[null,null,null,null,null,null,"Employee Salaries",61384]
[null,null,null,null,null,null,"Employee Salaries",61384]
[null,null,null,null,null,null,"Employee Salaries",61384]
[null,null,null,null,null,null,"Employee Salaries",61385]
[null,null,null,null,null,null,"Employee Salaries",61385]
[null,null,null,null,null,null,"Employee Salaries",61385]
[null,null,null,null,null,null,"Employee Salaries",61386]
[null,null,null,null,null,null,"Employee Salaries",61386]
[null,null,null,null,null,null,"Employee Salaries",61386]
[null,null,null,null,null,null,"Employee Salaries",61387]
[null,null,null,null,null,null,"Employee Salaries",61387]
[null,null,null,null,null,null,"Employee Salaries",61387]
[null,null,null,null,null,null,"Employee Salaries",61388]
[null,null,null,null,null,null,"Employee Salaries",61388]
[null,null,null,null,null,null,"Employee Salaries",61388]
[null,null,null,null,null,null,"Employee Salaries",61389]
[null,null,null,null,null,null,"Employee Salaries",61389]
[null,null,null,null,null,null,"Employee Salaries",61389]
[null,null,null,null,null,null,"Employee Salaries",61390]
[null,null,null,null,null,null,"Employee Salaries",61390]
[null,null,null,null,null,null,"Employee Salaries",61390]
[null,null,null,null,null,null,"Employee Salaries",61391]
[null,null,null,null,null,null,"Employee Salaries",61391]
[null,null,null,null,null,null,"Employee Salaries",61391]
[null,null,null,null,null,null,"Employee Salaries",61392]
[null,null,null,null,null,null,"Employee Salaries",61392]
[null,null,null,null,null,null,"Employee Salaries",61392]
[null,null,null,null,null,null,"Employee Salaries",61393]
[null,null,null,null,null,null,"Employee Salaries",61393]
[null,null,null,null,null,null,"Employee Salaries",61393]
[null,null,null,null,null,null,"Employee Salaries",61394]
[null,null,null,null,null,null,"Employee Salaries",61394]
[null,null,null,null,null,null,"Employee Salaries",61394]
[null,null,null,null,null,null,"Employee Salaries",61395]
[null,null,null,null,null,null,"Employee Salaries",61395]
[null,null,null,null,null,null,"Employee Salaries",61395]
[null,null,null,null,null,null,"Employee Salaries",61396]
[null,null,null,null,null,null,"Employee Salaries",61396]
[null,null,null,null,null,null,"Employee Salaries",61396]
[null,null,null,null,null,null,"Employee Salaries",61397]
[null,null,null,null,null,null,"Employee Salaries",61397]
[null,null,null,null,null,null,"Employee Salaries",61397]
[null,null,null,null,null,null,"Employee Salaries",61398]
[null,null,null,null,null,null,"Employee Salaries",61398]
[null,null,null,null,null,null,"Employee Salaries",61398]
[null,null,null,null,null,null,"Employee Salaries",61399]
[null,null,null,null,null,null,"Employee Salaries",61399]
[null,null,null,null,null,null,"Employee Salaries",61399]
[null,null,null,null,null,null,"Payroll Taxes - Employer's Portion",61400]
[null,null,null,null,null,null,"Payroll Taxes - Employer's Portion",61400]
[null,null,null,null,null,null,"Payroll Taxes - Employer's Portion",61400]
[null,null,null,null,null,null,"Payroll Taxes - Employer's Portion",61401]
[null,null,null,null,null,null,"Payroll Taxes - Employer's Portion",61401]
[null,null,null,null,null,null,"Payroll Taxes - Employer's Portion",61401]
[null,null,null,null,null,null,"Payroll Taxes - Employer's Portion",61402]
[null,null,null,null,null,null,"Payroll Taxes - Employer's Portion",61402]
[null,null,null,null,null,null,"Payroll Taxes - Employer's Portion",61402]
[null,null,null,null,null,null,"Payroll Taxes - Employer's Portion",61403]
[null,null,null,null,null,null,"Payroll Taxes - Employer's Portion",61403]
[null,null,null,null,null,null,"Payroll Taxes - Employer's Portion",61403]
[null,null,null,null,null,null,"Payroll Taxes - Employer's Portion",61404]
[null,null,null,null,null,null,"Payroll Taxes - Employer's Portion",61404]
[null,null,null,null,null,null,"Payroll Taxes - Employer's Portion",61404]
[null,null,null,null,null,null,"Payroll Taxes - Employer's Portion",61405]
[null,null,null,null,null,null,"Payroll Taxes - Employer's Portion",61405]
[null,null,null,null,null,null,"Payroll Taxes - Employer's Portion",61405]
[null,null,null,null,null,null,"Payroll Taxes - Employer's Portion",61406]
[null,null,null,null,null,null,"Payroll Taxes - Employer's Portion",61406]
[null,null,null,null,null,null,"Payroll Taxes - Employer's Portion",61406]
[null,null,null,null,null,null,"Payroll Taxes - Employer's Portion",61407]
[null,null,null,null,null,null,"Payroll Taxes - Employer's Portion",61407]
[null,null,null,null,null,null,"Payroll Taxes - Employer's Portion",61407]
[null,null,null,null,null,null,"Payroll Taxes - Employer's Portion",61408]
[null,null,null,null,null,null,"Payroll Taxes - Employer's Portion",61408]
[null,null,null,null,null,null,"Payroll Taxes - Employer's Portion",61408]
[null,null,null,null,null,null,"Payroll Taxes - Employer's Portion",61409]
[null,null,null,null,null,null,"Payroll Taxes - Employer's Portion",61409]
[null,null,null,null,null,null,"Payroll Taxes - Employer's Portion",61409]
[null,null,null,null,null,null,"Payroll Taxes - Employer's Portion",61410]
[null,null,null,null,null,null,"Payroll Taxes - Employer's Portion",61410]
[null,null,null,null,null,null,"Payroll Taxes - Employer's Portion",61410]
[null,null,null,null,null,null,"Payroll Taxes - Employer's Portion",61411]
[null,null,null,null,null,null,"Payroll Taxes - Employer's Portion",61411]
[null,null,null,null,null,null,"Payroll Taxes - Employer's Portion",61411]
[null,null,null,null,null,null,"Payroll Taxes - Employer's Portion",61412]
[null,null,null,null,null,null,"Payroll Taxes - Employer's Portion",61412]
[null,null,null,null,null,null,"Payroll Taxes - Employer's Portion",61412]
[null,null,null,null,null,null,"Payroll Taxes - Employer's Portion",61413]
[null,null,null,null,null,null,"Payroll Taxes - Employer's Portion",61413]
[null,null,null,null,null,null,"Payroll Taxes - Employer's Portion",61413]
[null,null,null,null,null,null,"Payroll Taxes - Employer's Portion",61414]
[null,null,null,null,null,null,"Payroll Taxes - Employer's Portion",61414]
[null,null,null,null,null,null,"Payroll Taxes - Employer's Portion",61414]
[null,null,null,null,null,null,"Payroll Taxes - Employer's Portion",61415]
[null,null,null,null,null,null,"Payroll Taxes - Employer's Portion",61415]
[null,null,null,null,null,null,"Payroll Taxes - Employer's Portion",61415]
[null,null,null,null,null,null,"Payroll Taxes - Employer's Portion",61416]
[null,null,null,null,null,null,"Payroll Taxes - Employer's Portion",61416]
[null,null,null,null,null,null,"Payroll Taxes - Employer's Portion",61416]
[null,null,null,null,null,null,"Payroll Taxes - Employer's Portion",61417]
[null,null,null,null,null,null,"Payroll Taxes - Employer's Portion",61417]
[null,null,null,null,null,null,"Payroll Taxes - Employer's Portion",61417]
[null,null,null,null,null,null,"Payroll Taxes - Employer's Portion",61418]
[null,null,null,null,null,null,"Payroll Taxes - Employer's Portion",61418]
[null,null,null,null,null,null,"Payroll Taxes - Employer's Portion",61418]
[null,null,null,null,null,null,"Payroll Taxes - Employer's Portion",61419]
[null,null,null,null,null,null,"Payroll Taxes - Employer's Portion",61419]
[null,null,null,null,null,null,"Payroll Taxes - Employer's Portion",61419]
[null,null,null,null,null,null,"Payroll Taxes - Employer's Portion",61420]
[null,null,null,null,null,null,"Payroll Taxes - Employer's Portion",61420]
[null,null,null,null,null,null,"Payroll Taxes - Employer's Portion",61420]
[null,null,null,null,null,null,"Payroll Taxes - Employer's Portion",61421]
[null,null,null,null,null,null,"Payroll Taxes - Employer's Portion",61421]
[null,null,null,null,null,null,"Payroll Taxes - Employer's Portion",61421]
[null,null,null,null,null,null,"Payroll Taxes - Employer's Portion",61422]
[null,null,null,null,null,null,"Payroll Taxes - Employer's Portion",61422]
[null,null,null,null,null,null,"Payroll Taxes - Employer's Portion",61422]
[null,null,null,null,null,null,"Payroll Taxes - Employer's Portion",61423]
[null,null,null,null,null,null,"Payroll Taxes - Employer's Portion",61423]
[null,null,null,null,null,null,"Payroll Taxes - Employer's Portion",61423]
[null,null,null,null,null,null,"Payroll Taxes - Employer's Portion",61424]
[null,null,null,null,null,null,"Payroll Taxes - Employer's Portion",61424]
[null,null,null,null,null,null,"Payroll Taxes - Employer's Portion",61424]
[null,null,null,null,null,null,"Payroll Taxes - Employer's Portion",61425]
[null,null,null,null,null,null,"Payroll Taxes - Employer's Portion",61425]
[null,null,null,null,null,null,"Payroll Taxes - Employer's Portion",61425]
[null,null,null,null,null,null,"Payroll Taxes - Employer's Portion",61426]
[null,null,null,null,null,null,"Payroll Taxes - Employer's Portion",61426]
[null,null,null,null,null,null,"Payroll Taxes - Employer's Portion",61426]
[null,null,null,null,null,null,"Payroll Taxes - Employer's Portion",61427]
[null,null,null,null,null,null,"Payroll Taxes - Employer's Portion",61427]
[null,null,null,null,null,null,"Payroll Taxes - Employer's Portion",61427]
[null,null,null,null,null,null,"Payroll Taxes - Employer's Portion",61428]
[null,null,null,null,null,null,"Payroll Taxes - Employer's Portion",61428]
[null,null,null,null,null,null,"Payroll Taxes - Employer's Portion",61428]
[null,null,null,null,null,null,"Payroll Taxes - Employer's Portion",61429]
[null,null,null,null,null,null,"Payroll Taxes - Employer's Portion",61429]
[null,null,null,null,null,null,"Payroll Taxes - Employer's Portion",61429]
[null,null,null,null,null,null,"Payroll Taxes - Employer's Portion",61430]
[null,null,null,null,null,null,"Payroll Taxes - Employer's Portion",61430]
[null,null,null,null,null,null,"Payroll Taxes - Employer's Portion",61430]
[null,null,null,null,null,null,"Payroll Taxes - Employer's Portion",61431]
[null,null,null,null,null,null,"Payroll Taxes - Employer's Portion",61431]
[null,null,null,null,null,null,"Payroll Taxes - Employer's Portion",61431]
[null,null,null,null,null,null,"Payroll Taxes - Employer's Portion",61432]
[null,null,null,null,null,null,"Payroll Taxes - Employer's Portion",61432]
[null,null,null,null,null,null,"Payroll Taxes - Employer's Portion",61432]
[null,null,null,null,null,null,"Payroll Taxes - Employer's Portion",61433]
[null,null,null,null,null,null,"Payroll Taxes - Employer's Portion",61433]
[null,null,null,null,null,null,"Payroll Taxes - Employer's Portion",61433]
[null,null,null,null,null,null,"Payroll Taxes - Employer's Portion",61434]
[null,null,null,null,null,null,"Payroll Taxes - Employer's Portion",61434]
[null,null,null,null,null,null,"Payroll Taxes - Employer's Portion",61434]
[null,null,null,null,null,null,"Payroll Taxes - Employer's Portion",61435]
[null,null,null,null,null,null,"Payroll Taxes - Employer's Portion",61435]
[null,null,null,null,null,null,"Payroll Taxes - Employer's Portion",61435]
[null,null,null,null,null,null,"Payroll Taxes - Employer's Portion",61436]
[null,null,null,null,null,null,"Payroll Taxes - Employer's Portion",61436]
[null,null,null,null,null,null,"Payroll Taxes - Employer's Portion",61436]
[null,null,null,null,null,null,"Payroll Taxes - Employer's Portion",61437]
[null,null,null,null,null,null,"Payroll Taxes - Employer's Portion",61437]
[null,null,null,null,null,null,"Payroll Taxes - Employer's Portion",61437]
[null,null,null,null,null,null,"Payroll Taxes - Employer's Portion",61438]
[null,null,null,null,null,null,"Payroll Taxes - Employer's Portion",61438]
[null,null,null,null,null,null,"Payroll Taxes - Employer's Portion",61438]
[null,null,null,null,null,null,"Payroll Taxes - Employer's Portion",61439]
[null,null,null,null,null,null,"Payroll Taxes - Employer's Portion",61439]
[null,null,null,null,null,null,"Payroll Taxes - Employer's Portion",61439]
[null,null,null,null,null,null,"Payroll Taxes - Employer's Portion",61440]
[null,null,null,null,null,null,"Payroll Taxes - Employer's Portion",61440]
[null,null,null,null,null,null,"Payroll Taxes - Employer's Portion",61440]
[null,null,null,null,null,null,"Payroll Taxes - Employer's Portion",61441]
[null,null,null,null,null,null,"Payroll Taxes - Employer's Portion",61441]
[null,null,null,null,null,null,"Payroll Taxes - Employer's Portion",61441]
[null,null,null,null,null,null,"Payroll Taxes - Employer's Portion",61442]
[null,null,null,null,null,null,"Payroll Taxes - Employer's Portion",61442]
[null,null,null,null,null,null,"Payroll Taxes - Employer's Portion",61442]
[null,null,null,null,null,null,"Payroll Taxes - Employer's Portion",61443]
[null,null,null,null,null,null,"Payroll Taxes - Employer's Portion",61443]
[null,null,null,null,null,null,"Payroll Taxes - Employer's Portion",61443]
[null,null,null,null,null,null,"Payroll Taxes - Employer's Portion",61444]
[null,null,null,null,null,null,"Payroll Taxes - Employer's Portion",61444]
[null,null,null,null,null,null,"Payroll Taxes - Employer's Portion",61444]
[null,null,null,null,null,null,"Payroll Taxes - Employer's Portion",61445]
[null,null,null,null,null,null,"Payroll Taxes - Employer's Portion",61445]
[null,null,null,null,null,null,"Payroll Taxes - Employer's Portion",61445]
[null,null,null,null,null,null,"Payroll Taxes - Employer's Portion",61446]
[null,null,null,null,null,null,"Payroll Taxes - Employer's Portion",61446]
[null,null,null,null,null,null,"Payroll Taxes - Employer's Portion",61446]
[null,null,null,null,null,null,"Payroll Taxes - Employer's Portion",61447]
[null,null,null,null,null,null,"Payroll Taxes - Employer's Portion",61447]
[null,null,null,null,null,null,"Payroll Taxes - Employer's Portion",61447]
[null,null,null,null,null,null,"Payroll Taxes - Employer's Portion",61448]
[null,null,null,null,null,null,"Payroll Taxes - Employer's Portion",61448]
[null,null,null,null,null,null,"Payroll Taxes - Employer's Portion",61448]
[null,null,null,null,null,null,"Payroll Taxes - Employer's Portion",61449]
[null,null,null,null,null,null,"Payroll Taxes - Employer's Portion",61449]
[null,null,null,null,null,null,"Payroll Taxes - Employer's Portion",61449]
[null,null,null,null,null,null,"Payroll Taxes - Employer's Portion",61450]
[null,null,null,null,null,null,"Payroll Taxes - Employer's Portion",61450]
[null,null,null,null,null,null,"Payroll Taxes - Employer's Portion",61450]
[null,null,null,null,null,null,"Payroll Taxes - Employer's Portion",61451]
[null,null,null,null,null,null,"Payroll Taxes - Employer's Portion",61451]
[null,null,null,null,null,null,"Payroll Taxes - Employer's Portion",61451]
[null,null,null,null,null,null,"Payroll Taxes - Employer's Portion",61452]
[null,null,null,null,null,null,"Payroll Taxes - Employer's Portion",61452]
[null,null,null,null,null,null,"Payroll Taxes - Employer's Portion",61452]
[null,null,null,null,null,null,"Payroll Taxes - Employer's Portion",61453]
[null,null,null,null,null,null,"Payroll Taxes - Employer's Portion",61453]
[null,null,null,null,null,null,"Payroll Taxes - Employer's Portion",61453]
[null,null,null,null,null,null,"Payroll Taxes - Employer's Portion",61454]
[null,null,null,null,null,null,"Payroll Taxes - Employer's Portion",61454]
[null,null,null,null,null,null,"Payroll Taxes - Employer's Portion",61454]
[null,null,null,null,null,null,"Payroll Taxes - Employer's Portion",61455]
[null,null,null,null,null,null,"Payroll Taxes - Employer's Portion",61455]
[null,null,null,null,null,null,"Payroll Taxes - Employer's Portion",61455]
[null,null,null,null,null,null,"Payroll Taxes - Employer's Portion",61456]
[null,null,null,null,null,null,"Payroll Taxes - Employer's Portion",61456]
[null,null,null,null,null,null,"Payroll Taxes - Employer's Portion",61456]
[null,null,null,null,null,null,"Payroll Taxes - Employer's Portion",61457]
[null,null,null,null,null,null,"Payroll Taxes - Employer's Portion",61457]
[null,null,null,null,null,null,"Payroll Taxes - Employer's Portion",61457]
[null,null,null,null,null,null,"Payroll Taxes - Employer's Portion",61458]
[null,null,null,null,null,null,"Payroll Taxes - Employer's Portion",61458]
[null,null,null,null,null,null,"Payroll Taxes - Employer's Portion",61458]
[null,null,null,null,null,null,"Payroll Taxes - Employer's Portion",61459]
[null,null,null,null,null,null,"Payroll Taxes - Employer's Portion",61459]
[null,null,null,null,null,null,"Payroll Taxes - Employer's Portion",61459]
[null,null,null,null,null,null,"Payroll Taxes - Employer's Portion",61460]
[null,null,null,null,null,null,"Payroll Taxes - Employer's Portion",61460]
[null,null,null,null,null,null,"Payroll Taxes - Employer's Portion",61460]
[null,null,null,null,null,null,"Payroll Taxes - Employer's Portion",61461]
[null,null,null,null,null,null,"Payroll Taxes - Employer's Portion",61461]
[null,null,null,null,null,null,"Payroll Taxes - Employer's Portion",61461]
[null,null,null,null,null,null,"Payroll Taxes - Employer's Portion",61462]
[null,null,null,null,null,null,"Payroll Taxes - Employer's Portion",61462]
[null,null,null,null,null,null,"Payroll Taxes - Employer's Portion",61462]
[null,null,null,null,null,null,"Payroll Taxes - Employer's Portion",61463]
[null,null,null,null,null,null,"Payroll Taxes - Employer's Portion",61463]
[null,null,null,null,null,null,"Payroll Taxes - Employer's Portion",61463]
[null,null,null,null,null,null,"Payroll Taxes - Employer's Portion",61464]
[null,null,null,null,null,null,"Payroll Taxes - Employer's Portion",61464]
[null,null,null,null,null,null,"Payroll Taxes - Employer's Portion",61464]
[null,null,null,null,null,null,"Payroll Taxes - Employer's Portion",61465]
[null,null,null,null,null,null,"Payroll Taxes - Employer's Portion",61465]
[null,null,null,null,null,null,"Payroll Taxes - Employer's Portion",61465]
[null,null,null,null,null,null,"Payroll Taxes - Employer's Portion",61466]
[null,null,null,null,null,null,"Payroll Taxes - Employer's Portion",61466]
[null,null,null,null,null,null,"Payroll Taxes - Employer's Portion",61466]
[null,null,null,null,null,null,"Payroll Taxes - Employer's Portion",61467]
[null,null,null,null,null,null,"Payroll Taxes - Employer's Portion",61467]
[null,null,null,null,null,null,"Payroll Taxes - Employer's Portion",61467]
[null,null,null,null,null,null,"Payroll Taxes - Employer's Portion",61468]
[null,null,null,null,null,null,"Payroll Taxes - Employer's Portion",61468]
[null,null,null,null,null,null,"Payroll Taxes - Employer's Portion",61468]
[null,null,null,null,null,null,"Payroll Taxes - Employer's Portion",61469]
[null,null,null,null,null,null,"Payroll Taxes - Employer's Portion",61469]
[null,null,null,null,null,null,"Payroll Taxes - Employer's Portion",61469]
[null,null,null,null,null,null,"Payroll Taxes - Employer's Portion",61470]
[null,null,null,null,null,null,"Payroll Taxes - Employer's Portion",61470]
[null,null,null,null,null,null,"Payroll Taxes - Employer's Portion",61470]
[null,null,null,null,null,null,"Payroll Taxes - Employer's Portion",61471]
[null,null,null,null,null,null,"Payroll Taxes - Employer's Portion",61471]
[null,null,null,null,null,null,"Payroll Taxes - Employer's Portion",61471]
[null,null,null,null,null,null,"Payroll Taxes - Employer's Portion",61472]
[null,null,null,null,null,null,"Payroll Taxes - Employer's Portion",61472]
[null,null,null,null,null,null,"Payroll Taxes - Employer's Portion",61472]
[null,null,null,null,null,null,"Payroll Taxes - Employer's Portion",61473]
[null,null,null,null,null,null,"Payroll Taxes - Employer's Portion",61473]
[null,null,null,null,null,null,"Payroll Taxes - Employer's Portion",61473]
[null,null,null,null,null,null,"Payroll Taxes - Employer's Portion",61474]
[null,null,null,null,null,null,"Payroll Taxes - Employer's Portion",61474]
[null,null,null,null,null,null,"Payroll Taxes - Employer's Portion",61474]
[null,null,null,null,null,null,"Payroll Taxes - Employer's Portion",61475]
[null,null,null,null,null,null,"Payroll Taxes - Employer's Portion",61475]
[null,null,null,null,null,null,"Payroll Taxes - Employer's Portion",61475]
[null,null,null,null,null,null,"Payroll Taxes - Employer's Portion",61476]
[null,null,null,null,null,null,"Payroll Taxes - Employer's Portion",61476]
[null,null,null,null,null,null,"Payroll Taxes - Employer's Portion",61476]
[null,null,null,null,null,null,"Payroll Taxes - Employer's Portion",61477]
[null,null,null,null,null,null,"Payroll Taxes - Employer's Portion",61477]
[null,null,null,null,null,null,"Payroll Taxes - Employer's Portion",61477]
[null,null,null,null,null,null,"Payroll Taxes - Employer's Portion",61478]
[null,null,null,null,null,null,"Payroll Taxes - Employer's Portion",61478]
[null,null,null,null,null,null,"Payroll Taxes - Employer's Portion",61478]
[null,null,null,null,null,null,"Payroll Taxes - Employer's Portion",61479]
[null,null,null,null,null,null,"Payroll Taxes - Employer's Portion",61479]
[null,null,null,null,null,null,"Payroll Taxes - Employer's Portion",61479]
[null,null,null,null,null,null,"Payroll Taxes - Employer's Portion",61480]
[null,null,null,null,null,null,"Payroll Taxes - Employer's Portion",61480]
[null,null,null,null,null,null,"Payroll Taxes - Employer's Portion",61480]
[null,null,null,null,null,null,"Payroll Taxes - Employer's Portion",61481]
[null,null,null,null,null,null,"Payroll Taxes - Employer's Portion",61481]
[null,null,null,null,null,null,"Payroll Taxes - Employer's Portion",61481]
[null,null,null,null,null,null,"Payroll Taxes - Employer's Portion",61482]
[null,null,null,null,null,null,"Payroll Taxes - Employer's Portion",61482]
[null,null,null,null,null,null,"Payroll Taxes - Employer's Portion",61482]
[null,null,null,null,null,null,"Payroll Taxes - Employer's Portion",61483]
[null,null,null,null,null,null,"Payroll Taxes - Employer's Portion",61483]
[null,null,null,null,null,null,"Payroll Taxes - Employer's Portion",61483]
[null,null,null,null,null,null,"Payroll Taxes - Employer's Portion",61484]
[null,null,null,null,null,null,"Payroll Taxes - Employer's Portion",61484]
[null,null,null,null,null,null,"Payroll Taxes - Employer's Portion",61484]
[null,null,null,null,null,null,"Payroll Taxes - Employer's Portion",61485]
[null,null,null,null,null,null,"Payroll Taxes - Employer's Portion",61485]
[null,null,null,null,null,null,"Payroll Taxes - Employer's Portion",61485]
[null,null,null,null,null,null,"Payroll Taxes - Employer's Portion",61486]
[null,null,null,null,null,null,"Payroll Taxes - Employer's Portion",61486]
[null,null,null,null,null,null,"Payroll Taxes - Employer's Portion",61486]
[null,null,null,null,null,null,"Payroll Taxes - Employer's Portion",61487]
[null,null,null,null,null,null,"Payroll Taxes - Employer's Portion",61487]
[null,null,null,null,null,null,"Payroll Taxes - Employer's Portion",61487]
[null,null,null,null,null,null,"Payroll Taxes - Employer's Portion",61488]
[null,null,null,null,null,null,"Payroll Taxes - Employer's Portion",61488]
[null,null,null,null,null,null,"Payroll Taxes - Employer's Portion",61488]
[null,null,null,null,null,null,"Payroll Taxes - Employer's Portion",61489]
[null,null,null,null,null,null,"Payroll Taxes - Employer's Portion",61489]
[null,null,null,null,null,null,"Payroll Taxes - Employer's Portion",61489]
[null,null,null,null,null,null,"Payroll Taxes - Employer's Portion",61490]
[null,null,null,null,null,null,"Payroll Taxes - Employer's Portion",61490]
[null,null,null,null,null,null,"Payroll Taxes - Employer's Portion",61490]
[null,null,null,null,null,null,"Payroll Taxes - Employer's Portion",61491]
[null,null,null,null,null,null,"Payroll Taxes - Employer's Portion",61491]
[null,null,null,null,null,null,"Payroll Taxes - Employer's Portion",61491]
[null,null,null,null,null,null,"Payroll Taxes - Employer's Portion",61492]
[null,null,null,null,null,null,"Payroll Taxes - Employer's Portion",61492]
[null,null,null,null,null,null,"Payroll Taxes - Employer's Portion",61492]
[null,null,null,null,null,null,"Payroll Taxes - Employer's Portion",61493]
[null,null,null,null,null,null,"Payroll Taxes - Employer's Portion",61493]
[null,null,null,null,null,null,"Payroll Taxes - Employer's Portion",61493]
[null,null,null,null,null,null,"Payroll Taxes - Employer's Portion",61494]
[null,null,null,null,null,null,"Payroll Taxes - Employer's Portion",61494]
[null,null,null,null,null,null,"Payroll Taxes - Employer's Portion",61494]
[null,null,null,null,null,null,"Payroll Taxes - Employer's Portion",61495]
[null,null,null,null,null,null,"Payroll Taxes - Employer's Portion",61495]
[null,null,null,null,null,null,"Payroll Taxes - Employer's Portion",61495]
[null,null,null,null,null,null,"Payroll Taxes - Employer's Portion",61496]
[null,null,null,null,null,null,"Payroll Taxes - Employer's Portion",61496]
[null,null,null,null,null,null,"Payroll Taxes - Employer's Portion",61496]
[null,null,null,null,null,null,"Payroll Taxes - Employer's Portion",61497]
[null,null,null,null,null,null,"Payroll Taxes - Employer's Portion",61497]
[null,null,null,null,null,null,"Payroll Taxes - Employer's Portion",61497]
[null,null,null,null,null,null,"Payroll Taxes - Employer's Portion",61498]
[null,null,null,null,null,null,"Payroll Taxes - Employer's Portion",61498]
[null,null,null,null,null,null,"Payroll Taxes - Employer's Portion",61498]
[null,null,null,null,null,null,"Payroll Taxes - Employer's Portion",61499]
[null,null,null,null,null,null,"Payroll Taxes - Employer's Portion",61499]
[null,null,null,null,null,null,"Payroll Taxes - Employer's Portion",61499]
[null,null,null,null,null,null,"Required Employee Benefits ",61500]
[null,null,null,null,null,null,"Required Employee Benefits ",61500]
[null,null,null,null,null,null,"Required Employee Benefits ",61500]
[null,null,null,null,null,null,"Required Employee Benefits ",61501]
[null,null,null,null,null,null,"Required Employee Benefits ",61501]
[null,null,null,null,null,null,"Required Employee Benefits ",61501]
[null,null,null,null,null,null,"Required Employee Benefits ",61502]
[null,null,null,null,null,null,"Required Employee Benefits ",61502]
[null,null,null,null,null,null,"Required Employee Benefits ",61502]
[null,null,null,null,null,null,"Required Employee Benefits ",61503]
[null,null,null,null,null,null,"Required Employee Benefits ",61503]
[null,null,null,null,null,null,"Required Employee Benefits ",61503]
[null,null,null,null,null,null,"Required Employee Benefits ",61504]
[null,null,null,null,null,null,"Required Employee Benefits ",61504]
[null,null,null,null,null,null,"Required Employee Benefits ",61504]
[null,null,null,null,null,null,"Required Employee Benefits ",61505]
[null,null,null,null,null,null,"Required Employee Benefits ",61505]
[null,null,null,null,null,null,"Required Employee Benefits ",61505]
[null,null,null,null,null,null,"Required Employee Benefits ",61506]
[null,null,null,null,null,null,"Required Employee Benefits ",61506]
[null,null,null,null,null,null,"Required Employee Benefits ",61506]
[null,null,null,null,null,null,"Required Employee Benefits ",61507]
[null,null,null,null,null,null,"Required Employee Benefits ",61507]
[null,null,null,null,null,null,"Required Employee Benefits ",61507]
[null,null,null,null,null,null,"Required Employee Benefits ",61508]
[null,null,null,null,null,null,"Required Employee Benefits ",61508]
[null,null,null,null,null,null,"Required Employee Benefits ",61508]
[null,null,null,null,null,null,"Required Employee Benefits ",61509]
[null,null,null,null,null,null,"Required Employee Benefits ",61509]
[null,null,null,null,null,null,"Required Employee Benefits ",61509]
[null,null,null,null,null,null,"Required Employee Benefits ",61510]
[null,null,null,null,null,null,"Required Employee Benefits ",61510]
[null,null,null,null,null,null,"Required Employee Benefits ",61510]
[null,null,null,null,null,null,"Required Employee Benefits ",61511]
[null,null,null,null,null,null,"Required Employee Benefits ",61511]
[null,null,null,null,null,null,"Required Employee Benefits ",61511]
[null,null,null,null,null,null,"Required Employee Benefits ",61512]
[null,null,null,null,null,null,"Required Employee Benefits ",61512]
[null,null,null,null,null,null,"Required Employee Benefits ",61512]
[null,null,null,null,null,null,"Required Employee Benefits ",61513]
[null,null,null,null,null,null,"Required Employee Benefits ",61513]
[null,null,null,null,null,null,"Required Employee Benefits ",61513]
[null,null,null,null,null,null,"Required Employee Benefits ",61514]
[null,null,null,null,null,null,"Required Employee Benefits ",61514]
[null,null,null,null,null,null,"Required Employee Benefits ",61514]
[null,null,null,null,null,null,"Required Employee Benefits ",61515]
[null,null,null,null,null,null,"Required Employee Benefits ",61515]
[null,null,null,null,null,null,"Required Employee Benefits ",61515]
[null,null,null,null,null,null,"Required Employee Benefits ",61516]
[null,null,null,null,null,null,"Required Employee Benefits ",61516]
[null,null,null,null,null,null,"Required Employee Benefits ",61516]
[null,null,null,null,null,null,"Required Employee Benefits ",61517]
[null,null,null,null,null,null,"Required Employee Benefits ",61517]
[null,null,null,null,null,null,"Required Employee Benefits ",61517]
[null,null,null,null,null,null,"Required Employee Benefits ",61518]
[null,null,null,null,null,null,"Required Employee Benefits ",61518]
[null,null,null,null,null,null,"Required Employee Benefits ",61518]
[null,null,null,null,null,null,"Required Employee Benefits ",61519]
[null,null,null,null,null,null,"Required Employee Benefits ",61519]
[null,null,null,null,null,null,"Required Employee Benefits ",61519]
[null,null,null,null,null,null,"Required Employee Benefits ",61520]
[null,null,null,null,null,null,"Required Employee Benefits ",61520]
[null,null,null,null,null,null,"Required Employee Benefits ",61520]
[null,null,null,null,null,null,"Required Employee Benefits ",61521]
[null,null,null,null,null,null,"Required Employee Benefits ",61521]
[null,null,null,null,null,null,"Required Employee Benefits ",61521]
[null,null,null,null,null,null,"Required Employee Benefits ",61522]
[null,null,null,null,null,null,"Required Employee Benefits ",61522]
[null,null,null,null,null,null,"Required Employee Benefits ",61522]
[null,null,null,null,null,null,"Required Employee Benefits ",61523]
[null,null,null,null,null,null,"Required Employee Benefits ",61523]
[null,null,null,null,null,null,"Required Employee Benefits ",61523]
[null,null,null,null,null,null,"Required Employee Benefits ",61524]
[null,null,null,null,null,null,"Required Employee Benefits ",61524]
[null,null,null,null,null,null,"Required Employee Benefits ",61524]
[null,null,null,null,null,null,"Required Employee Benefits ",61525]
[null,null,null,null,null,null,"Required Employee Benefits ",61525]
[null,null,null,null,null,null,"Required Employee Benefits ",61525]
[null,null,null,null,null,null,"Required Employee Benefits ",61526]
[null,null,null,null,null,null,"Required Employee Benefits ",61526]
[null,null,null,null,null,null,"Required Employee Benefits ",61526]
[null,null,null,null,null,null,"Required Employee Benefits ",61527]
[null,null,null,null,null,null,"Required Employee Benefits ",61527]
[null,null,null,null,null,null,"Required Employee Benefits ",61527]
[null,null,null,null,null,null,"Required Employee Benefits ",61528]
[null,null,null,null,null,null,"Required Employee Benefits ",61528]
[null,null,null,null,null,null,"Required Employee Benefits ",61528]
[null,null,null,null,null,null,"Required Employee Benefits ",61529]
[null,null,null,null,null,null,"Required Employee Benefits ",61529]
[null,null,null,null,null,null,"Required Employee Benefits ",61529]
[null,null,null,null,null,null,"Required Employee Benefits ",61530]
[null,null,null,null,null,null,"Required Employee Benefits ",61530]
[null,null,null,null,null,null,"Required Employee Benefits ",61530]
[null,null,null,null,null,null,"Required Employee Benefits ",61531]
[null,null,null,null,null,null,"Required Employee Benefits ",61531]
[null,null,null,null,null,null,"Required Employee Benefits ",61531]
[null,null,null,null,null,null,"Required Employee Benefits ",61532]
[null,null,null,null,null,null,"Required Employee Benefits ",61532]
[null,null,null,null,null,null,"Required Employee Benefits ",61532]
[null,null,null,null,null,null,"Required Employee Benefits ",61533]
[null,null,null,null,null,null,"Required Employee Benefits ",61533]
[null,null,null,null,null,null,"Required Employee Benefits ",61533]
[null,null,null,null,null,null,"Required Employee Benefits ",61534]
[null,null,null,null,null,null,"Required Employee Benefits ",61534]
[null,null,null,null,null,null,"Required Employee Benefits ",61534]
[null,null,null,null,null,null,"Required Employee Benefits ",61535]
[null,null,null,null,null,null,"Required Employee Benefits ",61535]
[null,null,null,null,null,null,"Required Employee Benefits ",61535]
[null,null,null,null,null,null,"Required Employee Benefits ",61536]
[null,null,null,null,null,null,"Required Employee Benefits ",61536]
[null,null,null,null,null,null,"Required Employee Benefits ",61536]
[null,null,null,null,null,null,"Required Employee Benefits ",61537]
[null,null,null,null,null,null,"Required Employee Benefits ",61537]
[null,null,null,null,null,null,"Required Employee Benefits ",61537]
[null,null,null,null,null,null,"Required Employee Benefits ",61538]
[null,null,null,null,null,null,"Required Employee Benefits ",61538]
[null,null,null,null,null,null,"Required Employee Benefits ",61538]
[null,null,null,null,null,null,"Required Employee Benefits ",61539]
[null,null,null,null,null,null,"Required Employee Benefits ",61539]
[null,null,null,null,null,null,"Required Employee Benefits ",61539]
[null,null,null,null,null,null,"Required Employee Benefits ",61540]
[null,null,null,null,null,null,"Required Employee Benefits ",61540]
[null,null,null,null,null,null,"Required Employee Benefits ",61540]
[null,null,null,null,null,null,"Required Employee Benefits ",61541]
[null,null,null,null,null,null,"Required Employee Benefits ",61541]
[null,null,null,null,null,null,"Required Employee Benefits ",61541]
[null,null,null,null,null,null,"Required Employee Benefits ",61542]
[null,null,null,null,null,null,"Required Employee Benefits ",61542]
[null,null,null,null,null,null,"Required Employee Benefits ",61542]
[null,null,null,null,null,null,"Required Employee Benefits ",61543]
[null,null,null,null,null,null,"Required Employee Benefits ",61543]
[null,null,null,null,null,null,"Required Employee Benefits ",61543]
[null,null,null,null,null,null,"Required Employee Benefits ",61544]
[null,null,null,null,null,null,"Required Employee Benefits ",61544]
[null,null,null,null,null,null,"Required Employee Benefits ",61544]
[null,null,null,null,null,null,"Required Employee Benefits ",61545]
[null,null,null,null,null,null,"Required Employee Benefits ",61545]
[null,null,null,null,null,null,"Required Employee Benefits ",61545]
[null,null,null,null,null,null,"Required Employee Benefits ",61546]
[null,null,null,null,null,null,"Required Employee Benefits ",61546]
[null,null,null,null,null,null,"Required Employee Benefits ",61546]
[null,null,null,null,null,null,"Required Employee Benefits ",61547]
[null,null,null,null,null,null,"Required Employee Benefits ",61547]
[null,null,null,null,null,null,"Required Employee Benefits ",61547]
[null,null,null,null,null,null,"Required Employee Benefits ",61548]
[null,null,null,null,null,null,"Required Employee Benefits ",61548]
[null,null,null,null,null,null,"Required Employee Benefits ",61548]
[null,null,null,null,null,null,"Required Employee Benefits ",61549]
[null,null,null,null,null,null,"Required Employee Benefits ",61549]
[null,null,null,null,null,null,"Required Employee Benefits ",61549]
[null,null,null,null,null,null,"Required Employee Benefits ",61550]
[null,null,null,null,null,null,"Required Employee Benefits ",61550]
[null,null,null,null,null,null,"Required Employee Benefits ",61550]
[null,null,null,null,null,null,"Required Employee Benefits ",61551]
[null,null,null,null,null,null,"Required Employee Benefits ",61551]
[null,null,null,null,null,null,"Required Employee Benefits ",61551]
[null,null,null,null,null,null,"Required Employee Benefits ",61552]
[null,null,null,null,null,null,"Required Employee Benefits ",61552]
[null,null,null,null,null,null,"Required Employee Benefits ",61552]
[null,null,null,null,null,null,"Required Employee Benefits ",61553]
[null,null,null,null,null,null,"Required Employee Benefits ",61553]
[null,null,null,null,null,null,"Required Employee Benefits ",61553]
[null,null,null,null,null,null,"Required Employee Benefits ",61554]
[null,null,null,null,null,null,"Required Employee Benefits ",61554]
[null,null,null,null,null,null,"Required Employee Benefits ",61554]
[null,null,null,null,null,null,"Required Employee Benefits ",61555]
[null,null,null,null,null,null,"Required Employee Benefits ",61555]
[null,null,null,null,null,null,"Required Employee Benefits ",61555]
[null,null,null,null,null,null,"Required Employee Benefits ",61556]
[null,null,null,null,null,null,"Required Employee Benefits ",61556]
[null,null,null,null,null,null,"Required Employee Benefits ",61556]
[null,null,null,null,null,null,"Required Employee Benefits ",61557]
[null,null,null,null,null,null,"Required Employee Benefits ",61557]
[null,null,null,null,null,null,"Required Employee Benefits ",61557]
[null,null,null,null,null,null,"Required Employee Benefits ",61558]
[null,null,null,null,null,null,"Required Employee Benefits ",61558]
[null,null,null,null,null,null,"Required Employee Benefits ",61558]
[null,null,null,null,null,null,"Required Employee Benefits ",61559]
[null,null,null,null,null,null,"Required Employee Benefits ",61559]
[null,null,null,null,null,null,"Required Employee Benefits ",61559]
[null,null,null,null,null,null,"Required Employee Benefits ",61560]
[null,null,null,null,null,null,"Required Employee Benefits ",61560]
[null,null,null,null,null,null,"Required Employee Benefits ",61560]
[null,null,null,null,null,null,"Required Employee Benefits ",61561]
[null,null,null,null,null,null,"Required Employee Benefits ",61561]
[null,null,null,null,null,null,"Required Employee Benefits ",61561]
[null,null,null,null,null,null,"Required Employee Benefits ",61562]
[null,null,null,null,null,null,"Required Employee Benefits ",61562]
[null,null,null,null,null,null,"Required Employee Benefits ",61562]
[null,null,null,null,null,null,"Required Employee Benefits ",61563]
[null,null,null,null,null,null,"Required Employee Benefits ",61563]
[null,null,null,null,null,null,"Required Employee Benefits ",61563]
[null,null,null,null,null,null,"Required Employee Benefits ",61564]
[null,null,null,null,null,null,"Required Employee Benefits ",61564]
[null,null,null,null,null,null,"Required Employee Benefits ",61564]
[null,null,null,null,null,null,"Required Employee Benefits ",61565]
[null,null,null,null,null,null,"Required Employee Benefits ",61565]
[null,null,null,null,null,null,"Required Employee Benefits ",61565]
[null,null,null,null,null,null,"Required Employee Benefits ",61566]
[null,null,null,null,null,null,"Required Employee Benefits ",61566]
[null,null,null,null,null,null,"Required Employee Benefits ",61566]
[null,null,null,null,null,null,"Required Employee Benefits ",61567]
[null,null,null,null,null,null,"Required Employee Benefits ",61567]
[null,null,null,null,null,null,"Required Employee Benefits ",61567]
[null,null,null,null,null,null,"Required Employee Benefits ",61568]
[null,null,null,null,null,null,"Required Employee Benefits ",61568]
[null,null,null,null,null,null,"Required Employee Benefits ",61568]
[null,null,null,null,null,null,"Required Employee Benefits ",61569]
[null,null,null,null,null,null,"Required Employee Benefits ",61569]
[null,null,null,null,null,null,"Required Employee Benefits ",61569]
[null,null,null,null,null,null,"Required Employee Benefits ",61570]
[null,null,null,null,null,null,"Required Employee Benefits ",61570]
[null,null,null,null,null,null,"Required Employee Benefits ",61570]
[null,null,null,null,null,null,"Required Employee Benefits ",61571]
[null,null,null,null,null,null,"Required Employee Benefits ",61571]
[null,null,null,null,null,null,"Required Employee Benefits ",61571]
[null,null,null,null,null,null,"Required Employee Benefits ",61572]
[null,null,null,null,null,null,"Required Employee Benefits ",61572]
[null,null,null,null,null,null,"Required Employee Benefits ",61572]
[null,null,null,null,null,null,"Required Employee Benefits ",61573]
[null,null,null,null,null,null,"Required Employee Benefits ",61573]
[null,null,null,null,null,null,"Required Employee Benefits ",61573]
[null,null,null,null,null,null,"Required Employee Benefits ",61574]
[null,null,null,null,null,null,"Required Employee Benefits ",61574]
[null,null,null,null,null,null,"Required Employee Benefits ",61574]
[null,null,null,null,null,null,"Required Employee Benefits ",61575]
[null,null,null,null,null,null,"Required Employee Benefits ",61575]
[null,null,null,null,null,null,"Required Employee Benefits ",61575]
[null,null,null,null,null,null,"Required Employee Benefits ",61576]
[null,null,null,null,null,null,"Required Employee Benefits ",61576]
[null,null,null,null,null,null,"Required Employee Benefits ",61576]
[null,null,null,null,null,null,"Required Employee Benefits ",61577]
[null,null,null,null,null,null,"Required Employee Benefits ",61577]
[null,null,null,null,null,null,"Required Employee Benefits ",61577]
[null,null,null,null,null,null,"Required Employee Benefits ",61578]
[null,null,null,null,null,null,"Required Employee Benefits ",61578]
[null,null,null,null,null,null,"Required Employee Benefits ",61578]
[null,null,null,null,null,null,"Required Employee Benefits ",61579]
[null,null,null,null,null,null,"Required Employee Benefits ",61579]
[null,null,null,null,null,null,"Required Employee Benefits ",61579]
[null,null,null,null,null,null,"Required Employee Benefits ",61580]
[null,null,null,null,null,null,"Required Employee Benefits ",61580]
[null,null,null,null,null,null,"Required Employee Benefits ",61580]
[null,null,null,null,null,null,"Required Employee Benefits ",61581]
[null,null,null,null,null,null,"Required Employee Benefits ",61581]
[null,null,null,null,null,null,"Required Employee Benefits ",61581]
[null,null,null,null,null,null,"Required Employee Benefits ",61582]
[null,null,null,null,null,null,"Required Employee Benefits ",61582]
[null,null,null,null,null,null,"Required Employee Benefits ",61582]
[null,null,null,null,null,null,"Required Employee Benefits ",61583]
[null,null,null,null,null,null,"Required Employee Benefits ",61583]
[null,null,null,null,null,null,"Required Employee Benefits ",61583]
[null,null,null,null,null,null,"Required Employee Benefits ",61584]
[null,null,null,null,null,null,"Required Employee Benefits ",61584]
[null,null,null,null,null,null,"Required Employee Benefits ",61584]
[null,null,null,null,null,null,"Required Employee Benefits ",61585]
[null,null,null,null,null,null,"Required Employee Benefits ",61585]
[null,null,null,null,null,null,"Required Employee Benefits ",61585]
[null,null,null,null,null,null,"Required Employee Benefits ",61586]
[null,null,null,null,null,null,"Required Employee Benefits ",61586]
[null,null,null,null,null,null,"Required Employee Benefits ",61586]
[null,null,null,null,null,null,"Required Employee Benefits ",61587]
[null,null,null,null,null,null,"Required Employee Benefits ",61587]
[null,null,null,null,null,null,"Required Employee Benefits ",61587]
[null,null,null,null,null,null,"Required Employee Benefits ",61588]
[null,null,null,null,null,null,"Required Employee Benefits ",61588]
[null,null,null,null,null,null,"Required Employee Benefits ",61588]
[null,null,null,null,null,null,"Required Employee Benefits ",61589]
[null,null,null,null,null,null,"Required Employee Benefits ",61589]
[null,null,null,null,null,null,"Required Employee Benefits ",61589]
[null,null,null,null,null,null,"Required Employee Benefits ",61590]
[null,null,null,null,null,null,"Required Employee Benefits ",61590]
[null,null,null,null,null,null,"Required Employee Benefits ",61590]
[null,null,null,null,null,null,"Required Employee Benefits ",61591]
[null,null,null,null,null,null,"Required Employee Benefits ",61591]
[null,null,null,null,null,null,"Required Employee Benefits ",61591]
[null,null,null,null,null,null,"Required Employee Benefits ",61592]
[null,null,null,null,null,null,"Required Employee Benefits ",61592]
[null,null,null,null,null,null,"Required Employee Benefits ",61592]
[null,null,null,null,null,null,"Required Employee Benefits ",61593]
[null,null,null,null,null,null,"Required Employee Benefits ",61593]
[null,null,null,null,null,null,"Required Employee Benefits ",61593]
[null,null,null,null,null,null,"Required Employee Benefits ",61594]
[null,null,null,null,null,null,"Required Employee Benefits ",61594]
[null,null,null,null,null,null,"Required Employee Benefits ",61594]
[null,null,null,null,null,null,"Required Employee Benefits ",61595]
[null,null,null,null,null,null,"Required Employee Benefits ",61595]
[null,null,null,null,null,null,"Required Employee Benefits ",61595]
[null,null,null,null,null,null,"Required Employee Benefits ",61596]
[null,null,null,null,null,null,"Required Employee Benefits ",61596]
[null,null,null,null,null,null,"Required Employee Benefits ",61596]
[null,null,null,null,null,null,"Required Employee Benefits ",61597]
[null,null,null,null,null,null,"Required Employee Benefits ",61597]
[null,null,null,null,null,null,"Required Employee Benefits ",61597]
[null,null,null,null,null,null,"Required Employee Benefits ",61598]
[null,null,null,null,null,null,"Required Employee Benefits ",61598]
[null,null,null,null,null,null,"Required Employee Benefits ",61598]
[null,null,null,null,null,null,"Required Employee Benefits ",61599]
[null,null,null,null,null,null,"Required Employee Benefits ",61599]
[null,null,null,null,null,null,"Required Employee Benefits ",61599]
[null,null,null,null,null,null,"Optional Employee Benefits",61600]
[null,null,null,null,null,null,"Optional Employee Benefits",61600]
[null,null,null,null,null,null,"Optional Employee Benefits",61600]
[null,null,null,null,null,null,"Optional Employee Benefits",61601]
[null,null,null,null,null,null,"Optional Employee Benefits",61601]
[null,null,null,null,null,null,"Optional Employee Benefits",61601]
[null,null,null,null,null,null,"Optional Employee Benefits",61602]
[null,null,null,null,null,null,"Optional Employee Benefits",61602]
[null,null,null,null,null,null,"Optional Employee Benefits",61602]
[null,null,null,null,null,null,"Optional Employee Benefits",61603]
[null,null,null,null,null,null,"Optional Employee Benefits",61603]
[null,null,null,null,null,null,"Optional Employee Benefits",61603]
[null,null,null,null,null,null,"Optional Employee Benefits",61604]
[null,null,null,null,null,null,"Optional Employee Benefits",61604]
[null,null,null,null,null,null,"Optional Employee Benefits",61604]
[null,null,null,null,null,null,"Optional Employee Benefits",61605]
[null,null,null,null,null,null,"Optional Employee Benefits",61605]
[null,null,null,null,null,null,"Optional Employee Benefits",61605]
[null,null,null,null,null,null,"Optional Employee Benefits",61606]
[null,null,null,null,null,null,"Optional Employee Benefits",61606]
[null,null,null,null,null,null,"Optional Employee Benefits",61606]
[null,null,null,null,null,null,"Optional Employee Benefits",61607]
[null,null,null,null,null,null,"Optional Employee Benefits",61607]
[null,null,null,null,null,null,"Optional Employee Benefits",61607]
[null,null,null,null,null,null,"Optional Employee Benefits",61608]
[null,null,null,null,null,null,"Optional Employee Benefits",61608]
[null,null,null,null,null,null,"Optional Employee Benefits",61608]
[null,null,null,null,null,null,"Optional Employee Benefits",61609]
[null,null,null,null,null,null,"Optional Employee Benefits",61609]
[null,null,null,null,null,null,"Optional Employee Benefits",61609]
[null,null,null,null,null,null,"Optional Employee Benefits",61610]
[null,null,null,null,null,null,"Optional Employee Benefits",61610]
[null,null,null,null,null,null,"Optional Employee Benefits",61610]
[null,null,null,null,null,null,"Optional Employee Benefits",61611]
[null,null,null,null,null,null,"Optional Employee Benefits",61611]
[null,null,null,null,null,null,"Optional Employee Benefits",61611]
[null,null,null,null,null,null,"Optional Employee Benefits",61612]
[null,null,null,null,null,null,"Optional Employee Benefits",61612]
[null,null,null,null,null,null,"Optional Employee Benefits",61612]
[null,null,null,null,null,null,"Optional Employee Benefits",61613]
[null,null,null,null,null,null,"Optional Employee Benefits",61613]
[null,null,null,null,null,null,"Optional Employee Benefits",61613]
[null,null,null,null,null,null,"Optional Employee Benefits",61614]
[null,null,null,null,null,null,"Optional Employee Benefits",61614]
[null,null,null,null,null,null,"Optional Employee Benefits",61614]
[null,null,null,null,null,null,"Optional Employee Benefits",61615]
[null,null,null,null,null,null,"Optional Employee Benefits",61615]
[null,null,null,null,null,null,"Optional Employee Benefits",61615]
[null,null,null,null,null,null,"Optional Employee Benefits",61616]
[null,null,null,null,null,null,"Optional Employee Benefits",61616]
[null,null,null,null,null,null,"Optional Employee Benefits",61616]
[null,null,null,null,null,null,"Optional Employee Benefits",61617]
[null,null,null,null,null,null,"Optional Employee Benefits",61617]
[null,null,null,null,null,null,"Optional Employee Benefits",61617]
[null,null,null,null,null,null,"Optional Employee Benefits",61618]
[null,null,null,null,null,null,"Optional Employee Benefits",61618]
[null,null,null,null,null,null,"Optional Employee Benefits",61618]
[null,null,null,null,null,null,"Optional Employee Benefits",61619]
[null,null,null,null,null,null,"Optional Employee Benefits",61619]
[null,null,null,null,null,null,"Optional Employee Benefits",61619]
[null,null,null,null,null,null,"Optional Employee Benefits",61620]
[null,null,null,null,null,null,"Optional Employee Benefits",61620]
[null,null,null,null,null,null,"Optional Employee Benefits",61620]
[null,null,null,null,null,null,"Optional Employee Benefits",61621]
[null,null,null,null,null,null,"Optional Employee Benefits",61621]
[null,null,null,null,null,null,"Optional Employee Benefits",61621]
[null,null,null,null,null,null,"Optional Employee Benefits",61622]
[null,null,null,null,null,null,"Optional Employee Benefits",61622]
[null,null,null,null,null,null,"Optional Employee Benefits",61622]
[null,null,null,null,null,null,"Optional Employee Benefits",61623]
[null,null,null,null,null,null,"Optional Employee Benefits",61623]
[null,null,null,null,null,null,"Optional Employee Benefits",61623]
[null,null,null,null,null,null,"Optional Employee Benefits",61624]
[null,null,null,null,null,null,"Optional Employee Benefits",61624]
[null,null,null,null,null,null,"Optional Employee Benefits",61624]
[null,null,null,null,null,null,"Optional Employee Benefits",61625]
[null,null,null,null,null,null,"Optional Employee Benefits",61625]
[null,null,null,null,null,null,"Optional Employee Benefits",61625]
[null,null,null,null,null,null,"Optional Employee Benefits",61626]
[null,null,null,null,null,null,"Optional Employee Benefits",61626]
[null,null,null,null,null,null,"Optional Employee Benefits",61626]
[null,null,null,null,null,null,"Optional Employee Benefits",61627]
[null,null,null,null,null,null,"Optional Employee Benefits",61627]
[null,null,null,null,null,null,"Optional Employee Benefits",61627]
[null,null,null,null,null,null,"Optional Employee Benefits",61628]
[null,null,null,null,null,null,"Optional Employee Benefits",61628]
[null,null,null,null,null,null,"Optional Employee Benefits",61628]
[null,null,null,null,null,null,"Optional Employee Benefits",61629]
[null,null,null,null,null,null,"Optional Employee Benefits",61629]
[null,null,null,null,null,null,"Optional Employee Benefits",61629]
[null,null,null,null,null,null,"Optional Employee Benefits",61630]
[null,null,null,null,null,null,"Optional Employee Benefits",61630]
[null,null,null,null,null,null,"Optional Employee Benefits",61630]
[null,null,null,null,null,null,"Optional Employee Benefits",61631]
[null,null,null,null,null,null,"Optional Employee Benefits",61631]
[null,null,null,null,null,null,"Optional Employee Benefits",61631]
[null,null,null,null,null,null,"Optional Employee Benefits",61632]
[null,null,null,null,null,null,"Optional Employee Benefits",61632]
[null,null,null,null,null,null,"Optional Employee Benefits",61632]
[null,null,null,null,null,null,"Optional Employee Benefits",61633]
[null,null,null,null,null,null,"Optional Employee Benefits",61633]
[null,null,null,null,null,null,"Optional Employee Benefits",61633]
[null,null,null,null,null,null,"Optional Employee Benefits",61634]
[null,null,null,null,null,null,"Optional Employee Benefits",61634]
[null,null,null,null,null,null,"Optional Employee Benefits",61634]
[null,null,null,null,null,null,"Optional Employee Benefits",61635]
[null,null,null,null,null,null,"Optional Employee Benefits",61635]
[null,null,null,null,null,null,"Optional Employee Benefits",61635]
[null,null,null,null,null,null,"Optional Employee Benefits",61636]
[null,null,null,null,null,null,"Optional Employee Benefits",61636]
[null,null,null,null,null,null,"Optional Employee Benefits",61636]
[null,null,null,null,null,null,"Optional Employee Benefits",61637]
[null,null,null,null,null,null,"Optional Employee Benefits",61637]
[null,null,null,null,null,null,"Optional Employee Benefits",61637]
[null,null,null,null,null,null,"Optional Employee Benefits",61638]
[null,null,null,null,null,null,"Optional Employee Benefits",61638]
[null,null,null,null,null,null,"Optional Employee Benefits",61638]
[null,null,null,null,null,null,"Optional Employee Benefits",61639]
[null,null,null,null,null,null,"Optional Employee Benefits",61639]
[null,null,null,null,null,null,"Optional Employee Benefits",61639]
[null,null,null,null,null,null,"Optional Employee Benefits",61640]
[null,null,null,null,null,null,"Optional Employee Benefits",61640]
[null,null,null,null,null,null,"Optional Employee Benefits",61640]
[null,null,null,null,null,null,"Optional Employee Benefits",61641]
[null,null,null,null,null,null,"Optional Employee Benefits",61641]
[null,null,null,null,null,null,"Optional Employee Benefits",61641]
[null,null,null,null,null,null,"Optional Employee Benefits",61642]
[null,null,null,null,null,null,"Optional Employee Benefits",61642]
[null,null,null,null,null,null,"Optional Employee Benefits",61642]
[null,null,null,null,null,null,"Optional Employee Benefits",61643]
[null,null,null,null,null,null,"Optional Employee Benefits",61643]
[null,null,null,null,null,null,"Optional Employee Benefits",61643]
[null,null,null,null,null,null,"Optional Employee Benefits",61644]
[null,null,null,null,null,null,"Optional Employee Benefits",61644]
[null,null,null,null,null,null,"Optional Employee Benefits",61644]
[null,null,null,null,null,null,"Optional Employee Benefits",61645]
[null,null,null,null,null,null,"Optional Employee Benefits",61645]
[null,null,null,null,null,null,"Optional Employee Benefits",61645]
[null,null,null,null,null,null,"Optional Employee Benefits",61646]
[null,null,null,null,null,null,"Optional Employee Benefits",61646]
[null,null,null,null,null,null,"Optional Employee Benefits",61646]
[null,null,null,null,null,null,"Optional Employee Benefits",61647]
[null,null,null,null,null,null,"Optional Employee Benefits",61647]
[null,null,null,null,null,null,"Optional Employee Benefits",61647]
[null,null,null,null,null,null,"Optional Employee Benefits",61648]
[null,null,null,null,null,null,"Optional Employee Benefits",61648]
[null,null,null,null,null,null,"Optional Employee Benefits",61648]
[null,null,null,null,null,null,"Optional Employee Benefits",61649]
[null,null,null,null,null,null,"Optional Employee Benefits",61649]
[null,null,null,null,null,null,"Optional Employee Benefits",61649]
[null,null,null,null,null,null,"Optional Employee Benefits",61650]
[null,null,null,null,null,null,"Optional Employee Benefits",61650]
[null,null,null,null,null,null,"Optional Employee Benefits",61650]
[null,null,null,null,null,null,"Optional Employee Benefits",61651]
[null,null,null,null,null,null,"Optional Employee Benefits",61651]
[null,null,null,null,null,null,"Optional Employee Benefits",61651]
[null,null,null,null,null,null,"Optional Employee Benefits",61652]
[null,null,null,null,null,null,"Optional Employee Benefits",61652]
[null,null,null,null,null,null,"Optional Employee Benefits",61652]
[null,null,null,null,null,null,"Optional Employee Benefits",61653]
[null,null,null,null,null,null,"Optional Employee Benefits",61653]
[null,null,null,null,null,null,"Optional Employee Benefits",61653]
[null,null,null,null,null,null,"Optional Employee Benefits",61654]
[null,null,null,null,null,null,"Optional Employee Benefits",61654]
[null,null,null,null,null,null,"Optional Employee Benefits",61654]
[null,null,null,null,null,null,"Optional Employee Benefits",61655]
[null,null,null,null,null,null,"Optional Employee Benefits",61655]
[null,null,null,null,null,null,"Optional Employee Benefits",61655]
[null,null,null,null,null,null,"Optional Employee Benefits",61656]
[null,null,null,null,null,null,"Optional Employee Benefits",61656]
[null,null,null,null,null,null,"Optional Employee Benefits",61656]
[null,null,null,null,null,null,"Optional Employee Benefits",61657]
[null,null,null,null,null,null,"Optional Employee Benefits",61657]
[null,null,null,null,null,null,"Optional Employee Benefits",61657]
[null,null,null,null,null,null,"Optional Employee Benefits",61658]
[null,null,null,null,null,null,"Optional Employee Benefits",61658]
[null,null,null,null,null,null,"Optional Employee Benefits",61658]
[null,null,null,null,null,null,"Optional Employee Benefits",61659]
[null,null,null,null,null,null,"Optional Employee Benefits",61659]
[null,null,null,null,null,null,"Optional Employee Benefits",61659]
[null,null,null,null,null,null,"Optional Employee Benefits",61660]
[null,null,null,null,null,null,"Optional Employee Benefits",61660]
[null,null,null,null,null,null,"Optional Employee Benefits",61660]
[null,null,null,null,null,null,"Optional Employee Benefits",61661]
[null,null,null,null,null,null,"Optional Employee Benefits",61661]
[null,null,null,null,null,null,"Optional Employee Benefits",61661]
[null,null,null,null,null,null,"Optional Employee Benefits",61662]
[null,null,null,null,null,null,"Optional Employee Benefits",61662]
[null,null,null,null,null,null,"Optional Employee Benefits",61662]
[null,null,null,null,null,null,"Optional Employee Benefits",61663]
[null,null,null,null,null,null,"Optional Employee Benefits",61663]
[null,null,null,null,null,null,"Optional Employee Benefits",61663]
[null,null,null,null,null,null,"Optional Employee Benefits",61664]
[null,null,null,null,null,null,"Optional Employee Benefits",61664]
[null,null,null,null,null,null,"Optional Employee Benefits",61664]
[null,null,null,null,null,null,"Optional Employee Benefits",61665]
[null,null,null,null,null,null,"Optional Employee Benefits",61665]
[null,null,null,null,null,null,"Optional Employee Benefits",61665]
[null,null,null,null,null,null,"Optional Employee Benefits",61666]
[null,null,null,null,null,null,"Optional Employee Benefits",61666]
[null,null,null,null,null,null,"Optional Employee Benefits",61666]
[null,null,null,null,null,null,"Optional Employee Benefits",61667]
[null,null,null,null,null,null,"Optional Employee Benefits",61667]
[null,null,null,null,null,null,"Optional Employee Benefits",61667]
[null,null,null,null,null,null,"Optional Employee Benefits",61668]
[null,null,null,null,null,null,"Optional Employee Benefits",61668]
[null,null,null,null,null,null,"Optional Employee Benefits",61668]
[null,null,null,null,null,null,"Optional Employee Benefits",61669]
[null,null,null,null,null,null,"Optional Employee Benefits",61669]
[null,null,null,null,null,null,"Optional Employee Benefits",61669]
[null,null,null,null,null,null,"Optional Employee Benefits",61670]
[null,null,null,null,null,null,"Optional Employee Benefits",61670]
[null,null,null,null,null,null,"Optional Employee Benefits",61670]
[null,null,null,null,null,null,"Optional Employee Benefits",61671]
[null,null,null,null,null,null,"Optional Employee Benefits",61671]
[null,null,null,null,null,null,"Optional Employee Benefits",61671]
[null,null,null,null,null,null,"Optional Employee Benefits",61672]
[null,null,null,null,null,null,"Optional Employee Benefits",61672]
[null,null,null,null,null,null,"Optional Employee Benefits",61672]
[null,null,null,null,null,null,"Optional Employee Benefits",61673]
[null,null,null,null,null,null,"Optional Employee Benefits",61673]
[null,null,null,null,null,null,"Optional Employee Benefits",61673]
[null,null,null,null,null,null,"Optional Employee Benefits",61674]
[null,null,null,null,null,null,"Optional Employee Benefits",61674]
[null,null,null,null,null,null,"Optional Employee Benefits",61674]
[null,null,null,null,null,null,"Optional Employee Benefits",61675]
[null,null,null,null,null,null,"Optional Employee Benefits",61675]
[null,null,null,null,null,null,"Optional Employee Benefits",61675]
[null,null,null,null,null,null,"Optional Employee Benefits",61676]
[null,null,null,null,null,null,"Optional Employee Benefits",61676]
[null,null,null,null,null,null,"Optional Employee Benefits",61676]
[null,null,null,null,null,null,"Optional Employee Benefits",61677]
[null,null,null,null,null,null,"Optional Employee Benefits",61677]
[null,null,null,null,null,null,"Optional Employee Benefits",61677]
[null,null,null,null,null,null,"Optional Employee Benefits",61678]
[null,null,null,null,null,null,"Optional Employee Benefits",61678]
[null,null,null,null,null,null,"Optional Employee Benefits",61678]
[null,null,null,null,null,null,"Optional Employee Benefits",61679]
[null,null,null,null,null,null,"Optional Employee Benefits",61679]
[null,null,null,null,null,null,"Optional Employee Benefits",61679]
[null,null,null,null,null,null,"Optional Employee Benefits",61680]
[null,null,null,null,null,null,"Optional Employee Benefits",61680]
[null,null,null,null,null,null,"Optional Employee Benefits",61680]
[null,null,null,null,null,null,"Optional Employee Benefits",61681]
[null,null,null,null,null,null,"Optional Employee Benefits",61681]
[null,null,null,null,null,null,"Optional Employee Benefits",61681]
[null,null,null,null,null,null,"Optional Employee Benefits",61682]
[null,null,null,null,null,null,"Optional Employee Benefits",61682]
[null,null,null,null,null,null,"Optional Employee Benefits",61682]
[null,null,null,null,null,null,"Optional Employee Benefits",61683]
[null,null,null,null,null,null,"Optional Employee Benefits",61683]
[null,null,null,null,null,null,"Optional Employee Benefits",61683]
[null,null,null,null,null,null,"Optional Employee Benefits",61684]
[null,null,null,null,null,null,"Optional Employee Benefits",61684]
[null,null,null,null,null,null,"Optional Employee Benefits",61684]
[null,null,null,null,null,null,"Optional Employee Benefits",61685]
[null,null,null,null,null,null,"Optional Employee Benefits",61685]
[null,null,null,null,null,null,"Optional Employee Benefits",61685]
[null,null,null,null,null,null,"Optional Employee Benefits",61686]
[null,null,null,null,null,null,"Optional Employee Benefits",61686]
[null,null,null,null,null,null,"Optional Employee Benefits",61686]
[null,null,null,null,null,null,"Optional Employee Benefits",61687]
[null,null,null,null,null,null,"Optional Employee Benefits",61687]
[null,null,null,null,null,null,"Optional Employee Benefits",61687]
[null,null,null,null,null,null,"Optional Employee Benefits",61688]
[null,null,null,null,null,null,"Optional Employee Benefits",61688]
[null,null,null,null,null,null,"Optional Employee Benefits",61688]
[null,null,null,null,null,null,"Optional Employee Benefits",61689]
[null,null,null,null,null,null,"Optional Employee Benefits",61689]
[null,null,null,null,null,null,"Optional Employee Benefits",61689]
[null,null,null,null,null,null,"Optional Employee Benefits",61690]
[null,null,null,null,null,null,"Optional Employee Benefits",61690]
[null,null,null,null,null,null,"Optional Employee Benefits",61690]
[null,null,null,null,null,null,"Optional Employee Benefits",61691]
[null,null,null,null,null,null,"Optional Employee Benefits",61691]
[null,null,null,null,null,null,"Optional Employee Benefits",61691]
[null,null,null,null,null,null,"Optional Employee Benefits",61692]
[null,null,null,null,null,null,"Optional Employee Benefits",61692]
[null,null,null,null,null,null,"Optional Employee Benefits",61692]
[null,null,null,null,null,null,"Optional Employee Benefits",61693]
[null,null,null,null,null,null,"Optional Employee Benefits",61693]
[null,null,null,null,null,null,"Optional Employee Benefits",61693]
[null,null,null,null,null,null,"Optional Employee Benefits",61694]
[null,null,null,null,null,null,"Optional Employee Benefits",61694]
[null,null,null,null,null,null,"Optional Employee Benefits",61694]
[null,null,null,null,null,null,"Optional Employee Benefits",61695]
[null,null,null,null,null,null,"Optional Employee Benefits",61695]
[null,null,null,null,null,null,"Optional Employee Benefits",61695]
[null,null,null,null,null,null,"Optional Employee Benefits",61696]
[null,null,null,null,null,null,"Optional Employee Benefits",61696]
[null,null,null,null,null,null,"Optional Employee Benefits",61696]
[null,null,null,null,null,null,"Optional Employee Benefits",61697]
[null,null,null,null,null,null,"Optional Employee Benefits",61697]
[null,null,null,null,null,null,"Optional Employee Benefits",61697]
[null,null,null,null,null,null,"Optional Employee Benefits",61698]
[null,null,null,null,null,null,"Optional Employee Benefits",61698]
[null,null,null,null,null,null,"Optional Employee Benefits",61698]
[null,null,null,null,null,null,"Optional Employee Benefits",61699]
[null,null,null,null,null,null,"Optional Employee Benefits",61699]
[null,null,null,null,null,null,"Optional Employee Benefits",61699]
[null,null,null,null,null,null,"Casual Labor",61700]
[null,null,null,null,null,null,"Casual Labor",61701]
[null,null,null,null,null,null,"Casual Labor",61702]
[null,null,null,null,null,null,"Casual Labor",61703]
[null,null,null,null,null,null,"Casual Labor",61704]
[null,null,null,null,null,null,"Casual Labor",61705]
[null,null,null,null,null,null,"Casual Labor",61706]
[null,null,null,null,null,null,"Casual Labor",61707]
[null,null,null,null,null,null,"Casual Labor",61708]
[null,null,null,null,null,null,"Casual Labor",61709]
[null,null,null,null,null,null,"Casual Labor",61710]
[null,null,null,null,null,null,"Casual Labor",61711]
[null,null,null,null,null,null,"Casual Labor",61712]
[null,null,null,null,null,null,"Casual Labor",61713]
[null,null,null,null,null,null,"Casual Labor",61714]
[null,null,null,null,null,null,"Casual Labor",61715]
[null,null,null,null,null,null,"Casual Labor",61716]
[null,null,null,null,null,null,"Casual Labor",61717]
[null,null,null,null,null,null,"Casual Labor",61718]
[null,null,null,null,null,null,"Casual Labor",61719]
[null,null,null,null,null,null,"Casual Labor",61720]
[null,null,null,null,null,null,"Casual Labor",61721]
[null,null,null,null,null,null,"Casual Labor",61722]
[null,null,null,null,null,null,"Casual Labor",61723]
[null,null,null,null,null,null,"Casual Labor",61724]
[null,null,null,null,null,null,"Casual Labor",61725]
[null,null,null,null,null,null,"Casual Labor",61726]
[null,null,null,null,null,null,"Casual Labor",61727]
[null,null,null,null,null,null,"Casual Labor",61728]
[null,null,null,null,null,null,"Casual Labor",61729]
[null,null,null,null,null,null,"Casual Labor",61730]
[null,null,null,null,null,null,"Casual Labor",61731]
[null,null,null,null,null,null,"Casual Labor",61732]
[null,null,null,null,null,null,"Casual Labor",61733]
[null,null,null,null,null,null,"Casual Labor",61734]
[null,null,null,null,null,null,"Casual Labor",61735]
[null,null,null,null,null,null,"Casual Labor",61736]
[null,null,null,null,null,null,"Casual Labor",61737]
[null,null,null,null,null,null,"Casual Labor",61738]
[null,null,null,null,null,null,"Casual Labor",61739]
[null,null,null,null,null,null,"Casual Labor",61740]
[null,null,null,null,null,null,"Casual Labor",61741]
[null,null,null,null,null,null,"Casual Labor",61742]
[null,null,null,null,null,null,"Casual Labor",61743]
[null,null,null,null,null,null,"Casual Labor",61744]
[null,null,null,null,null,null,"Casual Labor",61745]
[null,null,null,null,null,null,"Casual Labor",61746]
[null,null,null,null,null,null,"Casual Labor",61747]
[null,null,null,null,null,null,"Casual Labor",61748]
[null,null,null,null,null,null,"Casual Labor",61749]
[null,null,null,null,null,null,"Casual Labor",61750]
[null,null,null,null,null,null,"Casual Labor",61751]
[null,null,null,null,null,null,"Casual Labor",61752]
[null,null,null,null,null,null,"Casual Labor",61753]
[null,null,null,null,null,null,"Casual Labor",61754]
[null,null,null,null,null,null,"Casual Labor",61755]
[null,null,null,null,null,null,"Casual Labor",61756]
[null,null,null,null,null,null,"Casual Labor",61757]
[null,null,null,null,null,null,"Casual Labor",61758]
[null,null,null,null,null,null,"Casual Labor",61759]
[null,null,null,null,null,null,"Casual Labor",61760]
[null,null,null,null,null,null,"Casual Labor",61761]
[null,null,null,null,null,null,"Casual Labor",61762]
[null,null,null,null,null,null,"Casual Labor",61763]
[null,null,null,null,null,null,"Casual Labor",61764]
[null,null,null,null,null,null,"Casual Labor",61765]
[null,null,null,null,null,null,"Casual Labor",61766]
[null,null,null,null,null,null,"Casual Labor",61767]
[null,null,null,null,null,null,"Casual Labor",61768]
[null,null,null,null,null,null,"Casual Labor",61769]
[null,null,null,null,null,null,"Casual Labor",61770]
[null,null,null,null,null,null,"Casual Labor",61771]
[null,null,null,null,null,null,"Casual Labor",61772]
[null,null,null,null,null,null,"Casual Labor",61773]
[null,null,null,null,null,null,"Casual Labor",61774]
[null,null,null,null,null,null,"Casual Labor",61775]
[null,null,null,null,null,null,"Casual Labor",61776]
[null,null,null,null,null,null,"Casual Labor",61777]
[null,null,null,null,null,null,"Casual Labor",61778]
[null,null,null,null,null,null,"Casual Labor",61779]
[null,null,null,null,null,null,"Casual Labor",61780]
[null,null,null,null,null,null,"Casual Labor",61781]
[null,null,null,null,null,null,"Casual Labor",61782]
[null,null,null,null,null,null,"Casual Labor",61783]
[null,null,null,null,null,null,"Casual Labor",61784]
[null,null,null,null,null,null,"Casual Labor",61785]
[null,null,null,null,null,null,"Casual Labor",61786]
[null,null,null,null,null,null,"Casual Labor",61787]
[null,null,null,null,null,null,"Casual Labor",61788]
[null,null,null,null,null,null,"Casual Labor",61789]
[null,null,null,null,null,null,"Casual Labor",61790]
[null,null,null,null,null,null,"Casual Labor",61791]
[null,null,null,null,null,null,"Casual Labor",61792]
[null,null,null,null,null,null,"Casual Labor",61793]
[null,null,null,null,null,null,"Casual Labor",61794]
[null,null,null,null,null,null,"Casual Labor",61795]
[null,null,null,null,null,null,"Casual Labor",61796]
[null,null,null,null,null,null,"Casual Labor",61797]
[null,null,null,null,null,null,"Casual Labor",61798]
[null,null,null,null,null,null,"Casual Labor",61799]
[null,null,null,null,null,null,"Equipment Expense",63100]
[null,null,null,null,null,null,"Equipment Expense",63100]
[null,null,null,null,null,null,"Equipment Expense",63101]
[null,null,null,null,null,null,"Equipment Expense",63101]
[null,null,null,null,null,null,"Equipment Expense",63102]
[null,null,null,null,null,null,"Equipment Expense",63102]
[null,null,null,null,null,null,"Equipment Expense",63103]
[null,null,null,null,null,null,"Equipment Expense",63103]
[null,null,null,null,null,null,"Equipment Expense",63104]
[null,null,null,null,null,null,"Equipment Expense",63104]
[null,null,null,null,null,null,"Equipment Expense",63105]
[null,null,null,null,null,null,"Equipment Expense",63105]
[null,null,null,null,null,null,"Equipment Expense",63106]
[null,null,null,null,null,null,"Equipment Expense",63106]
[null,null,null,null,null,null,"Equipment Expense",63107]
[null,null,null,null,null,null,"Equipment Expense",63107]
[null,null,null,null,null,null,"Equipment Expense",63108]
[null,null,null,null,null,null,"Equipment Expense",63108]
[null,null,null,null,null,null,"Equipment Expense",63109]
[null,null,null,null,null,null,"Equipment Expense",63109]
[null,null,null,null,null,null,"Equipment Expense",63110]
[null,null,null,null,null,null,"Equipment Expense",63110]
[null,null,null,null,null,null,"Equipment Expense",63111]
[null,null,null,null,null,null,"Equipment Expense",63111]
[null,null,null,null,null,null,"Equipment Expense",63112]
[null,null,null,null,null,null,"Equipment Expense",63112]
[null,null,null,null,null,null,"Equipment Expense",63113]
[null,null,null,null,null,null,"Equipment Expense",63113]
[null,null,null,null,null,null,"Equipment Expense",63114]
[null,null,null,null,null,null,"Equipment Expense",63114]
[null,null,null,null,null,null,"Equipment Expense",63115]
[null,null,null,null,null,null,"Equipment Expense",63115]
[null,null,null,null,null,null,"Equipment Expense",63116]
[null,null,null,null,null,null,"Equipment Expense",63116]
[null,null,null,null,null,null,"Equipment Expense",63117]
[null,null,null,null,null,null,"Equipment Expense",63117]
[null,null,null,null,null,null,"Equipment Expense",63118]
[null,null,null,null,null,null,"Equipment Expense",63118]
[null,null,null,null,null,null,"Equipment Expense",63119]
[null,null,null,null,null,null,"Equipment Expense",63119]
[null,null,null,null,null,null,"Equipment Expense",63120]
[null,null,null,null,null,null,"Equipment Expense",63120]
[null,null,null,null,null,null,"Equipment Expense",63121]
[null,null,null,null,null,null,"Equipment Expense",63121]
[null,null,null,null,null,null,"Equipment Expense",63122]
[null,null,null,null,null,null,"Equipment Expense",63122]
[null,null,null,null,null,null,"Equipment Expense",63123]
[null,null,null,null,null,null,"Equipment Expense",63123]
[null,null,null,null,null,null,"Equipment Expense",63124]
[null,null,null,null,null,null,"Equipment Expense",63124]
[null,null,null,null,null,null,"Equipment Expense",63125]
[null,null,null,null,null,null,"Equipment Expense",63125]
[null,null,null,null,null,null,"Equipment Expense",63126]
[null,null,null,null,null,null,"Equipment Expense",63126]
[null,null,null,null,null,null,"Equipment Expense",63127]
[null,null,null,null,null,null,"Equipment Expense",63127]
[null,null,null,null,null,null,"Equipment Expense",63128]
[null,null,null,null,null,null,"Equipment Expense",63128]
[null,null,null,null,null,null,"Equipment Expense",63129]
[null,null,null,null,null,null,"Equipment Expense",63129]
[null,null,null,null,null,null,"Equipment Expense",63130]
[null,null,null,null,null,null,"Equipment Expense",63130]
[null,null,null,null,null,null,"Equipment Expense",63131]
[null,null,null,null,null,null,"Equipment Expense",63131]
[null,null,null,null,null,null,"Equipment Expense",63132]
[null,null,null,null,null,null,"Equipment Expense",63132]
[null,null,null,null,null,null,"Equipment Expense",63133]
[null,null,null,null,null,null,"Equipment Expense",63133]
[null,null,null,null,null,null,"Equipment Expense",63134]
[null,null,null,null,null,null,"Equipment Expense",63134]
[null,null,null,null,null,null,"Equipment Expense",63135]
[null,null,null,null,null,null,"Equipment Expense",63135]
[null,null,null,null,null,null,"Equipment Expense",63136]
[null,null,null,null,null,null,"Equipment Expense",63136]
[null,null,null,null,null,null,"Equipment Expense",63137]
[null,null,null,null,null,null,"Equipment Expense",63137]
[null,null,null,null,null,null,"Equipment Expense",63138]
[null,null,null,null,null,null,"Equipment Expense",63138]
[null,null,null,null,null,null,"Equipment Expense",63139]
[null,null,null,null,null,null,"Equipment Expense",63139]
[null,null,null,null,null,null,"Equipment Expense",63140]
[null,null,null,null,null,null,"Equipment Expense",63140]
[null,null,null,null,null,null,"Equipment Expense",63141]
[null,null,null,null,null,null,"Equipment Expense",63141]
[null,null,null,null,null,null,"Equipment Expense",63142]
[null,null,null,null,null,null,"Equipment Expense",63142]
[null,null,null,null,null,null,"Equipment Expense",63143]
[null,null,null,null,null,null,"Equipment Expense",63143]
[null,null,null,null,null,null,"Equipment Expense",63144]
[null,null,null,null,null,null,"Equipment Expense",63144]
[null,null,null,null,null,null,"Equipment Expense",63145]
[null,null,null,null,null,null,"Equipment Expense",63145]
[null,null,null,null,null,null,"Equipment Expense",63146]
[null,null,null,null,null,null,"Equipment Expense",63146]
[null,null,null,null,null,null,"Equipment Expense",63147]
[null,null,null,null,null,null,"Equipment Expense",63147]
[null,null,null,null,null,null,"Equipment Expense",63148]
[null,null,null,null,null,null,"Equipment Expense",63148]
[null,null,null,null,null,null,"Equipment Expense",63149]
[null,null,null,null,null,null,"Equipment Expense",63149]
[null,null,null,null,null,null,"Equipment Expense",63150]
[null,null,null,null,null,null,"Equipment Expense",63150]
[null,null,null,null,null,null,"Equipment Expense",63151]
[null,null,null,null,null,null,"Equipment Expense",63151]
[null,null,null,null,null,null,"Equipment Expense",63152]
[null,null,null,null,null,null,"Equipment Expense",63152]
[null,null,null,null,null,null,"Equipment Expense",63153]
[null,null,null,null,null,null,"Equipment Expense",63153]
[null,null,null,null,null,null,"Equipment Expense",63154]
[null,null,null,null,null,null,"Equipment Expense",63154]
[null,null,null,null,null,null,"Equipment Expense",63155]
[null,null,null,null,null,null,"Equipment Expense",63155]
[null,null,null,null,null,null,"Equipment Expense",63156]
[null,null,null,null,null,null,"Equipment Expense",63156]
[null,null,null,null,null,null,"Equipment Expense",63157]
[null,null,null,null,null,null,"Equipment Expense",63157]
[null,null,null,null,null,null,"Equipment Expense",63158]
[null,null,null,null,null,null,"Equipment Expense",63158]
[null,null,null,null,null,null,"Equipment Expense",63159]
[null,null,null,null,null,null,"Equipment Expense",63159]
[null,null,null,null,null,null,"Equipment Expense",63160]
[null,null,null,null,null,null,"Equipment Expense",63160]
[null,null,null,null,null,null,"Equipment Expense",63161]
[null,null,null,null,null,null,"Equipment Expense",63161]
[null,null,null,null,null,null,"Equipment Expense",63162]
[null,null,null,null,null,null,"Equipment Expense",63162]
[null,null,null,null,null,null,"Equipment Expense",63163]
[null,null,null,null,null,null,"Equipment Expense",63163]
[null,null,null,null,null,null,"Equipment Expense",63164]
[null,null,null,null,null,null,"Equipment Expense",63164]
[null,null,null,null,null,null,"Equipment Expense",63165]
[null,null,null,null,null,null,"Equipment Expense",63165]
[null,null,null,null,null,null,"Equipment Expense",63166]
[null,null,null,null,null,null,"Equipment Expense",63166]
[null,null,null,null,null,null,"Equipment Expense",63167]
[null,null,null,null,null,null,"Equipment Expense",63167]
[null,null,null,null,null,null,"Equipment Expense",63168]
[null,null,null,null,null,null,"Equipment Expense",63168]
[null,null,null,null,null,null,"Equipment Expense",63169]
[null,null,null,null,null,null,"Equipment Expense",63169]
[null,null,null,null,null,null,"Equipment Expense",63170]
[null,null,null,null,null,null,"Equipment Expense",63170]
[null,null,null,null,null,null,"Equipment Expense",63171]
[null,null,null,null,null,null,"Equipment Expense",63171]
[null,null,null,null,null,null,"Equipment Expense",63172]
[null,null,null,null,null,null,"Equipment Expense",63172]
[null,null,null,null,null,null,"Equipment Expense",63173]
[null,null,null,null,null,null,"Equipment Expense",63173]
[null,null,null,null,null,null,"Equipment Expense",63174]
[null,null,null,null,null,null,"Equipment Expense",63174]
[null,null,null,null,null,null,"Equipment Expense",63175]
[null,null,null,null,null,null,"Equipment Expense",63175]
[null,null,null,null,null,null,"Equipment Expense",63176]
[null,null,null,null,null,null,"Equipment Expense",63176]
[null,null,null,null,null,null,"Equipment Expense",63177]
[null,null,null,null,null,null,"Equipment Expense",63177]
[null,null,null,null,null,null,"Equipment Expense",63178]
[null,null,null,null,null,null,"Equipment Expense",63178]
[null,null,null,null,null,null,"Equipment Expense",63179]
[null,null,null,null,null,null,"Equipment Expense",63179]
[null,null,null,null,null,null,"Equipment Expense",63180]
[null,null,null,null,null,null,"Equipment Expense",63180]
[null,null,null,null,null,null,"Equipment Expense",63181]
[null,null,null,null,null,null,"Equipment Expense",63181]
[null,null,null,null,null,null,"Equipment Expense",63182]
[null,null,null,null,null,null,"Equipment Expense",63182]
[null,null,null,null,null,null,"Equipment Expense",63183]
[null,null,null,null,null,null,"Equipment Expense",63183]
[null,null,null,null,null,null,"Equipment Expense",63184]
[null,null,null,null,null,null,"Equipment Expense",63184]
[null,null,null,null,null,null,"Equipment Expense",63185]
[null,null,null,null,null,null,"Equipment Expense",63185]
[null,null,null,null,null,null,"Equipment Expense",63186]
[null,null,null,null,null,null,"Equipment Expense",63186]
[null,null,null,null,null,null,"Equipment Expense",63187]
[null,null,null,null,null,null,"Equipment Expense",63187]
[null,null,null,null,null,null,"Equipment Expense",63188]
[null,null,null,null,null,null,"Equipment Expense",63188]
[null,null,null,null,null,null,"Equipment Expense",63189]
[null,null,null,null,null,null,"Equipment Expense",63189]
[null,null,null,null,null,null,"Equipment Expense",63190]
[null,null,null,null,null,null,"Equipment Expense",63190]
[null,null,null,null,null,null,"Equipment Expense",63191]
[null,null,null,null,null,null,"Equipment Expense",63191]
[null,null,null,null,null,null,"Equipment Expense",63192]
[null,null,null,null,null,null,"Equipment Expense",63192]
[null,null,null,null,null,null,"Equipment Expense",63193]
[null,null,null,null,null,null,"Equipment Expense",63193]
[null,null,null,null,null,null,"Equipment Expense",63194]
[null,null,null,null,null,null,"Equipment Expense",63194]
[null,null,null,null,null,null,"Equipment Expense",63195]
[null,null,null,null,null,null,"Equipment Expense",63195]
[null,null,null,null,null,null,"Equipment Expense",63196]
[null,null,null,null,null,null,"Equipment Expense",63196]
[null,null,null,null,null,null,"Equipment Expense",63197]
[null,null,null,null,null,null,"Equipment Expense",63197]
[null,null,null,null,null,null,"Equipment Expense",63198]
[null,null,null,null,null,null,"Equipment Expense",63198]
[null,null,null,null,null,null,"Equipment Expense",63199]
[null,null,null,null,null,null,"Equipment Expense",63199]
[null,null,null,null,null,null,"Shipping",63200]
[null,null,null,null,null,null,"Shipping",63201]
[null,null,null,null,null,null,"Shipping",63202]
[null,null,null,null,null,null,"Shipping",63203]
[null,null,null,null,null,null,"Shipping",63204]
[null,null,null,null,null,null,"Shipping",63205]
[null,null,null,null,null,null,"Shipping",63206]
[null,null,null,null,null,null,"Shipping",63207]
[null,null,null,null,null,null,"Shipping",63208]
[null,null,null,null,null,null,"Shipping",63209]
[null,null,null,null,null,null,"Shipping",63210]
[null,null,null,null,null,null,"Shipping",63211]
[null,null,null,null,null,null,"Shipping",63212]
[null,null,null,null,null,null,"Shipping",63213]
[null,null,null,null,null,null,"Shipping",63214]
[null,null,null,null,null,null,"Shipping",63215]
[null,null,null,null,null,null,"Shipping",63216]
[null,null,null,null,null,null,"Shipping",63217]
[null,null,null,null,null,null,"Shipping",63218]
[null,null,null,null,null,null,"Shipping",63219]
[null,null,null,null,null,null,"Shipping",63220]
[null,null,null,null,null,null,"Shipping",63221]
[null,null,null,null,null,null,"Shipping",63222]
[null,null,null,null,null,null,"Shipping",63223]
[null,null,null,null,null,null,"Shipping",63224]
[null,null,null,null,null,null,"Shipping",63225]
[null,null,null,null,null,null,"Shipping",63226]
[null,null,null,null,null,null,"Shipping",63227]
[null,null,null,null,null,null,"Shipping",63228]
[null,null,null,null,null,null,"Shipping",63229]
[null,null,null,null,null,null,"Shipping",63230]
[null,null,null,null,null,null,"Shipping",63231]
[null,null,null,null,null,null,"Shipping",63232]
[null,null,null,null,null,null,"Shipping",63233]
[null,null,null,null,null,null,"Shipping",63234]
[null,null,null,null,null,null,"Shipping",63235]
[null,null,null,null,null,null,"Shipping",63236]
[null,null,null,null,null,null,"Shipping",63237]
[null,null,null,null,null,null,"Shipping",63238]
[null,null,null,null,null,null,"Shipping",63239]
[null,null,null,null,null,null,"Shipping",63240]
[null,null,null,null,null,null,"Shipping",63241]
[null,null,null,null,null,null,"Shipping",63242]
[null,null,null,null,null,null,"Shipping",63243]
[null,null,null,null,null,null,"Shipping",63244]
[null,null,null,null,null,null,"Shipping",63245]
[null,null,null,null,null,null,"Shipping",63246]
[null,null,null,null,null,null,"Shipping",63247]
[null,null,null,null,null,null,"Shipping",63248]
[null,null,null,null,null,null,"Shipping",63249]
[null,null,null,null,null,null,"Shipping",63250]
[null,null,null,null,null,null,"Shipping",63251]
[null,null,null,null,null,null,"Shipping",63252]
[null,null,null,null,null,null,"Shipping",63253]
[null,null,null,null,null,null,"Shipping",63254]
[null,null,null,null,null,null,"Shipping",63255]
[null,null,null,null,null,null,"Shipping",63256]
[null,null,null,null,null,null,"Shipping",63257]
[null,null,null,null,null,null,"Shipping",63258]
[null,null,null,null,null,null,"Shipping",63259]
[null,null,null,null,null,null,"Shipping",63260]
[null,null,null,null,null,null,"Shipping",63261]
[null,null,null,null,null,null,"Shipping",63262]
[null,null,null,null,null,null,"Shipping",63263]
[null,null,null,null,null,null,"Shipping",63264]
[null,null,null,null,null,null,"Shipping",63265]
[null,null,null,null,null,null,"Shipping",63266]
[null,null,null,null,null,null,"Shipping",63267]
[null,null,null,null,null,null,"Shipping",63268]
[null,null,null,null,null,null,"Shipping",63269]
[null,null,null,null,null,null,"Shipping",63270]
[null,null,null,null,null,null,"Shipping",63271]
[null,null,null,null,null,null,"Shipping",63272]
[null,null,null,null,null,null,"Shipping",63273]
[null,null,null,null,null,null,"Shipping",63274]
[null,null,null,null,null,null,"Shipping",63275]
[null,null,null,null,null,null,"Shipping",63276]
[null,null,null,null,null,null,"Shipping",63277]
[null,null,null,null,null,null,"Shipping",63278]
[null,null,null,null,null,null,"Shipping",63279]
[null,null,null,null,null,null,"Shipping",63280]
[null,null,null,null,null,null,"Shipping",63281]
[null,null,null,null,null,null,"Shipping",63282]
[null,null,null,null,null,null,"Shipping",63283]
[null,null,null,null,null,null,"Shipping",63284]
[null,null,null,null,null,null,"Shipping",63285]
[null,null,null,null,null,null,"Shipping",63286]
[null,null,null,null,null,null,"Shipping",63287]
[null,null,null,null,null,null,"Shipping",63288]
[null,null,null,null,null,null,"Shipping",63289]
[null,null,null,null,null,null,"Shipping",63290]
[null,null,null,null,null,null,"Shipping",63291]
[null,null,null,null,null,null,"Shipping",63292]
[null,null,null,null,null,null,"Shipping",63293]
[null,null,null,null,null,null,"Shipping",63294]
[null,null,null,null,null,null,"Shipping",63295]
[null,null,null,null,null,null,"Shipping",63296]
[null,null,null,null,null,null,"Shipping",63297]
[null,null,null,null,null,null,"Shipping",63298]
[null,null,null,null,null,null,"Shipping",63299]
[null,null,null,null,null,null,"Maintenance And Overhaul/Replacement Reserves",63300]
[null,null,null,null,null,null,"Maintenance And Overhaul/Replacement Reserves",63300]
[null,null,null,null,null,null,"Maintenance And Overhaul/Replacement Reserves",63301]
[null,null,null,null,null,null,"Maintenance And Overhaul/Replacement Reserves",63301]
[null,null,null,null,null,null,"Maintenance And Overhaul/Replacement Reserves",63302]
[null,null,null,null,null,null,"Maintenance And Overhaul/Replacement Reserves",63302]
[null,null,null,null,null,null,"Maintenance And Overhaul/Replacement Reserves",63303]
[null,null,null,null,null,null,"Maintenance And Overhaul/Replacement Reserves",63303]
[null,null,null,null,null,null,"Maintenance And Overhaul/Replacement Reserves",63304]
[null,null,null,null,null,null,"Maintenance And Overhaul/Replacement Reserves",63304]
[null,null,null,null,null,null,"Maintenance And Overhaul/Replacement Reserves",63305]
[null,null,null,null,null,null,"Maintenance And Overhaul/Replacement Reserves",63305]
[null,null,null,null,null,null,"Maintenance And Overhaul/Replacement Reserves",63306]
[null,null,null,null,null,null,"Maintenance And Overhaul/Replacement Reserves",63306]
[null,null,null,null,null,null,"Maintenance And Overhaul/Replacement Reserves",63307]
[null,null,null,null,null,null,"Maintenance And Overhaul/Replacement Reserves",63307]
[null,null,null,null,null,null,"Maintenance And Overhaul/Replacement Reserves",63308]
[null,null,null,null,null,null,"Maintenance And Overhaul/Replacement Reserves",63308]
[null,null,null,null,null,null,"Maintenance And Overhaul/Replacement Reserves",63309]
[null,null,null,null,null,null,"Maintenance And Overhaul/Replacement Reserves",63309]
[null,null,null,null,null,null,"Maintenance And Overhaul/Replacement Reserves",63310]
[null,null,null,null,null,null,"Maintenance And Overhaul/Replacement Reserves",63310]
[null,null,null,null,null,null,"Maintenance And Overhaul/Replacement Reserves",63311]
[null,null,null,null,null,null,"Maintenance And Overhaul/Replacement Reserves",63311]
[null,null,null,null,null,null,"Maintenance And Overhaul/Replacement Reserves",63312]
[null,null,null,null,null,null,"Maintenance And Overhaul/Replacement Reserves",63312]
[null,null,null,null,null,null,"Maintenance And Overhaul/Replacement Reserves",63313]
[null,null,null,null,null,null,"Maintenance And Overhaul/Replacement Reserves",63313]
[null,null,null,null,null,null,"Maintenance And Overhaul/Replacement Reserves",63314]
[null,null,null,null,null,null,"Maintenance And Overhaul/Replacement Reserves",63314]
[null,null,null,null,null,null,"Maintenance And Overhaul/Replacement Reserves",63315]
[null,null,null,null,null,null,"Maintenance And Overhaul/Replacement Reserves",63315]
[null,null,null,null,null,null,"Maintenance And Overhaul/Replacement Reserves",63316]
[null,null,null,null,null,null,"Maintenance And Overhaul/Replacement Reserves",63316]
[null,null,null,null,null,null,"Maintenance And Overhaul/Replacement Reserves",63317]
[null,null,null,null,null,null,"Maintenance And Overhaul/Replacement Reserves",63317]
[null,null,null,null,null,null,"Maintenance And Overhaul/Replacement Reserves",63318]
[null,null,null,null,null,null,"Maintenance And Overhaul/Replacement Reserves",63318]
[null,null,null,null,null,null,"Maintenance And Overhaul/Replacement Reserves",63319]
[null,null,null,null,null,null,"Maintenance And Overhaul/Replacement Reserves",63319]
[null,null,null,null,null,null,"Maintenance And Overhaul/Replacement Reserves",63320]
[null,null,null,null,null,null,"Maintenance And Overhaul/Replacement Reserves",63320]
[null,null,null,null,null,null,"Maintenance And Overhaul/Replacement Reserves",63321]
[null,null,null,null,null,null,"Maintenance And Overhaul/Replacement Reserves",63321]
[null,null,null,null,null,null,"Maintenance And Overhaul/Replacement Reserves",63322]
[null,null,null,null,null,null,"Maintenance And Overhaul/Replacement Reserves",63322]
[null,null,null,null,null,null,"Maintenance And Overhaul/Replacement Reserves",63323]
[null,null,null,null,null,null,"Maintenance And Overhaul/Replacement Reserves",63323]
[null,null,null,null,null,null,"Maintenance And Overhaul/Replacement Reserves",63324]
[null,null,null,null,null,null,"Maintenance And Overhaul/Replacement Reserves",63324]
[null,null,null,null,null,null,"Maintenance And Overhaul/Replacement Reserves",63325]
[null,null,null,null,null,null,"Maintenance And Overhaul/Replacement Reserves",63325]
[null,null,null,null,null,null,"Maintenance And Overhaul/Replacement Reserves",63326]
[null,null,null,null,null,null,"Maintenance And Overhaul/Replacement Reserves",63326]
[null,null,null,null,null,null,"Maintenance And Overhaul/Replacement Reserves",63327]
[null,null,null,null,null,null,"Maintenance And Overhaul/Replacement Reserves",63327]
[null,null,null,null,null,null,"Maintenance And Overhaul/Replacement Reserves",63328]
[null,null,null,null,null,null,"Maintenance And Overhaul/Replacement Reserves",63328]
[null,null,null,null,null,null,"Maintenance And Overhaul/Replacement Reserves",63329]
[null,null,null,null,null,null,"Maintenance And Overhaul/Replacement Reserves",63329]
[null,null,null,null,null,null,"Maintenance And Overhaul/Replacement Reserves",63330]
[null,null,null,null,null,null,"Maintenance And Overhaul/Replacement Reserves",63330]
[null,null,null,null,null,null,"Maintenance And Overhaul/Replacement Reserves",63331]
[null,null,null,null,null,null,"Maintenance And Overhaul/Replacement Reserves",63331]
[null,null,null,null,null,null,"Maintenance And Overhaul/Replacement Reserves",63332]
[null,null,null,null,null,null,"Maintenance And Overhaul/Replacement Reserves",63332]
[null,null,null,null,null,null,"Maintenance And Overhaul/Replacement Reserves",63333]
[null,null,null,null,null,null,"Maintenance And Overhaul/Replacement Reserves",63333]
[null,null,null,null,null,null,"Maintenance And Overhaul/Replacement Reserves",63334]
[null,null,null,null,null,null,"Maintenance And Overhaul/Replacement Reserves",63334]
[null,null,null,null,null,null,"Maintenance And Overhaul/Replacement Reserves",63335]
[null,null,null,null,null,null,"Maintenance And Overhaul/Replacement Reserves",63335]
[null,null,null,null,null,null,"Maintenance And Overhaul/Replacement Reserves",63336]
[null,null,null,null,null,null,"Maintenance And Overhaul/Replacement Reserves",63336]
[null,null,null,null,null,null,"Maintenance And Overhaul/Replacement Reserves",63337]
[null,null,null,null,null,null,"Maintenance And Overhaul/Replacement Reserves",63337]
[null,null,null,null,null,null,"Maintenance And Overhaul/Replacement Reserves",63338]
[null,null,null,null,null,null,"Maintenance And Overhaul/Replacement Reserves",63338]
[null,null,null,null,null,null,"Maintenance And Overhaul/Replacement Reserves",63339]
[null,null,null,null,null,null,"Maintenance And Overhaul/Replacement Reserves",63339]
[null,null,null,null,null,null,"Maintenance And Overhaul/Replacement Reserves",63340]
[null,null,null,null,null,null,"Maintenance And Overhaul/Replacement Reserves",63340]
[null,null,null,null,null,null,"Maintenance And Overhaul/Replacement Reserves",63341]
[null,null,null,null,null,null,"Maintenance And Overhaul/Replacement Reserves",63341]
[null,null,null,null,null,null,"Maintenance And Overhaul/Replacement Reserves",63342]
[null,null,null,null,null,null,"Maintenance And Overhaul/Replacement Reserves",63342]
[null,null,null,null,null,null,"Maintenance And Overhaul/Replacement Reserves",63343]
[null,null,null,null,null,null,"Maintenance And Overhaul/Replacement Reserves",63343]
[null,null,null,null,null,null,"Maintenance And Overhaul/Replacement Reserves",63344]
[null,null,null,null,null,null,"Maintenance And Overhaul/Replacement Reserves",63344]
[null,null,null,null,null,null,"Maintenance And Overhaul/Replacement Reserves",63345]
[null,null,null,null,null,null,"Maintenance And Overhaul/Replacement Reserves",63345]
[null,null,null,null,null,null,"Maintenance And Overhaul/Replacement Reserves",63346]
[null,null,null,null,null,null,"Maintenance And Overhaul/Replacement Reserves",63346]
[null,null,null,null,null,null,"Maintenance And Overhaul/Replacement Reserves",63347]
[null,null,null,null,null,null,"Maintenance And Overhaul/Replacement Reserves",63347]
[null,null,null,null,null,null,"Maintenance And Overhaul/Replacement Reserves",63348]
[null,null,null,null,null,null,"Maintenance And Overhaul/Replacement Reserves",63348]
[null,null,null,null,null,null,"Maintenance And Overhaul/Replacement Reserves",63349]
[null,null,null,null,null,null,"Maintenance And Overhaul/Replacement Reserves",63349]
[null,null,null,null,null,null,"Maintenance And Overhaul/Replacement Reserves",63350]
[null,null,null,null,null,null,"Maintenance And Overhaul/Replacement Reserves",63350]
[null,null,null,null,null,null,"Maintenance And Overhaul/Replacement Reserves",63351]
[null,null,null,null,null,null,"Maintenance And Overhaul/Replacement Reserves",63351]
[null,null,null,null,null,null,"Maintenance And Overhaul/Replacement Reserves",63352]
[null,null,null,null,null,null,"Maintenance And Overhaul/Replacement Reserves",63352]
[null,null,null,null,null,null,"Maintenance And Overhaul/Replacement Reserves",63353]
[null,null,null,null,null,null,"Maintenance And Overhaul/Replacement Reserves",63353]
[null,null,null,null,null,null,"Maintenance And Overhaul/Replacement Reserves",63354]
[null,null,null,null,null,null,"Maintenance And Overhaul/Replacement Reserves",63354]
[null,null,null,null,null,null,"Maintenance And Overhaul/Replacement Reserves",63355]
[null,null,null,null,null,null,"Maintenance And Overhaul/Replacement Reserves",63355]
[null,null,null,null,null,null,"Maintenance And Overhaul/Replacement Reserves",63356]
[null,null,null,null,null,null,"Maintenance And Overhaul/Replacement Reserves",63356]
[null,null,null,null,null,null,"Maintenance And Overhaul/Replacement Reserves",63357]
[null,null,null,null,null,null,"Maintenance And Overhaul/Replacement Reserves",63357]
[null,null,null,null,null,null,"Maintenance And Overhaul/Replacement Reserves",63358]
[null,null,null,null,null,null,"Maintenance And Overhaul/Replacement Reserves",63358]
[null,null,null,null,null,null,"Maintenance And Overhaul/Replacement Reserves",63359]
[null,null,null,null,null,null,"Maintenance And Overhaul/Replacement Reserves",63359]
[null,null,null,null,null,null,"Maintenance And Overhaul/Replacement Reserves",63360]
[null,null,null,null,null,null,"Maintenance And Overhaul/Replacement Reserves",63360]
[null,null,null,null,null,null,"Maintenance And Overhaul/Replacement Reserves",63361]
[null,null,null,null,null,null,"Maintenance And Overhaul/Replacement Reserves",63361]
[null,null,null,null,null,null,"Maintenance And Overhaul/Replacement Reserves",63362]
[null,null,null,null,null,null,"Maintenance And Overhaul/Replacement Reserves",63362]
[null,null,null,null,null,null,"Maintenance And Overhaul/Replacement Reserves",63363]
[null,null,null,null,null,null,"Maintenance And Overhaul/Replacement Reserves",63363]
[null,null,null,null,null,null,"Maintenance And Overhaul/Replacement Reserves",63364]
[null,null,null,null,null,null,"Maintenance And Overhaul/Replacement Reserves",63364]
[null,null,null,null,null,null,"Maintenance And Overhaul/Replacement Reserves",63365]
[null,null,null,null,null,null,"Maintenance And Overhaul/Replacement Reserves",63365]
[null,null,null,null,null,null,"Maintenance And Overhaul/Replacement Reserves",63366]
[null,null,null,null,null,null,"Maintenance And Overhaul/Replacement Reserves",63366]
[null,null,null,null,null,null,"Maintenance And Overhaul/Replacement Reserves",63367]
[null,null,null,null,null,null,"Maintenance And Overhaul/Replacement Reserves",63367]
[null,null,null,null,null,null,"Maintenance And Overhaul/Replacement Reserves",63368]
[null,null,null,null,null,null,"Maintenance And Overhaul/Replacement Reserves",63368]
[null,null,null,null,null,null,"Maintenance And Overhaul/Replacement Reserves",63369]
[null,null,null,null,null,null,"Maintenance And Overhaul/Replacement Reserves",63369]
[null,null,null,null,null,null,"Maintenance And Overhaul/Replacement Reserves",63370]
[null,null,null,null,null,null,"Maintenance And Overhaul/Replacement Reserves",63370]
[null,null,null,null,null,null,"Maintenance And Overhaul/Replacement Reserves",63371]
[null,null,null,null,null,null,"Maintenance And Overhaul/Replacement Reserves",63371]
[null,null,null,null,null,null,"Maintenance And Overhaul/Replacement Reserves",63372]
[null,null,null,null,null,null,"Maintenance And Overhaul/Replacement Reserves",63372]
[null,null,null,null,null,null,"Maintenance And Overhaul/Replacement Reserves",63373]
[null,null,null,null,null,null,"Maintenance And Overhaul/Replacement Reserves",63373]
[null,null,null,null,null,null,"Maintenance And Overhaul/Replacement Reserves",63374]
[null,null,null,null,null,null,"Maintenance And Overhaul/Replacement Reserves",63374]
[null,null,null,null,null,null,"Maintenance And Overhaul/Replacement Reserves",63375]
[null,null,null,null,null,null,"Maintenance And Overhaul/Replacement Reserves",63375]
[null,null,null,null,null,null,"Maintenance And Overhaul/Replacement Reserves",63376]
[null,null,null,null,null,null,"Maintenance And Overhaul/Replacement Reserves",63376]
[null,null,null,null,null,null,"Maintenance And Overhaul/Replacement Reserves",63377]
[null,null,null,null,null,null,"Maintenance And Overhaul/Replacement Reserves",63377]
[null,null,null,null,null,null,"Maintenance And Overhaul/Replacement Reserves",63378]
[null,null,null,null,null,null,"Maintenance And Overhaul/Replacement Reserves",63378]
[null,null,null,null,null,null,"Maintenance And Overhaul/Replacement Reserves",63379]
[null,null,null,null,null,null,"Maintenance And Overhaul/Replacement Reserves",63379]
[null,null,null,null,null,null,"Maintenance And Overhaul/Replacement Reserves",63380]
[null,null,null,null,null,null,"Maintenance And Overhaul/Replacement Reserves",63380]
[null,null,null,null,null,null,"Maintenance And Overhaul/Replacement Reserves",63381]
[null,null,null,null,null,null,"Maintenance And Overhaul/Replacement Reserves",63381]
[null,null,null,null,null,null,"Maintenance And Overhaul/Replacement Reserves",63382]
[null,null,null,null,null,null,"Maintenance And Overhaul/Replacement Reserves",63382]
[null,null,null,null,null,null,"Maintenance And Overhaul/Replacement Reserves",63383]
[null,null,null,null,null,null,"Maintenance And Overhaul/Replacement Reserves",63383]
[null,null,null,null,null,null,"Maintenance And Overhaul/Replacement Reserves",63384]
[null,null,null,null,null,null,"Maintenance And Overhaul/Replacement Reserves",63384]
[null,null,null,null,null,null,"Maintenance And Overhaul/Replacement Reserves",63385]
[null,null,null,null,null,null,"Maintenance And Overhaul/Replacement Reserves",63385]
[null,null,null,null,null,null,"Maintenance And Overhaul/Replacement Reserves",63386]
[null,null,null,null,null,null,"Maintenance And Overhaul/Replacement Reserves",63386]
[null,null,null,null,null,null,"Maintenance And Overhaul/Replacement Reserves",63387]
[null,null,null,null,null,null,"Maintenance And Overhaul/Replacement Reserves",63387]
[null,null,null,null,null,null,"Maintenance And Overhaul/Replacement Reserves",63388]
[null,null,null,null,null,null,"Maintenance And Overhaul/Replacement Reserves",63388]
[null,null,null,null,null,null,"Maintenance And Overhaul/Replacement Reserves",63389]
[null,null,null,null,null,null,"Maintenance And Overhaul/Replacement Reserves",63389]
[null,null,null,null,null,null,"Maintenance And Overhaul/Replacement Reserves",63390]
[null,null,null,null,null,null,"Maintenance And Overhaul/Replacement Reserves",63390]
[null,null,null,null,null,null,"Maintenance And Overhaul/Replacement Reserves",63391]
[null,null,null,null,null,null,"Maintenance And Overhaul/Replacement Reserves",63391]
[null,null,null,null,null,null,"Maintenance And Overhaul/Replacement Reserves",63392]
[null,null,null,null,null,null,"Maintenance And Overhaul/Replacement Reserves",63392]
[null,null,null,null,null,null,"Maintenance And Overhaul/Replacement Reserves",63393]
[null,null,null,null,null,null,"Maintenance And Overhaul/Replacement Reserves",63393]
[null,null,null,null,null,null,"Maintenance And Overhaul/Replacement Reserves",63394]
[null,null,null,null,null,null,"Maintenance And Overhaul/Replacement Reserves",63394]
[null,null,null,null,null,null,"Maintenance And Overhaul/Replacement Reserves",63395]
[null,null,null,null,null,null,"Maintenance And Overhaul/Replacement Reserves",63395]
[null,null,null,null,null,null,"Maintenance And Overhaul/Replacement Reserves",63396]
[null,null,null,null,null,null,"Maintenance And Overhaul/Replacement Reserves",63396]
[null,null,null,null,null,null,"Maintenance And Overhaul/Replacement Reserves",63397]
[null,null,null,null,null,null,"Maintenance And Overhaul/Replacement Reserves",63397]
[null,null,null,null,null,null,"Maintenance And Overhaul/Replacement Reserves",63398]
[null,null,null,null,null,null,"Maintenance And Overhaul/Replacement Reserves",63398]
[null,null,null,null,null,null,"Maintenance And Overhaul/Replacement Reserves",63399]
[null,null,null,null,null,null,"Maintenance And Overhaul/Replacement Reserves",63399]
[null,null,null,null,null,null,"Fuel",63400]
[null,null,null,null,null,null,"Fuel",63401]
[null,null,null,null,null,null,"Fuel",63402]
[null,null,null,null,null,null,"Fuel",63403]
[null,null,null,null,null,null,"Fuel",63404]
[null,null,null,null,null,null,"Fuel",63405]
[null,null,null,null,null,null,"Fuel",63406]
[null,null,null,null,null,null,"Fuel",63407]
[null,null,null,null,null,null,"Fuel",63408]
[null,null,null,null,null,null,"Fuel",63409]
[null,null,null,null,null,null,"Fuel",63410]
[null,null,null,null,null,null,"Fuel",63411]
[null,null,null,null,null,null,"Fuel",63412]
[null,null,null,null,null,null,"Fuel",63413]
[null,null,null,null,null,null,"Fuel",63414]
[null,null,null,null,null,null,"Fuel",63415]
[null,null,null,null,null,null,"Fuel",63416]
[null,null,null,null,null,null,"Fuel",63417]
[null,null,null,null,null,null,"Fuel",63418]
[null,null,null,null,null,null,"Fuel",63419]
[null,null,null,null,null,null,"Fuel",63420]
[null,null,null,null,null,null,"Fuel",63421]
[null,null,null,null,null,null,"Fuel",63422]
[null,null,null,null,null,null,"Fuel",63423]
[null,null,null,null,null,null,"Fuel",63424]
[null,null,null,null,null,null,"Fuel",63425]
[null,null,null,null,null,null,"Fuel",63426]
[null,null,null,null,null,null,"Fuel",63427]
[null,null,null,null,null,null,"Fuel",63428]
[null,null,null,null,null,null,"Fuel",63429]
[null,null,null,null,null,null,"Fuel",63430]
[null,null,null,null,null,null,"Fuel",63431]
[null,null,null,null,null,null,"Fuel",63432]
[null,null,null,null,null,null,"Fuel",63433]
[null,null,null,null,null,null,"Fuel",63434]
[null,null,null,null,null,null,"Fuel",63435]
[null,null,null,null,null,null,"Fuel",63436]
[null,null,null,null,null,null,"Fuel",63437]
[null,null,null,null,null,null,"Fuel",63438]
[null,null,null,null,null,null,"Fuel",63439]
[null,null,null,null,null,null,"Fuel",63440]
[null,null,null,null,null,null,"Fuel",63441]
[null,null,null,null,null,null,"Fuel",63442]
[null,null,null,null,null,null,"Fuel",63443]
[null,null,null,null,null,null,"Fuel",63444]
[null,null,null,null,null,null,"Fuel",63445]
[null,null,null,null,null,null,"Fuel",63446]
[null,null,null,null,null,null,"Fuel",63447]
[null,null,null,null,null,null,"Fuel",63448]
[null,null,null,null,null,null,"Fuel",63449]
[null,null,null,null,null,null,"Fuel",63450]
[null,null,null,null,null,null,"Fuel",63451]
[null,null,null,null,null,null,"Fuel",63452]
[null,null,null,null,null,null,"Fuel",63453]
[null,null,null,null,null,null,"Fuel",63454]
[null,null,null,null,null,null,"Fuel",63455]
[null,null,null,null,null,null,"Fuel",63456]
[null,null,null,null,null,null,"Fuel",63457]
[null,null,null,null,null,null,"Fuel",63458]
[null,null,null,null,null,null,"Fuel",63459]
[null,null,null,null,null,null,"Fuel",63460]
[null,null,null,null,null,null,"Fuel",63461]
[null,null,null,null,null,null,"Fuel",63462]
[null,null,null,null,null,null,"Fuel",63463]
[null,null,null,null,null,null,"Fuel",63464]
[null,null,null,null,null,null,"Fuel",63465]
[null,null,null,null,null,null,"Fuel",63466]
[null,null,null,null,null,null,"Fuel",63467]
[null,null,null,null,null,null,"Fuel",63468]
[null,null,null,null,null,null,"Fuel",63469]
[null,null,null,null,null,null,"Fuel",63470]
[null,null,null,null,null,null,"Fuel",63471]
[null,null,null,null,null,null,"Fuel",63472]
[null,null,null,null,null,null,"Fuel",63473]
[null,null,null,null,null,null,"Fuel",63474]
[null,null,null,null,null,null,"Fuel",63475]
[null,null,null,null,null,null,"Fuel",63476]
[null,null,null,null,null,null,"Fuel",63477]
[null,null,null,null,null,null,"Fuel",63478]
[null,null,null,null,null,null,"Fuel",63479]
[null,null,null,null,null,null,"Fuel",63480]
[null,null,null,null,null,null,"Fuel",63481]
[null,null,null,null,null,null,"Fuel",63482]
[null,null,null,null,null,null,"Fuel",63483]
[null,null,null,null,null,null,"Fuel",63484]
[null,null,null,null,null,null,"Fuel",63485]
[null,null,null,null,null,null,"Fuel",63486]
[null,null,null,null,null,null,"Fuel",63487]
[null,null,null,null,null,null,"Fuel",63488]
[null,null,null,null,null,null,"Fuel",63489]
[null,null,null,null,null,null,"Fuel",63490]
[null,null,null,null,null,null,"Fuel",63491]
[null,null,null,null,null,null,"Fuel",63492]
[null,null,null,null,null,null,"Fuel",63493]
[null,null,null,null,null,null,"Fuel",63494]
[null,null,null,null,null,null,"Fuel",63495]
[null,null,null,null,null,null,"Fuel",63496]
[null,null,null,null,null,null,"Fuel",63497]
[null,null,null,null,null,null,"Fuel",63498]
[null,null,null,null,null,null,"Fuel",63499]
[null,null,null,null,null,null,"Insurance",63500]
[null,null,null,null,null,null,"Insurance",63501]
[null,null,null,null,null,null,"Insurance",63502]
[null,null,null,null,null,null,"Insurance",63503]
[null,null,null,null,null,null,"Insurance",63504]
[null,null,null,null,null,null,"Insurance",63505]
[null,null,null,null,null,null,"Insurance",63506]
[null,null,null,null,null,null,"Insurance",63507]
[null,null,null,null,null,null,"Insurance",63508]
[null,null,null,null,null,null,"Insurance",63509]
[null,null,null,null,null,null,"Insurance",63510]
[null,null,null,null,null,null,"Insurance",63511]
[null,null,null,null,null,null,"Insurance",63512]
[null,null,null,null,null,null,"Insurance",63513]
[null,null,null,null,null,null,"Insurance",63514]
[null,null,null,null,null,null,"Insurance",63515]
[null,null,null,null,null,null,"Insurance",63516]
[null,null,null,null,null,null,"Insurance",63517]
[null,null,null,null,null,null,"Insurance",63518]
[null,null,null,null,null,null,"Insurance",63519]
[null,null,null,null,null,null,"Insurance",63520]
[null,null,null,null,null,null,"Insurance",63521]
[null,null,null,null,null,null,"Insurance",63522]
[null,null,null,null,null,null,"Insurance",63523]
[null,null,null,null,null,null,"Insurance",63524]
[null,null,null,null,null,null,"Insurance",63525]
[null,null,null,null,null,null,"Insurance",63526]
[null,null,null,null,null,null,"Insurance",63527]
[null,null,null,null,null,null,"Insurance",63528]
[null,null,null,null,null,null,"Insurance",63529]
[null,null,null,null,null,null,"Insurance",63530]
[null,null,null,null,null,null,"Insurance",63531]
[null,null,null,null,null,null,"Insurance",63532]
[null,null,null,null,null,null,"Insurance",63533]
[null,null,null,null,null,null,"Insurance",63534]
[null,null,null,null,null,null,"Insurance",63535]
[null,null,null,null,null,null,"Insurance",63536]
[null,null,null,null,null,null,"Insurance",63537]
[null,null,null,null,null,null,"Insurance",63538]
[null,null,null,null,null,null,"Insurance",63539]
[null,null,null,null,null,null,"Insurance",63540]
[null,null,null,null,null,null,"Insurance",63541]
[null,null,null,null,null,null,"Insurance",63542]
[null,null,null,null,null,null,"Insurance",63543]
[null,null,null,null,null,null,"Insurance",63544]
[null,null,null,null,null,null,"Insurance",63545]
[null,null,null,null,null,null,"Insurance",63546]
[null,null,null,null,null,null,"Insurance",63547]
[null,null,null,null,null,null,"Insurance",63548]
[null,null,null,null,null,null,"Insurance",63549]
[null,null,null,null,null,null,"Insurance",63550]
[null,null,null,null,null,null,"Insurance",63551]
[null,null,null,null,null,null,"Insurance",63552]
[null,null,null,null,null,null,"Insurance",63553]
[null,null,null,null,null,null,"Insurance",63554]
[null,null,null,null,null,null,"Insurance",63555]
[null,null,null,null,null,null,"Insurance",63556]
[null,null,null,null,null,null,"Insurance",63557]
[null,null,null,null,null,null,"Insurance",63558]
[null,null,null,null,null,null,"Insurance",63559]
[null,null,null,null,null,null,"Insurance",63560]
[null,null,null,null,null,null,"Insurance",63561]
[null,null,null,null,null,null,"Insurance",63562]
[null,null,null,null,null,null,"Insurance",63563]
[null,null,null,null,null,null,"Insurance",63564]
[null,null,null,null,null,null,"Insurance",63565]
[null,null,null,null,null,null,"Insurance",63566]
[null,null,null,null,null,null,"Insurance",63567]
[null,null,null,null,null,null,"Insurance",63568]
[null,null,null,null,null,null,"Insurance",63569]
[null,null,null,null,null,null,"Insurance",63570]
[null,null,null,null,null,null,"Insurance",63571]
[null,null,null,null,null,null,"Insurance",63572]
[null,null,null,null,null,null,"Insurance",63573]
[null,null,null,null,null,null,"Insurance",63574]
[null,null,null,null,null,null,"Insurance",63575]
[null,null,null,null,null,null,"Insurance",63576]
[null,null,null,null,null,null,"Insurance",63577]
[null,null,null,null,null,null,"Insurance",63578]
[null,null,null,null,null,null,"Insurance",63579]
[null,null,null,null,null,null,"Insurance",63580]
[null,null,null,null,null,null,"Insurance",63581]
[null,null,null,null,null,null,"Insurance",63582]
[null,null,null,null,null,null,"Insurance",63583]
[null,null,null,null,null,null,"Insurance",63584]
[null,null,null,null,null,null,"Insurance",63585]
[null,null,null,null,null,null,"Insurance",63586]
[null,null,null,null,null,null,"Insurance",63587]
[null,null,null,null,null,null,"Insurance",63588]
[null,null,null,null,null,null,"Insurance",63589]
[null,null,null,null,null,null,"Insurance",63590]
[null,null,null,null,null,null,"Insurance",63591]
[null,null,null,null,null,null,"Insurance",63592]
[null,null,null,null,null,null,"Insurance",63593]
[null,null,null,null,null,null,"Insurance",63594]
[null,null,null,null,null,null,"Insurance",63595]
[null,null,null,null,null,null,"Insurance",63596]
[null,null,null,null,null,null,"Insurance",63597]
[null,null,null,null,null,null,"Insurance",63598]
[null,null,null,null,null,null,"Insurance",63599]
[null,null,null,null,null,null,"Supplies",63600]
[null,null,null,null,null,null,"Supplies",63601]
[null,null,null,null,null,null,"Supplies",63602]
[null,null,null,null,null,null,"Supplies",63603]
[null,null,null,null,null,null,"Supplies",63604]
[null,null,null,null,null,null,"Supplies",63605]
[null,null,null,null,null,null,"Supplies",63606]
[null,null,null,null,null,null,"Supplies",63607]
[null,null,null,null,null,null,"Supplies",63608]
[null,null,null,null,null,null,"Supplies",63609]
[null,null,null,null,null,null,"Supplies",63610]
[null,null,null,null,null,null,"Supplies",63611]
[null,null,null,null,null,null,"Supplies",63612]
[null,null,null,null,null,null,"Supplies",63613]
[null,null,null,null,null,null,"Supplies",63614]
[null,null,null,null,null,null,"Supplies",63615]
[null,null,null,null,null,null,"Supplies",63616]
[null,null,null,null,null,null,"Supplies",63617]
[null,null,null,null,null,null,"Supplies",63618]
[null,null,null,null,null,null,"Supplies",63619]
[null,null,null,null,null,null,"Supplies",63620]
[null,null,null,null,null,null,"Supplies",63621]
[null,null,null,null,null,null,"Supplies",63622]
[null,null,null,null,null,null,"Supplies",63623]
[null,null,null,null,null,null,"Supplies",63624]
[null,null,null,null,null,null,"Supplies",63625]
[null,null,null,null,null,null,"Supplies",63626]
[null,null,null,null,null,null,"Supplies",63627]
[null,null,null,null,null,null,"Supplies",63628]
[null,null,null,null,null,null,"Supplies",63629]
[null,null,null,null,null,null,"Supplies",63630]
[null,null,null,null,null,null,"Supplies",63631]
[null,null,null,null,null,null,"Supplies",63632]
[null,null,null,null,null,null,"Supplies",63633]
[null,null,null,null,null,null,"Supplies",63634]
[null,null,null,null,null,null,"Supplies",63635]
[null,null,null,null,null,null,"Supplies",63636]
[null,null,null,null,null,null,"Supplies",63637]
[null,null,null,null,null,null,"Supplies",63638]
[null,null,null,null,null,null,"Supplies",63639]
[null,null,null,null,null,null,"Supplies",63640]
[null,null,null,null,null,null,"Supplies",63641]
[null,null,null,null,null,null,"Supplies",63642]
[null,null,null,null,null,null,"Supplies",63643]
[null,null,null,null,null,null,"Supplies",63644]
[null,null,null,null,null,null,"Supplies",63645]
[null,null,null,null,null,null,"Supplies",63646]
[null,null,null,null,null,null,"Supplies",63647]
[null,null,null,null,null,null,"Supplies",63648]
[null,null,null,null,null,null,"Supplies",63649]
[null,null,null,null,null,null,"Supplies",63650]
[null,null,null,null,null,null,"Supplies",63651]
[null,null,null,null,null,null,"Supplies",63652]
[null,null,null,null,null,null,"Supplies",63653]
[null,null,null,null,null,null,"Supplies",63654]
[null,null,null,null,null,null,"Supplies",63655]
[null,null,null,null,null,null,"Supplies",63656]
[null,null,null,null,null,null,"Supplies",63657]
[null,null,null,null,null,null,"Supplies",63658]
[null,null,null,null,null,null,"Supplies",63659]
[null,null,null,null,null,null,"Supplies",63660]
[null,null,null,null,null,null,"Supplies",63661]
[null,null,null,null,null,null,"Supplies",63662]
[null,null,null,null,null,null,"Supplies",63663]
[null,null,null,null,null,null,"Supplies",63664]
[null,null,null,null,null,null,"Supplies",63665]
[null,null,null,null,null,null,"Supplies",63666]
[null,null,null,null,null,null,"Supplies",63667]
[null,null,null,null,null,null,"Supplies",63668]
[null,null,null,null,null,null,"Supplies",63669]
[null,null,null,null,null,null,"Supplies",63670]
[null,null,null,null,null,null,"Supplies",63671]
[null,null,null,null,null,null,"Supplies",63672]
[null,null,null,null,null,null,"Supplies",63673]
[null,null,null,null,null,null,"Supplies",63674]
[null,null,null,null,null,null,"Supplies",63675]
[null,null,null,null,null,null,"Supplies",63676]
[null,null,null,null,null,null,"Supplies",63677]
[null,null,null,null,null,null,"Supplies",63678]
[null,null,null,null,null,null,"Supplies",63679]
[null,null,null,null,null,null,"Supplies",63680]
[null,null,null,null,null,null,"Supplies",63681]
[null,null,null,null,null,null,"Supplies",63682]
[null,null,null,null,null,null,"Supplies",63683]
[null,null,null,null,null,null,"Supplies",63684]
[null,null,null,null,null,null,"Supplies",63685]
[null,null,null,null,null,null,"Supplies",63686]
[null,null,null,null,null,null,"Supplies",63687]
[null,null,null,null,null,null,"Supplies",63688]
[null,null,null,null,null,null,"Supplies",63689]
[null,null,null,null,null,null,"Supplies",63690]
[null,null,null,null,null,null,"Supplies",63691]
[null,null,null,null,null,null,"Supplies",63692]
[null,null,null,null,null,null,"Supplies",63693]
[null,null,null,null,null,null,"Supplies",63694]
[null,null,null,null,null,null,"Supplies",63695]
[null,null,null,null,null,null,"Supplies",63696]
[null,null,null,null,null,null,"Supplies",63697]
[null,null,null,null,null,null,"Supplies",63698]
[null,null,null,null,null,null,"Supplies",63699]
[null,null,null,null,null,null,"Utilities - SIL",63700]
[null,null,null,null,null,null,"Utilities - SIL",63701]
[null,null,null,null,null,null,"Utilities - SIL",63702]
[null,null,null,null,null,null,"Utilities - SIL",63703]
[null,null,null,null,null,null,"Utilities - SIL",63704]
[null,null,null,null,null,null,"Utilities - SIL",63705]
[null,null,null,null,null,null,"Utilities - SIL",63706]
[null,null,null,null,null,null,"Utilities - SIL",63707]
[null,null,null,null,null,null,"Utilities - SIL",63708]
[null,null,null,null,null,null,"Utilities - SIL",63709]
[null,null,null,null,null,null,"Electricity",63710]
[null,null,null,null,null,null,"Electricity",63711]
[null,null,null,null,null,null,"Electricity",63712]
[null,null,null,null,null,null,"Electricity",63713]
[null,null,null,null,null,null,"Electricity",63714]
[null,null,null,null,null,null,"Electricity",63715]
[null,null,null,null,null,null,"Electricity",63716]
[null,null,null,null,null,null,"Electricity",63717]
[null,null,null,null,null,null,"Electricity",63718]
[null,null,null,null,null,null,"Electricity",63719]
[null,null,null,null,null,null,"Gas",63720]
[null,null,null,null,null,null,"Gas",63721]
[null,null,null,null,null,null,"Gas",63722]
[null,null,null,null,null,null,"Gas",63723]
[null,null,null,null,null,null,"Gas",63724]
[null,null,null,null,null,null,"Gas",63725]
[null,null,null,null,null,null,"Gas",63726]
[null,null,null,null,null,null,"Gas",63727]
[null,null,null,null,null,null,"Gas",63728]
[null,null,null,null,null,null,"Gas",63729]
[null,null,null,null,null,null,"Water",63730]
[null,null,null,null,null,null,"Water",63731]
[null,null,null,null,null,null,"Water",63732]
[null,null,null,null,null,null,"Water",63733]
[null,null,null,null,null,null,"Water",63734]
[null,null,null,null,null,null,"Water",63735]
[null,null,null,null,null,null,"Water",63736]
[null,null,null,null,null,null,"Water",63737]
[null,null,null,null,null,null,"Water",63738]
[null,null,null,null,null,null,"Water",63739]
[null,null,null,null,null,null,"Communications",63740]
[null,null,null,null,null,null,"Communications",63741]
[null,null,null,null,null,null,"Communications",63742]
[null,null,null,null,null,null,"Communications",63743]
[null,null,null,null,null,null,"Communications",63744]
[null,null,null,null,null,null,"Communications",63745]
[null,null,null,null,null,null,"Communications",63746]
[null,null,null,null,null,null,"Communications",63747]
[null,null,null,null,null,null,"Communications",63748]
[null,null,null,null,null,null,"Communications",63749]
[null,null,null,null,null,null,"Communications",63750]
[null,null,null,null,null,null,"Communications",63751]
[null,null,null,null,null,null,"Communications",63752]
[null,null,null,null,null,null,"Communications",63753]
[null,null,null,null,null,null,"Communications",63754]
[null,null,null,null,null,null,"Communications",63755]
[null,null,null,null,null,null,"Communications",63756]
[null,null,null,null,null,null,"Communications",63757]
[null,null,null,null,null,null,"Communications",63758]
[null,null,null,null,null,null,"Communications",63759]
[null,null,null,null,null,null,"Communications",63760]
[null,null,null,null,null,null,"Communications",63761]
[null,null,null,null,null,null,"Communications",63762]
[null,null,null,null,null,null,"Communications",63763]
[null,null,null,null,null,null,"Communications",63764]
[null,null,null,null,null,null,"Communications",63765]
[null,null,null,null,null,null,"Communications",63766]
[null,null,null,null,null,null,"Communications",63767]
[null,null,null,null,null,null,"Communications",63768]
[null,null,null,null,null,null,"Communications",63769]
[null,null,null,null,null,null,"Communications",63770]
[null,null,null,null,null,null,"Communications",63771]
[null,null,null,null,null,null,"Communications",63772]
[null,null,null,null,null,null,"Communications",63773]
[null,null,null,null,null,null,"Communications",63774]
[null,null,null,null,null,null,"Communications",63775]
[null,null,null,null,null,null,"Communications",63776]
[null,null,null,null,null,null,"Communications",63777]
[null,null,null,null,null,null,"Communications",63778]
[null,null,null,null,null,null,"Communications",63779]
[null,null,null,null,null,null,"Communications",63780]
[null,null,null,null,null,null,"Communications",63781]
[null,null,null,null,null,null,"Communications",63782]
[null,null,null,null,null,null,"Communications",63783]
[null,null,null,null,null,null,"Communications",63784]
[null,null,null,null,null,null,"Communications",63785]
[null,null,null,null,null,null,"Communications",63786]
[null,null,null,null,null,null,"Communications",63787]
[null,null,null,null,null,null,"Communications",63788]
[null,null,null,null,null,null,"Communications",63789]
[null,null,null,null,null,null,"Communications",63790]
[null,null,null,null,null,null,"Communications",63791]
[null,null,null,null,null,null,"Communications",63792]
[null,null,null,null,null,null,"Communications",63793]
[null,null,null,null,null,null,"Communications",63794]
[null,null,null,null,null,null,"Communications",63795]
[null,null,null,null,null,null,"Communications",63796]
[null,null,null,null,null,null,"Communications",63797]
[null,null,null,null,null,null,"Communications",63798]
[null,null,null,null,null,null,"Communications",63799]
[null,null,null,null,null,null,"Rent & Security Expense",63800]
[null,null,null,null,null,null,"Rent & Security Expense",63801]
[null,null,null,null,null,null,"Rent & Security Expense",63802]
[null,null,null,null,null,null,"Rent & Security Expense",63803]
[null,null,null,null,null,null,"Rent & Security Expense",63804]
[null,null,null,null,null,null,"Rent & Security Expense",63805]
[null,null,null,null,null,null,"Rent & Security Expense",63806]
[null,null,null,null,null,null,"Rent & Security Expense",63807]
[null,null,null,null,null,null,"Rent & Security Expense",63808]
[null,null,null,null,null,null,"Rent & Security Expense",63809]
[null,null,null,null,null,null,"Rent & Security Expense",63810]
[null,null,null,null,null,null,"Rent & Security Expense",63811]
[null,null,null,null,null,null,"Rent & Security Expense",63812]
[null,null,null,null,null,null,"Rent & Security Expense",63813]
[null,null,null,null,null,null,"Rent & Security Expense",63814]
[null,null,null,null,null,null,"Rent & Security Expense",63815]
[null,null,null,null,null,null,"Rent & Security Expense",63816]
[null,null,null,null,null,null,"Rent & Security Expense",63817]
[null,null,null,null,null,null,"Rent & Security Expense",63818]
[null,null,null,null,null,null,"Rent & Security Expense",63819]
[null,null,null,null,null,null,"Equipment Leases",63820]
[null,null,null,null,null,null,"Equipment Leases",63821]
[null,null,null,null,null,null,"Equipment Leases",63822]
[null,null,null,null,null,null,"Equipment Leases",63823]
[null,null,null,null,null,null,"Equipment Leases",63824]
[null,null,null,null,null,null,"Equipment Leases",63825]
[null,null,null,null,null,null,"Equipment Leases",63826]
[null,null,null,null,null,null,"Equipment Leases",63827]
[null,null,null,null,null,null,"Equipment Leases",63828]
[null,null,null,null,null,null,"Equipment Leases",63829]
[null,null,null,null,null,null,"Equipment Leases",63830]
[null,null,null,null,null,null,"Equipment Leases",63831]
[null,null,null,null,null,null,"Equipment Leases",63832]
[null,null,null,null,null,null,"Equipment Leases",63833]
[null,null,null,null,null,null,"Equipment Leases",63834]
[null,null,null,null,null,null,"Equipment Leases",63835]
[null,null,null,null,null,null,"Equipment Leases",63836]
[null,null,null,null,null,null,"Equipment Leases",63837]
[null,null,null,null,null,null,"Equipment Leases",63838]
[null,null,null,null,null,null,"Equipment Leases",63839]
[null,null,null,null,null,null,"Equipment Leases",63840]
[null,null,null,null,null,null,"Equipment Leases",63841]
[null,null,null,null,null,null,"Equipment Leases",63842]
[null,null,null,null,null,null,"Equipment Leases",63843]
[null,null,null,null,null,null,"Equipment Leases",63844]
[null,null,null,null,null,null,"Equipment Leases",63845]
[null,null,null,null,null,null,"Equipment Leases",63846]
[null,null,null,null,null,null,"Equipment Leases",63847]
[null,null,null,null,null,null,"Equipment Leases",63848]
[null,null,null,null,null,null,"Equipment Leases",63849]
[null,null,null,null,null,null,"Property Taxes",63850]
[null,null,null,null,null,null,"Property Taxes",63851]
[null,null,null,null,null,null,"Property Taxes",63852]
[null,null,null,null,null,null,"Property Taxes",63853]
[null,null,null,null,null,null,"Property Taxes",63854]
[null,null,null,null,null,null,"Property Taxes",63855]
[null,null,null,null,null,null,"Property Taxes",63856]
[null,null,null,null,null,null,"Property Taxes",63857]
[null,null,null,null,null,null,"Property Taxes",63858]
[null,null,null,null,null,null,"Property Taxes",63859]
[null,null,null,null,null,null,"Property Taxes",63860]
[null,null,null,null,null,null,"Property Taxes",63861]
[null,null,null,null,null,null,"Property Taxes",63862]
[null,null,null,null,null,null,"Property Taxes",63863]
[null,null,null,null,null,null,"Property Taxes",63864]
[null,null,null,null,null,null,"Property Taxes",63865]
[null,null,null,null,null,null,"Property Taxes",63866]
[null,null,null,null,null,null,"Property Taxes",63867]
[null,null,null,null,null,null,"Property Taxes",63868]
[null,null,null,null,null,null,"Property Taxes",63869]
[null,null,null,null,null,null,"Property Taxes",63870]
[null,null,null,null,null,null,"Property Taxes",63871]
[null,null,null,null,null,null,"Property Taxes",63872]
[null,null,null,null,null,null,"Property Taxes",63873]
[null,null,null,null,null,null,"Property Taxes",63874]
[null,null,null,null,null,null,"Property Taxes",63875]
[null,null,null,null,null,null,"Property Taxes",63876]
[null,null,null,null,null,null,"Property Taxes",63877]
[null,null,null,null,null,null,"Property Taxes",63878]
[null,null,null,null,null,null,"Property Taxes",63879]
[null,null,null,null,null,null,"Property Taxes",63880]
[null,null,null,null,null,null,"Property Taxes",63881]
[null,null,null,null,null,null,"Property Taxes",63882]
[null,null,null,null,null,null,"Property Taxes",63883]
[null,null,null,null,null,null,"Property Taxes",63884]
[null,null,null,null,null,null,"Property Taxes",63885]
[null,null,null,null,null,null,"Property Taxes",63886]
[null,null,null,null,null,null,"Property Taxes",63887]
[null,null,null,null,null,null,"Property Taxes",63888]
[null,null,null,null,null,null,"Property Taxes",63889]
[null,null,null,null,null,null,"Property Taxes",63890]
[null,null,null,null,null,null,"Property Taxes",63891]
[null,null,null,null,null,null,"Property Taxes",63892]
[null,null,null,null,null,null,"Property Taxes",63893]
[null,null,null,null,null,null,"Property Taxes",63894]
[null,null,null,null,null,null,"Property Taxes",63895]
[null,null,null,null,null,null,"Property Taxes",63896]
[null,null,null,null,null,null,"Property Taxes",63897]
[null,null,null,null,null,null,"Property Taxes",63898]
[null,null,null,null,null,null,"Property Taxes",63899]
[null,null,null,null,null,null,"Travel",64100]
[null,null,null,null,null,null,"Travel",64100]
[null,null,null,null,null,null,"Travel",64100]
[null,null,null,null,null,null,"Travel",64100]
[null,null,null,null,null,null,"Travel",64100]
[null,null,null,null,null,null,"Travel",64100]
[null,null,null,null,null,null,"Travel",64100]
[null,null,null,null,null,null,"Travel",64101]
[null,null,null,null,null,null,"Travel",64101]
[null,null,null,null,null,null,"Travel",64101]
[null,null,null,null,null,null,"Travel",64101]
[null,null,null,null,null,null,"Travel",64101]
[null,null,null,null,null,null,"Travel",64101]
[null,null,null,null,null,null,"Travel",64101]
[null,null,null,null,null,null,"Travel",64102]
[null,null,null,null,null,null,"Travel",64102]
[null,null,null,null,null,null,"Travel",64102]
[null,null,null,null,null,null,"Travel",64102]
[null,null,null,null,null,null,"Travel",64102]
[null,null,null,null,null,null,"Travel",64102]
[null,null,null,null,null,null,"Travel",64102]
[null,null,null,null,null,null,"Travel",64103]
[null,null,null,null,null,null,"Travel",64103]
[null,null,null,null,null,null,"Travel",64103]
[null,null,null,null,null,null,"Travel",64103]
[null,null,null,null,null,null,"Travel",64103]
[null,null,null,null,null,null,"Travel",64103]
[null,null,null,null,null,null,"Travel",64103]
[null,null,null,null,null,null,"Travel",64104]
[null,null,null,null,null,null,"Travel",64104]
[null,null,null,null,null,null,"Travel",64104]
[null,null,null,null,null,null,"Travel",64104]
[null,null,null,null,null,null,"Travel",64104]
[null,null,null,null,null,null,"Travel",64104]
[null,null,null,null,null,null,"Travel",64104]
[null,null,null,null,null,null,"Travel",64105]
[null,null,null,null,null,null,"Travel",64105]
[null,null,null,null,null,null,"Travel",64105]
[null,null,null,null,null,null,"Travel",64105]
[null,null,null,null,null,null,"Travel",64105]
[null,null,null,null,null,null,"Travel",64105]
[null,null,null,null,null,null,"Travel",64105]
[null,null,null,null,null,null,"Travel",64106]
[null,null,null,null,null,null,"Travel",64106]
[null,null,null,null,null,null,"Travel",64106]
[null,null,null,null,null,null,"Travel",64106]
[null,null,null,null,null,null,"Travel",64106]
[null,null,null,null,null,null,"Travel",64106]
[null,null,null,null,null,null,"Travel",64106]
[null,null,null,null,null,null,"Travel",64107]
[null,null,null,null,null,null,"Travel",64107]
[null,null,null,null,null,null,"Travel",64107]
[null,null,null,null,null,null,"Travel",64107]
[null,null,null,null,null,null,"Travel",64107]
[null,null,null,null,null,null,"Travel",64107]
[null,null,null,null,null,null,"Travel",64107]
[null,null,null,null,null,null,"Travel",64108]
[null,null,null,null,null,null,"Travel",64108]
[null,null,null,null,null,null,"Travel",64108]
[null,null,null,null,null,null,"Travel",64108]
[null,null,null,null,null,null,"Travel",64108]
[null,null,null,null,null,null,"Travel",64108]
[null,null,null,null,null,null,"Travel",64108]
[null,null,null,null,null,null,"Travel",64109]
[null,null,null,null,null,null,"Travel",64109]
[null,null,null,null,null,null,"Travel",64109]
[null,null,null,null,null,null,"Travel",64109]
[null,null,null,null,null,null,"Travel",64109]
[null,null,null,null,null,null,"Travel",64109]
[null,null,null,null,null,null,"Travel",64109]
[null,null,null,null,null,null,"Travel",64110]
[null,null,null,null,null,null,"Travel",64110]
[null,null,null,null,null,null,"Travel",64110]
[null,null,null,null,null,null,"Travel",64110]
[null,null,null,null,null,null,"Travel",64110]
[null,null,null,null,null,null,"Travel",64110]
[null,null,null,null,null,null,"Travel",64110]
[null,null,null,null,null,null,"Travel",64111]
[null,null,null,null,null,null,"Travel",64111]
[null,null,null,null,null,null,"Travel",64111]
[null,null,null,null,null,null,"Travel",64111]
[null,null,null,null,null,null,"Travel",64111]
[null,null,null,null,null,null,"Travel",64111]
[null,null,null,null,null,null,"Travel",64111]
[null,null,null,null,null,null,"Travel",64112]
[null,null,null,null,null,null,"Travel",64112]
[null,null,null,null,null,null,"Travel",64112]
[null,null,null,null,null,null,"Travel",64112]
[null,null,null,null,null,null,"Travel",64112]
[null,null,null,null,null,null,"Travel",64112]
[null,null,null,null,null,null,"Travel",64112]
[null,null,null,null,null,null,"Travel",64113]
[null,null,null,null,null,null,"Travel",64113]
[null,null,null,null,null,null,"Travel",64113]
[null,null,null,null,null,null,"Travel",64113]
[null,null,null,null,null,null,"Travel",64113]
[null,null,null,null,null,null,"Travel",64113]
[null,null,null,null,null,null,"Travel",64113]
[null,null,null,null,null,null,"Travel",64114]
[null,null,null,null,null,null,"Travel",64114]
[null,null,null,null,null,null,"Travel",64114]
[null,null,null,null,null,null,"Travel",64114]
[null,null,null,null,null,null,"Travel",64114]
[null,null,null,null,null,null,"Travel",64114]
[null,null,null,null,null,null,"Travel",64114]
[null,null,null,null,null,null,"Travel",64115]
[null,null,null,null,null,null,"Travel",64115]
[null,null,null,null,null,null,"Travel",64115]
[null,null,null,null,null,null,"Travel",64115]
[null,null,null,null,null,null,"Travel",64115]
[null,null,null,null,null,null,"Travel",64115]
[null,null,null,null,null,null,"Travel",64115]
[null,null,null,null,null,null,"Travel",64116]
[null,null,null,null,null,null,"Travel",64116]
[null,null,null,null,null,null,"Travel",64116]
[null,null,null,null,null,null,"Travel",64116]
[null,null,null,null,null,null,"Travel",64116]
[null,null,null,null,null,null,"Travel",64116]
[null,null,null,null,null,null,"Travel",64116]
[null,null,null,null,null,null,"Travel",64117]
[null,null,null,null,null,null,"Travel",64117]
[null,null,null,null,null,null,"Travel",64117]
[null,null,null,null,null,null,"Travel",64117]
[null,null,null,null,null,null,"Travel",64117]
[null,null,null,null,null,null,"Travel",64117]
[null,null,null,null,null,null,"Travel",64117]
[null,null,null,null,null,null,"Travel",64118]
[null,null,null,null,null,null,"Travel",64118]
[null,null,null,null,null,null,"Travel",64118]
[null,null,null,null,null,null,"Travel",64118]
[null,null,null,null,null,null,"Travel",64118]
[null,null,null,null,null,null,"Travel",64118]
[null,null,null,null,null,null,"Travel",64118]
[null,null,null,null,null,null,"Travel",64119]
[null,null,null,null,null,null,"Travel",64119]
[null,null,null,null,null,null,"Travel",64119]
[null,null,null,null,null,null,"Travel",64119]
[null,null,null,null,null,null,"Travel",64119]
[null,null,null,null,null,null,"Travel",64119]
[null,null,null,null,null,null,"Travel",64119]
[null,null,null,null,null,null,"Travel",64120]
[null,null,null,null,null,null,"Travel",64120]
[null,null,null,null,null,null,"Travel",64120]
[null,null,null,null,null,null,"Travel",64120]
[null,null,null,null,null,null,"Travel",64120]
[null,null,null,null,null,null,"Travel",64120]
[null,null,null,null,null,null,"Travel",64120]
[null,null,null,null,null,null,"Travel",64121]
[null,null,null,null,null,null,"Travel",64121]
[null,null,null,null,null,null,"Travel",64121]
[null,null,null,null,null,null,"Travel",64121]
[null,null,null,null,null,null,"Travel",64121]
[null,null,null,null,null,null,"Travel",64121]
[null,null,null,null,null,null,"Travel",64121]
[null,null,null,null,null,null,"Travel",64122]
[null,null,null,null,null,null,"Travel",64122]
[null,null,null,null,null,null,"Travel",64122]
[null,null,null,null,null,null,"Travel",64122]
[null,null,null,null,null,null,"Travel",64122]
[null,null,null,null,null,null,"Travel",64122]
[null,null,null,null,null,null,"Travel",64122]
[null,null,null,null,null,null,"Travel",64123]
[null,null,null,null,null,null,"Travel",64123]
[null,null,null,null,null,null,"Travel",64123]
[null,null,null,null,null,null,"Travel",64123]
[null,null,null,null,null,null,"Travel",64123]
[null,null,null,null,null,null,"Travel",64123]
[null,null,null,null,null,null,"Travel",64123]
[null,null,null,null,null,null,"Travel",64124]
[null,null,null,null,null,null,"Travel",64124]
[null,null,null,null,null,null,"Travel",64124]
[null,null,null,null,null,null,"Travel",64124]
[null,null,null,null,null,null,"Travel",64124]
[null,null,null,null,null,null,"Travel",64124]
[null,null,null,null,null,null,"Travel",64124]
[null,null,null,null,null,null,"Travel",64125]
[null,null,null,null,null,null,"Travel",64125]
[null,null,null,null,null,null,"Travel",64125]
[null,null,null,null,null,null,"Travel",64125]
[null,null,null,null,null,null,"Travel",64125]
[null,null,null,null,null,null,"Travel",64125]
[null,null,null,null,null,null,"Travel",64125]
[null,null,null,null,null,null,"Travel",64126]
[null,null,null,null,null,null,"Travel",64126]
[null,null,null,null,null,null,"Travel",64126]
[null,null,null,null,null,null,"Travel",64126]
[null,null,null,null,null,null,"Travel",64126]
[null,null,null,null,null,null,"Travel",64126]
[null,null,null,null,null,null,"Travel",64126]
[null,null,null,null,null,null,"Travel",64127]
[null,null,null,null,null,null,"Travel",64127]
[null,null,null,null,null,null,"Travel",64127]
[null,null,null,null,null,null,"Travel",64127]
[null,null,null,null,null,null,"Travel",64127]
[null,null,null,null,null,null,"Travel",64127]
[null,null,null,null,null,null,"Travel",64127]
[null,null,null,null,null,null,"Travel",64128]
[null,null,null,null,null,null,"Travel",64128]
[null,null,null,null,null,null,"Travel",64128]
[null,null,null,null,null,null,"Travel",64128]
[null,null,null,null,null,null,"Travel",64128]
[null,null,null,null,null,null,"Travel",64128]
[null,null,null,null,null,null,"Travel",64128]
[null,null,null,null,null,null,"Travel",64129]
[null,null,null,null,null,null,"Travel",64129]
[null,null,null,null,null,null,"Travel",64129]
[null,null,null,null,null,null,"Travel",64129]
[null,null,null,null,null,null,"Travel",64129]
[null,null,null,null,null,null,"Travel",64129]
[null,null,null,null,null,null,"Travel",64129]
[null,null,null,null,null,null,"Travel",64130]
[null,null,null,null,null,null,"Travel",64130]
[null,null,null,null,null,null,"Travel",64130]
[null,null,null,null,null,null,"Travel",64130]
[null,null,null,null,null,null,"Travel",64130]
[null,null,null,null,null,null,"Travel",64130]
[null,null,null,null,null,null,"Travel",64130]
[null,null,null,null,null,null,"Travel",64131]
[null,null,null,null,null,null,"Travel",64131]
[null,null,null,null,null,null,"Travel",64131]
[null,null,null,null,null,null,"Travel",64131]
[null,null,null,null,null,null,"Travel",64131]
[null,null,null,null,null,null,"Travel",64131]
[null,null,null,null,null,null,"Travel",64131]
[null,null,null,null,null,null,"Travel",64132]
[null,null,null,null,null,null,"Travel",64132]
[null,null,null,null,null,null,"Travel",64132]
[null,null,null,null,null,null,"Travel",64132]
[null,null,null,null,null,null,"Travel",64132]
[null,null,null,null,null,null,"Travel",64132]
[null,null,null,null,null,null,"Travel",64132]
[null,null,null,null,null,null,"Travel",64133]
[null,null,null,null,null,null,"Travel",64133]
[null,null,null,null,null,null,"Travel",64133]
[null,null,null,null,null,null,"Travel",64133]
[null,null,null,null,null,null,"Travel",64133]
[null,null,null,null,null,null,"Travel",64133]
[null,null,null,null,null,null,"Travel",64133]
[null,null,null,null,null,null,"Travel",64134]
[null,null,null,null,null,null,"Travel",64134]
[null,null,null,null,null,null,"Travel",64134]
[null,null,null,null,null,null,"Travel",64134]
[null,null,null,null,null,null,"Travel",64134]
[null,null,null,null,null,null,"Travel",64134]
[null,null,null,null,null,null,"Travel",64134]
[null,null,null,null,null,null,"Travel",64135]
[null,null,null,null,null,null,"Travel",64135]
[null,null,null,null,null,null,"Travel",64135]
[null,null,null,null,null,null,"Travel",64135]
[null,null,null,null,null,null,"Travel",64135]
[null,null,null,null,null,null,"Travel",64135]
[null,null,null,null,null,null,"Travel",64135]
[null,null,null,null,null,null,"Travel",64136]
[null,null,null,null,null,null,"Travel",64136]
[null,null,null,null,null,null,"Travel",64136]
[null,null,null,null,null,null,"Travel",64136]
[null,null,null,null,null,null,"Travel",64136]
[null,null,null,null,null,null,"Travel",64136]
[null,null,null,null,null,null,"Travel",64136]
[null,null,null,null,null,null,"Travel",64137]
[null,null,null,null,null,null,"Travel",64137]
[null,null,null,null,null,null,"Travel",64137]
[null,null,null,null,null,null,"Travel",64137]
[null,null,null,null,null,null,"Travel",64137]
[null,null,null,null,null,null,"Travel",64137]
[null,null,null,null,null,null,"Travel",64137]
[null,null,null,null,null,null,"Travel",64138]
[null,null,null,null,null,null,"Travel",64138]
[null,null,null,null,null,null,"Travel",64138]
[null,null,null,null,null,null,"Travel",64138]
[null,null,null,null,null,null,"Travel",64138]
[null,null,null,null,null,null,"Travel",64138]
[null,null,null,null,null,null,"Travel",64138]
[null,null,null,null,null,null,"Travel",64139]
[null,null,null,null,null,null,"Travel",64139]
[null,null,null,null,null,null,"Travel",64139]
[null,null,null,null,null,null,"Travel",64139]
[null,null,null,null,null,null,"Travel",64139]
[null,null,null,null,null,null,"Travel",64139]
[null,null,null,null,null,null,"Travel",64139]
[null,null,null,null,null,null,"Travel",64140]
[null,null,null,null,null,null,"Travel",64140]
[null,null,null,null,null,null,"Travel",64140]
[null,null,null,null,null,null,"Travel",64140]
[null,null,null,null,null,null,"Travel",64140]
[null,null,null,null,null,null,"Travel",64140]
[null,null,null,null,null,null,"Travel",64140]
[null,null,null,null,null,null,"Travel",64141]
[null,null,null,null,null,null,"Travel",64141]
[null,null,null,null,null,null,"Travel",64141]
[null,null,null,null,null,null,"Travel",64141]
[null,null,null,null,null,null,"Travel",64141]
[null,null,null,null,null,null,"Travel",64141]
[null,null,null,null,null,null,"Travel",64141]
[null,null,null,null,null,null,"Travel",64142]
[null,null,null,null,null,null,"Travel",64142]
[null,null,null,null,null,null,"Travel",64142]
[null,null,null,null,null,null,"Travel",64142]
[null,null,null,null,null,null,"Travel",64142]
[null,null,null,null,null,null,"Travel",64142]
[null,null,null,null,null,null,"Travel",64142]
[null,null,null,null,null,null,"Travel",64143]
[null,null,null,null,null,null,"Travel",64143]
[null,null,null,null,null,null,"Travel",64143]
[null,null,null,null,null,null,"Travel",64143]
[null,null,null,null,null,null,"Travel",64143]
[null,null,null,null,null,null,"Travel",64143]
[null,null,null,null,null,null,"Travel",64143]
[null,null,null,null,null,null,"Travel",64144]
[null,null,null,null,null,null,"Travel",64144]
[null,null,null,null,null,null,"Travel",64144]
[null,null,null,null,null,null,"Travel",64144]
[null,null,null,null,null,null,"Travel",64144]
[null,null,null,null,null,null,"Travel",64144]
[null,null,null,null,null,null,"Travel",64144]
[null,null,null,null,null,null,"Travel",64145]
[null,null,null,null,null,null,"Travel",64145]
[null,null,null,null,null,null,"Travel",64145]
[null,null,null,null,null,null,"Travel",64145]
[null,null,null,null,null,null,"Travel",64145]
[null,null,null,null,null,null,"Travel",64145]
[null,null,null,null,null,null,"Travel",64145]
[null,null,null,null,null,null,"Travel",64146]
[null,null,null,null,null,null,"Travel",64146]
[null,null,null,null,null,null,"Travel",64146]
[null,null,null,null,null,null,"Travel",64146]
[null,null,null,null,null,null,"Travel",64146]
[null,null,null,null,null,null,"Travel",64146]
[null,null,null,null,null,null,"Travel",64146]
[null,null,null,null,null,null,"Travel",64147]
[null,null,null,null,null,null,"Travel",64147]
[null,null,null,null,null,null,"Travel",64147]
[null,null,null,null,null,null,"Travel",64147]
[null,null,null,null,null,null,"Travel",64147]
[null,null,null,null,null,null,"Travel",64147]
[null,null,null,null,null,null,"Travel",64147]
[null,null,null,null,null,null,"Travel",64148]
[null,null,null,null,null,null,"Travel",64148]
[null,null,null,null,null,null,"Travel",64148]
[null,null,null,null,null,null,"Travel",64148]
[null,null,null,null,null,null,"Travel",64148]
[null,null,null,null,null,null,"Travel",64148]
[null,null,null,null,null,null,"Travel",64148]
[null,null,null,null,null,null,"Travel",64149]
[null,null,null,null,null,null,"Travel",64149]
[null,null,null,null,null,null,"Travel",64149]
[null,null,null,null,null,null,"Travel",64149]
[null,null,null,null,null,null,"Travel",64149]
[null,null,null,null,null,null,"Travel",64149]
[null,null,null,null,null,null,"Travel",64149]
[null,null,null,null,null,null,"Training Related Travel",64150]
[null,null,null,null,null,null,"Training Related Travel",64150]
[null,null,null,null,null,null,"Training Related Travel",64150]
[null,null,null,null,null,null,"Training Related Travel",64150]
[null,null,null,null,null,null,"Training Related Travel",64150]
[null,null,null,null,null,null,"Training Related Travel",64150]
[null,null,null,null,null,null,"Training Related Travel",64150]
[null,null,null,null,null,null,"Training Related Travel",64151]
[null,null,null,null,null,null,"Training Related Travel",64151]
[null,null,null,null,null,null,"Training Related Travel",64151]
[null,null,null,null,null,null,"Training Related Travel",64151]
[null,null,null,null,null,null,"Training Related Travel",64151]
[null,null,null,null,null,null,"Training Related Travel",64151]
[null,null,null,null,null,null,"Training Related Travel",64151]
[null,null,null,null,null,null,"Training Related Travel",64152]
[null,null,null,null,null,null,"Training Related Travel",64152]
[null,null,null,null,null,null,"Training Related Travel",64152]
[null,null,null,null,null,null,"Training Related Travel",64152]
[null,null,null,null,null,null,"Training Related Travel",64152]
[null,null,null,null,null,null,"Training Related Travel",64152]
[null,null,null,null,null,null,"Training Related Travel",64152]
[null,null,null,null,null,null,"Training Related Travel",64153]
[null,null,null,null,null,null,"Training Related Travel",64153]
[null,null,null,null,null,null,"Training Related Travel",64153]
[null,null,null,null,null,null,"Training Related Travel",64153]
[null,null,null,null,null,null,"Training Related Travel",64153]
[null,null,null,null,null,null,"Training Related Travel",64153]
[null,null,null,null,null,null,"Training Related Travel",64153]
[null,null,null,null,null,null,"Training Related Travel",64154]
[null,null,null,null,null,null,"Training Related Travel",64154]
[null,null,null,null,null,null,"Training Related Travel",64154]
[null,null,null,null,null,null,"Training Related Travel",64154]
[null,null,null,null,null,null,"Training Related Travel",64154]
[null,null,null,null,null,null,"Training Related Travel",64154]
[null,null,null,null,null,null,"Training Related Travel",64154]
[null,null,null,null,null,null,"Training Related Travel",64155]
[null,null,null,null,null,null,"Training Related Travel",64155]
[null,null,null,null,null,null,"Training Related Travel",64155]
[null,null,null,null,null,null,"Training Related Travel",64155]
[null,null,null,null,null,null,"Training Related Travel",64155]
[null,null,null,null,null,null,"Training Related Travel",64155]
[null,null,null,null,null,null,"Training Related Travel",64155]
[null,null,null,null,null,null,"Training Related Travel",64156]
[null,null,null,null,null,null,"Training Related Travel",64156]
[null,null,null,null,null,null,"Training Related Travel",64156]
[null,null,null,null,null,null,"Training Related Travel",64156]
[null,null,null,null,null,null,"Training Related Travel",64156]
[null,null,null,null,null,null,"Training Related Travel",64156]
[null,null,null,null,null,null,"Training Related Travel",64156]
[null,null,null,null,null,null,"Training Related Travel",64157]
[null,null,null,null,null,null,"Training Related Travel",64157]
[null,null,null,null,null,null,"Training Related Travel",64157]
[null,null,null,null,null,null,"Training Related Travel",64157]
[null,null,null,null,null,null,"Training Related Travel",64157]
[null,null,null,null,null,null,"Training Related Travel",64157]
[null,null,null,null,null,null,"Training Related Travel",64157]
[null,null,null,null,null,null,"Training Related Travel",64158]
[null,null,null,null,null,null,"Training Related Travel",64158]
[null,null,null,null,null,null,"Training Related Travel",64158]
[null,null,null,null,null,null,"Training Related Travel",64158]
[null,null,null,null,null,null,"Training Related Travel",64158]
[null,null,null,null,null,null,"Training Related Travel",64158]
[null,null,null,null,null,null,"Training Related Travel",64158]
[null,null,null,null,null,null,"Training Related Travel",64159]
[null,null,null,null,null,null,"Training Related Travel",64159]
[null,null,null,null,null,null,"Training Related Travel",64159]
[null,null,null,null,null,null,"Training Related Travel",64159]
[null,null,null,null,null,null,"Training Related Travel",64159]
[null,null,null,null,null,null,"Training Related Travel",64159]
[null,null,null,null,null,null,"Training Related Travel",64159]
[null,null,null,null,null,null,"Training Related Travel",64160]
[null,null,null,null,null,null,"Training Related Travel",64160]
[null,null,null,null,null,null,"Training Related Travel",64160]
[null,null,null,null,null,null,"Training Related Travel",64160]
[null,null,null,null,null,null,"Training Related Travel",64160]
[null,null,null,null,null,null,"Training Related Travel",64160]
[null,null,null,null,null,null,"Training Related Travel",64160]
[null,null,null,null,null,null,"Training Related Travel",64161]
[null,null,null,null,null,null,"Training Related Travel",64161]
[null,null,null,null,null,null,"Training Related Travel",64161]
[null,null,null,null,null,null,"Training Related Travel",64161]
[null,null,null,null,null,null,"Training Related Travel",64161]
[null,null,null,null,null,null,"Training Related Travel",64161]
[null,null,null,null,null,null,"Training Related Travel",64161]
[null,null,null,null,null,null,"Training Related Travel",64162]
[null,null,null,null,null,null,"Training Related Travel",64162]
[null,null,null,null,null,null,"Training Related Travel",64162]
[null,null,null,null,null,null,"Training Related Travel",64162]
[null,null,null,null,null,null,"Training Related Travel",64162]
[null,null,null,null,null,null,"Training Related Travel",64162]
[null,null,null,null,null,null,"Training Related Travel",64162]
[null,null,null,null,null,null,"Training Related Travel",64163]
[null,null,null,null,null,null,"Training Related Travel",64163]
[null,null,null,null,null,null,"Training Related Travel",64163]
[null,null,null,null,null,null,"Training Related Travel",64163]
[null,null,null,null,null,null,"Training Related Travel",64163]
[null,null,null,null,null,null,"Training Related Travel",64163]
[null,null,null,null,null,null,"Training Related Travel",64163]
[null,null,null,null,null,null,"Training Related Travel",64164]
[null,null,null,null,null,null,"Training Related Travel",64164]
[null,null,null,null,null,null,"Training Related Travel",64164]
[null,null,null,null,null,null,"Training Related Travel",64164]
[null,null,null,null,null,null,"Training Related Travel",64164]
[null,null,null,null,null,null,"Training Related Travel",64164]
[null,null,null,null,null,null,"Training Related Travel",64164]
[null,null,null,null,null,null,"Training Related Travel",64165]
[null,null,null,null,null,null,"Training Related Travel",64165]
[null,null,null,null,null,null,"Training Related Travel",64165]
[null,null,null,null,null,null,"Training Related Travel",64165]
[null,null,null,null,null,null,"Training Related Travel",64165]
[null,null,null,null,null,null,"Training Related Travel",64165]
[null,null,null,null,null,null,"Training Related Travel",64165]
[null,null,null,null,null,null,"Training Related Travel",64166]
[null,null,null,null,null,null,"Training Related Travel",64166]
[null,null,null,null,null,null,"Training Related Travel",64166]
[null,null,null,null,null,null,"Training Related Travel",64166]
[null,null,null,null,null,null,"Training Related Travel",64166]
[null,null,null,null,null,null,"Training Related Travel",64166]
[null,null,null,null,null,null,"Training Related Travel",64166]
[null,null,null,null,null,null,"Training Related Travel",64167]
[null,null,null,null,null,null,"Training Related Travel",64167]
[null,null,null,null,null,null,"Training Related Travel",64167]
[null,null,null,null,null,null,"Training Related Travel",64167]
[null,null,null,null,null,null,"Training Related Travel",64167]
[null,null,null,null,null,null,"Training Related Travel",64167]
[null,null,null,null,null,null,"Training Related Travel",64167]
[null,null,null,null,null,null,"Training Related Travel",64168]
[null,null,null,null,null,null,"Training Related Travel",64168]
[null,null,null,null,null,null,"Training Related Travel",64168]
[null,null,null,null,null,null,"Training Related Travel",64168]
[null,null,null,null,null,null,"Training Related Travel",64168]
[null,null,null,null,null,null,"Training Related Travel",64168]
[null,null,null,null,null,null,"Training Related Travel",64168]
[null,null,null,null,null,null,"Training Related Travel",64169]
[null,null,null,null,null,null,"Training Related Travel",64169]
[null,null,null,null,null,null,"Training Related Travel",64169]
[null,null,null,null,null,null,"Training Related Travel",64169]
[null,null,null,null,null,null,"Training Related Travel",64169]
[null,null,null,null,null,null,"Training Related Travel",64169]
[null,null,null,null,null,null,"Training Related Travel",64169]
[null,null,null,null,null,null,"Training Related Travel",64170]
[null,null,null,null,null,null,"Training Related Travel",64170]
[null,null,null,null,null,null,"Training Related Travel",64170]
[null,null,null,null,null,null,"Training Related Travel",64170]
[null,null,null,null,null,null,"Training Related Travel",64170]
[null,null,null,null,null,null,"Training Related Travel",64170]
[null,null,null,null,null,null,"Training Related Travel",64170]
[null,null,null,null,null,null,"Training Related Travel",64171]
[null,null,null,null,null,null,"Training Related Travel",64171]
[null,null,null,null,null,null,"Training Related Travel",64171]
[null,null,null,null,null,null,"Training Related Travel",64171]
[null,null,null,null,null,null,"Training Related Travel",64171]
[null,null,null,null,null,null,"Training Related Travel",64171]
[null,null,null,null,null,null,"Training Related Travel",64171]
[null,null,null,null,null,null,"Training Related Travel",64172]
[null,null,null,null,null,null,"Training Related Travel",64172]
[null,null,null,null,null,null,"Training Related Travel",64172]
[null,null,null,null,null,null,"Training Related Travel",64172]
[null,null,null,null,null,null,"Training Related Travel",64172]
[null,null,null,null,null,null,"Training Related Travel",64172]
[null,null,null,null,null,null,"Training Related Travel",64172]
[null,null,null,null,null,null,"Training Related Travel",64173]
[null,null,null,null,null,null,"Training Related Travel",64173]
[null,null,null,null,null,null,"Training Related Travel",64173]
[null,null,null,null,null,null,"Training Related Travel",64173]
[null,null,null,null,null,null,"Training Related Travel",64173]
[null,null,null,null,null,null,"Training Related Travel",64173]
[null,null,null,null,null,null,"Training Related Travel",64173]
[null,null,null,null,null,null,"Training Related Travel",64174]
[null,null,null,null,null,null,"Training Related Travel",64174]
[null,null,null,null,null,null,"Training Related Travel",64174]
[null,null,null,null,null,null,"Training Related Travel",64174]
[null,null,null,null,null,null,"Training Related Travel",64174]
[null,null,null,null,null,null,"Training Related Travel",64174]
[null,null,null,null,null,null,"Training Related Travel",64174]
[null,null,null,null,null,null,"Training Related Travel",64175]
[null,null,null,null,null,null,"Training Related Travel",64175]
[null,null,null,null,null,null,"Training Related Travel",64175]
[null,null,null,null,null,null,"Training Related Travel",64175]
[null,null,null,null,null,null,"Training Related Travel",64175]
[null,null,null,null,null,null,"Training Related Travel",64175]
[null,null,null,null,null,null,"Training Related Travel",64175]
[null,null,null,null,null,null,"Training Related Travel",64176]
[null,null,null,null,null,null,"Training Related Travel",64176]
[null,null,null,null,null,null,"Training Related Travel",64176]
[null,null,null,null,null,null,"Training Related Travel",64176]
[null,null,null,null,null,null,"Training Related Travel",64176]
[null,null,null,null,null,null,"Training Related Travel",64176]
[null,null,null,null,null,null,"Training Related Travel",64176]
[null,null,null,null,null,null,"Training Related Travel",64177]
[null,null,null,null,null,null,"Training Related Travel",64177]
[null,null,null,null,null,null,"Training Related Travel",64177]
[null,null,null,null,null,null,"Training Related Travel",64177]
[null,null,null,null,null,null,"Training Related Travel",64177]
[null,null,null,null,null,null,"Training Related Travel",64177]
[null,null,null,null,null,null,"Training Related Travel",64177]
[null,null,null,null,null,null,"Training Related Travel",64178]
[null,null,null,null,null,null,"Training Related Travel",64178]
[null,null,null,null,null,null,"Training Related Travel",64178]
[null,null,null,null,null,null,"Training Related Travel",64178]
[null,null,null,null,null,null,"Training Related Travel",64178]
[null,null,null,null,null,null,"Training Related Travel",64178]
[null,null,null,null,null,null,"Training Related Travel",64178]
[null,null,null,null,null,null,"Training Related Travel",64179]
[null,null,null,null,null,null,"Training Related Travel",64179]
[null,null,null,null,null,null,"Training Related Travel",64179]
[null,null,null,null,null,null,"Training Related Travel",64179]
[null,null,null,null,null,null,"Training Related Travel",64179]
[null,null,null,null,null,null,"Training Related Travel",64179]
[null,null,null,null,null,null,"Training Related Travel",64179]
[null,null,null,null,null,null,"Training Related Travel",64180]
[null,null,null,null,null,null,"Training Related Travel",64180]
[null,null,null,null,null,null,"Training Related Travel",64180]
[null,null,null,null,null,null,"Training Related Travel",64180]
[null,null,null,null,null,null,"Training Related Travel",64180]
[null,null,null,null,null,null,"Training Related Travel",64180]
[null,null,null,null,null,null,"Training Related Travel",64180]
[null,null,null,null,null,null,"Training Related Travel",64181]
[null,null,null,null,null,null,"Training Related Travel",64181]
[null,null,null,null,null,null,"Training Related Travel",64181]
[null,null,null,null,null,null,"Training Related Travel",64181]
[null,null,null,null,null,null,"Training Related Travel",64181]
[null,null,null,null,null,null,"Training Related Travel",64181]
[null,null,null,null,null,null,"Training Related Travel",64181]
[null,null,null,null,null,null,"Training Related Travel",64182]
[null,null,null,null,null,null,"Training Related Travel",64182]
[null,null,null,null,null,null,"Training Related Travel",64182]
[null,null,null,null,null,null,"Training Related Travel",64182]
[null,null,null,null,null,null,"Training Related Travel",64182]
[null,null,null,null,null,null,"Training Related Travel",64182]
[null,null,null,null,null,null,"Training Related Travel",64182]
[null,null,null,null,null,null,"Training Related Travel",64183]
[null,null,null,null,null,null,"Training Related Travel",64183]
[null,null,null,null,null,null,"Training Related Travel",64183]
[null,null,null,null,null,null,"Training Related Travel",64183]
[null,null,null,null,null,null,"Training Related Travel",64183]
[null,null,null,null,null,null,"Training Related Travel",64183]
[null,null,null,null,null,null,"Training Related Travel",64183]
[null,null,null,null,null,null,"Training Related Travel",64184]
[null,null,null,null,null,null,"Training Related Travel",64184]
[null,null,null,null,null,null,"Training Related Travel",64184]
[null,null,null,null,null,null,"Training Related Travel",64184]
[null,null,null,null,null,null,"Training Related Travel",64184]
[null,null,null,null,null,null,"Training Related Travel",64184]
[null,null,null,null,null,null,"Training Related Travel",64184]
[null,null,null,null,null,null,"Training Related Travel",64185]
[null,null,null,null,null,null,"Training Related Travel",64185]
[null,null,null,null,null,null,"Training Related Travel",64185]
[null,null,null,null,null,null,"Training Related Travel",64185]
[null,null,null,null,null,null,"Training Related Travel",64185]
[null,null,null,null,null,null,"Training Related Travel",64185]
[null,null,null,null,null,null,"Training Related Travel",64185]
[null,null,null,null,null,null,"Training Related Travel",64186]
[null,null,null,null,null,null,"Training Related Travel",64186]
[null,null,null,null,null,null,"Training Related Travel",64186]
[null,null,null,null,null,null,"Training Related Travel",64186]
[null,null,null,null,null,null,"Training Related Travel",64186]
[null,null,null,null,null,null,"Training Related Travel",64186]
[null,null,null,null,null,null,"Training Related Travel",64186]
[null,null,null,null,null,null,"Training Related Travel",64187]
[null,null,null,null,null,null,"Training Related Travel",64187]
[null,null,null,null,null,null,"Training Related Travel",64187]
[null,null,null,null,null,null,"Training Related Travel",64187]
[null,null,null,null,null,null,"Training Related Travel",64187]
[null,null,null,null,null,null,"Training Related Travel",64187]
[null,null,null,null,null,null,"Training Related Travel",64187]
[null,null,null,null,null,null,"Training Related Travel",64188]
[null,null,null,null,null,null,"Training Related Travel",64188]
[null,null,null,null,null,null,"Training Related Travel",64188]
[null,null,null,null,null,null,"Training Related Travel",64188]
[null,null,null,null,null,null,"Training Related Travel",64188]
[null,null,null,null,null,null,"Training Related Travel",64188]
[null,null,null,null,null,null,"Training Related Travel",64188]
[null,null,null,null,null,null,"Training Related Travel",64189]
[null,null,null,null,null,null,"Training Related Travel",64189]
[null,null,null,null,null,null,"Training Related Travel",64189]
[null,null,null,null,null,null,"Training Related Travel",64189]
[null,null,null,null,null,null,"Training Related Travel",64189]
[null,null,null,null,null,null,"Training Related Travel",64189]
[null,null,null,null,null,null,"Training Related Travel",64189]
[null,null,null,null,null,null,"Training Related Travel",64190]
[null,null,null,null,null,null,"Training Related Travel",64190]
[null,null,null,null,null,null,"Training Related Travel",64190]
[null,null,null,null,null,null,"Training Related Travel",64190]
[null,null,null,null,null,null,"Training Related Travel",64190]
[null,null,null,null,null,null,"Training Related Travel",64190]
[null,null,null,null,null,null,"Training Related Travel",64190]
[null,null,null,null,null,null,"Training Related Travel",64191]
[null,null,null,null,null,null,"Training Related Travel",64191]
[null,null,null,null,null,null,"Training Related Travel",64191]
[null,null,null,null,null,null,"Training Related Travel",64191]
[null,null,null,null,null,null,"Training Related Travel",64191]
[null,null,null,null,null,null,"Training Related Travel",64191]
[null,null,null,null,null,null,"Training Related Travel",64191]
[null,null,null,null,null,null,"Training Related Travel",64192]
[null,null,null,null,null,null,"Training Related Travel",64192]
[null,null,null,null,null,null,"Training Related Travel",64192]
[null,null,null,null,null,null,"Training Related Travel",64192]
[null,null,null,null,null,null,"Training Related Travel",64192]
[null,null,null,null,null,null,"Training Related Travel",64192]
[null,null,null,null,null,null,"Training Related Travel",64192]
[null,null,null,null,null,null,"Training Related Travel",64193]
[null,null,null,null,null,null,"Training Related Travel",64193]
[null,null,null,null,null,null,"Training Related Travel",64193]
[null,null,null,null,null,null,"Training Related Travel",64193]
[null,null,null,null,null,null,"Training Related Travel",64193]
[null,null,null,null,null,null,"Training Related Travel",64193]
[null,null,null,null,null,null,"Training Related Travel",64193]
[null,null,null,null,null,null,"Training Related Travel",64194]
[null,null,null,null,null,null,"Training Related Travel",64194]
[null,null,null,null,null,null,"Training Related Travel",64194]
[null,null,null,null,null,null,"Training Related Travel",64194]
[null,null,null,null,null,null,"Training Related Travel",64194]
[null,null,null,null,null,null,"Training Related Travel",64194]
[null,null,null,null,null,null,"Training Related Travel",64194]
[null,null,null,null,null,null,"Training Related Travel",64195]
[null,null,null,null,null,null,"Training Related Travel",64195]
[null,null,null,null,null,null,"Training Related Travel",64195]
[null,null,null,null,null,null,"Training Related Travel",64195]
[null,null,null,null,null,null,"Training Related Travel",64195]
[null,null,null,null,null,null,"Training Related Travel",64195]
[null,null,null,null,null,null,"Training Related Travel",64195]
[null,null,null,null,null,null,"Training Related Travel",64196]
[null,null,null,null,null,null,"Training Related Travel",64196]
[null,null,null,null,null,null,"Training Related Travel",64196]
[null,null,null,null,null,null,"Training Related Travel",64196]
[null,null,null,null,null,null,"Training Related Travel",64196]
[null,null,null,null,null,null,"Training Related Travel",64196]
[null,null,null,null,null,null,"Training Related Travel",64196]
[null,null,null,null,null,null,"Training Related Travel",64197]
[null,null,null,null,null,null,"Training Related Travel",64197]
[null,null,null,null,null,null,"Training Related Travel",64197]
[null,null,null,null,null,null,"Training Related Travel",64197]
[null,null,null,null,null,null,"Training Related Travel",64197]
[null,null,null,null,null,null,"Training Related Travel",64197]
[null,null,null,null,null,null,"Training Related Travel",64197]
[null,null,null,null,null,null,"Training Related Travel",64198]
[null,null,null,null,null,null,"Training Related Travel",64198]
[null,null,null,null,null,null,"Training Related Travel",64198]
[null,null,null,null,null,null,"Training Related Travel",64198]
[null,null,null,null,null,null,"Training Related Travel",64198]
[null,null,null,null,null,null,"Training Related Travel",64198]
[null,null,null,null,null,null,"Training Related Travel",64198]
[null,null,null,null,null,null,"Training Related Travel",64199]
[null,null,null,null,null,null,"Training Related Travel",64199]
[null,null,null,null,null,null,"Training Related Travel",64199]
[null,null,null,null,null,null,"Training Related Travel",64199]
[null,null,null,null,null,null,"Training Related Travel",64199]
[null,null,null,null,null,null,"Training Related Travel",64199]
[null,null,null,null,null,null,"Training Related Travel",64199]
[null,null,null,null,null,null,"Postage",64200]
[null,null,null,null,null,null,"Postage",64201]
[null,null,null,null,null,null,"Postage",64202]
[null,null,null,null,null,null,"Postage",64203]
[null,null,null,null,null,null,"Postage",64204]
[null,null,null,null,null,null,"Postage",64205]
[null,null,null,null,null,null,"Postage",64206]
[null,null,null,null,null,null,"Postage",64207]
[null,null,null,null,null,null,"Postage",64208]
[null,null,null,null,null,null,"Postage",64209]
[null,null,null,null,null,null,"Postage",64210]
[null,null,null,null,null,null,"Postage",64211]
[null,null,null,null,null,null,"Postage",64212]
[null,null,null,null,null,null,"Postage",64213]
[null,null,null,null,null,null,"Postage",64214]
[null,null,null,null,null,null,"Postage",64215]
[null,null,null,null,null,null,"Postage",64216]
[null,null,null,null,null,null,"Postage",64217]
[null,null,null,null,null,null,"Postage",64218]
[null,null,null,null,null,null,"Postage",64219]
[null,null,null,null,null,null,"Postage",64220]
[null,null,null,null,null,null,"Postage",64221]
[null,null,null,null,null,null,"Postage",64222]
[null,null,null,null,null,null,"Postage",64223]
[null,null,null,null,null,null,"Postage",64224]
[null,null,null,null,null,null,"Postage",64225]
[null,null,null,null,null,null,"Postage",64226]
[null,null,null,null,null,null,"Postage",64227]
[null,null,null,null,null,null,"Postage",64228]
[null,null,null,null,null,null,"Postage",64229]
[null,null,null,null,null,null,"Postage",64230]
[null,null,null,null,null,null,"Postage",64231]
[null,null,null,null,null,null,"Postage",64232]
[null,null,null,null,null,null,"Postage",64233]
[null,null,null,null,null,null,"Postage",64234]
[null,null,null,null,null,null,"Postage",64235]
[null,null,null,null,null,null,"Postage",64236]
[null,null,null,null,null,null,"Postage",64237]
[null,null,null,null,null,null,"Postage",64238]
[null,null,null,null,null,null,"Postage",64239]
[null,null,null,null,null,null,"Postage",64240]
[null,null,null,null,null,null,"Postage",64241]
[null,null,null,null,null,null,"Postage",64242]
[null,null,null,null,null,null,"Postage",64243]
[null,null,null,null,null,null,"Postage",64244]
[null,null,null,null,null,null,"Postage",64245]
[null,null,null,null,null,null,"Postage",64246]
[null,null,null,null,null,null,"Postage",64247]
[null,null,null,null,null,null,"Postage",64248]
[null,null,null,null,null,null,"Postage",64249]
[null,null,null,null,null,null,"Postage",64250]
[null,null,null,null,null,null,"Postage",64251]
[null,null,null,null,null,null,"Postage",64252]
[null,null,null,null,null,null,"Postage",64253]
[null,null,null,null,null,null,"Postage",64254]
[null,null,null,null,null,null,"Postage",64255]
[null,null,null,null,null,null,"Postage",64256]
[null,null,null,null,null,null,"Postage",64257]
[null,null,null,null,null,null,"Postage",64258]
[null,null,null,null,null,null,"Postage",64259]
[null,null,null,null,null,null,"Postage",64260]
[null,null,null,null,null,null,"Postage",64261]
[null,null,null,null,null,null,"Postage",64262]
[null,null,null,null,null,null,"Postage",64263]
[null,null,null,null,null,null,"Postage",64264]
[null,null,null,null,null,null,"Postage",64265]
[null,null,null,null,null,null,"Postage",64266]
[null,null,null,null,null,null,"Postage",64267]
[null,null,null,null,null,null,"Postage",64268]
[null,null,null,null,null,null,"Postage",64269]
[null,null,null,null,null,null,"Postage",64270]
[null,null,null,null,null,null,"Postage",64271]
[null,null,null,null,null,null,"Postage",64272]
[null,null,null,null,null,null,"Postage",64273]
[null,null,null,null,null,null,"Postage",64274]
[null,null,null,null,null,null,"Postage",64275]
[null,null,null,null,null,null,"Postage",64276]
[null,null,null,null,null,null,"Postage",64277]
[null,null,null,null,null,null,"Postage",64278]
[null,null,null,null,null,null,"Postage",64279]
[null,null,null,null,null,null,"Postage",64280]
[null,null,null,null,null,null,"Postage",64281]
[null,null,null,null,null,null,"Postage",64282]
[null,null,null,null,null,null,"Postage",64283]
[null,null,null,null,null,null,"Postage",64284]
[null,null,null,null,null,null,"Postage",64285]
[null,null,null,null,null,null,"Postage",64286]
[null,null,null,null,null,null,"Postage",64287]
[null,null,null,null,null,null,"Postage",64288]
[null,null,null,null,null,null,"Postage",64289]
[null,null,null,null,null,null,"Postage",64290]
[null,null,null,null,null,null,"Postage",64291]
[null,null,null,null,null,null,"Postage",64292]
[null,null,null,null,null,null,"Postage",64293]
[null,null,null,null,null,null,"Postage",64294]
[null,null,null,null,null,null,"Postage",64295]
[null,null,null,null,null,null,"Postage",64296]
[null,null,null,null,null,null,"Postage",64297]
[null,null,null,null,null,null,"Postage",64298]
[null,null,null,null,null,null,"Postage",64299]
[null,null,null,null,null,null,"Printing And Media Production",64300]
[null,null,null,null,null,null,"Printing And Media Production",64300]
[null,null,null,null,null,null,"Printing And Media Production",64300]
[null,null,null,null,null,null,"Printing And Media Production",64301]
[null,null,null,null,null,null,"Printing And Media Production",64301]
[null,null,null,null,null,null,"Printing And Media Production",64301]
[null,null,null,null,null,null,"Printing And Media Production",64302]
[null,null,null,null,null,null,"Printing And Media Production",64302]
[null,null,null,null,null,null,"Printing And Media Production",64302]
[null,null,null,null,null,null,"Printing And Media Production",64303]
[null,null,null,null,null,null,"Printing And Media Production",64303]
[null,null,null,null,null,null,"Printing And Media Production",64303]
[null,null,null,null,null,null,"Printing And Media Production",64304]
[null,null,null,null,null,null,"Printing And Media Production",64304]
[null,null,null,null,null,null,"Printing And Media Production",64304]
[null,null,null,null,null,null,"Printing And Media Production",64305]
[null,null,null,null,null,null,"Printing And Media Production",64305]
[null,null,null,null,null,null,"Printing And Media Production",64305]
[null,null,null,null,null,null,"Printing And Media Production",64306]
[null,null,null,null,null,null,"Printing And Media Production",64306]
[null,null,null,null,null,null,"Printing And Media Production",64306]
[null,null,null,null,null,null,"Printing And Media Production",64307]
[null,null,null,null,null,null,"Printing And Media Production",64307]
[null,null,null,null,null,null,"Printing And Media Production",64307]
[null,null,null,null,null,null,"Printing And Media Production",64308]
[null,null,null,null,null,null,"Printing And Media Production",64308]
[null,null,null,null,null,null,"Printing And Media Production",64308]
[null,null,null,null,null,null,"Printing And Media Production",64309]
[null,null,null,null,null,null,"Printing And Media Production",64309]
[null,null,null,null,null,null,"Printing And Media Production",64309]
[null,null,null,null,null,null,"Printing And Media Production",64310]
[null,null,null,null,null,null,"Printing And Media Production",64310]
[null,null,null,null,null,null,"Printing And Media Production",64310]
[null,null,null,null,null,null,"Printing And Media Production",64311]
[null,null,null,null,null,null,"Printing And Media Production",64311]
[null,null,null,null,null,null,"Printing And Media Production",64311]
[null,null,null,null,null,null,"Printing And Media Production",64312]
[null,null,null,null,null,null,"Printing And Media Production",64312]
[null,null,null,null,null,null,"Printing And Media Production",64312]
[null,null,null,null,null,null,"Printing And Media Production",64313]
[null,null,null,null,null,null,"Printing And Media Production",64313]
[null,null,null,null,null,null,"Printing And Media Production",64313]
[null,null,null,null,null,null,"Printing And Media Production",64314]
[null,null,null,null,null,null,"Printing And Media Production",64314]
[null,null,null,null,null,null,"Printing And Media Production",64314]
[null,null,null,null,null,null,"Printing And Media Production",64315]
[null,null,null,null,null,null,"Printing And Media Production",64315]
[null,null,null,null,null,null,"Printing And Media Production",64315]
[null,null,null,null,null,null,"Printing And Media Production",64316]
[null,null,null,null,null,null,"Printing And Media Production",64316]
[null,null,null,null,null,null,"Printing And Media Production",64316]
[null,null,null,null,null,null,"Printing And Media Production",64317]
[null,null,null,null,null,null,"Printing And Media Production",64317]
[null,null,null,null,null,null,"Printing And Media Production",64317]
[null,null,null,null,null,null,"Printing And Media Production",64318]
[null,null,null,null,null,null,"Printing And Media Production",64318]
[null,null,null,null,null,null,"Printing And Media Production",64318]
[null,null,null,null,null,null,"Printing And Media Production",64319]
[null,null,null,null,null,null,"Printing And Media Production",64319]
[null,null,null,null,null,null,"Printing And Media Production",64319]
[null,null,null,null,null,null,"Printing And Media Production",64320]
[null,null,null,null,null,null,"Printing And Media Production",64320]
[null,null,null,null,null,null,"Printing And Media Production",64320]
[null,null,null,null,null,null,"Printing And Media Production",64321]
[null,null,null,null,null,null,"Printing And Media Production",64321]
[null,null,null,null,null,null,"Printing And Media Production",64321]
[null,null,null,null,null,null,"Printing And Media Production",64322]
[null,null,null,null,null,null,"Printing And Media Production",64322]
[null,null,null,null,null,null,"Printing And Media Production",64322]
[null,null,null,null,null,null,"Printing And Media Production",64323]
[null,null,null,null,null,null,"Printing And Media Production",64323]
[null,null,null,null,null,null,"Printing And Media Production",64323]
[null,null,null,null,null,null,"Printing And Media Production",64324]
[null,null,null,null,null,null,"Printing And Media Production",64324]
[null,null,null,null,null,null,"Printing And Media Production",64324]
[null,null,null,null,null,null,"Printing And Media Production",64325]
[null,null,null,null,null,null,"Printing And Media Production",64325]
[null,null,null,null,null,null,"Printing And Media Production",64325]
[null,null,null,null,null,null,"Printing And Media Production",64326]
[null,null,null,null,null,null,"Printing And Media Production",64326]
[null,null,null,null,null,null,"Printing And Media Production",64326]
[null,null,null,null,null,null,"Printing And Media Production",64327]
[null,null,null,null,null,null,"Printing And Media Production",64327]
[null,null,null,null,null,null,"Printing And Media Production",64327]
[null,null,null,null,null,null,"Printing And Media Production",64328]
[null,null,null,null,null,null,"Printing And Media Production",64328]
[null,null,null,null,null,null,"Printing And Media Production",64328]
[null,null,null,null,null,null,"Printing And Media Production",64329]
[null,null,null,null,null,null,"Printing And Media Production",64329]
[null,null,null,null,null,null,"Printing And Media Production",64329]
[null,null,null,null,null,null,"Printing And Media Production",64330]
[null,null,null,null,null,null,"Printing And Media Production",64330]
[null,null,null,null,null,null,"Printing And Media Production",64330]
[null,null,null,null,null,null,"Printing And Media Production",64331]
[null,null,null,null,null,null,"Printing And Media Production",64331]
[null,null,null,null,null,null,"Printing And Media Production",64331]
[null,null,null,null,null,null,"Printing And Media Production",64332]
[null,null,null,null,null,null,"Printing And Media Production",64332]
[null,null,null,null,null,null,"Printing And Media Production",64332]
[null,null,null,null,null,null,"Printing And Media Production",64333]
[null,null,null,null,null,null,"Printing And Media Production",64333]
[null,null,null,null,null,null,"Printing And Media Production",64333]
[null,null,null,null,null,null,"Printing And Media Production",64334]
[null,null,null,null,null,null,"Printing And Media Production",64334]
[null,null,null,null,null,null,"Printing And Media Production",64334]
[null,null,null,null,null,null,"Printing And Media Production",64335]
[null,null,null,null,null,null,"Printing And Media Production",64335]
[null,null,null,null,null,null,"Printing And Media Production",64335]
[null,null,null,null,null,null,"Printing And Media Production",64336]
[null,null,null,null,null,null,"Printing And Media Production",64336]
[null,null,null,null,null,null,"Printing And Media Production",64336]
[null,null,null,null,null,null,"Printing And Media Production",64337]
[null,null,null,null,null,null,"Printing And Media Production",64337]
[null,null,null,null,null,null,"Printing And Media Production",64337]
[null,null,null,null,null,null,"Printing And Media Production",64338]
[null,null,null,null,null,null,"Printing And Media Production",64338]
[null,null,null,null,null,null,"Printing And Media Production",64338]
[null,null,null,null,null,null,"Printing And Media Production",64339]
[null,null,null,null,null,null,"Printing And Media Production",64339]
[null,null,null,null,null,null,"Printing And Media Production",64339]
[null,null,null,null,null,null,"Printing And Media Production",64340]
[null,null,null,null,null,null,"Printing And Media Production",64340]
[null,null,null,null,null,null,"Printing And Media Production",64340]
[null,null,null,null,null,null,"Printing And Media Production",64341]
[null,null,null,null,null,null,"Printing And Media Production",64341]
[null,null,null,null,null,null,"Printing And Media Production",64341]
[null,null,null,null,null,null,"Printing And Media Production",64342]
[null,null,null,null,null,null,"Printing And Media Production",64342]
[null,null,null,null,null,null,"Printing And Media Production",64342]
[null,null,null,null,null,null,"Printing And Media Production",64343]
[null,null,null,null,null,null,"Printing And Media Production",64343]
[null,null,null,null,null,null,"Printing And Media Production",64343]
[null,null,null,null,null,null,"Printing And Media Production",64344]
[null,null,null,null,null,null,"Printing And Media Production",64344]
[null,null,null,null,null,null,"Printing And Media Production",64344]
[null,null,null,null,null,null,"Printing And Media Production",64345]
[null,null,null,null,null,null,"Printing And Media Production",64345]
[null,null,null,null,null,null,"Printing And Media Production",64345]
[null,null,null,null,null,null,"Printing And Media Production",64346]
[null,null,null,null,null,null,"Printing And Media Production",64346]
[null,null,null,null,null,null,"Printing And Media Production",64346]
[null,null,null,null,null,null,"Printing And Media Production",64347]
[null,null,null,null,null,null,"Printing And Media Production",64347]
[null,null,null,null,null,null,"Printing And Media Production",64347]
[null,null,null,null,null,null,"Printing And Media Production",64348]
[null,null,null,null,null,null,"Printing And Media Production",64348]
[null,null,null,null,null,null,"Printing And Media Production",64348]
[null,null,null,null,null,null,"Printing And Media Production",64349]
[null,null,null,null,null,null,"Printing And Media Production",64349]
[null,null,null,null,null,null,"Printing And Media Production",64349]
[null,null,null,null,null,null,"Royalties",64350]
[null,null,null,null,null,null,"Royalties",64350]
[null,null,null,null,null,null,"Royalties",64351]
[null,null,null,null,null,null,"Royalties",64351]
[null,null,null,null,null,null,"Royalties",64352]
[null,null,null,null,null,null,"Royalties",64352]
[null,null,null,null,null,null,"Royalties",64353]
[null,null,null,null,null,null,"Royalties",64353]
[null,null,null,null,null,null,"Royalties",64354]
[null,null,null,null,null,null,"Royalties",64354]
[null,null,null,null,null,null,"Royalties",64355]
[null,null,null,null,null,null,"Royalties",64355]
[null,null,null,null,null,null,"Royalties",64356]
[null,null,null,null,null,null,"Royalties",64356]
[null,null,null,null,null,null,"Royalties",64357]
[null,null,null,null,null,null,"Royalties",64357]
[null,null,null,null,null,null,"Royalties",64358]
[null,null,null,null,null,null,"Royalties",64358]
[null,null,null,null,null,null,"Royalties",64359]
[null,null,null,null,null,null,"Royalties",64359]
[null,null,null,null,null,null,"Royalties",64360]
[null,null,null,null,null,null,"Royalties",64360]
[null,null,null,null,null,null,"Royalties",64361]
[null,null,null,null,null,null,"Royalties",64361]
[null,null,null,null,null,null,"Royalties",64362]
[null,null,null,null,null,null,"Royalties",64362]
[null,null,null,null,null,null,"Royalties",64363]
[null,null,null,null,null,null,"Royalties",64363]
[null,null,null,null,null,null,"Royalties",64364]
[null,null,null,null,null,null,"Royalties",64364]
[null,null,null,null,null,null,"Royalties",64365]
[null,null,null,null,null,null,"Royalties",64365]
[null,null,null,null,null,null,"Royalties",64366]
[null,null,null,null,null,null,"Royalties",64366]
[null,null,null,null,null,null,"Royalties",64367]
[null,null,null,null,null,null,"Royalties",64367]
[null,null,null,null,null,null,"Royalties",64368]
[null,null,null,null,null,null,"Royalties",64368]
[null,null,null,null,null,null,"Royalties",64369]
[null,null,null,null,null,null,"Royalties",64369]
[null,null,null,null,null,null,"Royalties",64370]
[null,null,null,null,null,null,"Royalties",64370]
[null,null,null,null,null,null,"Royalties",64371]
[null,null,null,null,null,null,"Royalties",64371]
[null,null,null,null,null,null,"Royalties",64372]
[null,null,null,null,null,null,"Royalties",64372]
[null,null,null,null,null,null,"Royalties",64373]
[null,null,null,null,null,null,"Royalties",64373]
[null,null,null,null,null,null,"Royalties",64374]
[null,null,null,null,null,null,"Royalties",64374]
[null,null,null,null,null,null,"Royalties",64375]
[null,null,null,null,null,null,"Royalties",64375]
[null,null,null,null,null,null,"Royalties",64376]
[null,null,null,null,null,null,"Royalties",64376]
[null,null,null,null,null,null,"Royalties",64377]
[null,null,null,null,null,null,"Royalties",64377]
[null,null,null,null,null,null,"Royalties",64378]
[null,null,null,null,null,null,"Royalties",64378]
[null,null,null,null,null,null,"Royalties",64379]
[null,null,null,null,null,null,"Royalties",64379]
[null,null,null,null,null,null,"Royalties",64380]
[null,null,null,null,null,null,"Royalties",64380]
[null,null,null,null,null,null,"Royalties",64381]
[null,null,null,null,null,null,"Royalties",64381]
[null,null,null,null,null,null,"Royalties",64382]
[null,null,null,null,null,null,"Royalties",64382]
[null,null,null,null,null,null,"Royalties",64383]
[null,null,null,null,null,null,"Royalties",64383]
[null,null,null,null,null,null,"Royalties",64384]
[null,null,null,null,null,null,"Royalties",64384]
[null,null,null,null,null,null,"Royalties",64385]
[null,null,null,null,null,null,"Royalties",64385]
[null,null,null,null,null,null,"Royalties",64386]
[null,null,null,null,null,null,"Royalties",64386]
[null,null,null,null,null,null,"Royalties",64387]
[null,null,null,null,null,null,"Royalties",64387]
[null,null,null,null,null,null,"Royalties",64388]
[null,null,null,null,null,null,"Royalties",64388]
[null,null,null,null,null,null,"Royalties",64389]
[null,null,null,null,null,null,"Royalties",64389]
[null,null,null,null,null,null,"Broadcast Fees",64390]
[null,null,null,null,null,null,"Broadcast Fees",64391]
[null,null,null,null,null,null,"Broadcast Fees",64392]
[null,null,null,null,null,null,"Broadcast Fees",64393]
[null,null,null,null,null,null,"Broadcast Fees",64394]
[null,null,null,null,null,null,"Broadcast Fees",64395]
[null,null,null,null,null,null,"Broadcast Fees",64396]
[null,null,null,null,null,null,"Broadcast Fees",64397]
[null,null,null,null,null,null,"Broadcast Fees",64398]
[null,null,null,null,null,null,"Broadcast Fees",64399]
[null,null,null,null,null,null,"Computer and Data Processing Expense",64400]
[null,null,null,null,null,null,"Computer and Data Processing Expense",64400]
[null,null,null,null,null,null,"Computer and Data Processing Expense",64401]
[null,null,null,null,null,null,"Computer and Data Processing Expense",64401]
[null,null,null,null,null,null,"Computer and Data Processing Expense",64402]
[null,null,null,null,null,null,"Computer and Data Processing Expense",64402]
[null,null,null,null,null,null,"Computer and Data Processing Expense",64403]
[null,null,null,null,null,null,"Computer and Data Processing Expense",64403]
[null,null,null,null,null,null,"Computer and Data Processing Expense",64404]
[null,null,null,null,null,null,"Computer and Data Processing Expense",64404]
[null,null,null,null,null,null,"Computer and Data Processing Expense",64405]
[null,null,null,null,null,null,"Computer and Data Processing Expense",64405]
[null,null,null,null,null,null,"Computer and Data Processing Expense",64406]
[null,null,null,null,null,null,"Computer and Data Processing Expense",64406]
[null,null,null,null,null,null,"Computer and Data Processing Expense",64407]
[null,null,null,null,null,null,"Computer and Data Processing Expense",64407]
[null,null,null,null,null,null,"Computer and Data Processing Expense",64408]
[null,null,null,null,null,null,"Computer and Data Processing Expense",64408]
[null,null,null,null,null,null,"Computer and Data Processing Expense",64409]
[null,null,null,null,null,null,"Computer and Data Processing Expense",64409]
[null,null,null,null,null,null,"Computer and Data Processing Expense",64410]
[null,null,null,null,null,null,"Computer and Data Processing Expense",64410]
[null,null,null,null,null,null,"Computer and Data Processing Expense",64411]
[null,null,null,null,null,null,"Computer and Data Processing Expense",64411]
[null,null,null,null,null,null,"Computer and Data Processing Expense",64412]
[null,null,null,null,null,null,"Computer and Data Processing Expense",64412]
[null,null,null,null,null,null,"Computer and Data Processing Expense",64413]
[null,null,null,null,null,null,"Computer and Data Processing Expense",64413]
[null,null,null,null,null,null,"Computer and Data Processing Expense",64414]
[null,null,null,null,null,null,"Computer and Data Processing Expense",64414]
[null,null,null,null,null,null,"Computer and Data Processing Expense",64415]
[null,null,null,null,null,null,"Computer and Data Processing Expense",64415]
[null,null,null,null,null,null,"Computer and Data Processing Expense",64416]
[null,null,null,null,null,null,"Computer and Data Processing Expense",64416]
[null,null,null,null,null,null,"Computer and Data Processing Expense",64417]
[null,null,null,null,null,null,"Computer and Data Processing Expense",64417]
[null,null,null,null,null,null,"Computer and Data Processing Expense",64418]
[null,null,null,null,null,null,"Computer and Data Processing Expense",64418]
[null,null,null,null,null,null,"Computer and Data Processing Expense",64419]
[null,null,null,null,null,null,"Computer and Data Processing Expense",64419]
[null,null,null,null,null,null,"Computer and Data Processing Expense",64420]
[null,null,null,null,null,null,"Computer and Data Processing Expense",64420]
[null,null,null,null,null,null,"Computer and Data Processing Expense",64421]
[null,null,null,null,null,null,"Computer and Data Processing Expense",64421]
[null,null,null,null,null,null,"Computer and Data Processing Expense",64422]
[null,null,null,null,null,null,"Computer and Data Processing Expense",64422]
[null,null,null,null,null,null,"Computer and Data Processing Expense",64423]
[null,null,null,null,null,null,"Computer and Data Processing Expense",64423]
[null,null,null,null,null,null,"Computer and Data Processing Expense",64424]
[null,null,null,null,null,null,"Computer and Data Processing Expense",64424]
[null,null,null,null,null,null,"Computer and Data Processing Expense",64425]
[null,null,null,null,null,null,"Computer and Data Processing Expense",64425]
[null,null,null,null,null,null,"Computer and Data Processing Expense",64426]
[null,null,null,null,null,null,"Computer and Data Processing Expense",64426]
[null,null,null,null,null,null,"Computer and Data Processing Expense",64427]
[null,null,null,null,null,null,"Computer and Data Processing Expense",64427]
[null,null,null,null,null,null,"Computer and Data Processing Expense",64428]
[null,null,null,null,null,null,"Computer and Data Processing Expense",64428]
[null,null,null,null,null,null,"Computer and Data Processing Expense",64429]
[null,null,null,null,null,null,"Computer and Data Processing Expense",64429]
[null,null,null,null,null,null,"Computer and Data Processing Expense",64430]
[null,null,null,null,null,null,"Computer and Data Processing Expense",64430]
[null,null,null,null,null,null,"Computer and Data Processing Expense",64431]
[null,null,null,null,null,null,"Computer and Data Processing Expense",64431]
[null,null,null,null,null,null,"Computer and Data Processing Expense",64432]
[null,null,null,null,null,null,"Computer and Data Processing Expense",64432]
[null,null,null,null,null,null,"Computer and Data Processing Expense",64433]
[null,null,null,null,null,null,"Computer and Data Processing Expense",64433]
[null,null,null,null,null,null,"Computer and Data Processing Expense",64434]
[null,null,null,null,null,null,"Computer and Data Processing Expense",64434]
[null,null,null,null,null,null,"Computer and Data Processing Expense",64435]
[null,null,null,null,null,null,"Computer and Data Processing Expense",64435]
[null,null,null,null,null,null,"Computer and Data Processing Expense",64436]
[null,null,null,null,null,null,"Computer and Data Processing Expense",64436]
[null,null,null,null,null,null,"Computer and Data Processing Expense",64437]
[null,null,null,null,null,null,"Computer and Data Processing Expense",64437]
[null,null,null,null,null,null,"Computer and Data Processing Expense",64438]
[null,null,null,null,null,null,"Computer and Data Processing Expense",64438]
[null,null,null,null,null,null,"Computer and Data Processing Expense",64439]
[null,null,null,null,null,null,"Computer and Data Processing Expense",64439]
[null,null,null,null,null,null,"Computer and Data Processing Expense",64440]
[null,null,null,null,null,null,"Computer and Data Processing Expense",64440]
[null,null,null,null,null,null,"Computer and Data Processing Expense",64441]
[null,null,null,null,null,null,"Computer and Data Processing Expense",64441]
[null,null,null,null,null,null,"Computer and Data Processing Expense",64442]
[null,null,null,null,null,null,"Computer and Data Processing Expense",64442]
[null,null,null,null,null,null,"Computer and Data Processing Expense",64443]
[null,null,null,null,null,null,"Computer and Data Processing Expense",64443]
[null,null,null,null,null,null,"Computer and Data Processing Expense",64444]
[null,null,null,null,null,null,"Computer and Data Processing Expense",64444]
[null,null,null,null,null,null,"Computer and Data Processing Expense",64445]
[null,null,null,null,null,null,"Computer and Data Processing Expense",64445]
[null,null,null,null,null,null,"Computer and Data Processing Expense",64446]
[null,null,null,null,null,null,"Computer and Data Processing Expense",64446]
[null,null,null,null,null,null,"Computer and Data Processing Expense",64447]
[null,null,null,null,null,null,"Computer and Data Processing Expense",64447]
[null,null,null,null,null,null,"Computer and Data Processing Expense",64448]
[null,null,null,null,null,null,"Computer and Data Processing Expense",64448]
[null,null,null,null,null,null,"Computer and Data Processing Expense",64449]
[null,null,null,null,null,null,"Computer and Data Processing Expense",64449]
[null,null,null,null,null,null,"Computer and Data Processing Expense",64450]
[null,null,null,null,null,null,"Computer and Data Processing Expense",64450]
[null,null,null,null,null,null,"Computer and Data Processing Expense",64451]
[null,null,null,null,null,null,"Computer and Data Processing Expense",64451]
[null,null,null,null,null,null,"Computer and Data Processing Expense",64452]
[null,null,null,null,null,null,"Computer and Data Processing Expense",64452]
[null,null,null,null,null,null,"Computer and Data Processing Expense",64453]
[null,null,null,null,null,null,"Computer and Data Processing Expense",64453]
[null,null,null,null,null,null,"Computer and Data Processing Expense",64454]
[null,null,null,null,null,null,"Computer and Data Processing Expense",64454]
[null,null,null,null,null,null,"Computer and Data Processing Expense",64455]
[null,null,null,null,null,null,"Computer and Data Processing Expense",64455]
[null,null,null,null,null,null,"Computer and Data Processing Expense",64456]
[null,null,null,null,null,null,"Computer and Data Processing Expense",64456]
[null,null,null,null,null,null,"Computer and Data Processing Expense",64457]
[null,null,null,null,null,null,"Computer and Data Processing Expense",64457]
[null,null,null,null,null,null,"Computer and Data Processing Expense",64458]
[null,null,null,null,null,null,"Computer and Data Processing Expense",64458]
[null,null,null,null,null,null,"Computer and Data Processing Expense",64459]
[null,null,null,null,null,null,"Computer and Data Processing Expense",64459]
[null,null,null,null,null,null,"Computer and Data Processing Expense",64460]
[null,null,null,null,null,null,"Computer and Data Processing Expense",64460]
[null,null,null,null,null,null,"Computer and Data Processing Expense",64461]
[null,null,null,null,null,null,"Computer and Data Processing Expense",64461]
[null,null,null,null,null,null,"Computer and Data Processing Expense",64462]
[null,null,null,null,null,null,"Computer and Data Processing Expense",64462]
[null,null,null,null,null,null,"Computer and Data Processing Expense",64463]
[null,null,null,null,null,null,"Computer and Data Processing Expense",64463]
[null,null,null,null,null,null,"Computer and Data Processing Expense",64464]
[null,null,null,null,null,null,"Computer and Data Processing Expense",64464]
[null,null,null,null,null,null,"Computer and Data Processing Expense",64465]
[null,null,null,null,null,null,"Computer and Data Processing Expense",64465]
[null,null,null,null,null,null,"Computer and Data Processing Expense",64466]
[null,null,null,null,null,null,"Computer and Data Processing Expense",64466]
[null,null,null,null,null,null,"Computer and Data Processing Expense",64467]
[null,null,null,null,null,null,"Computer and Data Processing Expense",64467]
[null,null,null,null,null,null,"Computer and Data Processing Expense",64468]
[null,null,null,null,null,null,"Computer and Data Processing Expense",64468]
[null,null,null,null,null,null,"Computer and Data Processing Expense",64469]
[null,null,null,null,null,null,"Computer and Data Processing Expense",64469]
[null,null,null,null,null,null,"Computer and Data Processing Expense",64470]
[null,null,null,null,null,null,"Computer and Data Processing Expense",64470]
[null,null,null,null,null,null,"Computer and Data Processing Expense",64471]
[null,null,null,null,null,null,"Computer and Data Processing Expense",64471]
[null,null,null,null,null,null,"Computer and Data Processing Expense",64472]
[null,null,null,null,null,null,"Computer and Data Processing Expense",64472]
[null,null,null,null,null,null,"Computer and Data Processing Expense",64473]
[null,null,null,null,null,null,"Computer and Data Processing Expense",64473]
[null,null,null,null,null,null,"Computer and Data Processing Expense",64474]
[null,null,null,null,null,null,"Computer and Data Processing Expense",64474]
[null,null,null,null,null,null,"Computer and Data Processing Expense",64475]
[null,null,null,null,null,null,"Computer and Data Processing Expense",64475]
[null,null,null,null,null,null,"Computer and Data Processing Expense",64476]
[null,null,null,null,null,null,"Computer and Data Processing Expense",64476]
[null,null,null,null,null,null,"Computer and Data Processing Expense",64477]
[null,null,null,null,null,null,"Computer and Data Processing Expense",64477]
[null,null,null,null,null,null,"Computer and Data Processing Expense",64478]
[null,null,null,null,null,null,"Computer and Data Processing Expense",64478]
[null,null,null,null,null,null,"Computer and Data Processing Expense",64479]
[null,null,null,null,null,null,"Computer and Data Processing Expense",64479]
[null,null,null,null,null,null,"Computer and Data Processing Expense",64480]
[null,null,null,null,null,null,"Computer and Data Processing Expense",64480]
[null,null,null,null,null,null,"Computer and Data Processing Expense",64481]
[null,null,null,null,null,null,"Computer and Data Processing Expense",64481]
[null,null,null,null,null,null,"Computer and Data Processing Expense",64482]
[null,null,null,null,null,null,"Computer and Data Processing Expense",64482]
[null,null,null,null,null,null,"Computer and Data Processing Expense",64483]
[null,null,null,null,null,null,"Computer and Data Processing Expense",64483]
[null,null,null,null,null,null,"Computer and Data Processing Expense",64484]
[null,null,null,null,null,null,"Computer and Data Processing Expense",64484]
[null,null,null,null,null,null,"Computer and Data Processing Expense",64485]
[null,null,null,null,null,null,"Computer and Data Processing Expense",64485]
[null,null,null,null,null,null,"Computer and Data Processing Expense",64486]
[null,null,null,null,null,null,"Computer and Data Processing Expense",64486]
[null,null,null,null,null,null,"Computer and Data Processing Expense",64487]
[null,null,null,null,null,null,"Computer and Data Processing Expense",64487]
[null,null,null,null,null,null,"Computer and Data Processing Expense",64488]
[null,null,null,null,null,null,"Computer and Data Processing Expense",64488]
[null,null,null,null,null,null,"Computer and Data Processing Expense",64489]
[null,null,null,null,null,null,"Computer and Data Processing Expense",64489]
[null,null,null,null,null,null,"Computer and Data Processing Expense",64490]
[null,null,null,null,null,null,"Computer and Data Processing Expense",64490]
[null,null,null,null,null,null,"Computer and Data Processing Expense",64491]
[null,null,null,null,null,null,"Computer and Data Processing Expense",64491]
[null,null,null,null,null,null,"Computer and Data Processing Expense",64492]
[null,null,null,null,null,null,"Computer and Data Processing Expense",64492]
[null,null,null,null,null,null,"Computer and Data Processing Expense",64493]
[null,null,null,null,null,null,"Computer and Data Processing Expense",64493]
[null,null,null,null,null,null,"Computer and Data Processing Expense",64494]
[null,null,null,null,null,null,"Computer and Data Processing Expense",64494]
[null,null,null,null,null,null,"Computer and Data Processing Expense",64495]
[null,null,null,null,null,null,"Computer and Data Processing Expense",64495]
[null,null,null,null,null,null,"Computer and Data Processing Expense",64496]
[null,null,null,null,null,null,"Computer and Data Processing Expense",64496]
[null,null,null,null,null,null,"Computer and Data Processing Expense",64497]
[null,null,null,null,null,null,"Computer and Data Processing Expense",64497]
[null,null,null,null,null,null,"Computer and Data Processing Expense",64498]
[null,null,null,null,null,null,"Computer and Data Processing Expense",64498]
[null,null,null,null,null,null,"Computer and Data Processing Expense",64499]
[null,null,null,null,null,null,"Computer and Data Processing Expense",64499]
[null,null,null,null,null,null,"Other Professional Services",64500]
[null,null,null,null,null,null,"Other Professional Services",64500]
[null,null,null,null,null,null,"Other Professional Services",64500]
[null,null,null,null,null,null,"Other Professional Services",64501]
[null,null,null,null,null,null,"Other Professional Services",64501]
[null,null,null,null,null,null,"Other Professional Services",64501]
[null,null,null,null,null,null,"Other Professional Services",64502]
[null,null,null,null,null,null,"Other Professional Services",64502]
[null,null,null,null,null,null,"Other Professional Services",64502]
[null,null,null,null,null,null,"Other Professional Services",64503]
[null,null,null,null,null,null,"Other Professional Services",64503]
[null,null,null,null,null,null,"Other Professional Services",64503]
[null,null,null,null,null,null,"Other Professional Services",64504]
[null,null,null,null,null,null,"Other Professional Services",64504]
[null,null,null,null,null,null,"Other Professional Services",64504]
[null,null,null,null,null,null,"Other Professional Services",64505]
[null,null,null,null,null,null,"Other Professional Services",64505]
[null,null,null,null,null,null,"Other Professional Services",64505]
[null,null,null,null,null,null,"Other Professional Services",64506]
[null,null,null,null,null,null,"Other Professional Services",64506]
[null,null,null,null,null,null,"Other Professional Services",64506]
[null,null,null,null,null,null,"Other Professional Services",64507]
[null,null,null,null,null,null,"Other Professional Services",64507]
[null,null,null,null,null,null,"Other Professional Services",64507]
[null,null,null,null,null,null,"Other Professional Services",64508]
[null,null,null,null,null,null,"Other Professional Services",64508]
[null,null,null,null,null,null,"Other Professional Services",64508]
[null,null,null,null,null,null,"Other Professional Services",64509]
[null,null,null,null,null,null,"Other Professional Services",64509]
[null,null,null,null,null,null,"Other Professional Services",64509]
[null,null,null,null,null,null,"Other Professional Services",64510]
[null,null,null,null,null,null,"Other Professional Services",64510]
[null,null,null,null,null,null,"Other Professional Services",64510]
[null,null,null,null,null,null,"Other Professional Services",64511]
[null,null,null,null,null,null,"Other Professional Services",64511]
[null,null,null,null,null,null,"Other Professional Services",64511]
[null,null,null,null,null,null,"Other Professional Services",64512]
[null,null,null,null,null,null,"Other Professional Services",64512]
[null,null,null,null,null,null,"Other Professional Services",64512]
[null,null,null,null,null,null,"Other Professional Services",64513]
[null,null,null,null,null,null,"Other Professional Services",64513]
[null,null,null,null,null,null,"Other Professional Services",64513]
[null,null,null,null,null,null,"Other Professional Services",64514]
[null,null,null,null,null,null,"Other Professional Services",64514]
[null,null,null,null,null,null,"Other Professional Services",64514]
[null,null,null,null,null,null,"LP Consultant Services",64515]
[null,null,null,null,null,null,"LP Consultant Services",64516]
[null,null,null,null,null,null,"LP Consultant Services",64517]
[null,null,null,null,null,null,"LP Consultant Services",64518]
[null,null,null,null,null,null,"LP Consultant Services",64519]
[null,null,null,null,null,null,"Accounting and Audit",64520]
[null,null,null,null,null,null,"Accounting and Audit",64520]
[null,null,null,null,null,null,"Accounting and Audit",64521]
[null,null,null,null,null,null,"Accounting and Audit",64521]
[null,null,null,null,null,null,"Accounting and Audit",64522]
[null,null,null,null,null,null,"Accounting and Audit",64522]
[null,null,null,null,null,null,"Accounting and Audit",64523]
[null,null,null,null,null,null,"Accounting and Audit",64523]
[null,null,null,null,null,null,"Accounting and Audit",64524]
[null,null,null,null,null,null,"Accounting and Audit",64524]
[null,null,null,null,null,null,"Accounting and Audit",64525]
[null,null,null,null,null,null,"Accounting and Audit",64525]
[null,null,null,null,null,null,"Accounting and Audit",64526]
[null,null,null,null,null,null,"Accounting and Audit",64526]
[null,null,null,null,null,null,"Accounting and Audit",64527]
[null,null,null,null,null,null,"Accounting and Audit",64527]
[null,null,null,null,null,null,"Accounting and Audit",64528]
[null,null,null,null,null,null,"Accounting and Audit",64528]
[null,null,null,null,null,null,"Accounting and Audit",64529]
[null,null,null,null,null,null,"Accounting and Audit",64529]
[null,null,null,null,null,null,"Accounting and Audit",64530]
[null,null,null,null,null,null,"Accounting and Audit",64530]
[null,null,null,null,null,null,"Accounting and Audit",64531]
[null,null,null,null,null,null,"Accounting and Audit",64531]
[null,null,null,null,null,null,"Accounting and Audit",64532]
[null,null,null,null,null,null,"Accounting and Audit",64532]
[null,null,null,null,null,null,"Accounting and Audit",64533]
[null,null,null,null,null,null,"Accounting and Audit",64533]
[null,null,null,null,null,null,"Accounting and Audit",64534]
[null,null,null,null,null,null,"Accounting and Audit",64534]
[null,null,null,null,null,null,"Accounting and Audit",64535]
[null,null,null,null,null,null,"Accounting and Audit",64535]
[null,null,null,null,null,null,"Accounting and Audit",64536]
[null,null,null,null,null,null,"Accounting and Audit",64536]
[null,null,null,null,null,null,"Accounting and Audit",64537]
[null,null,null,null,null,null,"Accounting and Audit",64537]
[null,null,null,null,null,null,"Accounting and Audit",64538]
[null,null,null,null,null,null,"Accounting and Audit",64538]
[null,null,null,null,null,null,"Accounting and Audit",64539]
[null,null,null,null,null,null,"Accounting and Audit",64539]
[null,null,null,null,null,null,"Legal",64540]
[null,null,null,null,null,null,"Legal",64541]
[null,null,null,null,null,null,"Legal",64542]
[null,null,null,null,null,null,"Legal",64543]
[null,null,null,null,null,null,"Legal",64544]
[null,null,null,null,null,null,"Legal",64545]
[null,null,null,null,null,null,"Legal",64546]
[null,null,null,null,null,null,"Legal",64547]
[null,null,null,null,null,null,"Legal",64548]
[null,null,null,null,null,null,"Legal",64549]
[null,null,null,null,null,null,"Bank Fees",64550]
[null,null,null,null,null,null,"Bank Fees",64551]
[null,null,null,null,null,null,"Bank Fees",64552]
[null,null,null,null,null,null,"Bank Fees",64553]
[null,null,null,null,null,null,"Bank Fees",64554]
[null,null,null,null,null,null,"Bank Fees",64555]
[null,null,null,null,null,null,"Bank Fees",64556]
[null,null,null,null,null,null,"Bank Fees",64557]
[null,null,null,null,null,null,"Bank Fees",64558]
[null,null,null,null,null,null,"Bank Fees",64559]
[null,null,null,null,null,null,"Bank Fees",64560]
[null,null,null,null,null,null,"Bank Fees",64561]
[null,null,null,null,null,null,"Bank Fees",64562]
[null,null,null,null,null,null,"Bank Fees",64563]
[null,null,null,null,null,null,"Bank Fees",64564]
[null,null,null,null,null,null,"Bank Fees",64565]
[null,null,null,null,null,null,"Bank Fees",64566]
[null,null,null,null,null,null,"Bank Fees",64567]
[null,null,null,null,null,null,"Bank Fees",64568]
[null,null,null,null,null,null,"Bank Fees",64569]
[null,null,null,null,null,null,"Bank Fees",64570]
[null,null,null,null,null,null,"Bank Fees",64571]
[null,null,null,null,null,null,"Bank Fees",64572]
[null,null,null,null,null,null,"Bank Fees",64573]
[null,null,null,null,null,null,"Bank Fees",64574]
[null,null,null,null,null,null,"Bank Fees",64575]
[null,null,null,null,null,null,"Bank Fees",64576]
[null,null,null,null,null,null,"Bank Fees",64577]
[null,null,null,null,null,null,"Bank Fees",64578]
[null,null,null,null,null,null,"Bank Fees",64579]
[null,null,null,null,null,null,"Bank Fees",64580]
[null,null,null,null,null,null,"Bank Fees",64581]
[null,null,null,null,null,null,"Bank Fees",64582]
[null,null,null,null,null,null,"Bank Fees",64583]
[null,null,null,null,null,null,"Bank Fees",64584]
[null,null,null,null,null,null,"Bank Fees",64585]
[null,null,null,null,null,null,"Bank Fees",64586]
[null,null,null,null,null,null,"Bank Fees",64587]
[null,null,null,null,null,null,"Bank Fees",64588]
[null,null,null,null,null,null,"Bank Fees",64589]
[null,null,null,null,null,null,"Bank Fees",64590]
[null,null,null,null,null,null,"Bank Fees",64591]
[null,null,null,null,null,null,"Bank Fees",64592]
[null,null,null,null,null,null,"Bank Fees",64593]
[null,null,null,null,null,null,"Bank Fees",64594]
[null,null,null,null,null,null,"Bank Fees",64595]
[null,null,null,null,null,null,"Bank Fees",64596]
[null,null,null,null,null,null,"Bank Fees",64597]
[null,null,null,null,null,null,"Bank Fees",64598]
[null,null,null,null,null,null,"Bank Fees",64599]
[null,null,null,null,null,null,"Public Relations",64600]
[null,null,null,null,null,null,"Public Relations",64601]
[null,null,null,null,null,null,"Public Relations",64602]
[null,null,null,null,null,null,"Public Relations",64603]
[null,null,null,null,null,null,"Public Relations",64604]
[null,null,null,null,null,null,"Public Relations",64605]
[null,null,null,null,null,null,"Public Relations",64606]
[null,null,null,null,null,null,"Public Relations",64607]
[null,null,null,null,null,null,"Public Relations",64608]
[null,null,null,null,null,null,"Public Relations",64609]
[null,null,null,null,null,null,"Public Relations",64610]
[null,null,null,null,null,null,"Public Relations",64611]
[null,null,null,null,null,null,"Public Relations",64612]
[null,null,null,null,null,null,"Public Relations",64613]
[null,null,null,null,null,null,"Public Relations",64614]
[null,null,null,null,null,null,"Public Relations",64615]
[null,null,null,null,null,null,"Public Relations",64616]
[null,null,null,null,null,null,"Public Relations",64617]
[null,null,null,null,null,null,"Public Relations",64618]
[null,null,null,null,null,null,"Public Relations",64619]
[null,null,null,null,null,null,"Software Development",64620]
[null,null,null,null,null,null,"Software Development",64621]
[null,null,null,null,null,null,"Software Development",64622]
[null,null,null,null,null,null,"Software Development",64623]
[null,null,null,null,null,null,"Software Development",64624]
[null,null,null,null,null,null,"Software Development",64625]
[null,null,null,null,null,null,"Software Development",64626]
[null,null,null,null,null,null,"Software Development",64627]
[null,null,null,null,null,null,"Software Development",64628]
[null,null,null,null,null,null,"Software Development",64629]
[null,null,null,null,null,null,"Software Development",64630]
[null,null,null,null,null,null,"Software Development",64631]
[null,null,null,null,null,null,"Software Development",64632]
[null,null,null,null,null,null,"Software Development",64633]
[null,null,null,null,null,null,"Software Development",64634]
[null,null,null,null,null,null,"Software Development",64635]
[null,null,null,null,null,null,"Software Development",64636]
[null,null,null,null,null,null,"Software Development",64637]
[null,null,null,null,null,null,"Software Development",64638]
[null,null,null,null,null,null,"Software Development",64639]
[null,null,null,null,null,null,"Software Development",64640]
[null,null,null,null,null,null,"Software Development",64641]
[null,null,null,null,null,null,"Software Development",64642]
[null,null,null,null,null,null,"Software Development",64643]
[null,null,null,null,null,null,"Software Development",64644]
[null,null,null,null,null,null,"Software Development",64645]
[null,null,null,null,null,null,"Software Development",64646]
[null,null,null,null,null,null,"Software Development",64647]
[null,null,null,null,null,null,"Software Development",64648]
[null,null,null,null,null,null,"Software Development",64649]
[null,null,null,null,null,null,"Software Development",64650]
[null,null,null,null,null,null,"Software Development",64651]
[null,null,null,null,null,null,"Software Development",64652]
[null,null,null,null,null,null,"Software Development",64653]
[null,null,null,null,null,null,"Software Development",64654]
[null,null,null,null,null,null,"Software Development",64655]
[null,null,null,null,null,null,"Software Development",64656]
[null,null,null,null,null,null,"Software Development",64657]
[null,null,null,null,null,null,"Software Development",64658]
[null,null,null,null,null,null,"Software Development",64659]
[null,null,null,null,null,null,"Software Development",64660]
[null,null,null,null,null,null,"Software Development",64661]
[null,null,null,null,null,null,"Software Development",64662]
[null,null,null,null,null,null,"Software Development",64663]
[null,null,null,null,null,null,"Software Development",64664]
[null,null,null,null,null,null,"Software Development",64665]
[null,null,null,null,null,null,"Software Development",64666]
[null,null,null,null,null,null,"Software Development",64667]
[null,null,null,null,null,null,"Software Development",64668]
[null,null,null,null,null,null,"Software Development",64669]
[null,null,null,null,null,null,"Software Development",64670]
[null,null,null,null,null,null,"Software Development",64671]
[null,null,null,null,null,null,"Software Development",64672]
[null,null,null,null,null,null,"Software Development",64673]
[null,null,null,null,null,null,"Software Development",64674]
[null,null,null,null,null,null,"Software Development",64675]
[null,null,null,null,null,null,"Software Development",64676]
[null,null,null,null,null,null,"Software Development",64677]
[null,null,null,null,null,null,"Software Development",64678]
[null,null,null,null,null,null,"Software Development",64679]
[null,null,null,null,null,null,"Software Development",64680]
[null,null,null,null,null,null,"Software Development",64681]
[null,null,null,null,null,null,"Software Development",64682]
[null,null,null,null,null,null,"Software Development",64683]
[null,null,null,null,null,null,"Software Development",64684]
[null,null,null,null,null,null,"Software Development",64685]
[null,null,null,null,null,null,"Software Development",64686]
[null,null,null,null,null,null,"Software Development",64687]
[null,null,null,null,null,null,"Software Development",64688]
[null,null,null,null,null,null,"Software Development",64689]
[null,null,null,null,null,null,"Software Development",64690]
[null,null,null,null,null,null,"Software Development",64691]
[null,null,null,null,null,null,"Software Development",64692]
[null,null,null,null,null,null,"Software Development",64693]
[null,null,null,null,null,null,"Software Development",64694]
[null,null,null,null,null,null,"Software Development",64695]
[null,null,null,null,null,null,"Software Development",64696]
[null,null,null,null,null,null,"Software Development",64697]
[null,null,null,null,null,null,"Software Development",64698]
[null,null,null,null,null,null,"Software Development",64699]
[null,null,null,null,null,null,"Interest",64700]
[null,null,null,null,null,null,"Interest",64701]
[null,null,null,null,null,null,"Interest",64702]
[null,null,null,null,null,null,"Interest",64703]
[null,null,null,null,null,null,"Interest",64704]
[null,null,null,null,null,null,"Interest",64705]
[null,null,null,null,null,null,"Interest",64706]
[null,null,null,null,null,null,"Interest",64707]
[null,null,null,null,null,null,"Interest",64708]
[null,null,null,null,null,null,"Interest",64709]
[null,null,null,null,null,null,"Interest",64710]
[null,null,null,null,null,null,"Interest",64711]
[null,null,null,null,null,null,"Interest",64712]
[null,null,null,null,null,null,"Interest",64713]
[null,null,null,null,null,null,"Interest",64714]
[null,null,null,null,null,null,"Interest",64715]
[null,null,null,null,null,null,"Interest",64716]
[null,null,null,null,null,null,"Interest",64717]
[null,null,null,null,null,null,"Interest",64718]
[null,null,null,null,null,null,"Interest",64719]
[null,null,null,null,null,null,"Interest",64720]
[null,null,null,null,null,null,"Interest",64721]
[null,null,null,null,null,null,"Interest",64722]
[null,null,null,null,null,null,"Interest",64723]
[null,null,null,null,null,null,"Interest",64724]
[null,null,null,null,null,null,"Interest",64725]
[null,null,null,null,null,null,"Interest",64726]
[null,null,null,null,null,null,"Interest",64727]
[null,null,null,null,null,null,"Interest",64728]
[null,null,null,null,null,null,"Interest",64729]
[null,null,null,null,null,null,"Interest",64730]
[null,null,null,null,null,null,"Interest",64731]
[null,null,null,null,null,null,"Interest",64732]
[null,null,null,null,null,null,"Interest",64733]
[null,null,null,null,null,null,"Interest",64734]
[null,null,null,null,null,null,"Interest",64735]
[null,null,null,null,null,null,"Interest",64736]
[null,null,null,null,null,null,"Interest",64737]
[null,null,null,null,null,null,"Interest",64738]
[null,null,null,null,null,null,"Interest",64739]
[null,null,null,null,null,null,"Interest",64740]
[null,null,null,null,null,null,"Interest",64741]
[null,null,null,null,null,null,"Interest",64742]
[null,null,null,null,null,null,"Interest",64743]
[null,null,null,null,null,null,"Interest",64744]
[null,null,null,null,null,null,"Interest",64745]
[null,null,null,null,null,null,"Interest",64746]
[null,null,null,null,null,null,"Interest",64747]
[null,null,null,null,null,null,"Interest",64748]
[null,null,null,null,null,null,"Interest",64749]
[null,null,null,null,null,null,"Interest",64750]
[null,null,null,null,null,null,"Interest",64751]
[null,null,null,null,null,null,"Interest",64752]
[null,null,null,null,null,null,"Interest",64753]
[null,null,null,null,null,null,"Interest",64754]
[null,null,null,null,null,null,"Interest",64755]
[null,null,null,null,null,null,"Interest",64756]
[null,null,null,null,null,null,"Interest",64757]
[null,null,null,null,null,null,"Interest",64758]
[null,null,null,null,null,null,"Interest",64759]
[null,null,null,null,null,null,"Interest",64760]
[null,null,null,null,null,null,"Interest",64761]
[null,null,null,null,null,null,"Interest",64762]
[null,null,null,null,null,null,"Interest",64763]
[null,null,null,null,null,null,"Interest",64764]
[null,null,null,null,null,null,"Interest",64765]
[null,null,null,null,null,null,"Interest",64766]
[null,null,null,null,null,null,"Interest",64767]
[null,null,null,null,null,null,"Interest",64768]
[null,null,null,null,null,null,"Interest",64769]
[null,null,null,null,null,null,"Interest",64770]
[null,null,null,null,null,null,"Interest",64771]
[null,null,null,null,null,null,"Interest",64772]
[null,null,null,null,null,null,"Interest",64773]
[null,null,null,null,null,null,"Interest",64774]
[null,null,null,null,null,null,"Interest",64775]
[null,null,null,null,null,null,"Interest",64776]
[null,null,null,null,null,null,"Interest",64777]
[null,null,null,null,null,null,"Interest",64778]
[null,null,null,null,null,null,"Interest",64779]
[null,null,null,null,null,null,"Interest",64780]
[null,null,null,null,null,null,"Interest",64781]
[null,null,null,null,null,null,"Interest",64782]
[null,null,null,null,null,null,"Interest",64783]
[null,null,null,null,null,null,"Interest",64784]
[null,null,null,null,null,null,"Interest",64785]
[null,null,null,null,null,null,"Interest",64786]
[null,null,null,null,null,null,"Interest",64787]
[null,null,null,null,null,null,"Interest",64788]
[null,null,null,null,null,null,"Interest",64789]
[null,null,null,null,null,null,"Interest",64790]
[null,null,null,null,null,null,"Interest",64791]
[null,null,null,null,null,null,"Interest",64792]
[null,null,null,null,null,null,"Interest",64793]
[null,null,null,null,null,null,"Interest",64794]
[null,null,null,null,null,null,"Interest",64795]
[null,null,null,null,null,null,"Interest",64796]
[null,null,null,null,null,null,"Interest",64797]
[null,null,null,null,null,null,"Interest",64798]
[null,null,null,null,null,null,"Interest",64799]
[null,null,null,null,null,null,"Dues & Subscriptions",64800]
[null,null,null,null,null,null,"Dues & Subscriptions",64801]
[null,null,null,null,null,null,"Dues & Subscriptions",64802]
[null,null,null,null,null,null,"Dues & Subscriptions",64803]
[null,null,null,null,null,null,"Dues & Subscriptions",64804]
[null,null,null,null,null,null,"Dues & Subscriptions",64805]
[null,null,null,null,null,null,"Dues & Subscriptions",64806]
[null,null,null,null,null,null,"Dues & Subscriptions",64807]
[null,null,null,null,null,null,"Dues & Subscriptions",64808]
[null,null,null,null,null,null,"Dues & Subscriptions",64809]
[null,null,null,null,null,null,"Dues & Subscriptions",64810]
[null,null,null,null,null,null,"Dues & Subscriptions",64811]
[null,null,null,null,null,null,"Dues & Subscriptions",64812]
[null,null,null,null,null,null,"Dues & Subscriptions",64813]
[null,null,null,null,null,null,"Dues & Subscriptions",64814]
[null,null,null,null,null,null,"Dues & Subscriptions",64815]
[null,null,null,null,null,null,"Dues & Subscriptions",64816]
[null,null,null,null,null,null,"Dues & Subscriptions",64817]
[null,null,null,null,null,null,"Dues & Subscriptions",64818]
[null,null,null,null,null,null,"Dues & Subscriptions",64819]
[null,null,null,null,null,null,"Dues & Subscriptions",64820]
[null,null,null,null,null,null,"Dues & Subscriptions",64821]
[null,null,null,null,null,null,"Dues & Subscriptions",64822]
[null,null,null,null,null,null,"Dues & Subscriptions",64823]
[null,null,null,null,null,null,"Dues & Subscriptions",64824]
[null,null,null,null,null,null,"Dues & Subscriptions",64825]
[null,null,null,null,null,null,"Dues & Subscriptions",64826]
[null,null,null,null,null,null,"Dues & Subscriptions",64827]
[null,null,null,null,null,null,"Dues & Subscriptions",64828]
[null,null,null,null,null,null,"Dues & Subscriptions",64829]
[null,null,null,null,null,null,"Dues & Subscriptions",64830]
[null,null,null,null,null,null,"Dues & Subscriptions",64831]
[null,null,null,null,null,null,"Dues & Subscriptions",64832]
[null,null,null,null,null,null,"Dues & Subscriptions",64833]
[null,null,null,null,null,null,"Dues & Subscriptions",64834]
[null,null,null,null,null,null,"Dues & Subscriptions",64835]
[null,null,null,null,null,null,"Dues & Subscriptions",64836]
[null,null,null,null,null,null,"Dues & Subscriptions",64837]
[null,null,null,null,null,null,"Dues & Subscriptions",64838]
[null,null,null,null,null,null,"Dues & Subscriptions",64839]
[null,null,null,null,null,null,"Dues & Subscriptions",64840]
[null,null,null,null,null,null,"Dues & Subscriptions",64841]
[null,null,null,null,null,null,"Dues & Subscriptions",64842]
[null,null,null,null,null,null,"Dues & Subscriptions",64843]
[null,null,null,null,null,null,"Dues & Subscriptions",64844]
[null,null,null,null,null,null,"Dues & Subscriptions",64845]
[null,null,null,null,null,null,"Dues & Subscriptions",64846]
[null,null,null,null,null,null,"Dues & Subscriptions",64847]
[null,null,null,null,null,null,"Dues & Subscriptions",64848]
[null,null,null,null,null,null,"Dues & Subscriptions",64849]
[null,null,null,null,null,null,"Books & Publications",64850]
[null,null,null,null,null,null,"Books & Publications",64851]
[null,null,null,null,null,null,"Books & Publications",64852]
[null,null,null,null,null,null,"Books & Publications",64853]
[null,null,null,null,null,null,"Books & Publications",64854]
[null,null,null,null,null,null,"Books & Publications",64855]
[null,null,null,null,null,null,"Books & Publications",64856]
[null,null,null,null,null,null,"Books & Publications",64857]
[null,null,null,null,null,null,"Books & Publications",64858]
[null,null,null,null,null,null,"Books & Publications",64859]
[null,null,null,null,null,null,"Books & Publications",64860]
[null,null,null,null,null,null,"Books & Publications",64861]
[null,null,null,null,null,null,"Books & Publications",64862]
[null,null,null,null,null,null,"Books & Publications",64863]
[null,null,null,null,null,null,"Books & Publications",64864]
[null,null,null,null,null,null,"Books & Publications",64865]
[null,null,null,null,null,null,"Books & Publications",64866]
[null,null,null,null,null,null,"Books & Publications",64867]
[null,null,null,null,null,null,"Books & Publications",64868]
[null,null,null,null,null,null,"Books & Publications",64869]
[null,null,null,null,null,null,"Books & Publications",64870]
[null,null,null,null,null,null,"Books & Publications",64871]
[null,null,null,null,null,null,"Books & Publications",64872]
[null,null,null,null,null,null,"Books & Publications",64873]
[null,null,null,null,null,null,"Books & Publications",64874]
[null,null,null,null,null,null,"Books & Publications",64875]
[null,null,null,null,null,null,"Books & Publications",64876]
[null,null,null,null,null,null,"Books & Publications",64877]
[null,null,null,null,null,null,"Books & Publications",64878]
[null,null,null,null,null,null,"Books & Publications",64879]
[null,null,null,null,null,null,"Books & Publications",64880]
[null,null,null,null,null,null,"Books & Publications",64881]
[null,null,null,null,null,null,"Books & Publications",64882]
[null,null,null,null,null,null,"Books & Publications",64883]
[null,null,null,null,null,null,"Books & Publications",64884]
[null,null,null,null,null,null,"Books & Publications",64885]
[null,null,null,null,null,null,"Books & Publications",64886]
[null,null,null,null,null,null,"Books & Publications",64887]
[null,null,null,null,null,null,"Books & Publications",64888]
[null,null,null,null,null,null,"Books & Publications",64889]
[null,null,null,null,null,null,"Books & Publications",64890]
[null,null,null,null,null,null,"Books & Publications",64891]
[null,null,null,null,null,null,"Books & Publications",64892]
[null,null,null,null,null,null,"Books & Publications",64893]
[null,null,null,null,null,null,"Books & Publications",64894]
[null,null,null,null,null,null,"Books & Publications",64895]
[null,null,null,null,null,null,"Books & Publications",64896]
[null,null,null,null,null,null,"Books & Publications",64897]
[null,null,null,null,null,null,"Books & Publications",64898]
[null,null,null,null,null,null,"Books & Publications",64899]
[null,null,null,null,null,null,"Miscellaneous",64900]
[null,null,null,null,null,null,"Miscellaneous",64901]
[null,null,null,null,null,null,"Miscellaneous",64902]
[null,null,null,null,null,null,"Miscellaneous",64903]
[null,null,null,null,null,null,"Miscellaneous",64904]
[null,null,null,null,null,null,"Miscellaneous",64905]
[null,null,null,null,null,null,"Miscellaneous",64906]
[null,null,null,null,null,null,"Miscellaneous",64907]
[null,null,null,null,null,null,"Miscellaneous",64908]
[null,null,null,null,null,null,"Miscellaneous",64909]
[null,null,null,null,null,null,"Miscellaneous",64910]
[null,null,null,null,null,null,"Miscellaneous",64911]
[null,null,null,null,null,null,"Miscellaneous",64912]
[null,null,null,null,null,null,"Miscellaneous",64913]
[null,null,null,null,null,null,"Miscellaneous",64914]
[null,null,null,null,null,null,"Miscellaneous",64915]
[null,null,null,null,null,null,"Miscellaneous",64916]
[null,null,null,null,null,null,"Miscellaneous",64917]
[null,null,null,null,null,null,"Miscellaneous",64918]
[null,null,null,null,null,null,"Miscellaneous",64919]
[null,null,null,null,null,null,"Staff Appreciation",64920]
[null,null,null,null,null,null,"Staff Appreciation",64921]
[null,null,null,null,null,null,"Staff Appreciation",64922]
[null,null,null,null,null,null,"Staff Appreciation",64923]
[null,null,null,null,null,null,"Staff Appreciation",64924]
[null,null,null,null,null,null,"Staff Appreciation",64925]
[null,null,null,null,null,null,"Staff Appreciation",64926]
[null,null,null,null,null,null,"Staff Appreciation",64927]
[null,null,null,null,null,null,"Staff Appreciation",64928]
[null,null,null,null,null,null,"Staff Appreciation",64929]
[null,null,null,null,null,null,"Staff Development",64940]
[null,null,null,null,null,null,"Staff Development",64941]
[null,null,null,null,null,null,"Meetings/Conferences",64942]
[null,null,null,null,null,null,"Meetings/Conferences",64943]
[null,null,null,null,null,null,"Meetings/Conferences",64944]
[null,null,null,null,null,null,"Training Workshops",64945]
[null,null,null,null,null,null,"Training Workshops",64946]
[null,null,null,null,null,null,"Training Workshops",64947]
[null,null,null,null,null,null,"Training Workshops",64948]
[null,null,null,null,null,null,"Training Workshops",64949]
[null,null,null,null,null,null,"Training Workshops",64950]
[null,null,null,null,null,null,"Training Workshops",64951]
[null,null,null,null,null,null,"Training Workshops",64952]
[null,null,null,null,null,null,"Training Workshops",64953]
[null,null,null,null,null,null,"Training Workshops",64954]
[null,null,null,null,null,null,"Training Workshops",64955]
[null,null,null,null,null,null,"Training Workshops",64956]
[null,null,null,null,null,null,"Training Workshops",64957]
[null,null,null,null,null,null,"Training Workshops",64958]
[null,null,null,null,null,null,"Training Workshops",64959]
[null,null,null,null,null,null,"Training Workshops",64960]
[null,null,null,null,null,null,"Training Workshops",64961]
[null,null,null,null,null,null,"Training Workshops",64962]
[null,null,null,null,null,null,"Training Workshops",64963]
[null,null,null,null,null,null,"Training Workshops",64964]
[null,null,null,null,null,null,"Training Workshops",64965]
[null,null,null,null,null,null,"Training Workshops",64966]
[null,null,null,null,null,null,"Training Workshops",64967]
[null,null,null,null,null,null,"Training Workshops",64968]
[null,null,null,null,null,null,"Training Workshops",64969]
[null,null,null,null,null,null,"Training Workshops",64970]
[null,null,null,null,null,null,"Training Workshops",64971]
[null,null,null,null,null,null,"Training Workshops",64972]
[null,null,null,null,null,null,"Training Workshops",64973]
[null,null,null,null,null,null,"Training Workshops",64974]
[null,null,null,null,null,null,"Training Workshops",64975]
[null,null,null,null,null,null,"Training Workshops",64976]
[null,null,null,null,null,null,"Training Workshops",64977]
[null,null,null,null,null,null,"Training Workshops",64978]
[null,null,null,null,null,null,"Training Workshops",64979]
[null,null,null,null,null,null,"Training Workshops",64980]
[null,null,null,null,null,null,"Training Workshops",64981]
[null,null,null,null,null,null,"Training Workshops",64982]
[null,null,null,null,null,null,"Training Workshops",64983]
[null,null,null,null,null,null,"Training Workshops",64984]
[null,null,null,null,null,null,"Training Workshops",64985]
[null,null,null,null,null,null,"Training Workshops",64986]
[null,null,null,null,null,null,"Training Workshops",64987]
[null,null,null,null,null,null,"Training Workshops",64988]
[null,null,null,null,null,null,"Training Workshops",64989]
[null,null,null,null,null,null,"Grant/Contr To Ext Orgs-U.S. ",65000]
[null,null,null,null,null,null,"Grant/Contr To Ext Orgs-U.S. ",65001]
[null,null,null,null,null,null,"Grant/Contr To Ext Orgs-U.S. ",65002]
[null,null,null,null,null,null,"Grant/Contr To Ext Orgs-U.S. ",65003]
[null,null,null,null,null,null,"Grant/Contr To Ext Orgs-U.S. ",65004]
[null,null,null,null,null,null,"Grant/Contr To Ext Orgs-U.S. ",65005]
[null,null,null,null,null,null,"Grant/Contr To Ext Orgs-U.S. ",65006]
[null,null,null,null,null,null,"Grant/Contr To Ext Orgs-U.S. ",65007]
[null,null,null,null,null,null,"Grant/Contr To Ext Orgs-U.S. ",65008]
[null,null,null,null,null,null,"Grant/Contr To Ext Orgs-U.S. ",65009]
[null,null,null,null,null,null,"Grant/Contr To Ext Orgs -Non US",65010]
[null,null,null,null,null,null,"Grant/Contr To Ext Orgs -Non US",65011]
[null,null,null,null,null,null,"Grant/Contr To Ext Orgs -Non US",65012]
[null,null,null,null,null,null,"Grant/Contr To Ext Orgs -Non US",65013]
[null,null,null,null,null,null,"Grant/Contr To Ext Orgs -Non US",65014]
[null,null,null,null,null,null,"Grant/Contr To Ext Orgs -Non US",65015]
[null,null,null,null,null,null,"Grant/Contr To Ext Orgs -Non US",65016]
[null,null,null,null,null,null,"Grant/Contr To Ext Orgs -Non US",65017]
[null,null,null,null,null,null,"Grant/Contr To Ext Orgs -Non US",65018]
[null,null,null,null,null,null,"Grant/Contr To Ext Orgs -Non US",65019]
[null,null,null,null,null,null,"Grant/Contr To Ext Orgs -Non US",65020]
[null,null,null,null,null,null,"Grant/Contr To Ext Orgs -Non US",65021]
[null,null,null,null,null,null,"Grant/Contr To Ext Orgs -Non US",65022]
[null,null,null,null,null,null,"Grant/Contr To Ext Orgs -Non US",65023]
[null,null,null,null,null,null,"Grant/Contr To Ext Orgs -Non US",65024]
[null,null,null,null,null,null,"Grant/Contr To Ext Orgs -Non US",65025]
[null,null,null,null,null,null,"Grant/Contr To Ext Orgs -Non US",65026]
[null,null,null,null,null,null,"Grant/Contr To Ext Orgs -Non US",65027]
[null,null,null,null,null,null,"Grant/Contr To Ext Orgs -Non US",65028]
[null,null,null,null,null,null,"Grant/Contr To Ext Orgs -Non US",65029]
[null,null,null,null,null,null,"Grant/Contr To Ext Orgs -Non US",65030]
[null,null,null,null,null,null,"Grant/Contr To Ext Orgs -Non US",65031]
[null,null,null,null,null,null,"Grant/Contr To Ext Orgs -Non US",65032]
[null,null,null,null,null,null,"Grant/Contr To Ext Orgs -Non US",65033]
[null,null,null,null,null,null,"Grant/Contr To Ext Orgs -Non US",65034]
[null,null,null,null,null,null,"Grant/Contr To Ext Orgs -Non US",65035]
[null,null,null,null,null,null,"Grant/Contr To Ext Orgs -Non US",65036]
[null,null,null,null,null,null,"Grant/Contr To Ext Orgs -Non US",65037]
[null,null,null,null,null,null,"Grant/Contr To Ext Orgs -Non US",65038]
[null,null,null,null,null,null,"Grant/Contr To Ext Orgs -Non US",65039]
[null,null,null,null,null,null,"Grant/Contr To Ext Orgs -Non US",65040]
[null,null,null,null,null,null,"Grant/Contr To Ext Orgs -Non US",65041]
[null,null,null,null,null,null,"Grant/Contr To Ext Orgs -Non US",65042]
[null,null,null,null,null,null,"Grant/Contr To Ext Orgs -Non US",65043]
[null,null,null,null,null,null,"Grant/Contr To Ext Orgs -Non US",65044]
[null,null,null,null,null,null,"Grant/Contr To Ext Orgs -Non US",65045]
[null,null,null,null,null,null,"Grant/Contr To Ext Orgs -Non US",65046]
[null,null,null,null,null,null,"Grant/Contr To Ext Orgs -Non US",65047]
[null,null,null,null,null,null,"Grant/Contr To Ext Orgs -Non US",65048]
[null,null,null,null,null,null,"Grant/Contr To Ext Orgs -Non US",65049]
[null,null,null,null,null,null,"Grant/Contr To WMOs -US",65050]
[null,null,null,null,null,null,"Grant/Contr To WMOs -US",65051]
[null,null,null,null,null,null,"Grant/Contr To WMOs -US",65052]
[null,null,null,null,null,null,"Grant/Contr To WMOs -US",65053]
[null,null,null,null,null,null,"Grant/Contr To WMOs -US",65054]
[null,null,null,null,null,null,"Grant/Contr To WMOs -US",65055]
[null,null,null,null,null,null,"Grant/Contr To WMOs -US",65056]
[null,null,null,null,null,null,"Grant/Contr To WMOs -US",65057]
[null,null,null,null,null,null,"Grant/Contr To WMOs -US",65058]
[null,null,null,null,null,null,"Grant/Contr To WMOs -US",65059]
[null,null,null,null,null,null,"Grant/Contr To WMOs-Non US",65060]
[null,null,null,null,null,null,"Grant/Contr To WMOs-Non US",65061]
[null,null,null,null,null,null,"Grant/Contr To WMOs-Non US",65062]
[null,null,null,null,null,null,"Grant/Contr To WMOs-Non US",65063]
[null,null,null,null,null,null,"Grant/Contr To WMOs-Non US",65064]
[null,null,null,null,null,null,"Grant/Contr To WMOs-Non US",65065]
[null,null,null,null,null,null,"Grant/Contr To WMOs-Non US",65066]
[null,null,null,null,null,null,"Grant/Contr To WMOs-Non US",65067]
[null,null,null,null,null,null,"Grant/Contr To WMOs-Non US",65068]
[null,null,null,null,null,null,"Grant/Contr To WMOs-Non US",65069]
[null,null,null,null,null,null,"Grant/Contr To WMOs-Non US",65070]
[null,null,null,null,null,null,"Grant/Contr To WMOs-Non US",65071]
[null,null,null,null,null,null,"Grant/Contr To WMOs-Non US",65072]
[null,null,null,null,null,null,"Grant/Contr To WMOs-Non US",65073]
[null,null,null,null,null,null,"Grant/Contr To WMOs-Non US",65074]
[null,null,null,null,null,null,"Grant/Contr To WMOs-Non US",65075]
[null,null,null,null,null,null,"Grant/Contr To WMOs-Non US",65076]
[null,null,null,null,null,null,"Grant/Contr To WMOs-Non US",65077]
[null,null,null,null,null,null,"Grant/Contr To WMOs-Non US",65078]
[null,null,null,null,null,null,"Grant/Contr To WMOs-Non US",65079]
[null,null,null,null,null,null,"Grant/Contr To WMOs-Non US",65080]
[null,null,null,null,null,null,"Grant/Contr To WMOs-Non US",65081]
[null,null,null,null,null,null,"Grant/Contr To WMOs-Non US",65082]
[null,null,null,null,null,null,"Grant/Contr To WMOs-Non US",65083]
[null,null,null,null,null,null,"Grant/Contr To WMOs-Non US",65084]
[null,null,null,null,null,null,"Grant/Contr To WMOs-Non US",65085]
[null,null,null,null,null,null,"Grant/Contr To WMOs-Non US",65086]
[null,null,null,null,null,null,"Grant/Contr To WMOs-Non US",65087]
[null,null,null,null,null,null,"Grant/Contr To WMOs-Non US",65088]
[null,null,null,null,null,null,"Grant/Contr To WMOs-Non US",65089]
[null,null,null,null,null,null,"Grant/Contr To WMOs-Non US",65090]
[null,null,null,null,null,null,"Grant/Contr To WMOs-Non US",65091]
[null,null,null,null,null,null,"Grant/Contr To WMOs-Non US",65092]
[null,null,null,null,null,null,"Grant/Contr To WMOs-Non US",65093]
[null,null,null,null,null,null,"Grant/Contr To WMOs-Non US",65094]
[null,null,null,null,null,null,"Grant/Contr To WMOs-Non US",65095]
[null,null,null,null,null,null,"Grant/Contr To WMOs-Non US",65096]
[null,null,null,null,null,null,"Grant/Contr To WMOs-Non US",65097]
[null,null,null,null,null,null,"Grant/Contr To WMOs-Non US",65098]
[null,null,null,null,null,null,"Grant/Contr To WMOs-Non US",65099]
[null,null,null,null,null,null,"Contr/Schol Indiv - US",65100]
[null,null,null,null,null,null,"Contr/Schol Indiv - US",65100]
[null,null,null,null,null,null,"Contr/Schol Indiv - US",65100]
[null,null,null,null,null,null,"Contr/Schol Indiv - US",65101]
[null,null,null,null,null,null,"Contr/Schol Indiv - US",65101]
[null,null,null,null,null,null,"Contr/Schol Indiv - US",65101]
[null,null,null,null,null,null,"Contr/Schol Indiv - US",65102]
[null,null,null,null,null,null,"Contr/Schol Indiv - US",65102]
[null,null,null,null,null,null,"Contr/Schol Indiv - US",65102]
[null,null,null,null,null,null,"Contr/Schol Indiv - US",65103]
[null,null,null,null,null,null,"Contr/Schol Indiv - US",65103]
[null,null,null,null,null,null,"Contr/Schol Indiv - US",65103]
[null,null,null,null,null,null,"Contr/Schol Indiv - US",65104]
[null,null,null,null,null,null,"Contr/Schol Indiv - US",65104]
[null,null,null,null,null,null,"Contr/Schol Indiv - US",65104]
[null,null,null,null,null,null,"Contr/Schol Indiv - US",65105]
[null,null,null,null,null,null,"Contr/Schol Indiv - US",65105]
[null,null,null,null,null,null,"Contr/Schol Indiv - US",65105]
[null,null,null,null,null,null,"Contr/Schol Indiv - US",65106]
[null,null,null,null,null,null,"Contr/Schol Indiv - US",65106]
[null,null,null,null,null,null,"Contr/Schol Indiv - US",65106]
[null,null,null,null,null,null,"Contr/Schol Indiv - US",65107]
[null,null,null,null,null,null,"Contr/Schol Indiv - US",65107]
[null,null,null,null,null,null,"Contr/Schol Indiv - US",65107]
[null,null,null,null,null,null,"Contr/Schol Indiv - US",65108]
[null,null,null,null,null,null,"Contr/Schol Indiv - US",65108]
[null,null,null,null,null,null,"Contr/Schol Indiv - US",65108]
[null,null,null,null,null,null,"Contr/Schol Indiv - US",65109]
[null,null,null,null,null,null,"Contr/Schol Indiv - US",65109]
[null,null,null,null,null,null,"Contr/Schol Indiv - US",65109]
[null,null,null,null,null,null,"Contr/Schol Indiv - US",65110]
[null,null,null,null,null,null,"Contr/Schol Indiv - US",65110]
[null,null,null,null,null,null,"Contr/Schol Indiv - US",65110]
[null,null,null,null,null,null,"Contr/Schol Indiv - US",65111]
[null,null,null,null,null,null,"Contr/Schol Indiv - US",65111]
[null,null,null,null,null,null,"Contr/Schol Indiv - US",65111]
[null,null,null,null,null,null,"Contr/Schol Indiv - US",65112]
[null,null,null,null,null,null,"Contr/Schol Indiv - US",65112]
[null,null,null,null,null,null,"Contr/Schol Indiv - US",65112]
[null,null,null,null,null,null,"Contr/Schol Indiv - US",65113]
[null,null,null,null,null,null,"Contr/Schol Indiv - US",65113]
[null,null,null,null,null,null,"Contr/Schol Indiv - US",65113]
[null,null,null,null,null,null,"Contr/Schol Indiv - US",65114]
[null,null,null,null,null,null,"Contr/Schol Indiv - US",65114]
[null,null,null,null,null,null,"Contr/Schol Indiv - US",65114]
[null,null,null,null,null,null,"Contr/Schol Indiv - US",65115]
[null,null,null,null,null,null,"Contr/Schol Indiv - US",65115]
[null,null,null,null,null,null,"Contr/Schol Indiv - US",65115]
[null,null,null,null,null,null,"Contr/Schol Indiv - US",65116]
[null,null,null,null,null,null,"Contr/Schol Indiv - US",65116]
[null,null,null,null,null,null,"Contr/Schol Indiv - US",65116]
[null,null,null,null,null,null,"Contr/Schol Indiv - US",65117]
[null,null,null,null,null,null,"Contr/Schol Indiv - US",65117]
[null,null,null,null,null,null,"Contr/Schol Indiv - US",65117]
[null,null,null,null,null,null,"Contr/Schol Indiv - US",65118]
[null,null,null,null,null,null,"Contr/Schol Indiv - US",65118]
[null,null,null,null,null,null,"Contr/Schol Indiv - US",65118]
[null,null,null,null,null,null,"Contr/Schol Indiv - US",65119]
[null,null,null,null,null,null,"Contr/Schol Indiv - US",65119]
[null,null,null,null,null,null,"Contr/Schol Indiv - US",65119]
[null,null,null,null,null,null,"Contr/Schol Indiv - US",65120]
[null,null,null,null,null,null,"Contr/Schol Indiv - US",65120]
[null,null,null,null,null,null,"Contr/Schol Indiv - US",65120]
[null,null,null,null,null,null,"Contr/Schol Indiv - US",65121]
[null,null,null,null,null,null,"Contr/Schol Indiv - US",65121]
[null,null,null,null,null,null,"Contr/Schol Indiv - US",65121]
[null,null,null,null,null,null,"Contr/Schol Indiv - US",65122]
[null,null,null,null,null,null,"Contr/Schol Indiv - US",65122]
[null,null,null,null,null,null,"Contr/Schol Indiv - US",65122]
[null,null,null,null,null,null,"Contr/Schol Indiv - US",65123]
[null,null,null,null,null,null,"Contr/Schol Indiv - US",65123]
[null,null,null,null,null,null,"Contr/Schol Indiv - US",65123]
[null,null,null,null,null,null,"Contr/Schol Indiv - US",65124]
[null,null,null,null,null,null,"Contr/Schol Indiv - US",65124]
[null,null,null,null,null,null,"Contr/Schol Indiv - US",65124]
[null,null,null,null,null,null,"Contr/Schol Indiv - Non US",65125]
[null,null,null,null,null,null,"Contr/Schol Indiv - Non US",65125]
[null,null,null,null,null,null,"Contr/Schol Indiv - Non US",65125]
[null,null,null,null,null,null,"Contr/Schol Indiv - Non US",65126]
[null,null,null,null,null,null,"Contr/Schol Indiv - Non US",65126]
[null,null,null,null,null,null,"Contr/Schol Indiv - Non US",65126]
[null,null,null,null,null,null,"Contr/Schol Indiv - Non US",65127]
[null,null,null,null,null,null,"Contr/Schol Indiv - Non US",65127]
[null,null,null,null,null,null,"Contr/Schol Indiv - Non US",65127]
[null,null,null,null,null,null,"Contr/Schol Indiv - Non US",65128]
[null,null,null,null,null,null,"Contr/Schol Indiv - Non US",65128]
[null,null,null,null,null,null,"Contr/Schol Indiv - Non US",65128]
[null,null,null,null,null,null,"Contr/Schol Indiv - Non US",65129]
[null,null,null,null,null,null,"Contr/Schol Indiv - Non US",65129]
[null,null,null,null,null,null,"Contr/Schol Indiv - Non US",65129]
[null,null,null,null,null,null,"Contr/Schol Indiv - Non US",65130]
[null,null,null,null,null,null,"Contr/Schol Indiv - Non US",65130]
[null,null,null,null,null,null,"Contr/Schol Indiv - Non US",65130]
[null,null,null,null,null,null,"Contr/Schol Indiv - Non US",65131]
[null,null,null,null,null,null,"Contr/Schol Indiv - Non US",65131]
[null,null,null,null,null,null,"Contr/Schol Indiv - Non US",65131]
[null,null,null,null,null,null,"Contr/Schol Indiv - Non US",65132]
[null,null,null,null,null,null,"Contr/Schol Indiv - Non US",65132]
[null,null,null,null,null,null,"Contr/Schol Indiv - Non US",65132]
[null,null,null,null,null,null,"Contr/Schol Indiv - Non US",65133]
[null,null,null,null,null,null,"Contr/Schol Indiv - Non US",65133]
[null,null,null,null,null,null,"Contr/Schol Indiv - Non US",65133]
[null,null,null,null,null,null,"Contr/Schol Indiv - Non US",65134]
[null,null,null,null,null,null,"Contr/Schol Indiv - Non US",65134]
[null,null,null,null,null,null,"Contr/Schol Indiv - Non US",65134]
[null,null,null,null,null,null,"Contr/Schol Indiv - Non US",65135]
[null,null,null,null,null,null,"Contr/Schol Indiv - Non US",65135]
[null,null,null,null,null,null,"Contr/Schol Indiv - Non US",65135]
[null,null,null,null,null,null,"Contr/Schol Indiv - Non US",65136]
[null,null,null,null,null,null,"Contr/Schol Indiv - Non US",65136]
[null,null,null,null,null,null,"Contr/Schol Indiv - Non US",65136]
[null,null,null,null,null,null,"Contr/Schol Indiv - Non US",65137]
[null,null,null,null,null,null,"Contr/Schol Indiv - Non US",65137]
[null,null,null,null,null,null,"Contr/Schol Indiv - Non US",65137]
[null,null,null,null,null,null,"Contr/Schol Indiv - Non US",65138]
[null,null,null,null,null,null,"Contr/Schol Indiv - Non US",65138]
[null,null,null,null,null,null,"Contr/Schol Indiv - Non US",65138]
[null,null,null,null,null,null,"Contr/Schol Indiv - Non US",65139]
[null,null,null,null,null,null,"Contr/Schol Indiv - Non US",65139]
[null,null,null,null,null,null,"Contr/Schol Indiv - Non US",65139]
[null,null,null,null,null,null,"Contr/Schol Indiv - Non US",65140]
[null,null,null,null,null,null,"Contr/Schol Indiv - Non US",65140]
[null,null,null,null,null,null,"Contr/Schol Indiv - Non US",65140]
[null,null,null,null,null,null,"Contr/Schol Indiv - Non US",65141]
[null,null,null,null,null,null,"Contr/Schol Indiv - Non US",65141]
[null,null,null,null,null,null,"Contr/Schol Indiv - Non US",65141]
[null,null,null,null,null,null,"Contr/Schol Indiv - Non US",65142]
[null,null,null,null,null,null,"Contr/Schol Indiv - Non US",65142]
[null,null,null,null,null,null,"Contr/Schol Indiv - Non US",65142]
[null,null,null,null,null,null,"Contr/Schol Indiv - Non US",65143]
[null,null,null,null,null,null,"Contr/Schol Indiv - Non US",65143]
[null,null,null,null,null,null,"Contr/Schol Indiv - Non US",65143]
[null,null,null,null,null,null,"Contr/Schol Indiv - Non US",65144]
[null,null,null,null,null,null,"Contr/Schol Indiv - Non US",65144]
[null,null,null,null,null,null,"Contr/Schol Indiv - Non US",65144]
[null,null,null,null,null,null,"Contr/Schol Indiv - Non US",65145]
[null,null,null,null,null,null,"Contr/Schol Indiv - Non US",65145]
[null,null,null,null,null,null,"Contr/Schol Indiv - Non US",65145]
[null,null,null,null,null,null,"Contr/Schol Indiv - Non US",65146]
[null,null,null,null,null,null,"Contr/Schol Indiv - Non US",65146]
[null,null,null,null,null,null,"Contr/Schol Indiv - Non US",65146]
[null,null,null,null,null,null,"Contr/Schol Indiv - Non US",65147]
[null,null,null,null,null,null,"Contr/Schol Indiv - Non US",65147]
[null,null,null,null,null,null,"Contr/Schol Indiv - Non US",65147]
[null,null,null,null,null,null,"Contr/Schol Indiv - Non US",65148]
[null,null,null,null,null,null,"Contr/Schol Indiv - Non US",65148]
[null,null,null,null,null,null,"Contr/Schol Indiv - Non US",65148]
[null,null,null,null,null,null,"Contr/Schol Indiv - Non US",65149]
[null,null,null,null,null,null,"Contr/Schol Indiv - Non US",65149]
[null,null,null,null,null,null,"Contr/Schol Indiv - Non US",65149]
[null,null,null,null,null,null,"Contr/Schol Indiv - Non US",65150]
[null,null,null,null,null,null,"Contr/Schol Indiv - Non US",65150]
[null,null,null,null,null,null,"Contr/Schol Indiv - Non US",65150]
[null,null,null,null,null,null,"Contr/Schol Indiv - Non US",65151]
[null,null,null,null,null,null,"Contr/Schol Indiv - Non US",65151]
[null,null,null,null,null,null,"Contr/Schol Indiv - Non US",65151]
[null,null,null,null,null,null,"Contr/Schol Indiv - Non US",65152]
[null,null,null,null,null,null,"Contr/Schol Indiv - Non US",65152]
[null,null,null,null,null,null,"Contr/Schol Indiv - Non US",65152]
[null,null,null,null,null,null,"Contr/Schol Indiv - Non US",65153]
[null,null,null,null,null,null,"Contr/Schol Indiv - Non US",65153]
[null,null,null,null,null,null,"Contr/Schol Indiv - Non US",65153]
[null,null,null,null,null,null,"Contr/Schol Indiv - Non US",65154]
[null,null,null,null,null,null,"Contr/Schol Indiv - Non US",65154]
[null,null,null,null,null,null,"Contr/Schol Indiv - Non US",65154]
[null,null,null,null,null,null,"Contr/Schol Indiv - Non US",65155]
[null,null,null,null,null,null,"Contr/Schol Indiv - Non US",65155]
[null,null,null,null,null,null,"Contr/Schol Indiv - Non US",65155]
[null,null,null,null,null,null,"Contr/Schol Indiv - Non US",65156]
[null,null,null,null,null,null,"Contr/Schol Indiv - Non US",65156]
[null,null,null,null,null,null,"Contr/Schol Indiv - Non US",65156]
[null,null,null,null,null,null,"Contr/Schol Indiv - Non US",65157]
[null,null,null,null,null,null,"Contr/Schol Indiv - Non US",65157]
[null,null,null,null,null,null,"Contr/Schol Indiv - Non US",65157]
[null,null,null,null,null,null,"Contr/Schol Indiv - Non US",65158]
[null,null,null,null,null,null,"Contr/Schol Indiv - Non US",65158]
[null,null,null,null,null,null,"Contr/Schol Indiv - Non US",65158]
[null,null,null,null,null,null,"Contr/Schol Indiv - Non US",65159]
[null,null,null,null,null,null,"Contr/Schol Indiv - Non US",65159]
[null,null,null,null,null,null,"Contr/Schol Indiv - Non US",65159]
[null,null,null,null,null,null,"Contr/Schol Indiv - Non US",65160]
[null,null,null,null,null,null,"Contr/Schol Indiv - Non US",65160]
[null,null,null,null,null,null,"Contr/Schol Indiv - Non US",65160]
[null,null,null,null,null,null,"Contr/Schol Indiv - Non US",65161]
[null,null,null,null,null,null,"Contr/Schol Indiv - Non US",65161]
[null,null,null,null,null,null,"Contr/Schol Indiv - Non US",65161]
[null,null,null,null,null,null,"Contr/Schol Indiv - Non US",65162]
[null,null,null,null,null,null,"Contr/Schol Indiv - Non US",65162]
[null,null,null,null,null,null,"Contr/Schol Indiv - Non US",65162]
[null,null,null,null,null,null,"Contr/Schol Indiv - Non US",65163]
[null,null,null,null,null,null,"Contr/Schol Indiv - Non US",65163]
[null,null,null,null,null,null,"Contr/Schol Indiv - Non US",65163]
[null,null,null,null,null,null,"Contr/Schol Indiv - Non US",65164]
[null,null,null,null,null,null,"Contr/Schol Indiv - Non US",65164]
[null,null,null,null,null,null,"Contr/Schol Indiv - Non US",65164]
[null,null,null,null,null,null,"Contr/Schol Indiv - Non US",65165]
[null,null,null,null,null,null,"Contr/Schol Indiv - Non US",65165]
[null,null,null,null,null,null,"Contr/Schol Indiv - Non US",65165]
[null,null,null,null,null,null,"Contr/Schol Indiv - Non US",65166]
[null,null,null,null,null,null,"Contr/Schol Indiv - Non US",65166]
[null,null,null,null,null,null,"Contr/Schol Indiv - Non US",65166]
[null,null,null,null,null,null,"Contr/Schol Indiv - Non US",65167]
[null,null,null,null,null,null,"Contr/Schol Indiv - Non US",65167]
[null,null,null,null,null,null,"Contr/Schol Indiv - Non US",65167]
[null,null,null,null,null,null,"Contr/Schol Indiv - Non US",65168]
[null,null,null,null,null,null,"Contr/Schol Indiv - Non US",65168]
[null,null,null,null,null,null,"Contr/Schol Indiv - Non US",65168]
[null,null,null,null,null,null,"Contr/Schol Indiv - Non US",65169]
[null,null,null,null,null,null,"Contr/Schol Indiv - Non US",65169]
[null,null,null,null,null,null,"Contr/Schol Indiv - Non US",65169]
[null,null,null,null,null,null,"Contr/Schol Indiv - Non US",65170]
[null,null,null,null,null,null,"Contr/Schol Indiv - Non US",65170]
[null,null,null,null,null,null,"Contr/Schol Indiv - Non US",65170]
[null,null,null,null,null,null,"Contr/Schol Indiv - Non US",65171]
[null,null,null,null,null,null,"Contr/Schol Indiv - Non US",65171]
[null,null,null,null,null,null,"Contr/Schol Indiv - Non US",65171]
[null,null,null,null,null,null,"Contr/Schol Indiv - Non US",65172]
[null,null,null,null,null,null,"Contr/Schol Indiv - Non US",65172]
[null,null,null,null,null,null,"Contr/Schol Indiv - Non US",65172]
[null,null,null,null,null,null,"Contr/Schol Indiv - Non US",65173]
[null,null,null,null,null,null,"Contr/Schol Indiv - Non US",65173]
[null,null,null,null,null,null,"Contr/Schol Indiv - Non US",65173]
[null,null,null,null,null,null,"Contr/Schol Indiv - Non US",65174]
[null,null,null,null,null,null,"Contr/Schol Indiv - Non US",65174]
[null,null,null,null,null,null,"Contr/Schol Indiv - Non US",65174]
[null,null,null,null,null,null,"Contr/Schol Indiv - Non US",65175]
[null,null,null,null,null,null,"Contr/Schol Indiv - Non US",65175]
[null,null,null,null,null,null,"Contr/Schol Indiv - Non US",65175]
[null,null,null,null,null,null,"Contr/Schol Indiv - Non US",65176]
[null,null,null,null,null,null,"Contr/Schol Indiv - Non US",65176]
[null,null,null,null,null,null,"Contr/Schol Indiv - Non US",65176]
[null,null,null,null,null,null,"Contr/Schol Indiv - Non US",65177]
[null,null,null,null,null,null,"Contr/Schol Indiv - Non US",65177]
[null,null,null,null,null,null,"Contr/Schol Indiv - Non US",65177]
[null,null,null,null,null,null,"Contr/Schol Indiv - Non US",65178]
[null,null,null,null,null,null,"Contr/Schol Indiv - Non US",65178]
[null,null,null,null,null,null,"Contr/Schol Indiv - Non US",65178]
[null,null,null,null,null,null,"Contr/Schol Indiv - Non US",65179]
[null,null,null,null,null,null,"Contr/Schol Indiv - Non US",65179]
[null,null,null,null,null,null,"Contr/Schol Indiv - Non US",65179]
[null,null,null,null,null,null,"Contr/Schol Indiv - Non US",65180]
[null,null,null,null,null,null,"Contr/Schol Indiv - Non US",65180]
[null,null,null,null,null,null,"Contr/Schol Indiv - Non US",65180]
[null,null,null,null,null,null,"Contr/Schol Indiv - Non US",65181]
[null,null,null,null,null,null,"Contr/Schol Indiv - Non US",65181]
[null,null,null,null,null,null,"Contr/Schol Indiv - Non US",65181]
[null,null,null,null,null,null,"Contr/Schol Indiv - Non US",65182]
[null,null,null,null,null,null,"Contr/Schol Indiv - Non US",65182]
[null,null,null,null,null,null,"Contr/Schol Indiv - Non US",65182]
[null,null,null,null,null,null,"Contr/Schol Indiv - Non US",65183]
[null,null,null,null,null,null,"Contr/Schol Indiv - Non US",65183]
[null,null,null,null,null,null,"Contr/Schol Indiv - Non US",65183]
[null,null,null,null,null,null,"Contr/Schol Indiv - Non US",65184]
[null,null,null,null,null,null,"Contr/Schol Indiv - Non US",65184]
[null,null,null,null,null,null,"Contr/Schol Indiv - Non US",65184]
[null,null,null,null,null,null,"Contr/Schol Indiv - Non US",65185]
[null,null,null,null,null,null,"Contr/Schol Indiv - Non US",65185]
[null,null,null,null,null,null,"Contr/Schol Indiv - Non US",65185]
[null,null,null,null,null,null,"Contr/Schol Indiv - Non US",65186]
[null,null,null,null,null,null,"Contr/Schol Indiv - Non US",65186]
[null,null,null,null,null,null,"Contr/Schol Indiv - Non US",65186]
[null,null,null,null,null,null,"Contr/Schol Indiv - Non US",65187]
[null,null,null,null,null,null,"Contr/Schol Indiv - Non US",65187]
[null,null,null,null,null,null,"Contr/Schol Indiv - Non US",65187]
[null,null,null,null,null,null,"Contr/Schol Indiv - Non US",65188]
[null,null,null,null,null,null,"Contr/Schol Indiv - Non US",65188]
[null,null,null,null,null,null,"Contr/Schol Indiv - Non US",65188]
[null,null,null,null,null,null,"Contr/Schol Indiv - Non US",65189]
[null,null,null,null,null,null,"Contr/Schol Indiv - Non US",65189]
[null,null,null,null,null,null,"Contr/Schol Indiv - Non US",65189]
[null,null,null,null,null,null,"Contr/Schol Indiv - Non US",65190]
[null,null,null,null,null,null,"Contr/Schol Indiv - Non US",65190]
[null,null,null,null,null,null,"Contr/Schol Indiv - Non US",65190]
[null,null,null,null,null,null,"Contr/Schol Indiv - Non US",65191]
[null,null,null,null,null,null,"Contr/Schol Indiv - Non US",65191]
[null,null,null,null,null,null,"Contr/Schol Indiv - Non US",65191]
[null,null,null,null,null,null,"Contr/Schol Indiv - Non US",65192]
[null,null,null,null,null,null,"Contr/Schol Indiv - Non US",65192]
[null,null,null,null,null,null,"Contr/Schol Indiv - Non US",65192]
[null,null,null,null,null,null,"Contr/Schol Indiv - Non US",65193]
[null,null,null,null,null,null,"Contr/Schol Indiv - Non US",65193]
[null,null,null,null,null,null,"Contr/Schol Indiv - Non US",65193]
[null,null,null,null,null,null,"Contr/Schol Indiv - Non US",65194]
[null,null,null,null,null,null,"Contr/Schol Indiv - Non US",65194]
[null,null,null,null,null,null,"Contr/Schol Indiv - Non US",65194]
[null,null,null,null,null,null,"Contr/Schol Indiv - Non US",65195]
[null,null,null,null,null,null,"Contr/Schol Indiv - Non US",65195]
[null,null,null,null,null,null,"Contr/Schol Indiv - Non US",65195]
[null,null,null,null,null,null,"Contr/Schol Indiv - Non US",65196]
[null,null,null,null,null,null,"Contr/Schol Indiv - Non US",65196]
[null,null,null,null,null,null,"Contr/Schol Indiv - Non US",65196]
[null,null,null,null,null,null,"Contr/Schol Indiv - Non US",65197]
[null,null,null,null,null,null,"Contr/Schol Indiv - Non US",65197]
[null,null,null,null,null,null,"Contr/Schol Indiv - Non US",65197]
[null,null,null,null,null,null,"Contr/Schol Indiv - Non US",65198]
[null,null,null,null,null,null,"Contr/Schol Indiv - Non US",65198]
[null,null,null,null,null,null,"Contr/Schol Indiv - Non US",65198]
[null,null,null,null,null,null,"Contr/Schol Indiv - Non US",65199]
[null,null,null,null,null,null,"Contr/Schol Indiv - Non US",65199]
[null,null,null,null,null,null,"Contr/Schol Indiv - Non US",65199]
[null,null,null,null,null,null,"Grant/Contr To SIL Entities",65200]
[null,null,null,null,null,null,"Grant/Contr To SIL Entities",65201]
[null,null,null,null,null,null,"Grant/Contr To SIL Entities",65202]
[null,null,null,null,null,null,"Grant/Contr To SIL Entities",65203]
[null,null,null,null,null,null,"Grant/Contr To SIL Entities",65204]
[null,null,null,null,null,null,"Grant/Contr To SIL Entities",65205]
[null,null,null,null,null,null,"Grant/Contr To SIL Entities",65206]
[null,null,null,null,null,null,"Grant/Contr To SIL Entities",65207]
[null,null,null,null,null,null,"Grant/Contr To SIL Entities",65208]
[null,null,null,null,null,null,"Grant/Contr To SIL Entities",65209]
[null,null,null,null,null,null,"Grant/Contr To SIL Entities",65210]
[null,null,null,null,null,null,"Grant/Contr To SIL Entities",65211]
[null,null,null,null,null,null,"Grant/Contr To SIL Entities",65212]
[null,null,null,null,null,null,"Grant/Contr To SIL Entities",65213]
[null,null,null,null,null,null,"Grant/Contr To SIL Entities",65214]
[null,null,null,null,null,null,"Grant/Contr To SIL Entities",65215]
[null,null,null,null,null,null,"Grant/Contr To SIL Entities",65216]
[null,null,null,null,null,null,"Grant/Contr To SIL Entities",65217]
[null,null,null,null,null,null,"Grant/Contr To SIL Entities",65218]
[null,null,null,null,null,null,"Grant/Contr To SIL Entities",65219]
[null,null,null,null,null,null,"Grant/Contr To SIL Entities",65220]
[null,null,null,null,null,null,"Grant/Contr To SIL Entities",65221]
[null,null,null,null,null,null,"Grant/Contr To SIL Entities",65222]
[null,null,null,null,null,null,"Grant/Contr To SIL Entities",65223]
[null,null,null,null,null,null,"Grant/Contr To SIL Entities",65224]
[null,null,null,null,null,null,"Grant/Contr To SIL Entities",65225]
[null,null,null,null,null,null,"Grant/Contr To SIL Entities",65226]
[null,null,null,null,null,null,"Grant/Contr To SIL Entities",65227]
[null,null,null,null,null,null,"Grant/Contr To SIL Entities",65228]
[null,null,null,null,null,null,"Grant/Contr To SIL Entities",65229]
[null,null,null,null,null,null,"Grant/Contr To SIL Entities",65230]
[null,null,null,null,null,null,"Grant/Contr To SIL Entities",65231]
[null,null,null,null,null,null,"Grant/Contr To SIL Entities",65232]
[null,null,null,null,null,null,"Grant/Contr To SIL Entities",65233]
[null,null,null,null,null,null,"Grant/Contr To SIL Entities",65234]
[null,null,null,null,null,null,"Grant/Contr To SIL Entities",65235]
[null,null,null,null,null,null,"Grant/Contr To SIL Entities",65236]
[null,null,null,null,null,null,"Grant/Contr To SIL Entities",65237]
[null,null,null,null,null,null,"Grant/Contr To SIL Entities",65238]
[null,null,null,null,null,null,"Grant/Contr To SIL Entities",65239]
[null,null,null,null,null,null,"Grant/Contr To SIL Entities",65240]
[null,null,null,null,null,null,"Grant/Contr To SIL Entities",65241]
[null,null,null,null,null,null,"Grant/Contr To SIL Entities",65242]
[null,null,null,null,null,null,"Grant/Contr To SIL Entities",65243]
[null,null,null,null,null,null,"Grant/Contr To SIL Entities",65244]
[null,null,null,null,null,null,"Grant/Contr To SIL Entities",65245]
[null,null,null,null,null,null,"Grant/Contr To SIL Entities",65246]
[null,null,null,null,null,null,"Grant/Contr To SIL Entities",65247]
[null,null,null,null,null,null,"Grant/Contr To SIL Entities",65248]
[null,null,null,null,null,null,"Grant/Contr To SIL Entities",65249]
[null,null,null,null,null,null,"Grant/Contr To SIL Entities",65250]
[null,null,null,null,null,null,"Grant/Contr To SIL Entities",65251]
[null,null,null,null,null,null,"Grant/Contr To SIL Entities",65252]
[null,null,null,null,null,null,"Grant/Contr To SIL Entities",65253]
[null,null,null,null,null,null,"Grant/Contr To SIL Entities",65254]
[null,null,null,null,null,null,"Grant/Contr To SIL Entities",65255]
[null,null,null,null,null,null,"Grant/Contr To SIL Entities",65256]
[null,null,null,null,null,null,"Grant/Contr To SIL Entities",65257]
[null,null,null,null,null,null,"Grant/Contr To SIL Entities",65258]
[null,null,null,null,null,null,"Grant/Contr To SIL Entities",65259]
[null,null,null,null,null,null,"Grant/Contr To SIL Entities",65260]
[null,null,null,null,null,null,"Grant/Contr To SIL Entities",65261]
[null,null,null,null,null,null,"Grant/Contr To SIL Entities",65262]
[null,null,null,null,null,null,"Grant/Contr To SIL Entities",65263]
[null,null,null,null,null,null,"Grant/Contr To SIL Entities",65264]
[null,null,null,null,null,null,"Grant/Contr To SIL Entities",65265]
[null,null,null,null,null,null,"Grant/Contr To SIL Entities",65266]
[null,null,null,null,null,null,"Grant/Contr To SIL Entities",65267]
[null,null,null,null,null,null,"Grant/Contr To SIL Entities",65268]
[null,null,null,null,null,null,"Grant/Contr To SIL Entities",65269]
[null,null,null,null,null,null,"Grant/Contr To SIL Entities",65270]
[null,null,null,null,null,null,"Grant/Contr To SIL Entities",65271]
[null,null,null,null,null,null,"Grant/Contr To SIL Entities",65272]
[null,null,null,null,null,null,"Grant/Contr To SIL Entities",65273]
[null,null,null,null,null,null,"Grant/Contr To SIL Entities",65274]
[null,null,null,null,null,null,"Grant/Contr To SIL Entities",65275]
[null,null,null,null,null,null,"Grant/Contr To SIL Entities",65276]
[null,null,null,null,null,null,"Grant/Contr To SIL Entities",65277]
[null,null,null,null,null,null,"Grant/Contr To SIL Entities",65278]
[null,null,null,null,null,null,"Grant/Contr To SIL Entities",65279]
[null,null,null,null,null,null,"Grant/Contr To SIL Entities",65280]
[null,null,null,null,null,null,"Grant/Contr To SIL Entities",65281]
[null,null,null,null,null,null,"Grant/Contr To SIL Entities",65282]
[null,null,null,null,null,null,"Grant/Contr To SIL Entities",65283]
[null,null,null,null,null,null,"Grant/Contr To SIL Entities",65284]
[null,null,null,null,null,null,"Grant/Contr To SIL Entities",65285]
[null,null,null,null,null,null,"Grant/Contr To SIL Entities",65286]
[null,null,null,null,null,null,"Grant/Contr To SIL Entities",65287]
[null,null,null,null,null,null,"Grant/Contr To SIL Entities",65288]
[null,null,null,null,null,null,"Grant/Contr To SIL Entities",65289]
[null,null,null,null,null,null,"Grant/Contr To SIL Entities",65290]
[null,null,null,null,null,null,"Grant/Contr To SIL Entities",65291]
[null,null,null,null,null,null,"Grant/Contr To SIL Entities",65292]
[null,null,null,null,null,null,"Grant/Contr To SIL Entities",65293]
[null,null,null,null,null,null,"Grant/Contr To SIL Entities",65294]
[null,null,null,null,null,null,"Grant/Contr To SIL Entities",65295]
[null,null,null,null,null,null,"Grant/Contr To SIL Entities",65296]
[null,null,null,null,null,null,"Grant/Contr To SIL Entities",65297]
[null,null,null,null,null,null,"Grant/Contr To SIL Entities",65298]
[null,null,null,null,null,null,"Grant/Contr To SIL Entities",65299]
[null,null,null,null,null,null,"Finance & Project Funding Services",80000]
[null,null,null,null,null,null,"Finance & Project Funding Services",80001]
[null,null,null,null,null,null,"Finance & Project Funding Services",80002]
[null,null,null,null,null,null,"Finance & Project Funding Services",80003]
[null,null,null,null,null,null,"Finance & Project Funding Services",80004]
[null,null,null,null,null,null,"Finance & Project Funding Services",80005]
[null,null,null,null,null,null,"Finance & Project Funding Services",80006]
[null,null,null,null,null,null,"Finance & Project Funding Services",80007]
[null,null,null,null,null,null,"Finance & Project Funding Services",80008]
[null,null,null,null,null,null,"Finance & Project Funding Services",80009]
[null,null,null,null,null,null,"Finance & Project Funding Services",80010]
[null,null,null,null,null,null,"Finance & Project Funding Services",80011]
[null,null,null,null,null,null,"Finance & Project Funding Services",80012]
[null,null,null,null,null,null,"Finance & Project Funding Services",80013]
[null,null,null,null,null,null,"Finance & Project Funding Services",80014]
[null,null,null,null,null,null,"Finance & Project Funding Services",80015]
[null,null,null,null,null,null,"Finance & Project Funding Services",80016]
[null,null,null,null,null,null,"Finance & Project Funding Services",80017]
[null,null,null,null,null,null,"Finance & Project Funding Services",80018]
[null,null,null,null,null,null,"Finance & Project Funding Services",80019]
[null,null,null,null,null,null,"Finance & Project Funding Services",80020]
[null,null,null,null,null,null,"Finance & Project Funding Services",80021]
[null,null,null,null,null,null,"Finance & Project Funding Services",80022]
[null,null,null,null,null,null,"Finance & Project Funding Services",80023]
[null,null,null,null,null,null,"Finance & Project Funding Services",80024]
[null,null,null,null,null,null,"Finance & Project Funding Services",80025]
[null,null,null,null,null,null,"Finance & Project Funding Services",80026]
[null,null,null,null,null,null,"Finance & Project Funding Services",80027]
[null,null,null,null,null,null,"Finance & Project Funding Services",80028]
[null,null,null,null,null,null,"Finance & Project Funding Services",80029]
[null,null,null,null,null,null,"Finance & Project Funding Services",80030]
[null,null,null,null,null,null,"Finance & Project Funding Services",80031]
[null,null,null,null,null,null,"Finance & Project Funding Services",80032]
[null,null,null,null,null,null,"Finance & Project Funding Services",80033]
[null,null,null,null,null,null,"Finance & Project Funding Services",80034]
[null,null,null,null,null,null,"Finance & Project Funding Services",80035]
[null,null,null,null,null,null,"Finance & Project Funding Services",80036]
[null,null,null,null,null,null,"Finance & Project Funding Services",80037]
[null,null,null,null,null,null,"Finance & Project Funding Services",80038]
[null,null,null,null,null,null,"Finance & Project Funding Services",80039]
[null,null,null,null,null,null,"Finance & Project Funding Services",80040]
[null,null,null,null,null,null,"Finance & Project Funding Services",80041]
[null,null,null,null,null,null,"Finance & Project Funding Services",80042]
[null,null,null,null,null,null,"Finance & Project Funding Services",80043]
[null,null,null,null,null,null,"Finance & Project Funding Services",80044]
[null,null,null,null,null,null,"Finance & Project Funding Services",80045]
[null,null,null,null,null,null,"Finance & Project Funding Services",80046]
[null,null,null,null,null,null,"Finance & Project Funding Services",80047]
[null,null,null,null,null,null,"Finance & Project Funding Services",80048]
[null,null,null,null,null,null,"Finance & Project Funding Services",80049]
[null,null,null,null,null,null,"Finance & Project Funding Services",80050]
[null,null,null,null,null,null,"Finance & Project Funding Services",80051]
[null,null,null,null,null,null,"Finance & Project Funding Services",80052]
[null,null,null,null,null,null,"Finance & Project Funding Services",80053]
[null,null,null,null,null,null,"Finance & Project Funding Services",80054]
[null,null,null,null,null,null,"Finance & Project Funding Services",80055]
[null,null,null,null,null,null,"Finance & Project Funding Services",80056]
[null,null,null,null,null,null,"Finance & Project Funding Services",80057]
[null,null,null,null,null,null,"Finance & Project Funding Services",80058]
[null,null,null,null,null,null,"Finance & Project Funding Services",80059]
[null,null,null,null,null,null,"Finance & Project Funding Services",80060]
[null,null,null,null,null,null,"Finance & Project Funding Services",80061]
[null,null,null,null,null,null,"Finance & Project Funding Services",80062]
[null,null,null,null,null,null,"Finance & Project Funding Services",80063]
[null,null,null,null,null,null,"Finance & Project Funding Services",80064]
[null,null,null,null,null,null,"Finance & Project Funding Services",80065]
[null,null,null,null,null,null,"Finance & Project Funding Services",80066]
[null,null,null,null,null,null,"Finance & Project Funding Services",80067]
[null,null,null,null,null,null,"Finance & Project Funding Services",80068]
[null,null,null,null,null,null,"Finance & Project Funding Services",80069]
[null,null,null,null,null,null,"Finance & Project Funding Services",80070]
[null,null,null,null,null,null,"Finance & Project Funding Services",80071]
[null,null,null,null,null,null,"Finance & Project Funding Services",80072]
[null,null,null,null,null,null,"Finance & Project Funding Services",80073]
[null,null,null,null,null,null,"Finance & Project Funding Services",80074]
[null,null,null,null,null,null,"Finance & Project Funding Services",80075]
[null,null,null,null,null,null,"Finance & Project Funding Services",80076]
[null,null,null,null,null,null,"Finance & Project Funding Services",80077]
[null,null,null,null,null,null,"Finance & Project Funding Services",80078]
[null,null,null,null,null,null,"Finance & Project Funding Services",80079]
[null,null,null,null,null,null,"Finance & Project Funding Services",80080]
[null,null,null,null,null,null,"Finance & Project Funding Services",80081]
[null,null,null,null,null,null,"Finance & Project Funding Services",80082]
[null,null,null,null,null,null,"Finance & Project Funding Services",80083]
[null,null,null,null,null,null,"Finance & Project Funding Services",80084]
[null,null,null,null,null,null,"Finance & Project Funding Services",80085]
[null,null,null,null,null,null,"Finance & Project Funding Services",80086]
[null,null,null,null,null,null,"Finance & Project Funding Services",80087]
[null,null,null,null,null,null,"Finance & Project Funding Services",80088]
[null,null,null,null,null,null,"Finance & Project Funding Services",80089]
[null,null,null,null,null,null,"Finance & Project Funding Services",80090]
[null,null,null,null,null,null,"Finance & Project Funding Services",80091]
[null,null,null,null,null,null,"Finance & Project Funding Services",80092]
[null,null,null,null,null,null,"Finance & Project Funding Services",80093]
[null,null,null,null,null,null,"Finance & Project Funding Services",80094]
[null,null,null,null,null,null,"Finance & Project Funding Services",80095]
[null,null,null,null,null,null,"Finance & Project Funding Services",80096]
[null,null,null,null,null,null,"Finance & Project Funding Services",80097]
[null,null,null,null,null,null,"Finance & Project Funding Services",80098]
[null,null,null,null,null,null,"Finance & Project Funding Services",80099]
[null,null,null,null,null,null,"HR Services - SIL",80100]
[null,null,null,null,null,null,"HR Services - SIL",80101]
[null,null,null,null,null,null,"HR Services - SIL",80102]
[null,null,null,null,null,null,"HR Services - SIL",80103]
[null,null,null,null,null,null,"HR Services - SIL",80104]
[null,null,null,null,null,null,"HR Services - SIL",80105]
[null,null,null,null,null,null,"HR Services - SIL",80106]
[null,null,null,null,null,null,"HR Services - SIL",80107]
[null,null,null,null,null,null,"HR Services - SIL",80108]
[null,null,null,null,null,null,"HR Services - SIL",80109]
[null,null,null,null,null,null,"HR Services - SIL",80110]
[null,null,null,null,null,null,"HR Services - SIL",80111]
[null,null,null,null,null,null,"HR Services - SIL",80112]
[null,null,null,null,null,null,"HR Services - SIL",80113]
[null,null,null,null,null,null,"HR Services - SIL",80114]
[null,null,null,null,null,null,"HR Services - SIL",80115]
[null,null,null,null,null,null,"HR Services - SIL",80116]
[null,null,null,null,null,null,"HR Services - SIL",80117]
[null,null,null,null,null,null,"HR Services - SIL",80118]
[null,null,null,null,null,null,"HR Services - SIL",80119]
[null,null,null,null,null,null,"HR Services - SIL",80120]
[null,null,null,null,null,null,"HR Services - SIL",80121]
[null,null,null,null,null,null,"HR Services - SIL",80122]
[null,null,null,null,null,null,"HR Services - SIL",80123]
[null,null,null,null,null,null,"HR Services - SIL",80124]
[null,null,null,null,null,null,"HR Services - SIL",80125]
[null,null,null,null,null,null,"HR Services - SIL",80126]
[null,null,null,null,null,null,"HR Services - SIL",80127]
[null,null,null,null,null,null,"HR Services - SIL",80128]
[null,null,null,null,null,null,"HR Services - SIL",80129]
[null,null,null,null,null,null,"HR Services - SIL",80130]
[null,null,null,null,null,null,"HR Services - SIL",80131]
[null,null,null,null,null,null,"HR Services - SIL",80132]
[null,null,null,null,null,null,"HR Services - SIL",80133]
[null,null,null,null,null,null,"HR Services - SIL",80134]
[null,null,null,null,null,null,"HR Services - SIL",80135]
[null,null,null,null,null,null,"HR Services - SIL",80136]
[null,null,null,null,null,null,"HR Services - SIL",80137]
[null,null,null,null,null,null,"HR Services - SIL",80138]
[null,null,null,null,null,null,"HR Services - SIL",80139]
[null,null,null,null,null,null,"HR Services - SIL",80140]
[null,null,null,null,null,null,"HR Services - SIL",80141]
[null,null,null,null,null,null,"HR Services - SIL",80142]
[null,null,null,null,null,null,"HR Services - SIL",80143]
[null,null,null,null,null,null,"HR Services - SIL",80144]
[null,null,null,null,null,null,"HR Services - SIL",80145]
[null,null,null,null,null,null,"HR Services - SIL",80146]
[null,null,null,null,null,null,"HR Services - SIL",80147]
[null,null,null,null,null,null,"HR Services - SIL",80148]
[null,null,null,null,null,null,"HR Services - SIL",80149]
[null,null,null,null,null,null,"HR Services - SIL",80150]
[null,null,null,null,null,null,"HR Services - SIL",80151]
[null,null,null,null,null,null,"HR Services - SIL",80152]
[null,null,null,null,null,null,"HR Services - SIL",80153]
[null,null,null,null,null,null,"HR Services - SIL",80154]
[null,null,null,null,null,null,"HR Services - SIL",80155]
[null,null,null,null,null,null,"HR Services - SIL",80156]
[null,null,null,null,null,null,"HR Services - SIL",80157]
[null,null,null,null,null,null,"HR Services - SIL",80158]
[null,null,null,null,null,null,"HR Services - SIL",80159]
[null,null,null,null,null,null,"HR Services - SIL",80160]
[null,null,null,null,null,null,"HR Services - SIL",80161]
[null,null,null,null,null,null,"HR Services - SIL",80162]
[null,null,null,null,null,null,"HR Services - SIL",80163]
[null,null,null,null,null,null,"HR Services - SIL",80164]
[null,null,null,null,null,null,"HR Services - SIL",80165]
[null,null,null,null,null,null,"HR Services - SIL",80166]
[null,null,null,null,null,null,"HR Services - SIL",80167]
[null,null,null,null,null,null,"HR Services - SIL",80168]
[null,null,null,null,null,null,"HR Services - SIL",80169]
[null,null,null,null,null,null,"HR Services - SIL",80170]
[null,null,null,null,null,null,"HR Services - SIL",80171]
[null,null,null,null,null,null,"HR Services - SIL",80172]
[null,null,null,null,null,null,"HR Services - SIL",80173]
[null,null,null,null,null,null,"HR Services - SIL",80174]
[null,null,null,null,null,null,"HR Services - SIL",80175]
[null,null,null,null,null,null,"HR Services - SIL",80176]
[null,null,null,null,null,null,"HR Services - SIL",80177]
[null,null,null,null,null,null,"HR Services - SIL",80178]
[null,null,null,null,null,null,"HR Services - SIL",80179]
[null,null,null,null,null,null,"HR Services - SIL",80180]
[null,null,null,null,null,null,"HR Services - SIL",80181]
[null,null,null,null,null,null,"HR Services - SIL",80182]
[null,null,null,null,null,null,"HR Services - SIL",80183]
[null,null,null,null,null,null,"HR Services - SIL",80184]
[null,null,null,null,null,null,"HR Services - SIL",80185]
[null,null,null,null,null,null,"HR Services - SIL",80186]
[null,null,null,null,null,null,"HR Services - SIL",80187]
[null,null,null,null,null,null,"HR Services - SIL",80188]
[null,null,null,null,null,null,"HR Services - SIL",80189]
[null,null,null,null,null,null,"HR Services - SIL",80190]
[null,null,null,null,null,null,"HR Services - SIL",80191]
[null,null,null,null,null,null,"HR Services - SIL",80192]
[null,null,null,null,null,null,"HR Services - SIL",80193]
[null,null,null,null,null,null,"HR Services - SIL",80194]
[null,null,null,null,null,null,"HR Services - SIL",80195]
[null,null,null,null,null,null,"HR Services - SIL",80196]
[null,null,null,null,null,null,"HR Services - SIL",80197]
[null,null,null,null,null,null,"HR Services - SIL",80198]
[null,null,null,null,null,null,"HR Services - SIL",80199]
[null,null,null,null,null,null,"IT Services - SIL",80200]
[null,null,null,null,null,null,"IT Services - SIL",80201]
[null,null,null,null,null,null,"IT Services - SIL",80202]
[null,null,null,null,null,null,"IT Services - SIL",80203]
[null,null,null,null,null,null,"IT Services - SIL",80204]
[null,null,null,null,null,null,"IT Services - SIL",80205]
[null,null,null,null,null,null,"IT Services - SIL",80206]
[null,null,null,null,null,null,"IT Services - SIL",80207]
[null,null,null,null,null,null,"IT Services - SIL",80208]
[null,null,null,null,null,null,"IT Services - SIL",80209]
[null,null,null,null,null,null,"IT Services - SIL",80210]
[null,null,null,null,null,null,"IT Services - SIL",80211]
[null,null,null,null,null,null,"IT Services - SIL",80212]
[null,null,null,null,null,null,"IT Services - SIL",80213]
[null,null,null,null,null,null,"IT Services - SIL",80214]
[null,null,null,null,null,null,"IT Services - SIL",80215]
[null,null,null,null,null,null,"IT Services - SIL",80216]
[null,null,null,null,null,null,"IT Services - SIL",80217]
[null,null,null,null,null,null,"IT Services - SIL",80218]
[null,null,null,null,null,null,"IT Services - SIL",80219]
[null,null,null,null,null,null,"IT Services - SIL",80220]
[null,null,null,null,null,null,"IT Services - SIL",80221]
[null,null,null,null,null,null,"IT Services - SIL",80222]
[null,null,null,null,null,null,"IT Services - SIL",80223]
[null,null,null,null,null,null,"IT Services - SIL",80224]
[null,null,null,null,null,null,"IT Services - SIL",80225]
[null,null,null,null,null,null,"IT Services - SIL",80226]
[null,null,null,null,null,null,"IT Services - SIL",80227]
[null,null,null,null,null,null,"IT Services - SIL",80228]
[null,null,null,null,null,null,"IT Services - SIL",80229]
[null,null,null,null,null,null,"IT Services - SIL",80230]
[null,null,null,null,null,null,"IT Services - SIL",80231]
[null,null,null,null,null,null,"IT Services - SIL",80232]
[null,null,null,null,null,null,"IT Services - SIL",80233]
[null,null,null,null,null,null,"IT Services - SIL",80234]
[null,null,null,null,null,null,"IT Services - SIL",80235]
[null,null,null,null,null,null,"IT Services - SIL",80236]
[null,null,null,null,null,null,"IT Services - SIL",80237]
[null,null,null,null,null,null,"IT Services - SIL",80238]
[null,null,null,null,null,null,"IT Services - SIL",80239]
[null,null,null,null,null,null,"IT Services - SIL",80240]
[null,null,null,null,null,null,"IT Services - SIL",80241]
[null,null,null,null,null,null,"IT Services - SIL",80242]
[null,null,null,null,null,null,"IT Services - SIL",80243]
[null,null,null,null,null,null,"IT Services - SIL",80244]
[null,null,null,null,null,null,"IT Services - SIL",80245]
[null,null,null,null,null,null,"IT Services - SIL",80246]
[null,null,null,null,null,null,"IT Services - SIL",80247]
[null,null,null,null,null,null,"IT Services - SIL",80248]
[null,null,null,null,null,null,"IT Services - SIL",80249]
[null,null,null,null,null,null,"IT Services - SIL",80250]
[null,null,null,null,null,null,"IT Services - SIL",80251]
[null,null,null,null,null,null,"IT Services - SIL",80252]
[null,null,null,null,null,null,"IT Services - SIL",80253]
[null,null,null,null,null,null,"IT Services - SIL",80254]
[null,null,null,null,null,null,"IT Services - SIL",80255]
[null,null,null,null,null,null,"IT Services - SIL",80256]
[null,null,null,null,null,null,"IT Services - SIL",80257]
[null,null,null,null,null,null,"IT Services - SIL",80258]
[null,null,null,null,null,null,"IT Services - SIL",80259]
[null,null,null,null,null,null,"IT Services - SIL",80260]
[null,null,null,null,null,null,"IT Services - SIL",80261]
[null,null,null,null,null,null,"IT Services - SIL",80262]
[null,null,null,null,null,null,"IT Services - SIL",80263]
[null,null,null,null,null,null,"IT Services - SIL",80264]
[null,null,null,null,null,null,"IT Services - SIL",80265]
[null,null,null,null,null,null,"IT Services - SIL",80266]
[null,null,null,null,null,null,"IT Services - SIL",80267]
[null,null,null,null,null,null,"IT Services - SIL",80268]
[null,null,null,null,null,null,"IT Services - SIL",80269]
[null,null,null,null,null,null,"IT Services - SIL",80270]
[null,null,null,null,null,null,"IT Services - SIL",80271]
[null,null,null,null,null,null,"IT Services - SIL",80272]
[null,null,null,null,null,null,"IT Services - SIL",80273]
[null,null,null,null,null,null,"IT Services - SIL",80274]
[null,null,null,null,null,null,"IT Services - SIL",80275]
[null,null,null,null,null,null,"IT Services - SIL",80276]
[null,null,null,null,null,null,"IT Services - SIL",80277]
[null,null,null,null,null,null,"IT Services - SIL",80278]
[null,null,null,null,null,null,"IT Services - SIL",80279]
[null,null,null,null,null,null,"IT Services - SIL",80280]
[null,null,null,null,null,null,"IT Services - SIL",80281]
[null,null,null,null,null,null,"IT Services - SIL",80282]
[null,null,null,null,null,null,"IT Services - SIL",80283]
[null,null,null,null,null,null,"IT Services - SIL",80284]
[null,null,null,null,null,null,"IT Services - SIL",80285]
[null,null,null,null,null,null,"IT Services - SIL",80286]
[null,null,null,null,null,null,"IT Services - SIL",80287]
[null,null,null,null,null,null,"IT Services - SIL",80288]
[null,null,null,null,null,null,"IT Services - SIL",80289]
[null,null,null,null,null,null,"IT Services - SIL",80290]
[null,null,null,null,null,null,"IT Services - SIL",80291]
[null,null,null,null,null,null,"IT Services - SIL",80292]
[null,null,null,null,null,null,"IT Services - SIL",80293]
[null,null,null,null,null,null,"IT Services - SIL",80294]
[null,null,null,null,null,null,"IT Services - SIL",80295]
[null,null,null,null,null,null,"IT Services - SIL",80296]
[null,null,null,null,null,null,"IT Services - SIL",80297]
[null,null,null,null,null,null,"IT Services - SIL",80298]
[null,null,null,null,null,null,"IT Services - SIL",80299]
[null,null,null,null,null,null,"Lang Prog Mgmt",80300]
[null,null,null,null,null,null,"Lang Prog Mgmt",80301]
[null,null,null,null,null,null,"Lang Prog Mgmt",80302]
[null,null,null,null,null,null,"Lang Prog Mgmt",80303]
[null,null,null,null,null,null,"Lang Prog Mgmt",80304]
[null,null,null,null,null,null,"Lang Prog Mgmt",80305]
[null,null,null,null,null,null,"Lang Prog Mgmt",80306]
[null,null,null,null,null,null,"Lang Prog Mgmt",80307]
[null,null,null,null,null,null,"Lang Prog Mgmt",80308]
[null,null,null,null,null,null,"Lang Prog Mgmt",80309]
[null,null,null,null,null,null,"Lang Prog Mgmt",80310]
[null,null,null,null,null,null,"Lang Prog Mgmt",80311]
[null,null,null,null,null,null,"Lang Prog Mgmt",80312]
[null,null,null,null,null,null,"Lang Prog Mgmt",80313]
[null,null,null,null,null,null,"Lang Prog Mgmt",80314]
[null,null,null,null,null,null,"Lang Prog Mgmt",80315]
[null,null,null,null,null,null,"Lang Prog Mgmt",80316]
[null,null,null,null,null,null,"Lang Prog Mgmt",80317]
[null,null,null,null,null,null,"Lang Prog Mgmt",80318]
[null,null,null,null,null,null,"Lang Prog Mgmt",80319]
[null,null,null,null,null,null,"Lang Prog Mgmt",80320]
[null,null,null,null,null,null,"Lang Prog Mgmt",80321]
[null,null,null,null,null,null,"Lang Prog Mgmt",80322]
[null,null,null,null,null,null,"Lang Prog Mgmt",80323]
[null,null,null,null,null,null,"Lang Prog Mgmt",80324]
[null,null,null,null,null,null,"Lang Prog Mgmt",80325]
[null,null,null,null,null,null,"Lang Prog Mgmt",80326]
[null,null,null,null,null,null,"Lang Prog Mgmt",80327]
[null,null,null,null,null,null,"Lang Prog Mgmt",80328]
[null,null,null,null,null,null,"Lang Prog Mgmt",80329]
[null,null,null,null,null,null,"Lang Prog Mgmt",80330]
[null,null,null,null,null,null,"Lang Prog Mgmt",80331]
[null,null,null,null,null,null,"Lang Prog Mgmt",80332]
[null,null,null,null,null,null,"Lang Prog Mgmt",80333]
[null,null,null,null,null,null,"Lang Prog Mgmt",80334]
[null,null,null,null,null,null,"Lang Prog Mgmt",80335]
[null,null,null,null,null,null,"Lang Prog Mgmt",80336]
[null,null,null,null,null,null,"Lang Prog Mgmt",80337]
[null,null,null,null,null,null,"Lang Prog Mgmt",80338]
[null,null,null,null,null,null,"Lang Prog Mgmt",80339]
[null,null,null,null,null,null,"Lang Prog Mgmt",80340]
[null,null,null,null,null,null,"Lang Prog Mgmt",80341]
[null,null,null,null,null,null,"Lang Prog Mgmt",80342]
[null,null,null,null,null,null,"Lang Prog Mgmt",80343]
[null,null,null,null,null,null,"Lang Prog Mgmt",80344]
[null,null,null,null,null,null,"Lang Prog Mgmt",80345]
[null,null,null,null,null,null,"Lang Prog Mgmt",80346]
[null,null,null,null,null,null,"Lang Prog Mgmt",80347]
[null,null,null,null,null,null,"Lang Prog Mgmt",80348]
[null,null,null,null,null,null,"Lang Prog Mgmt",80349]
[null,null,null,null,null,null,"Lang Prog Mgmt",80350]
[null,null,null,null,null,null,"Lang Prog Mgmt",80351]
[null,null,null,null,null,null,"Lang Prog Mgmt",80352]
[null,null,null,null,null,null,"Lang Prog Mgmt",80353]
[null,null,null,null,null,null,"Lang Prog Mgmt",80354]
[null,null,null,null,null,null,"Lang Prog Mgmt",80355]
[null,null,null,null,null,null,"Lang Prog Mgmt",80356]
[null,null,null,null,null,null,"Lang Prog Mgmt",80357]
[null,null,null,null,null,null,"Lang Prog Mgmt",80358]
[null,null,null,null,null,null,"Lang Prog Mgmt",80359]
[null,null,null,null,null,null,"Lang Prog Mgmt",80360]
[null,null,null,null,null,null,"Lang Prog Mgmt",80361]
[null,null,null,null,null,null,"Lang Prog Mgmt",80362]
[null,null,null,null,null,null,"Lang Prog Mgmt",80363]
[null,null,null,null,null,null,"Lang Prog Mgmt",80364]
[null,null,null,null,null,null,"Lang Prog Mgmt",80365]
[null,null,null,null,null,null,"Lang Prog Mgmt",80366]
[null,null,null,null,null,null,"Lang Prog Mgmt",80367]
[null,null,null,null,null,null,"Lang Prog Mgmt",80368]
[null,null,null,null,null,null,"Lang Prog Mgmt",80369]
[null,null,null,null,null,null,"Lang Prog Mgmt",80370]
[null,null,null,null,null,null,"Lang Prog Mgmt",80371]
[null,null,null,null,null,null,"Lang Prog Mgmt",80372]
[null,null,null,null,null,null,"Lang Prog Mgmt",80373]
[null,null,null,null,null,null,"Lang Prog Mgmt",80374]
[null,null,null,null,null,null,"Lang Prog Mgmt",80375]
[null,null,null,null,null,null,"Lang Prog Mgmt",80376]
[null,null,null,null,null,null,"Lang Prog Mgmt",80377]
[null,null,null,null,null,null,"Lang Prog Mgmt",80378]
[null,null,null,null,null,null,"Lang Prog Mgmt",80379]
[null,null,null,null,null,null,"Lang Prog Mgmt",80380]
[null,null,null,null,null,null,"Lang Prog Mgmt",80381]
[null,null,null,null,null,null,"Lang Prog Mgmt",80382]
[null,null,null,null,null,null,"Lang Prog Mgmt",80383]
[null,null,null,null,null,null,"Lang Prog Mgmt",80384]
[null,null,null,null,null,null,"Lang Prog Mgmt",80385]
[null,null,null,null,null,null,"Lang Prog Mgmt",80386]
[null,null,null,null,null,null,"Lang Prog Mgmt",80387]
[null,null,null,null,null,null,"Lang Prog Mgmt",80388]
[null,null,null,null,null,null,"Lang Prog Mgmt",80389]
[null,null,null,null,null,null,"Lang Prog Mgmt",80390]
[null,null,null,null,null,null,"Lang Prog Mgmt",80391]
[null,null,null,null,null,null,"Lang Prog Mgmt",80392]
[null,null,null,null,null,null,"Lang Prog Mgmt",80393]
[null,null,null,null,null,null,"Lang Prog Mgmt",80394]
[null,null,null,null,null,null,"Lang Prog Mgmt",80395]
[null,null,null,null,null,null,"Lang Prog Mgmt",80396]
[null,null,null,null,null,null,"Lang Prog Mgmt",80397]
[null,null,null,null,null,null,"Lang Prog Mgmt",80398]
[null,null,null,null,null,null,"Lang Prog Mgmt",80399]
[null,null,null,null,null,null,"Lang Prog Services & Planning",80400]
[null,null,null,null,null,null,"Lang Prog Services & Planning",80401]
[null,null,null,null,null,null,"Lang Prog Services & Planning",80402]
[null,null,null,null,null,null,"Lang Prog Services & Planning",80403]
[null,null,null,null,null,null,"Lang Prog Services & Planning",80404]
[null,null,null,null,null,null,"Lang Prog Services & Planning",80405]
[null,null,null,null,null,null,"Lang Prog Services & Planning",80406]
[null,null,null,null,null,null,"Lang Prog Services & Planning",80407]
[null,null,null,null,null,null,"Lang Prog Services & Planning",80408]
[null,null,null,null,null,null,"Lang Prog Services & Planning",80409]
[null,null,null,null,null,null,"Lang Prog Services & Planning",80410]
[null,null,null,null,null,null,"Lang Prog Services & Planning",80411]
[null,null,null,null,null,null,"Lang Prog Services & Planning",80412]
[null,null,null,null,null,null,"Lang Prog Services & Planning",80413]
[null,null,null,null,null,null,"Lang Prog Services & Planning",80414]
[null,null,null,null,null,null,"Lang Prog Services & Planning",80415]
[null,null,null,null,null,null,"Lang Prog Services & Planning",80416]
[null,null,null,null,null,null,"Lang Prog Services & Planning",80417]
[null,null,null,null,null,null,"Lang Prog Services & Planning",80418]
[null,null,null,null,null,null,"Lang Prog Services & Planning",80419]
[null,null,null,null,null,null,"Lang Prog Services & Planning",80420]
[null,null,null,null,null,null,"Lang Prog Services & Planning",80421]
[null,null,null,null,null,null,"Lang Prog Services & Planning",80422]
[null,null,null,null,null,null,"Lang Prog Services & Planning",80423]
[null,null,null,null,null,null,"Lang Prog Services & Planning",80424]
[null,null,null,null,null,null,"Lang Prog Services & Planning",80425]
[null,null,null,null,null,null,"Lang Prog Services & Planning",80426]
[null,null,null,null,null,null,"Lang Prog Services & Planning",80427]
[null,null,null,null,null,null,"Lang Prog Services & Planning",80428]
[null,null,null,null,null,null,"Lang Prog Services & Planning",80429]
[null,null,null,null,null,null,"Lang Prog Services & Planning",80430]
[null,null,null,null,null,null,"Lang Prog Services & Planning",80431]
[null,null,null,null,null,null,"Lang Prog Services & Planning",80432]
[null,null,null,null,null,null,"Lang Prog Services & Planning",80433]
[null,null,null,null,null,null,"Lang Prog Services & Planning",80434]
[null,null,null,null,null,null,"Lang Prog Services & Planning",80435]
[null,null,null,null,null,null,"Lang Prog Services & Planning",80436]
[null,null,null,null,null,null,"Lang Prog Services & Planning",80437]
[null,null,null,null,null,null,"Lang Prog Services & Planning",80438]
[null,null,null,null,null,null,"Lang Prog Services & Planning",80439]
[null,null,null,null,null,null,"Lang Prog Services & Planning",80440]
[null,null,null,null,null,null,"Lang Prog Services & Planning",80441]
[null,null,null,null,null,null,"Lang Prog Services & Planning",80442]
[null,null,null,null,null,null,"Lang Prog Services & Planning",80443]
[null,null,null,null,null,null,"Lang Prog Services & Planning",80444]
[null,null,null,null,null,null,"Lang Prog Services & Planning",80445]
[null,null,null,null,null,null,"Lang Prog Services & Planning",80446]
[null,null,null,null,null,null,"Lang Prog Services & Planning",80447]
[null,null,null,null,null,null,"Lang Prog Services & Planning",80448]
[null,null,null,null,null,null,"Lang Prog Services & Planning",80449]
[null,null,null,null,null,null,"Lang Prog Services & Planning",80450]
[null,null,null,null,null,null,"Lang Prog Services & Planning",80451]
[null,null,null,null,null,null,"Lang Prog Services & Planning",80452]
[null,null,null,null,null,null,"Lang Prog Services & Planning",80453]
[null,null,null,null,null,null,"Lang Prog Services & Planning",80454]
[null,null,null,null,null,null,"Lang Prog Services & Planning",80455]
[null,null,null,null,null,null,"Lang Prog Services & Planning",80456]
[null,null,null,null,null,null,"Lang Prog Services & Planning",80457]
[null,null,null,null,null,null,"Lang Prog Services & Planning",80458]
[null,null,null,null,null,null,"Lang Prog Services & Planning",80459]
[null,null,null,null,null,null,"Lang Prog Services & Planning",80460]
[null,null,null,null,null,null,"Lang Prog Services & Planning",80461]
[null,null,null,null,null,null,"Lang Prog Services & Planning",80462]
[null,null,null,null,null,null,"Lang Prog Services & Planning",80463]
[null,null,null,null,null,null,"Lang Prog Services & Planning",80464]
[null,null,null,null,null,null,"Lang Prog Services & Planning",80465]
[null,null,null,null,null,null,"Lang Prog Services & Planning",80466]
[null,null,null,null,null,null,"Lang Prog Services & Planning",80467]
[null,null,null,null,null,null,"Lang Prog Services & Planning",80468]
[null,null,null,null,null,null,"Lang Prog Services & Planning",80469]
[null,null,null,null,null,null,"Lang Prog Services & Planning",80470]
[null,null,null,null,null,null,"Lang Prog Services & Planning",80471]
[null,null,null,null,null,null,"Lang Prog Services & Planning",80472]
[null,null,null,null,null,null,"Lang Prog Services & Planning",80473]
[null,null,null,null,null,null,"Lang Prog Services & Planning",80474]
[null,null,null,null,null,null,"Lang Prog Services & Planning",80475]
[null,null,null,null,null,null,"Lang Prog Services & Planning",80476]
[null,null,null,null,null,null,"Lang Prog Services & Planning",80477]
[null,null,null,null,null,null,"Lang Prog Services & Planning",80478]
[null,null,null,null,null,null,"Lang Prog Services & Planning",80479]
[null,null,null,null,null,null,"Lang Prog Services & Planning",80480]
[null,null,null,null,null,null,"Lang Prog Services & Planning",80481]
[null,null,null,null,null,null,"Lang Prog Services & Planning",80482]
[null,null,null,null,null,null,"Lang Prog Services & Planning",80483]
[null,null,null,null,null,null,"Lang Prog Services & Planning",80484]
[null,null,null,null,null,null,"Lang Prog Services & Planning",80485]
[null,null,null,null,null,null,"Lang Prog Services & Planning",80486]
[null,null,null,null,null,null,"Lang Prog Services & Planning",80487]
[null,null,null,null,null,null,"Lang Prog Services & Planning",80488]
[null,null,null,null,null,null,"Lang Prog Services & Planning",80489]
[null,null,null,null,null,null,"Lang Prog Services & Planning",80490]
[null,null,null,null,null,null,"Lang Prog Services & Planning",80491]
[null,null,null,null,null,null,"Lang Prog Services & Planning",80492]
[null,null,null,null,null,null,"Lang Prog Services & Planning",80493]
[null,null,null,null,null,null,"Lang Prog Services & Planning",80494]
[null,null,null,null,null,null,"Lang Prog Services & Planning",80495]
[null,null,null,null,null,null,"Lang Prog Services & Planning",80496]
[null,null,null,null,null,null,"Lang Prog Services & Planning",80497]
[null,null,null,null,null,null,"Lang Prog Services & Planning",80498]
[null,null,null,null,null,null,"Lang Prog Services & Planning",80499]
[null,null,null,null,null,null,"Taxes, Licenses and Fees",64000]
[null,null,null,null,null,null,"Taxes, Licenses and Fees",64001]
[null,null,null,null,null,null,"Taxes, Licenses and Fees",64002]
[null,null,null,null,null,null,"Taxes, Licenses and Fees",64003]
[null,null,null,null,null,null,"Taxes, Licenses and Fees",64004]
[null,null,null,null,null,null,"Taxes, Licenses and Fees",64005]
[null,null,null,null,null,null,"Taxes, Licenses and Fees",64006]
[null,null,null,null,null,null,"Taxes, Licenses and Fees",64007]
[null,null,null,null,null,null,"Taxes, Licenses and Fees",64008]
[null,null,null,null,null,null,"Taxes, Licenses and Fees",64009]
[null,null,null,null,null,null,"Taxes, Licenses and Fees",64010]
[null,null,null,null,null,null,"Taxes, Licenses and Fees",64011]
[null,null,null,null,null,null,"Taxes, Licenses and Fees",64012]
[null,null,null,null,null,null,"Taxes, Licenses and Fees",64013]
[null,null,null,null,null,null,"Taxes, Licenses and Fees",64014]
[null,null,null,null,null,null,"Taxes, Licenses and Fees",64015]
[null,null,null,null,null,null,"Taxes, Licenses and Fees",64016]
[null,null,null,null,null,null,"Taxes, Licenses and Fees",64017]
[null,null,null,null,null,null,"Taxes, Licenses and Fees",64018]
[null,null,null,null,null,null,"Taxes, Licenses and Fees",64019]
[null,null,null,null,null,null,"Taxes, Licenses and Fees",64020]
[null,null,null,null,null,null,"Taxes, Licenses and Fees",64021]
[null,null,null,null,null,null,"Taxes, Licenses and Fees",64022]
[null,null,null,null,null,null,"Taxes, Licenses and Fees",64023]
[null,null,null,null,null,null,"Taxes, Licenses and Fees",64024]
[null,null,null,null,null,null,"Taxes, Licenses and Fees",64025]
[null,null,null,null,null,null,"Taxes, Licenses and Fees",64026]
[null,null,null,null,null,null,"Taxes, Licenses and Fees",64027]
[null,null,null,null,null,null,"Taxes, Licenses and Fees",64028]
[null,null,null,null,null,null,"Taxes, Licenses and Fees",64029]
[null,null,null,null,null,null,"Taxes, Licenses and Fees",64030]
[null,null,null,null,null,null,"Taxes, Licenses and Fees",64031]
[null,null,null,null,null,null,"Taxes, Licenses and Fees",64032]
[null,null,null,null,null,null,"Taxes, Licenses and Fees",64033]
[null,null,null,null,null,null,"Taxes, Licenses and Fees",64034]
[null,null,null,null,null,null,"Taxes, Licenses and Fees",64035]
[null,null,null,null,null,null,"Taxes, Licenses and Fees",64036]
[null,null,null,null,null,null,"Taxes, Licenses and Fees",64037]
[null,null,null,null,null,null,"Taxes, Licenses and Fees",64038]
[null,null,null,null,null,null,"Taxes, Licenses and Fees",64039]
[null,null,null,null,null,null,"Taxes, Licenses and Fees",64040]
[null,null,null,null,null,null,"Taxes, Licenses and Fees",64041]
[null,null,null,null,null,null,"Taxes, Licenses and Fees",64042]
[null,null,null,null,null,null,"Taxes, Licenses and Fees",64043]
[null,null,null,null,null,null,"Taxes, Licenses and Fees",64044]
[null,null,null,null,null,null,"Taxes, Licenses and Fees",64045]
[null,null,null,null,null,null,"Taxes, Licenses and Fees",64046]
[null,null,null,null,null,null,"Taxes, Licenses and Fees",64047]
[null,null,null,null,null,null,"Taxes, Licenses and Fees",64048]
[null,null,null,null,null,null,"Taxes, Licenses and Fees",64049]
[null,null,null,null,null,null,"Taxes, Licenses and Fees",64050]
[null,null,null,null,null,null,"Taxes, Licenses and Fees",64051]
[null,null,null,null,null,null,"Taxes, Licenses and Fees",64052]
[null,null,null,null,null,null,"Taxes, Licenses and Fees",64053]
[null,null,null,null,null,null,"Taxes, Licenses and Fees",64054]
[null,null,null,null,null,null,"Taxes, Licenses and Fees",64055]
[null,null,null,null,null,null,"Taxes, Licenses and Fees",64056]
[null,null,null,null,null,null,"Taxes, Licenses and Fees",64057]
[null,null,null,null,null,null,"Taxes, Licenses and Fees",64058]
[null,null,null,null,null,null,"Taxes, Licenses and Fees",64059]
[null,null,null,null,null,null,"Taxes, Licenses and Fees",64060]
[null,null,null,null,null,null,"Taxes, Licenses and Fees",64061]
[null,null,null,null,null,null,"Taxes, Licenses and Fees",64062]
[null,null,null,null,null,null,"Taxes, Licenses and Fees",64063]
[null,null,null,null,null,null,"Taxes, Licenses and Fees",64064]
[null,null,null,null,null,null,"Taxes, Licenses and Fees",64065]
[null,null,null,null,null,null,"Taxes, Licenses and Fees",64066]
[null,null,null,null,null,null,"Taxes, Licenses and Fees",64067]
[null,null,null,null,null,null,"Taxes, Licenses and Fees",64068]
[null,null,null,null,null,null,"Taxes, Licenses and Fees",64069]
[null,null,null,null,null,null,"Taxes, Licenses and Fees",64070]
[null,null,null,null,null,null,"Taxes, Licenses and Fees",64071]
[null,null,null,null,null,null,"Taxes, Licenses and Fees",64072]
[null,null,null,null,null,null,"Taxes, Licenses and Fees",64073]
[null,null,null,null,null,null,"Taxes, Licenses and Fees",64074]
[null,null,null,null,null,null,"Taxes, Licenses and Fees",64075]
[null,null,null,null,null,null,"Taxes, Licenses and Fees",64076]
[null,null,null,null,null,null,"Taxes, Licenses and Fees",64077]
[null,null,null,null,null,null,"Taxes, Licenses and Fees",64078]
[null,null,null,null,null,null,"Taxes, Licenses and Fees",64079]
[null,null,null,null,null,null,"Taxes, Licenses and Fees",64080]
[null,null,null,null,null,null,"Taxes, Licenses and Fees",64081]
[null,null,null,null,null,null,"Taxes, Licenses and Fees",64082]
[null,null,null,null,null,null,"Taxes, Licenses and Fees",64083]
[null,null,null,null,null,null,"Taxes, Licenses and Fees",64084]
[null,null,null,null,null,null,"Taxes, Licenses and Fees",64085]
[null,null,null,null,null,null,"Taxes, Licenses and Fees",64086]
[null,null,null,null,null,null,"Taxes, Licenses and Fees",64087]
[null,null,null,null,null,null,"Taxes, Licenses and Fees",64088]
[null,null,null,null,null,null,"Taxes, Licenses and Fees",64089]
[null,null,null,null,null,null,"Taxes, Licenses and Fees",64090]
[null,null,null,null,null,null,"Taxes, Licenses and Fees",64091]
[null,null,null,null,null,null,"Taxes, Licenses and Fees",64092]
[null,null,null,null,null,null,"Taxes, Licenses and Fees",64093]
[null,null,null,null,null,null,"Taxes, Licenses and Fees",64094]
[null,null,null,null,null,null,"Taxes, Licenses and Fees",64095]
[null,null,null,null,null,null,"Taxes, Licenses and Fees",64096]
[null,null,null,null,null,null,"Taxes, Licenses and Fees",64097]
[null,null,null,null,null,null,"Taxes, Licenses and Fees",64098]
[null,null,null,null,null,null,"Taxes, Licenses and Fees",64099]

{"sheet":"KeystoneSalaries","index":5,"n_rows":127,"n_cols":12,"rows_kept":127,"cut":false,"hidden":true,"merged":[]}
["Index","KeyStone Country","Role","Cost Type","Salary Benchmark","Full Cost of EMP %","Supervisory Load Factor %","Cost of Living Multiplier %","Local Econ Annual Sal","Local FT Factor","Local Salary Weekly Rate","Notes"]
[{"$f":"B2&\"-\"&C2","v":"Brazil-Sr. Translation Consultant"},"Brazil","Sr. Translation Consultant","Direct Project Costs",12808.75,0.23,0.17,1,17932.25,42,426.95833333333331,"FT Capacity is 42 weeks"]
[{"$f":"B3&\"-\"&C3","v":"Brazil-Independent Translation Consultant"},"Brazil","Independent Translation Consultant","Direct Project Costs",10247,0.23,0.17,1,14345.8,42,341.56666666666666,"FT Capacity is 42 weeks"]
["Brazil-Dependent Consultant (CiT)","Brazil","Dependent Consultant (CiT)","Direct Project Costs",5123.5,0.23,0.17,1,7172.9,42,170.78333333333333,"FT Capacity is 42 weeks"]
["Brazil-Facilitator/Trainer/Lead Translator","Brazil","Facilitator/Trainer/Lead Translator","Direct Project Costs",7204.8,0.23,0.17,1,10086.720000000001,42,240.16000000000003,"FT Capacity is 42 weeks"]
["Brazil-Translator","Brazil","Translator","Direct Project Costs",6004,0.23,0.17,1,8405.6,42,200.13333333333335,"FT Capacity is 42 weeks"]
["Brazil-Financial Services","Brazil","Financial Services","Direct Project Admin",5463,0.23,0.17,1,7648.2,30,254.94,"FT Capacity Management is Projects"]
["Brazil-IT Services","Brazil","IT Services","Direct Project Admin",4639,0.23,0.17,1,6494.6,20,324.73,"FT Capacity Management is Languages"]
["Brazil-HR Services","Brazil","HR Services","Direct Project Admin",4754,0.23,0.17,1,6655.6,30,221.85333333333335,"FT Capacity Management is Languages"]
["Brazil-Program Management Support","Brazil","Program Management Support","Direct Project Admin",6993,0.23,0.17,1,9790.1999999999989,25,391.60799999999995,"FT Capacity Management is Languages"]
["Cameroon-Sr. Translation Consultant","Cameroon","Sr. Translation Consultant","Direct Project Costs",9840,0.23,0.17,1,13776,42,328,"FT Capacity is 42 weeks"]
["Cameroon-Independent Translation Consultant","Cameroon","Independent Translation Consultant","Direct Project Costs",7872,0.23,0.17,1,11020.8,42,262.39999999999998,"FT Capacity is 42 weeks"]
["Cameroon-Dependent Consultant (CiT)","Cameroon","Dependent Consultant (CiT)","Direct Project Costs",3936,0.23,0.17,1,5510.4,42,131.19999999999999,"FT Capacity is 42 weeks"]
["Cameroon-Facilitator/Trainer/Lead Translator","Cameroon","Facilitator/Trainer/Lead Translator","Direct Project Costs",4821.5999999999995,0.23,0.17,1,6750.2399999999989,42,160.71999999999997,"FT Capacity is 42 weeks"]
["Cameroon-Translator","Cameroon","Translator","Direct Project Costs",4018,0.23,0.17,1,5625.2000000000007,42,133.93333333333334,"FT Capacity is 42 weeks"]
["Cameroon-Financial Services","Cameroon","Financial Services","Direct Project Admin",2480,0.23,0.17,1,3472,30,115.73333333333333,"FT Capacity Management is Projects"]
["Cameroon-IT Services","Cameroon","IT Services","Direct Project Admin",4018,0.23,0.17,1,5625.2000000000007,20,281.26000000000005,"FT Capacity Management is Languages"]
["Cameroon-HR Services","Cameroon","HR Services","Direct Project Admin",3817,0.23,0.17,1,5343.8,30,178.12666666666667,"FT Capacity Management is Languages"]
["Cameroon-Program Management Support","Cameroon","Program Management Support","Direct Project Admin",9840,0.23,0.17,1,13776,25,551.04,"FT Capacity Management is Languages"]
["China-Sr. Translation Consultant","China","Sr. Translation Consultant","Direct Project Costs",5327.5,0.23,0.17,1,7458.5,42,177.58333333333334,"FT Capacity is 42 weeks"]
["China-Independent Translation Consultant","China","Independent Translation Consultant","Direct Project Costs",4262,0.23,0.17,1,5966.8,42,142.06666666666666,"FT Capacity is 42 weeks"]
["China-Dependent Consultant (CiT)","China","Dependent Consultant (CiT)","Direct Project Costs",2131,0.23,0.17,1,2983.4,42,71.033333333333331,"FT Capacity is 42 weeks"]
["China-Facilitator/Trainer/Lead Translator","China","Facilitator/Trainer/Lead Translator","Direct Project Costs",5732.4,0.23,0.17,1,8025.36,42,191.07999999999998,"FT Capacity is 42 weeks"]
["China-Translator","China","Translator","Direct Project Costs",4777,0.23,0.17,1,6687.8,42,159.23333333333335,"FT Capacity is 42 weeks"]
["China-Financial Services","China","Financial Services","Direct Project Admin",3699,0.23,0.17,1,5178.6000000000004,30,172.62,"FT Capacity Management is Projects"]
["China-IT Services","China","IT Services","Direct Project Admin",2957,0.23,0.17,1,4139.8,20,206.99,"FT Capacity Management is Languages"]
["China-HR Services","China","HR Services","Direct Project Admin",3197,0.23,0.17,1,4475.8,30,149.19333333333333,"FT Capacity Management is Languages"]
["China-Program Management Support","China","Program Management Support","Direct Project Admin",4308,0.23,0.17,1,6031.2,25,241.24799999999999,"FT Capacity Management is Languages"]
["Egypt-Sr. Translation Consultant","Egypt","Sr. Translation Consultant","Direct Project Costs",9137.5,0.23,0.17,1,12792.5,42,304.58333333333331,"FT Capacity is 42 weeks"]
["Egypt-Independent Translation Consultant","Egypt","Independent Translation Consultant","Direct Project Costs",7310,0.23,0.17,1,10234,42,243.66666666666666,"FT Capacity is 42 weeks"]
["Egypt-Dependent Consultant (CiT)","Egypt","Dependent Consultant (CiT)","Direct Project Costs",3655,0.23,0.17,1,5117,42,121.83333333333333,"FT Capacity is 42 weeks"]
["Egypt-Facilitator/Trainer/Lead Translator","Egypt","Facilitator/Trainer/Lead Translator","Direct Project Costs",5212.8,0.23,0.17,1,7297.920000000001,42,173.76000000000002,"FT Capacity is 42 weeks"]
["Egypt-Translator","Egypt","Translator","Direct Project Costs",4344,0.23,0.17,1,6081.6,42,144.80000000000001,"FT Capacity is 42 weeks"]
["Egypt-Financial Services","Egypt","Financial Services","Direct Project Admin",4222,0.23,0.17,1,5910.8,30,197.02666666666667,"FT Capacity Management is Projects"]
["Egypt-IT Services","Egypt","IT Services","Direct Project Admin",4477,0.23,0.17,1,6267.8,20,313.39,"FT Capacity Management is Languages"]
["Egypt-HR Services","Egypt","HR Services","Direct Project Admin",4338,0.23,0.17,1,6073.2,30,202.44,"FT Capacity Management is Languages"]
["Egypt-Program Management Support","Egypt","Program Management Support","Direct Project Admin",6296,0.23,0.17,1,8814.4,25,352.57599999999996,"FT Capacity Management is Languages"]
["Germany-Sr. Translation Consultant","Germany","Sr. Translation Consultant","Direct Project Costs",51462.5,0.23,0.17,1,72047.5,42,1715.4166666666667,"FT Capacity is 42 weeks"]
["Germany-Independent Translation Consultant","Germany","Independent Translation Consultant","Direct Project Costs",41170,0.23,0.17,1,57638,42,1372.3333333333333,"FT Capacity is 42 weeks"]
["Germany-Dependent Consultant (CiT)","Germany","Dependent Consultant (CiT)","Direct Project Costs",20585,0.23,0.17,1,28819,42,686.16666666666663,"FT Capacity is 42 weeks"]
["Germany-Facilitator/Trainer/Lead Translator","Germany","Facilitator/Trainer/Lead Translator","Direct Project Costs",42504,0.23,0.17,1,59505.599999999999,42,1416.8,"FT Capacity is 42 weeks"]
["Germany-Translator","Germany","Translator","Direct Project Costs",35420,0.23,0.17,1,49588,42,1180.6666666666667,"FT Capacity is 42 weeks"]
["Germany-Financial Services","Germany","Financial Services","Direct Project Admin",39582,0.23,0.17,1,55414.8,30,1847.16,"FT Capacity Management is Projects"]
["Germany-IT Services","Germany","IT Services","Direct Project Admin",36714,0.23,0.17,1,51399.6,20,2569.98,"FT Capacity Management is Languages"]
["Germany-HR Services","Germany","HR Services","Direct Project Admin",34312,0.23,0.17,1,48036.800000000003,30,1601.2266666666667,"FT Capacity Management is Languages"]
["Germany-Program Management Support","Germany","Program Management Support","Direct Project Admin",37341,0.23,0.17,1,52277.4,25,2091.096,"FT Capacity Management is Languages"]
["India-Sr. Translation Consultant","India","Sr. Translation Consultant","Direct Project Costs",6913.75,0.23,0.17,1,9679.25,42,230.45833333333334,"FT Capacity is 42 weeks"]
["India-Independent Translation Consultant","India","Independent Translation Consultant","Direct Project Costs",5531,0.23,0.17,1,7743.4000000000005,42,184.36666666666667,"FT Capacity is 42 weeks"]
["India-Dependent Consultant (CiT)","India","Dependent Consultant (CiT)","Direct Project Costs",2765.5,0.23,0.17,1,3871.7000000000003,42,92.183333333333337,"FT Capacity is 42 weeks"]
["India-Facilitator/Trainer/Lead Translator","India","Facilitator/Trainer/Lead Translator","Direct Project Costs",3032.4,0.23,0.17,1,4245.3599999999997,42,101.08,"FT Capacity is 42 weeks"]
["India-Translator","India","Translator","Direct Project Costs",2527,0.23,0.17,1,3537.8,42,84.233333333333334,"FT Capacity is 42 weeks"]
["India-Financial Services","India","Financial Services","Direct Project Admin",5335,0.23,0.17,1,7469,30,248.96666666666667,"FT Capacity Management is Projects"]
["India-IT Services","India","IT Services","Direct Project Admin",4719,0.23,0.17,1,6606.6,20,330.33000000000004,"FT Capacity Management is Languages"]
["India-HR Services","India","HR Services","Direct Project Admin",3249,0.23,0.17,1,4548.6000000000004,30,151.62,"FT Capacity Management is Languages"]
["India-Program Management Support","India","Program Management Support","Direct Project Admin",4673,0.23,0.17,1,6542.2,25,261.68799999999999,"FT Capacity Management is Languages"]
["Indonesia-Sr. Translation Consultant","Indonesia","Sr. Translation Consultant","Direct Project Costs",3562.5,0.23,0.17,1,4987.5,42,118.75,"FT Capacity is 42 weeks"]
["Indonesia-Independent Translation Consultant","Indonesia","Independent Translation Consultant","Direct Project Costs",2850,0.23,0.17,1,3990,42,95,"FT Capacity is 42 weeks"]
["Indonesia-Dependent Consultant (CiT)","Indonesia","Dependent Consultant (CiT)","Direct Project Costs",1425,0.23,0.17,1,1995,42,47.5,"FT Capacity is 42 weeks"]
["Indonesia-Facilitator/Trainer/Lead Translator","Indonesia","Facilitator/Trainer/Lead Translator","Direct Project Costs",2724,0.23,0.17,1,3813.6,42,90.8,"FT Capacity is 42 weeks"]
["Indonesia-Translator","Indonesia","Translator","Direct Project Costs",2270,0.23,0.17,1,3178,42,75.666666666666671,"FT Capacity is 42 weeks"]
["Indonesia-Financial Services","Indonesia","Financial Services","Direct Project Admin",1848,0.23,0.17,1,2587.1999999999998,30,86.24,"FT Capacity Management is Projects"]
["Indonesia-IT Services","Indonesia","IT Services","Direct Project Admin",2218,0.23,0.17,1,3105.2,20,155.26,"FT Capacity Management is Languages"]
["Indonesia-HR Services","Indonesia","HR Services","Direct Project Admin",2462,0.23,0.17,1,3446.8,30,114.89333333333335,"FT Capacity Management is Languages"]
["Indonesia-Program Management Support","Indonesia","Program Management Support","Direct Project Admin",3453,0.23,0.17,1,4834.2000000000007,25,193.36800000000002,"FT Capacity Management is Languages"]
["Mexico-Sr. Translation Consultant","Mexico","Sr. Translation Consultant","Direct Project Costs",9950,0.23,0.17,1,13930,42,331.66666666666669,"FT Capacity is 42 weeks"]
["Mexico-Independent Translation Consultant","Mexico","Independent Translation Consultant","Direct Project Costs",7960,0.23,0.17,1,11144,42,265.33333333333331,"FT Capacity is 42 weeks"]
[{"$f":"B67&\"-\"&C67","v":"Mexico-Dependent Consultant (CiT)"},"Mexico","Dependent Consultant (CiT)","Direct Project Costs",3980,0.23,0.17,1,5572,42,132.66666666666666,"FT Capacity is 42 weeks"]
["Mexico-Facilitator/Trainer/Lead Translator","Mexico","Facilitator/Trainer/Lead Translator","Direct Project Costs",7557.5999999999995,0.23,0.17,1,10580.64,42,251.92,"FT Capacity is 42 weeks"]
["Mexico-Translator","Mexico","Translator","Direct Project Costs",6298,0.23,0.17,1,8817.2000000000007,42,209.93333333333334,"FT Capacity is 42 weeks"]
["Mexico-Financial Services","Mexico","Financial Services","Direct Project Admin",5126,0.23,0.17,1,7176.4,30,239.21333333333331,"FT Capacity Management is Projects"]
["Mexico-IT Services","Mexico","IT Services","Direct Project Admin",5731,0.23,0.17,1,8023.4000000000005,20,401.17,"FT Capacity Management is Languages"]
["Mexico-HR Services","Mexico","HR Services","Direct Project Admin",6482,0.23,0.17,1,9074.8000000000011,30,302.4933333333334,"FT Capacity Management is Languages"]
["Mexico-Program Management Support","Mexico","Program Management Support","Direct Project Admin",10910,0.23,0.17,1,15274,25,610.96,"FT Capacity Management is Languages"]
["Mozambique-Sr. Translation Consultant","Mozambique","Sr. Translation Consultant","Direct Project Costs",10184.275,0.23,0.17,1,14257.985000000001,42,339.47583333333336,"FT Capacity is 42 weeks"]
["Mozambique-Independent Translation Consultant","Mozambique","Independent Translation Consultant","Direct Project Costs",8147.42,0.23,0.17,1,11406.388000000001,42,271.58066666666667,"FT Capacity is 42 weeks"]
["Mozambique-Dependent Consultant (CiT)","Mozambique","Dependent Consultant (CiT)","Direct Project Costs",4073.71,0.23,0.17,1,5703.1940000000004,42,135.79033333333334,"FT Capacity is 42 weeks"]
["Mozambique-Facilitator/Trainer/Lead Translator","Mozambique","Facilitator/Trainer/Lead Translator","Direct Project Costs",4188.0972000000002,0.23,0.17,1,5863.33608,42,139.60324,"FT Capacity is 42 weeks"]
["Mozambique-Translator","Mozambique","Translator","Direct Project Costs",3490.0810000000001,0.23,0.17,1,4886.1134000000002,42,116.33603333333333,"FT Capacity is 42 weeks"]
["Mozambique-Financial Services","Mozambique","Financial Services","Direct Project Admin",2934.5039999999999,0.23,0.17,1,4108.3055999999997,30,136.94351999999998,"FT Capacity Management is Projects"]
["Mozambique-IT Services","Mozambique","IT Services","Direct Project Admin",3436.83,0.23,0.17,1,4811.5619999999999,20,240.57810000000001,"FT Capacity Management is Languages"]
["Mozambique-HR Services","Mozambique","HR Services","Direct Project Admin",4462.8379999999997,0.23,0.17,1,6247.9731999999995,30,208.26577333333333,"FT Capacity Management is Languages"]
["Mozambique-Program Management Support","Mozambique","Program Management Support","Direct Project Admin",4777.5039999999999,0.23,0.17,1,6688.5056000000004,25,267.54022400000002,"FT Capacity Management is Languages"]
["Nigeria-Sr. Translation Consultant","Nigeria","Sr. Translation Consultant","Direct Project Costs",11486.25,0.23,0.17,1,16080.75,42,382.875,"FT Capacity is 42 weeks"]
["Nigeria-Independent Translation Consultant","Nigeria","Independent Translation Consultant","Direct Project Costs",9189,0.23,0.17,1,12864.600000000002,42,306.30000000000007,"FT Capacity is 42 weeks"]
["Nigeria-Dependent Consultant (CiT)","Nigeria","Dependent Consultant (CiT)","Direct Project Costs",4594.5,0.23,0.17,1,6432.3000000000011,42,153.15000000000003,"FT Capacity is 42 weeks"]
["Nigeria-Facilitator/Trainer/Lead Translator","Nigeria","Facilitator/Trainer/Lead Translator","Direct Project Costs",11026.8,0.23,0.17,1,15437.52,42,367.56,"FT Capacity is 42 weeks"]
["Nigeria-Translator","Nigeria","Translator","Direct Project Costs",9189,0.23,0.17,1,12864.600000000002,42,306.30000000000007,"FT Capacity is 42 weeks"]
["Nigeria-Financial Services","Nigeria","Financial Services","Direct Project Admin",3223,0.23,0.17,1,4512.2,30,150.40666666666667,"FT Capacity Management is Projects"]
["Nigeria-IT Services","Nigeria","IT Services","Direct Project Admin",3907,0.23,0.17,1,5469.7999999999993,20,273.48999999999995,"FT Capacity Management is Languages"]
["Nigeria-HR Services","Nigeria","HR Services","Direct Project Admin",2211,0.23,0.17,1,3095.4,30,103.18,"FT Capacity Management is Languages"]
["Nigeria-Program Management Support","Nigeria","Program Management Support","Direct Project Admin",4597,0.23,0.17,1,6435.7999999999993,25,257.43199999999996,"FT Capacity Management is Languages"]
["Pakistan-Sr. Translation Consultant","Pakistan","Sr. Translation Consultant","Direct Project Costs",5801.9124999999995,0.23,0.17,1,8122.6774999999998,42,193.39708333333334,"FT Capacity is 42 weeks"]
["Pakistan-Independent Translation Consultant","Pakistan","Independent Translation Consultant","Direct Project Costs",4641.53,0.23,0.17,1,6498.1419999999989,42,154.71766666666664,"FT Capacity is 42 weeks"]
["Pakistan-Dependent Consultant (CiT)","Pakistan","Dependent Consultant (CiT)","Direct Project Costs",2320.7649999999999,0.23,0.17,1,3249.0709999999995,42,77.358833333333322,"FT Capacity is 42 weeks"]
["Pakistan-Facilitator/Trainer/Lead Translator","Pakistan","Facilitator/Trainer/Lead Translator","Direct Project Costs",1885.0319999999997,0.23,0.17,1,2639.0447999999997,42,62.834399999999995,"FT Capacity is 42 weeks"]
["Pakistan-Translator","Pakistan","Translator","Direct Project Costs",1570.86,0.23,0.17,1,2199.2039999999997,42,52.361999999999995,"FT Capacity is 42 weeks"]
["Pakistan-Financial Services","Pakistan","Financial Services","Direct Project Admin",1470.21,0.23,0.17,1,2058.2940000000003,30,68.609800000000007,"FT Capacity Management is Projects"]
["Pakistan-IT Services","Pakistan","IT Services","Direct Project Admin",1972.04,0.23,0.17,1,2760.8559999999998,20,138.0428,"FT Capacity Management is Languages"]
["Pakistan-HR Services","Pakistan","HR Services","Direct Project Admin",2168.85,0.23,0.17,1,3036.39,30,101.21299999999999,"FT Capacity Management is Languages"]
["Pakistan-Program Management Support","Pakistan","Program Management Support","Direct Project Admin",2346.7800000000002,0.23,0.17,1,3285.4920000000002,25,131.41968,"FT Capacity Management is Languages"]
["Papua New Guinea-Sr. Translation Consultant","Papua New Guinea","Sr. Translation Consultant","Direct Project Costs",28350,0.23,0.17,1,39690,42,945,"FT Capacity is 42 weeks"]
["Papua New Guinea-Independent Translation Consultant","Papua New Guinea","Independent Translation Consultant","Direct Project Costs",22680,0.23,0.17,1,31752,42,756,"FT Capacity is 42 weeks"]
["Papua New Guinea-Dependent Consultant (CiT)","Papua New Guinea","Dependent Consultant (CiT)","Direct Project Costs",11340,0.23,0.17,1,15876,42,378,"FT Capacity is 42 weeks"]
["Papua New Guinea-Facilitator/Trainer/Lead Translator","Papua New Guinea","Facilitator/Trainer/Lead Translator","Direct Project Costs",10467.6,0.23,0.17,1,14654.640000000001,42,348.92,"FT Capacity is 42 weeks"]
["Papua New Guinea-Translator","Papua New Guinea","Translator","Direct Project Costs",8723,0.23,0.17,1,12212.2,42,290.76666666666671,"FT Capacity is 42 weeks"]
["Papua New Guinea-Financial Services","Papua New Guinea","Financial Services","Direct Project Admin",6281,0.23,0.17,1,8793.4,30,293.11333333333334,"FT Capacity Management is Projects"]
["Papua New Guinea-IT Services","Papua New Guinea","IT Services","Direct Project Admin",7851,0.23,0.17,1,10991.4,20,549.56999999999994,"FT Capacity Management is Languages"]
["Papua New Guinea-HR Services","Papua New Guinea","HR Services","Direct Project Admin",7328,0.23,0.17,1,10259.200000000001,30,341.97333333333336,"FT Capacity Management is Languages"]
["Papua New Guinea-Program Management Support","Papua New Guinea","Program Management Support","Direct Project Admin",15702,0.23,0.17,1,21982.799999999999,25,879.31200000000001,"FT Capacity Management is Languages"]
["Russia-Sr. Translation Consultant","Russia","Sr. Translation Consultant","Direct Project Costs",4503.1625000000004,0.23,0.17,1,6304.4275000000007,42,150.10541666666668,"FT Capacity is 42 weeks"]
["Russia-Independent Translation Consultant","Russia","Independent Translation Consultant","Direct Project Costs",3602.53,0.23,0.17,1,5043.5419999999995,42,120.08433333333332,"FT Capacity is 42 weeks"]
["Russia-Dependent Consultant (CiT)","Russia","Dependent Consultant (CiT)","Direct Project Costs",1801.2650000000001,0.23,0.17,1,2521.7709999999997,42,60.04216666666666,"FT Capacity is 42 weeks"]
["Russia-Facilitator/Trainer/Lead Translator","Russia","Facilitator/Trainer/Lead Translator","Direct Project Costs",5083.5,0.23,0.17,1,7116.9,42,169.45,"FT Capacity is 42 weeks"]
["Russia-Translator","Russia","Translator","Direct Project Costs",4236.25,0.23,0.17,1,5930.75,42,141.20833333333334,"FT Capacity is 42 weeks"]
["Russia-Financial Services","Russia","Financial Services","Direct Project Admin",3140.42,0.23,0.17,1,4396.5879999999997,30,146.55293333333333,"FT Capacity Management is Projects"]
["Russia-IT Services","Russia","IT Services","Direct Project Admin",5010.1499999999996,0.23,0.17,1,7014.2099999999991,20,350.71049999999997,"FT Capacity Management is Languages"]
["Russia-HR Services","Russia","HR Services","Direct Project Admin",3120.75,0.23,0.17,1,4369.05,30,145.63500000000002,"FT Capacity Management is Languages"]
["Russia-Program Management Support","Russia","Program Management Support","Direct Project Admin",4155.92,0.23,0.17,1,5818.2880000000005,25,232.73152000000002,"FT Capacity Management is Languages"]
["Tanzania-Sr. Translation Consultant","Tanzania","Sr. Translation Consultant","Direct Project Costs",7317.5,0.23,0.17,1,10244.5,42,243.91666666666666,"FT Capacity is 42 weeks"]
["Tanzania-Independent Translation Consultant","Tanzania","Independent Translation Consultant","Direct Project Costs",5854,0.23,0.17,1,8195.6,42,195.13333333333335,"FT Capacity is 42 weeks"]
["Tanzania-Dependent Consultant (CiT)","Tanzania","Dependent Consultant (CiT)","Direct Project Costs",2927,0.23,0.17,1,4097.8,42,97.566666666666677,"FT Capacity is 42 weeks"]
["Tanzania-Facilitator/Trainer/Lead Translator","Tanzania","Facilitator/Trainer/Lead Translator","Direct Project Costs",2984.4,0.23,0.17,1,4178.16,42,99.47999999999999,"FT Capacity is 42 weeks"]
["Tanzania-Translator","Tanzania","Translator","Direct Project Costs",2487,0.23,0.17,1,3481.8,42,82.9,"FT Capacity is 42 weeks"]
["Tanzania-Financial Services","Tanzania","Financial Services","Direct Project Admin",3677,0.23,0.17,1,5147.8,30,171.59333333333333,"FT Capacity Management is Projects"]
["Tanzania-IT Services","Tanzania","IT Services","Direct Project Admin",3437,0.23,0.17,1,4811.8,20,240.59,"FT Capacity Management is Languages"]
["Tanzania-HR Services","Tanzania","HR Services","Direct Project Admin",3039,0.23,0.17,1,4254.6000000000004,30,141.82000000000002,"FT Capacity Management is Languages"]
["Tanzania-Program Management Support","Tanzania","Program Management Support","Direct Project Admin",3039,0.23,0.17,1,4254.6000000000004,25,170.18400000000003,"FT Capacity Management is Languages"]

{"sheet":"CountryCodes","index":6,"n_rows":172,"n_cols":26,"rows_kept":172,"cut":false,"hidden":true,"merged":[]}
["Country","Region","KeyStone Country","Currency Code","CPI+Rent Index","Index Used",null,null,null,null,null,null,null,null,null,null,null,null,null,null,null,null,null,null,null,"Chad"]
["Afghanistan","Eurasia","Pakistan","AFN",2.77,"CPI+Rent",null,null,null,null,null,null,null,null,null,null,null,null,null,null,null,null,null,null,null,"XAF"]
["Albania","Eurasia","Russia","ALL",0.62,"CPI+Rent"]
["Algeria","Eurasia","Egypt","DZD",0.79,"CPI+Rent"]
["Angola","Africa-Southern","Mozambique","AOA",3.19,"CPI+Rent"]
["Argentina","Americas","Brazil","ARS",1.1599999999999999,"CPI+Rent"]
["Armenia","Eurasia","Russia","AMD",0.73,"CPI+Rent"]
["Australia","Pacific","Papua New Guinea","AUD",0.78,"CPI+Rent"]
["Austria","Eurasia","Germany","EUR",1.07,"CPI+Rent"]
["Azerbaijan","Eurasia","Germany","AZN",0.71,"CPI+Rent"]
["Bahrain","Eurasia","Germany","BHD",0.92,"CPI+Rent"]
["Bangladesh","Asia South","India","BDT",1.36,"CPI+Rent"]
["Belarus","Eurasia","Russia","BYR",0.88,"CPI+Rent"]
["Belgium","Eurasia","Germany","EUR",1.27,"CPI+Rent"]
["Belize","Americas","Mexico","BZD",1.35,"CPI+Rent"]
["Benin","Africa-Francophone","Cameroon","CFA",0.67,"GDP per capita"]
["Bolivia","Americas","Brazil","BOB",0.63,"CPI+Rent"]
["Bosnia And Herzegovina","Eurasia","Pakistan","BAM",1.32,"CPI+Rent"]
["Botswana","Africa-Southern","Mozambique","BWP",0.8,"CPI+Rent"]
["Brazil","Americas","Brazil","BRL",1,"Keystone"]
["Brunei","Asia Islands","Indonesia","BND",1.71,"CPI+Rent"]
["Bulgaria","Eurasia","Russia","BGN",0.67,"CPI+Rent"]
["Burkina Faso","Africa-Francophone","Cameroon","CFA",0.63,"GDP per capita"]
["Cambodia","Asia Mainland","China","KHR",0.93,"CPI+Rent"]
["Cameroon","Africa-Francophone","Cameroon","CFA",1,"Keystone"]
["Canada","Americas","Brazil","CAD",1.3167,"CPI+Rent"]
["Cape Verde","Africa-Southern","Mozambique","CVE",0.72,"CPI+Rent"]
["Central African Republic","Africa-Francophone","Cameroon","XAF",0.28999999999999998,"GDP per capita"]
["Chad","Africa-Francophone","Cameroon","XAF",1.04,"GDP per capita"]
["Chile","Americas","Brazil","CLP",0.95,"CPI+Rent"]
["China","Asia Mainland","China","CNY",1,"Keystone"]
["Colombia","Americas","Brazil","COL",0.7,"CPI+Rent"]
["Comoros","Africa-Southern","Mozambique","KMF",1.08,"GDP per capita"]
["Congo","Africa-Francophone","Cameroon","XAF",2,"GDP per capita"]
["Cook Islands","Pacific","Papua New Guinea","PGK",0.97,"Grocery Index"]
["Costa Rica","Americas","Mexico","CRC",1.52,"CPI+Rent"]
["Côte D'Ivoire","Africa-Francophone","Cameroon","CFA",1.27,"CPI+Rent"]
["Croatia","Eurasia","Pakistan","HRK",1.83,"CPI+Rent"]
["Cyprus","Eurasia","Germany","EUR",0.87,"CPI+Rent"]
["Czech Republic","Eurasia","Germany","CZK",0.63,"CPI+Rent"]
["Dem Rep Congo","Africa-Francophone","Cameroon","CFA",1.63,"CPI+Rent"]
["Denmark","Eurasia","Germany","DKK",1.31,"CPI+Rent"]
["Dominican Republic","Americas","Mexico","DOP",1.21,"CPI+Rent"]
["East Timor","Pacific","Papua New Guinea","PGK",1.23,"CPI"]
["Ecuador","Americas","Brazil","ECS",0.76,"CPI+Rent"]
["Egypt","Eurasia","Egypt","EGP",1,"Keystone"]
["El Salvador","Americas","Mexico","SVC",1.02,"CPI+Rent"]
["Equatorial Guinea","Africa-Francophone","Cameroon","XAF",1.1200000000000001,"CPI"]
["Estonia","Eurasia","Russia","EEK",1.01,"CPI+Rent"]
["Ethiopia","Africa-Anglophone East","Tanzania","ETB",0.85,"CPI+Rent"]
["Fiji","Pacific","Papua New Guinea","FJD",0.37,"CPI+Rent"]
["Finland","Eurasia","Germany","EUR",1.1499999999999999,"CPI+Rent"]
["France","Eurasia","Germany","EUR",1.1499999999999999,"CPI+Rent"]
["French Polynesia","Pacific","Papua New Guinea","PGK",0.83,"CPI+Rent"]
["Gabon","Africa-Francophone","Cameroon","XAF",1.21,"CPI+Rent"]
["Georgia","Eurasia","Germany","GEL",0.47,"CPI+Rent"]
["Germany","Eurasia","Germany","EUR",1,"Keystone"]
["Ghana","Africa-Anglophone West","Nigeria","GHS",1.76,"CPI+Rent"]
["Greece","Eurasia","Russia","EUR",1.06,"CPI+Rent"]
["Guatemala","Americas","Mexico","GTQ",1.22,"CPI+Rent"]
["Guinea","Africa-Francophone","Cameroon","GNF",0.46,"GDP per capita"]
["Guinea-Bissau","Africa-Francophone","Cameroon","XOF",0.5,"GDP per capita"]
["Guyana","Americas","Brazil","GYD",0.88,"CPI+Rent"]
["Honduras","Americas","Mexico","HNL",1.22,"CPI+Rent"]
["Hong Kong","Asia Mainland","China","HKD",2.4900000000000002,"CPI+Rent"]
["Hungary","Eurasia","Russia","HUF",0.77,"CPI+Rent"]
["Iceland","Eurasia","Germany","ISK",1.43,"CPI+Rent"]
["India","Asia South","India","INR",1,"Keystone"]
["Indonesia","Asia Islands","Indonesia","IDR",1,"Keystone"]
["Iran","Eurasia","Pakistan","IRR",1.95,"CPI+Rent"]
["Iraq","Eurasia","Pakistan","IQD",2.0499999999999998,"CPI+Rent"]
["Ireland","Eurasia","Germany","EUR",1.29,"CPI+Rent"]
["Israel","Eurasia","Germany","ILS",1.17,"CPI+Rent"]
["Italy","Eurasia","Germany","EUR",1.06,"CPI+Rent"]
["Jamaica","Americas","Mexico","JMD",1.29,"CPI+Rent"]
["Japan","Asia Mainland","China","JPY",1.51,"CPI+Rent"]
["Jordan","Eurasia","Germany","JOD",0.77,"CPI+Rent"]
["Kazakhstan","Eurasia","Russia","KZT",0.95,"CPI+Rent"]
["Kenya","Africa-Anglophone East","Tanzania","KES",0.71,"CPI+Rent"]
["Kuwait","Eurasia","Egypt","KWD",2.85,"CPI+Rent"]
["Kyrgyzstan","Eurasia","Pakistan","KGS",1.68,"CPI+Rent"]
["Laos","Asia Mainland","China","LAK",1.02,"CPI+Rent"]
["Latvia","Eurasia","Russia","LVL",0.94,"CPI+Rent"]
["Lebanon","Eurasia","Germany","LBP",1.1399999999999999,"CPI+Rent"]
["Libya","Eurasia","Egypt","LYD",1.1599999999999999,"CPI+Rent"]
["Lithuania","Eurasia","Russia","LTL",0.9,"CPI+Rent"]
["Luxemborg","Eurasia","Germany","EUR",1.52,"CPI+Rent"]
["Macau (Macao)","Asia Mainland","China","MOP",1.62,"CPI+Rent"]
["Macedonia","Eurasia","Egypt","MKD",0.83,"CPI+Rent"]
["Madagascar","Africa-Southern","Mozambique","MGA",0.78,"CPI+Rent"]
["Malawi","Africa-Southern","Mozambique","MGA",0.75,"GDP per capita"]
["Malaysia","Asia Islands","Indonesia","MYR",1.1200000000000001,"CPI+Rent"]
["Mali","Africa-Francophone","Cameroon","MWK",0.46,"GDP per capita"]
["Malta","Eurasia","Germany","EUR",0.96,"CPI+Rent"]
["Mauritania","Eurasia","Egypt","MRO",0.33,"GDP per capita"]
["Mauritius","Africa-Southern","Mozambique","MUR",0.82,"CPI+Rent"]
["Mexico","Americas","Mexico","MXN",1,"Keystone"]
["Micronesia","Pacific","Papua New Guinea","PGK",0.63,"Grocery Index"]
["Moldova","Eurasia","Egypt","MDL",0.76,"CPI+Rent"]
["Mongolia","Asia Mainland","China","MNT",1.53,"CPI+Rent"]
["Morocco","Eurasia","Egypt","MAD",0.98,"CPI+Rent"]
["Mozambique","Africa-Southern","Mozambique","MZN",1,"Keystone"]
["Myanmar (Burma)","Asia Mainland","China","MMK",1.0900000000000001,"CPI+Rent"]
["N Mariana Islands","Pacific","Papua New Guinea","PGK",0.72,"Grocery Index"]
["Namibia","Africa-Southern","Mozambique","NAD",0.89,"CPI+Rent"]
["Nepal","Asia South","India","NPR",1,"CPI+Rent"]
["Netherlands","Eurasia","Germany","ANG",1.18,"CPI+Rent"]
["New Caledonia","Pacific","Papua New Guinea","PGK",0.83,"CPI+Rent"]
["New Zealand","Pacific","Papua New Guinea","NZD",0.87,"CPI+Rent"]
["Nicaragua","Americas","Mexico","NIO",1.06,"CPI+Rent"]
["Niger","Africa-Francophone","Cameroon","CFA",0.33,"GDP per capita"]
["Nigeria","Africa-Anglophone West","Nigeria","NGN",1,"Keystone"]
["Norway","Eurasia","Germany","NOK",1.72,"CPI+Rent"]
["Oman","Eurasia","Pakistan","OMR",2.44,"CPI+Rent"]
["Pakistan","Eurasia","Pakistan","PKR",1,"Keystone"]
["Palau","Pacific","Papua New Guinea","PGK",1.07,"CPI"]
["Panama","Americas","Mexico","PAB",0.59,"CPI+Rent"]
["Papua New Guinea","Pacific","Papua New Guinea","PGK",1,"Keystone"]
["Paraguay","Americas","Brazil","PYG",0.59,"CPI+Rent"]
["Peru","Americas","Brazil","PEN",0.9,"CPI+Rent"]
["Philippines","Asia Islands","Indonesia","PHP",0.91,"CPI+Rent"]
["Poland","Eurasia","Germany","PLN",0.59,"CPI+Rent"]
["Portugal","Eurasia","Germany","EUR",0.74,"CPI+Rent"]
["Puerto Rico","Americas","Mexico","COL",1.58,"CPI+Rent"]
["Qatar","Eurasia","Egypt","QAR",3.38,"CPI+Rent"]
["Romania","Eurasia","Germany","RON",0.51,"CPI+Rent"]
["Russian Federation","Eurasia","Russia","RUB",1,"Keystone"]
["Rwanda","Africa-Anglophone East","Tanzania","RWF",0.73,"CPI+Rent"]
["Sao Tome","Africa-Southern","Mozambique","STD",1.83,"GDP per capita"]
["Saudi Arabia","Eurasia","Germany","SAR",0.7,"CPI+Rent"]
["Senegal","Africa-Francophone","Cameroon","CFA",0.88,"GDP per capita"]
["Serbia","Eurasia","Pakistan","RSD",1.29,"CPI+Rent"]
["Seychelles","Africa-Southern","Mozambique","SCR",1.1399999999999999,"CPI+Rent"]
["Singapore","Asia Islands","Indonesia","SGD",3.49,"CPI+Rent"]
["Slovakia","Eurasia","Russia","SKK",0.91,"CPI+Rent"]
["Slovenia","Eurasia","Germany","SIT",0.8,"CPI+Rent"]
["Solomon Islands","Pacific","Papua New Guinea","SBD",0.8,"Grocery Index"]
["South Africa","Africa-Southern","Mozambique","ZAR",0.74,"CPI+Rent"]
["South Korea","Asia Mainland","China","KRW",1.68,"CPI+Rent"]
["South Sudan","Africa-Anglophone East","Tanzania","SDG",0.82,"GDP per capita"]
["Spain","Eurasia","Germany","EUR",0.83,"CPI+Rent"]
["Sri Lanka","Asia South","India","LKR",1.51,"CPI+Rent"]
["St. Lucia","Americas","Mexico","COL",1.37,"CPI+Rent"]
["Sudan","Eurasia","Egypt","SDD",0.39,"GDP per capita"]
["Suriname","Americas","Brazil","SRD",1.18,"CPI+Rent"]
["Sweden","Eurasia","Germany","SEK",1.1100000000000001,"CPI+Rent"]
["Switzerland","Eurasia","Germany","CHF",2.06,"CPI+Rent"]
["Syria","Eurasia","Pakistan","SYP",1.34,"CPI+Rent"]
["Taiwan","Asia Mainland","China","TWD",1.1000000000000001,"CPI+Rent"]
["Tajikistan","Eurasia","Pakistan","TJS",1.1000000000000001,"CPI+Rent"]
["Tanzania","Africa-Anglophone East","Tanzania","TZS",1,"Keystone"]
["Thailand","Asia Mainland","China","THB",0.85,"CPI+Rent"]
["Togo","Africa-Francophone","Cameroon","CFA",0.75,"GDP per capita"]
["Tonga","Pacific","Papua New Guinea","TOP",0.97,"CPI"]
["Trinidad & Tobago","Americas","Brazil","TTD",1.08,"CPI+Rent"]
["Tunisia","Eurasia","Egypt","TND",0.85,"CPI+Rent"]
["Turkey","Eurasia","Germany","TRY",0.61,"CPI+Rent"]
["Turkmenistan","Eurasia","Pakistan","TMM",1.73,"CPI+Rent"]
["Uganda","Africa-Anglophone East","Tanzania","UGX",0.56999999999999995,"CPI+Rent"]
["Ukraine","Eurasia","Russia","UAH",0.61,"CPI+Rent"]
["United Arab Emirates","Eurasia","Germany","AED",1.47,"CPI+Rent"]
["United Kingdom","Eurasia","Germany","GBP",1.38,"CPI+Rent"]
["United States","Americas","Brazil","USD",1.5234000000000001,"CPI+Rent"]
["Uruguay","Americas","Brazil","UYU",1.04,"CPI+Rent"]
["Uzbekistan","Eurasia","Pakistan","UZS",1.95,"CPI+Rent"]
["Vanuatu","Pacific","Papua New Guinea","VUV",0.91,"CPI"]
["Venezuela","Americas","Brazil","VEF",1.42,"CPI+Rent"]
["Vietnam","Asia Mainland","China","VND",0.77,"CPI+Rent"]
["Yemen","Eurasia","Pakistan","AED",1.59,"CPI+Rent"]
["Zambia","Africa-Anglophone East","Tanzania","ZMW",0.91,"CPI+Rent"]
["Zimbabwe","Africa-Southern","Mozambique","ZWD",0.99,"CPI+Rent"]
["Private",null,null,"Local",0]